Workbook

Sheet COVER
C2: Cover
C4: NAVIGATION
C6: COMMENTS
C9: Bonneville Power Administration
C10: 6P Energy Conservation Standards Savings Model
C11: Microwave Ovens
C13: Product Description
C14: Microwave ovens cook or heat food by means of microwave energy. Some microwave ovens also have thermal elements designed for surface browning of food. Microwave ovens are sometimes available as combination ovens, which have additional heating elements or convection capability. Microwave ovens enable users to cook food in ways similar to conventional ovens. These products are offered in a broad range of sizes and configurations. Typical microwave ovens are available in countertop or over-the-range configurations.
C16: Standard Compliance Year
C17: 2016 Standards Affect Standby and Off-mode Power Consumption
C19: Major changes from previous rulemaking
C20: There were no previous standards for microwave ovens
C22: 6P Baseline
C23: The product was modeled in the Sixth Power Plan.
C25: Prepared By:
C26: Navigant Consulting | D26: Cadeo Group
C27: One Market Street | Spear Street Tower, Suite 1200 | D27: 840 First Street, Suite 300
C28: San Francisco, CA 94105 | D28: Washington, DC 20002

Sheet Definitions
C2: Definitions
C4: NAVIGATION
C6: COMMENTS
C9: Average Megawatt (aMW) | D9: The average number of megawatts over a specified time period
C10: Adjustment to 6P Baseline | D10: Adjustment to reconcile the 6P projected energy consumption and the modeled consumption calculated using best available data.
C11: Department of Energy Aggregate Lifecycle Savings | D11: Sum of 'Total First Year Savings'. This accounts for the cumulative savings in accordance with DOE Carbon Accounting Practices.
C12: Department of Energy Notice of Proposed Rulemaking (DOE NOPR) | D12: Federal Register notice detailing analyses conducted by the DOE to establish proposed energy conservation standards.
C13: Efficiency Level (EL) | D13: The discrete efficiency ratings of a product. Each efficiency level is associated with a different UEC.
C14: Efficiency Level Distribution | D14: The mix of various equipment efficiencies shipped in a given year.
C15: Incremental Savings | D15: Savings due to the higher standards for units installed in a particular year. First year savings are highest following the standards compliance year while the stock turns over, after which first year savings are only attributed to shipments associated wit
C16: Governmental Regulatory Impact Model (GRIM) | D16: The industry cash flow model used by DOE to assess impacts on manufacturers due to proposed energy conservation standards
C17: Installed Unit Energy Consumption (Installed UEC) | D17: The average annual unit energy consumption of all installed units in a given year.
C18: Market Unit Energy Consumption (Market UEC) | D18: The average annual unit energy consumption of units shipped in a given year.
C19: National Impact Analysis (NIA) | D19: The energy impact analysis used by DOE to calculate energy savings associated with each standard.
C20: Pre-case | D20: The case representing 6P baseline assumptions where energy consumption due to the product accounts for shipment and shipment UEC by year, without the affect of standards announced following the development of the 6P.
C21: Post-case | D21: The case in which standards are implemented. If the 6P already captured the analyzed standard, the post-case will be the same as the pre-case.
C22: Product Class | D22: Product classificiation determined by product configuration, size, application, location, and other attributes that contribute to consumer utility. DOE is allowed to establish different standards for each product class.
C23: Product Class Distribution | D23: Market share/mix of each product class shipped in a given year.
C24: Product Lifetime | D24: The average time a given class of products stays in the field as part of the installed stock. Some products will last longer (delaying replacement) whereas others will fail and be retired earlier (accelerating replacement), but the lifetime represents th
C25: Shipments | D25: Sales of products. This may be presented by product class, efficiency distribution, or delineated by other metrics. Shipments may be attributed to new construction and/or replacements and retrofits.
C26: Sixth Power Plan (6P) | D26: The Pacific Northwest Resource Plan published by the Northwest Power Conservation Council. The 6P timeframe is from 2010-2015.
C27: Sixth Power Plan Baseline (6P Baseline) | D27: The 6P assumes equipment efficiency and shipment units in the region. When available, the 6P assumptions are the baseline for each standard impact analysis.
C28: Standard Compliance Year | D28: The year when the appliance standard goes into effect.
C29: Stock | D29: All units installed in previous years which remain in operation.
C30: Technical Support Document (TSD) | D30: TSDs are published by the DOE as companion documents to Federal Register notices (e.g., ANOPRs/preliminary analyses and NOPRs). The TSDs include technical detail that supports the notices. The final rule TSD includes the discussion of the Manufacturer I
C31: Cumulative Savings through 2034 | D31: The sum of incremental savings from 2010 through 2034
C32: Trial Standard Level (TSL) | D32: A proposed efficiency standard evaluated by DOE during the NOPR and Final Rule phase analyses. A TSL may specify different standard efficiency levels for each product class included in the rulemaking.

Sheet Comments
C2: Comments
C4: NAVIGATION
C7: Tab | D7: Comment
C8: Example | D8: Please use this space to document your comments as you review the model. We look forward to receiving your feedback. Thank you.

Sheet Navigation
C2: NAVIGATION
C4: COMMENTS
C7: INFORMATION TABS | E7: INPUT TABS | G7: UEC CALCULATIONS | I7: RESULTS | K7: CHARTS
C9: COVER | E9: PRODUCT CLASSES
C11: DEFINITIONS | E11: EFFICIENCY LEVELS | G11: UEC DEVELOPMENT
C13: COMMENTS | E13: LIFETIME AND USAGE DATA
C15: NAVIGATION | E15: PRODUCT CLASS DISTRIBUTION
C17: CENTRAL RESIDENTIAL MODEL (EXTERNAL) | E17: SHIPMENTS AND STOCK - SF | G17: UEC - SF | I17: RESULTS - SF | K17: CHARTS - SF
E19: EFFICIENCY DISTRIBUTION - SF
E21: SHIPMENTS AND STOCK - MF | G21: UEC - MF | I21: RESULTS - MF | K21: CHARTS - MF
E23: EFFICIENCY DISTRIBUTION - MF
E25: SHIPMENTS AND STOCK - MH | G25: UEC - MH | I25: RESULTS - MH | K25: CHARTS - MH
E27: EFFICIENCY DISTRIBUTION - MH
E29: 6P UEC DEVELOPMENT | I29: RESULTS - TH | K29: CHARTS - ALL
E31: CONSTANTS
I33: SUMMARY RESULTS

Sheet Product Classes
C2: Selection of Product Classes for Model
C4: NAVIGATION
C6: COMMENTS
C9: All Product Classes | D9: 2013 DOE Final Rule PCs 1 | E9: 6P PCs 2 | G9: Model PCs | H9: Rationale
C10: Microwave-Only Ovens and Countertop Convection Microwave Ovens | D10: 2013-DOE-PC1 | E10: 6P-PC1 | G10: PC1 | H10: Product Class 1 represents 99% of shipments in DOE Final Rule NIA
C11: Built-in and Over-the-Range Convection Microwave Ovens | D11: 2013-DOE-PC2 | H11: 6P makes no distinction between product classes
C13: Sources | D13: 1. 2013 DOE Microwaves Direct Final Rule, Chapter 1: Introduction, Table I-1 Energy Conservation Standards for Microwave Ovens (page 3)
D14: 2. 6P Conservation Supply Curve Files: Microwaves and Ovens -'Input Assumptions’ tab, cells J8:L11 (Unknown Origin)

Sheet Efficiency Levels
C2: Efficiency Levels and Standards for Each Product Class
C4: NAVIGATION
C6: COMMENTS
C9: PC1 | D9: Microwave-Only Ovens and Countertop Convection Microwave Ovens
C11: Model ELs | D11: Annual Standby Energy Use (kWh/year) 1,2 | E11: Standby Power (W) 3 | F11: Compliance Year | G11: Efficiency Levels Description
C12: EL0 | D12: 34.76 | E12: 4 | G12: Baseline
C13: EL1 | D13: 17.38 | E13: 2 | G13: FEMP Procurement Efficiency Recommendation
C14: EL2 | D14: 13.03 | E14: 1.5 | G14: Gap Fill
C15: EL3 | D15: 8.69 | E15: 1 | F15: 2016 | G15: IEA 1-Watt Program
C16: EL4 | D16: 0.17 | E16: 0.02 | G16: Max-Tech
C18: Sources | D18: 1. 2013 DOE Technical Support Document Chapter 5: Engineering Analysis - Table 7.3.3 Microwave-Only Ovens and Countertop Convection Microwave Ovens: Annual Energy Consumption by Standby Power Level
D19: 2. 2013 DOE Technical Support Document Chapter 5: Engineering Analysis - Table 7.3.4 Built-In and Over-the-Range Convection Microwave Ovens: Annual Energy Consumption by Standby Power Level
D20: 3. 2013 DOE Technical Support Document Chapter 5: Engineering Analysis - Table 5.3.1 Standby Power Levels for Microwave-Only Ovens and Countertop Convection Microwave Ovens

Sheet Lifetime and Usage Data
C2: Lifetime and Usage Data
C4: NAVIGATION
C6: COMMENTS
C9: =MODEL_NAME -> Microwave Ovens | D9: Single Family | E9: Multi-Family | F9: Manufactured Homes | G9: Total Homes | H9: Source
C10: Lifetime (years) | D10: =ROUND(INDEX([1]!LIFETIMES_TABLE, MATCH($C$9,[1]!APPLIANCES,0), MATCH(D9,[1]!LIFETIMES_HOUSING_TYPE,0)),0) -> 9 | E10: =ROUND(INDEX([1]!LIFETIMES_TABLE, MATCH($C$9,[1]!APPLIANCES,0), MATCH(E9,[1]!LIFETIMES_HOUSING_TYPE,0)),0) -> 9 | F10: =ROUND(INDEX([1]!LIFETIMES_TABLE, MATCH($C$9,[1]!APPLIANCES,0), MATCH(F9,[1]!LIFETIMES_HOUSING_TYPE,0)),0) -> 9 | G10: =ROUND(INDEX([1]!LIFETIMES_TABLE, MATCH($C$9,[1]!APPLIANCES,0), MATCH(G9,[1]!LIFETIMES_HOUSING_TYPE,0)),0) -> 9 | H10: 2013 DOE Final Rule Techincal Support Document Chapter 9: Shipments Analysis, Section 9.3.2 Markets and Model Calibration (page 9-6)
C14: Usage Data | D14: Single Family | E14: Multi-Family | F14: Manufactured Homes | G14: All Segments (WTD AVG) | H14: Source
C15: Usage Hours / year | D15: =$G15 -> 71 | E15: 71 | F15: =$G15 -> 71 | G15: 71 | H15: 2013 DOE Final Rule Techincal Support Document Chapter 5: Energy Use Analysis, Section 7.3 Standby Power Consumption
C16: Standby Hours / year | D16: 8695 | E16: 8695 | F16: =$G16 -> 8695 | G16: =Constants!D10*Constants!D12-G15 -> 8695

Sheet Product Class Dist
C2: Product Class Distributions
C4: NAVIGATION
C6: COMMENTS
C9: PRE-Case | D9: 1981 | E9: 1982 | F9: 1983 | G9: 1984 | H9: 1985 | I9: 1986 | J9: 1987 | K9: 1988 | L9: 1989 | M9: 1990 | N9: 1991 | O9: 1992 | P9: 1993 | Q9: 1994 | R9: 1995 | S9: 1996 | T9: 1997 | U9: 1998 | V9: 1999 | W9: 2000 | X9: 2001 | Y9: 2002 | Z9: 2003 | AA9: 2004 | AB9: 2005 | AC9: 2006 | AD9: 2007 | AE9: 2008 | AF9: 2009 | AG9: 2010 | AH9: 2011 | AI9: 2012 | AJ9: 2013 | AK9: 2014 | AL9: 2015 | AM9: 2016 | AN9: 2017 | AO9: 2018 | AP9: 2019 | AQ9: 2020 | AR9: 2021 | AS9: 2022 | AT9: 2023 | AU9: 2024 | AV9: 2025 | AW9: 2026 | AX9: 2027 | AY9: 2028 | AZ9: 2029 | BA9: 2030 | BB9: 2031 | BC9: 2032 | BD9: 2033 | BE9: 2034
C10: ='Product Classes'!G10&" - "&OFFSET('Product Classes'!$C$9,MATCH('Product Classes'!G10,MODEL_PCS,0),0) -> PC1 - Microwave-Only Ovens and Countertop Convection Microwave Ovens | D10: 1 | E10: 1 | F10: 1 | G10: 1 | H10: 1 | I10: 1 | J10: 1 | K10: 1 | L10: 1 | M10: 1 | N10: 1 | O10: 1 | P10: 1 | Q10: 1 | R10: 1 | S10: 1 | T10: 1 | U10: 1 | V10: 1 | W10: 1 | X10: 1 | Y10: 1 | Z10: 1 | AA10: 1 | AB10: 1 | AC10: 1 | AD10: 1 | AE10: 1 | AF10: 1 | AG10: 1 | AH10: 1 | AI10: 1 | AJ10: 1 | AK10: 1 | AL10: 1 | AM10: 1 | AN10: 1 | AO10: 1 | AP10: 1 | AQ10: 1 | AR10: 1 | AS10: 1 | AT10: 1 | AU10: 1 | AV10: 1 | AW10: 1 | AX10: 1 | AY10: 1 | AZ10: 1 | BA10: 1 | BB10: 1 | BC10: 1 | BD10: 1 | BE10: 1
C12: POST-Case | D12: 1981 | E12: 1982 | F12: 1983 | G12: 1984 | H12: 1985 | I12: 1986 | J12: 1987 | K12: 1988 | L12: 1989 | M12: 1990 | N12: 1991 | O12: 1992 | P12: 1993 | Q12: 1994 | R12: 1995 | S12: 1996 | T12: 1997 | U12: 1998 | V12: 1999 | W12: 2000 | X12: 2001 | Y12: 2002 | Z12: 2003 | AA12: 2004 | AB12: 2005 | AC12: 2006 | AD12: 2007 | AE12: 2008 | AF12: 2009 | AG12: 2010 | AH12: 2011 | AI12: 2012 | AJ12: 2013 | AK12: 2014 | AL12: 2015 | AM12: 2016 | AN12: 2017 | AO12: 2018 | AP12: 2019 | AQ12: 2020 | AR12: 2021 | AS12: 2022 | AT12: 2023 | AU12: 2024 | AV12: 2025 | AW12: 2026 | AX12: 2027 | AY12: 2028 | AZ12: 2029 | BA12: 2030 | BB12: 2031 | BC12: 2032 | BD12: 2033 | BE12: 2034
C13: ='Product Classes'!G10&" - "&OFFSET('Product Classes'!$C$9,MATCH('Product Classes'!G10,MODEL_PCS,0),0) -> PC1 - Microwave-Only Ovens and Countertop Convection Microwave Ovens | D13: 1 | E13: 1 | F13: 1 | G13: 1 | H13: 1 | I13: 1 | J13: 1 | K13: 1 | L13: 1 | M13: 1 | N13: 1 | O13: 1 | P13: 1 | Q13: 1 | R13: 1 | S13: 1 | T13: 1 | U13: 1 | V13: 1 | W13: 1 | X13: 1 | Y13: 1 | Z13: 1 | AA13: 1 | AB13: 1 | AC13: 1 | AD13: 1 | AE13: 1 | AF13: 1 | AG13: 1 | AH13: 1 | AI13: 1 | AJ13: 1 | AK13: 1 | AL13: 1 | AM13: 1 | AN13: 1 | AO13: 1 | AP13: 1 | AQ13: 1 | AR13: 1 | AS13: 1 | AT13: 1 | AU13: 1 | AV13: 1 | AW13: 1 | AX13: 1 | AY13: 1 | AZ13: 1 | BA13: 1 | BB13: 1 | BC13: 1 | BD13: 1 | BE13: 1
C15: Source/Rationale | D15: Only product class included in model, no switching

Sheet Shipments and Stock - SF
C2: Shipments and Stock - SF
C4: NAVIGATION
C6: COMMENTS
C9: =MODEL_NAME -> Microwave Ovens
E10: 1981 | F10: 1982 | G10: 1983 | H10: 1984 | I10: 1985 | J10: 1986 | K10: 1987 | L10: 1988 | M10: 1989 | N10: 1990 | O10: 1991 | P10: 1992 | Q10: 1993 | R10: 1994 | S10: 1995 | T10: 1996 | U10: 1997 | V10: 1998 | W10: 1999 | X10: 2000 | Y10: 2001 | Z10: 2002 | AA10: 2003 | AB10: 2004 | AC10: 2005 | AD10: 2006 | AE10: 2007 | AF10: 2008 | AG10: 2009 | AH10: 2010 | AI10: 2011 | AJ10: 2012 | AK10: 2013 | AL10: 2014 | AM10: 2015 | AN10: 2016 | AO10: 2017 | AP10: 2018 | AQ10: 2019 | AR10: 2020 | AS10: 2021 | AT10: 2022 | AU10: 2023 | AV10: 2024 | AW10: 2025 | AX10: 2026 | AY10: 2027 | AZ10: 2028 | BA10: 2029 | BB10: 2030 | BC10: 2031 | BD10: 2032 | BE10: 2033 | BF10: 2034
C11: 6P Shipments | D11: (units) | E11: =IF(ISNUMBER(MATCH(E10,[1]!SIXTH_PLAN_SF_YEARS,0)), INDEX([1]!SIXTH_PLAN_SF, MATCH($C$9,[1]!APPLIANCES,0), MATCH(E$10,[1]!SIXTH_PLAN_SF_YEARS,0)),"pre-dates plan") -> pre-dates plan | F11: =IF(ISNUMBER(MATCH(F10,[1]!SIXTH_PLAN_SF_YEARS,0)), INDEX([1]!SIXTH_PLAN_SF, MATCH($C$9,[1]!APPLIANCES,0), MATCH(F$10,[1]!SIXTH_PLAN_SF_YEARS,0)),"pre-dates plan") -> pre-dates plan | G11: =IF(ISNUMBER(MATCH(G10,[1]!SIXTH_PLAN_SF_YEARS,0)), INDEX([1]!SIXTH_PLAN_SF, MATCH($C$9,[1]!APPLIANCES,0), MATCH(G$10,[1]!SIXTH_PLAN_SF_YEARS,0)),"pre-dates plan") -> pre-dates plan | H11: =IF(ISNUMBER(MATCH(H10,[1]!SIXTH_PLAN_SF_YEARS,0)), INDEX([1]!SIXTH_PLAN_SF, MATCH($C$9,[1]!APPLIANCES,0), MATCH(H$10,[1]!SIXTH_PLAN_SF_YEARS,0)),"pre-dates plan") -> pre-dates plan | I11: =IF(ISNUMBER(MATCH(I10,[1]!SIXTH_PLAN_SF_YEARS,0)), INDEX([1]!SIXTH_PLAN_SF, MATCH($C$9,[1]!APPLIANCES,0), MATCH(I$10,[1]!SIXTH_PLAN_SF_YEARS,0)),"pre-dates plan") -> pre-dates plan | J11: =IF(ISNUMBER(MATCH(J10,[1]!SIXTH_PLAN_SF_YEARS,0)), INDEX([1]!SIXTH_PLAN_SF, MATCH($C$9,[1]!APPLIANCES,0), MATCH(J$10,[1]!SIXTH_PLAN_SF_YEARS,0)),"pre-dates plan") -> pre-dates plan | K11: =IF(ISNUMBER(MATCH(K10,[1]!SIXTH_PLAN_SF_YEARS,0)), INDEX([1]!SIXTH_PLAN_SF, MATCH($C$9,[1]!APPLIANCES,0), MATCH(K$10,[1]!SIXTH_PLAN_SF_YEARS,0)),"pre-dates plan") -> pre-dates plan | L11: =IF(ISNUMBER(MATCH(L10,[1]!SIXTH_PLAN_SF_YEARS,0)), INDEX([1]!SIXTH_PLAN_SF, MATCH($C$9,[1]!APPLIANCES,0), MATCH(L$10,[1]!SIXTH_PLAN_SF_YEARS,0)),"pre-dates plan") -> pre-dates plan | M11: =IF(ISNUMBER(MATCH(M10,[1]!SIXTH_PLAN_SF_YEARS,0)), INDEX([1]!SIXTH_PLAN_SF, MATCH($C$9,[1]!APPLIANCES,0), MATCH(M$10,[1]!SIXTH_PLAN_SF_YEARS,0)),"pre-dates plan") -> pre-dates plan | N11: =IF(ISNUMBER(MATCH(N10,[1]!SIXTH_PLAN_SF_YEARS,0)), INDEX([1]!SIXTH_PLAN_SF, MATCH($C$9,[1]!APPLIANCES,0), MATCH(N$10,[1]!SIXTH_PLAN_SF_YEARS,0)),"pre-dates plan") -> pre-dates plan | O11: =IF(ISNUMBER(MATCH(O10,[1]!SIXTH_PLAN_SF_YEARS,0)), INDEX([1]!SIXTH_PLAN_SF, MATCH($C$9,[1]!APPLIANCES,0), MATCH(O$10,[1]!SIXTH_PLAN_SF_YEARS,0)),"pre-dates plan") -> pre-dates plan | P11: =IF(ISNUMBER(MATCH(P10,[1]!SIXTH_PLAN_SF_YEARS,0)), INDEX([1]!SIXTH_PLAN_SF, MATCH($C$9,[1]!APPLIANCES,0), MATCH(P$10,[1]!SIXTH_PLAN_SF_YEARS,0)),"pre-dates plan") -> pre-dates plan | Q11: =IF(ISNUMBER(MATCH(Q10,[1]!SIXTH_PLAN_SF_YEARS,0)), INDEX([1]!SIXTH_PLAN_SF, MATCH($C$9,[1]!APPLIANCES,0), MATCH(Q$10,[1]!SIXTH_PLAN_SF_YEARS,0)),"pre-dates plan") -> pre-dates plan | R11: =IF(ISNUMBER(MATCH(R10,[1]!SIXTH_PLAN_SF_YEARS,0)), INDEX([1]!SIXTH_PLAN_SF, MATCH($C$9,[1]!APPLIANCES,0), MATCH(R$10,[1]!SIXTH_PLAN_SF_YEARS,0)),"pre-dates plan") -> pre-dates plan | S11: =IF(ISNUMBER(MATCH(S10,[1]!SIXTH_PLAN_SF_YEARS,0)), INDEX([1]!SIXTH_PLAN_SF, MATCH($C$9,[1]!APPLIANCES,0), MATCH(S$10,[1]!SIXTH_PLAN_SF_YEARS,0)),"pre-dates plan") -> pre-dates plan | T11: =IF(ISNUMBER(MATCH(T10,[1]!SIXTH_PLAN_SF_YEARS,0)), INDEX([1]!SIXTH_PLAN_SF, MATCH($C$9,[1]!APPLIANCES,0), MATCH(T$10,[1]!SIXTH_PLAN_SF_YEARS,0)),"pre-dates plan") -> pre-dates plan | U11: =IF(ISNUMBER(MATCH(U10,[1]!SIXTH_PLAN_SF_YEARS,0)), INDEX([1]!SIXTH_PLAN_SF, MATCH($C$9,[1]!APPLIANCES,0), MATCH(U$10,[1]!SIXTH_PLAN_SF_YEARS,0)),"pre-dates plan") -> pre-dates plan | V11: =IF(ISNUMBER(MATCH(V10,[1]!SIXTH_PLAN_SF_YEARS,0)), INDEX([1]!SIXTH_PLAN_SF, MATCH($C$9,[1]!APPLIANCES,0), MATCH(V$10,[1]!SIXTH_PLAN_SF_YEARS,0)),"pre-dates plan") -> pre-dates plan | W11: =IF(ISNUMBER(MATCH(W10,[1]!SIXTH_PLAN_SF_YEARS,0)), INDEX([1]!SIXTH_PLAN_SF, MATCH($C$9,[1]!APPLIANCES,0), MATCH(W$10,[1]!SIXTH_PLAN_SF_YEARS,0)),"pre-dates plan") -> pre-dates plan | X11: =IF(ISNUMBER(MATCH(X10,[1]!SIXTH_PLAN_SF_YEARS,0)), INDEX([1]!SIXTH_PLAN_SF, MATCH($C$9,[1]!APPLIANCES,0), MATCH(X$10,[1]!SIXTH_PLAN_SF_YEARS,0)),"pre-dates plan") -> pre-dates plan | Y11: =IF(ISNUMBER(MATCH(Y10,[1]!SIXTH_PLAN_SF_YEARS,0)), INDEX([1]!SIXTH_PLAN_SF, MATCH($C$9,[1]!APPLIANCES,0), MATCH(Y$10,[1]!SIXTH_PLAN_SF_YEARS,0)),"pre-dates plan") -> pre-dates plan | Z11: =IF(ISNUMBER(MATCH(Z10,[1]!SIXTH_PLAN_SF_YEARS,0)), INDEX([1]!SIXTH_PLAN_SF, MATCH($C$9,[1]!APPLIANCES,0), MATCH(Z$10,[1]!SIXTH_PLAN_SF_YEARS,0)),"pre-dates plan") -> pre-dates plan | AA11: =IF(ISNUMBER(MATCH(AA10,[1]!SIXTH_PLAN_SF_YEARS,0)), INDEX([1]!SIXTH_PLAN_SF, MATCH($C$9,[1]!APPLIANCES,0), MATCH(AA$10,[1]!SIXTH_PLAN_SF_YEARS,0)),"pre-dates plan") -> pre-dates plan | AB11: =IF(ISNUMBER(MATCH(AB10,[1]!SIXTH_PLAN_SF_YEARS,0)), INDEX([1]!SIXTH_PLAN_SF, MATCH($C$9,[1]!APPLIANCES,0), MATCH(AB$10,[1]!SIXTH_PLAN_SF_YEARS,0)),"pre-dates plan") -> pre-dates plan | AC11: =IF(ISNUMBER(MATCH(AC10,[1]!SIXTH_PLAN_SF_YEARS,0)), INDEX([1]!SIXTH_PLAN_SF, MATCH($C$9,[1]!APPLIANCES,0), MATCH(AC$10,[1]!SIXTH_PLAN_SF_YEARS,0)),"pre-dates plan") -> pre-dates plan | AD11: =IF(ISNUMBER(MATCH(AD10,[1]!SIXTH_PLAN_SF_YEARS,0)), INDEX([1]!SIXTH_PLAN_SF, MATCH($C$9,[1]!APPLIANCES,0), MATCH(AD$10,[1]!SIXTH_PLAN_SF_YEARS,0)),"pre-dates plan") -> pre-dates plan | AE11: =IF(ISNUMBER(MATCH(AE10,[1]!SIXTH_PLAN_SF_YEARS,0)), INDEX([1]!SIXTH_PLAN_SF, MATCH($C$9,[1]!APPLIANCES,0), MATCH(AE$10,[1]!SIXTH_PLAN_SF_YEARS,0)),"pre-dates plan") -> pre-dates plan | AF11: =IF(ISNUMBER(MATCH(AF10,[1]!SIXTH_PLAN_SF_YEARS,0)), INDEX([1]!SIXTH_PLAN_SF, MATCH($C$9,[1]!APPLIANCES,0), MATCH(AF$10,[1]!SIXTH_PLAN_SF_YEARS,0)),"pre-dates plan") -> pre-dates plan | AG11: =IF(ISNUMBER(MATCH(AG10,[1]!SIXTH_PLAN_SF_YEARS,0)), INDEX([1]!SIXTH_PLAN_SF, MATCH($C$9,[1]!APPLIANCES,0), MATCH(AG$10,[1]!SIXTH_PLAN_SF_YEARS,0)),"pre-dates plan") -> pre-dates plan | AH11: =IF(ISNUMBER(MATCH(AH10,[1]!SIXTH_PLAN_SF_YEARS,0)), INDEX([1]!SIXTH_PLAN_SF, MATCH($C$9,[1]!APPLIANCES,0), MATCH(AH$10,[1]!SIXTH_PLAN_SF_YEARS,0)),"pre-dates plan") -> 443089.1068 | AI11: =IF(ISNUMBER(MATCH(AI10,[1]!SIXTH_PLAN_SF_YEARS,0)), INDEX([1]!SIXTH_PLAN_SF, MATCH($C$9,[1]!APPLIANCES,0), MATCH(AI$10,[1]!SIXTH_PLAN_SF_YEARS,0)),"pre-dates plan") -> 443089.1068 | AJ11: =IF(ISNUMBER(MATCH(AJ10,[1]!SIXTH_PLAN_SF_YEARS,0)), INDEX([1]!SIXTH_PLAN_SF, MATCH($C$9,[1]!APPLIANCES,0), MATCH(AJ$10,[1]!SIXTH_PLAN_SF_YEARS,0)),"pre-dates plan") -> 443089.1068 | AK11: =IF(ISNUMBER(MATCH(AK10,[1]!SIXTH_PLAN_SF_YEARS,0)), INDEX([1]!SIXTH_PLAN_SF, MATCH($C$9,[1]!APPLIANCES,0), MATCH(AK$10,[1]!SIXTH_PLAN_SF_YEARS,0)),"pre-dates plan") -> 443089.1068 | AL11: =IF(ISNUMBER(MATCH(AL10,[1]!SIXTH_PLAN_SF_YEARS,0)), INDEX([1]!SIXTH_PLAN_SF, MATCH($C$9,[1]!APPLIANCES,0), MATCH(AL$10,[1]!SIXTH_PLAN_SF_YEARS,0)),"pre-dates plan") -> 443089.1068 | AM11: =IF(ISNUMBER(MATCH(AM10,[1]!SIXTH_PLAN_SF_YEARS,0)), INDEX([1]!SIXTH_PLAN_SF, MATCH($C$9,[1]!APPLIANCES,0), MATCH(AM$10,[1]!SIXTH_PLAN_SF_YEARS,0)),"pre-dates plan") -> 443089.1068 | AN11: =IF(ISNUMBER(MATCH(AN10,[1]!SIXTH_PLAN_SF_YEARS,0)), INDEX([1]!SIXTH_PLAN_SF, MATCH($C$9,[1]!APPLIANCES,0), MATCH(AN$10,[1]!SIXTH_PLAN_SF_YEARS,0)),"pre-dates plan") -> 443089.1068 | AO11: =IF(ISNUMBER(MATCH(AO10,[1]!SIXTH_PLAN_SF_YEARS,0)), INDEX([1]!SIXTH_PLAN_SF, MATCH($C$9,[1]!APPLIANCES,0), MATCH(AO$10,[1]!SIXTH_PLAN_SF_YEARS,0)),"pre-dates plan") -> 443089.1068 | AP11: =IF(ISNUMBER(MATCH(AP10,[1]!SIXTH_PLAN_SF_YEARS,0)), INDEX([1]!SIXTH_PLAN_SF, MATCH($C$9,[1]!APPLIANCES,0), MATCH(AP$10,[1]!SIXTH_PLAN_SF_YEARS,0)),"pre-dates plan") -> 443089.1068 | AQ11: =IF(ISNUMBER(MATCH(AQ10,[1]!SIXTH_PLAN_SF_YEARS,0)), INDEX([1]!SIXTH_PLAN_SF, MATCH($C$9,[1]!APPLIANCES,0), MATCH(AQ$10,[1]!SIXTH_PLAN_SF_YEARS,0)),"pre-dates plan") -> 443089.1068 | AR11: =IF(ISNUMBER(MATCH(AR10,[1]!SIXTH_PLAN_SF_YEARS,0)), INDEX([1]!SIXTH_PLAN_SF, MATCH($C$9,[1]!APPLIANCES,0), MATCH(AR$10,[1]!SIXTH_PLAN_SF_YEARS,0)),"pre-dates plan") -> 443089.1068 | AS11: =IF(ISNUMBER(MATCH(AS10,[1]!SIXTH_PLAN_SF_YEARS,0)), INDEX([1]!SIXTH_PLAN_SF, MATCH($C$9,[1]!APPLIANCES,0), MATCH(AS$10,[1]!SIXTH_PLAN_SF_YEARS,0)),"pre-dates plan") -> 443089.1068 | AT11: =IF(ISNUMBER(MATCH(AT10,[1]!SIXTH_PLAN_SF_YEARS,0)), INDEX([1]!SIXTH_PLAN_SF, MATCH($C$9,[1]!APPLIANCES,0), MATCH(AT$10,[1]!SIXTH_PLAN_SF_YEARS,0)),"pre-dates plan") -> 443089.1068 | AU11: =IF(ISNUMBER(MATCH(AU10,[1]!SIXTH_PLAN_SF_YEARS,0)), INDEX([1]!SIXTH_PLAN_SF, MATCH($C$9,[1]!APPLIANCES,0), MATCH(AU$10,[1]!SIXTH_PLAN_SF_YEARS,0)),"pre-dates plan") -> 443089.1068 | AV11: =IF(ISNUMBER(MATCH(AV10,[1]!SIXTH_PLAN_SF_YEARS,0)), INDEX([1]!SIXTH_PLAN_SF, MATCH($C$9,[1]!APPLIANCES,0), MATCH(AV$10,[1]!SIXTH_PLAN_SF_YEARS,0)),"pre-dates plan") -> 443089.1068 | AW11: =IF(ISNUMBER(MATCH(AW10,[1]!SIXTH_PLAN_SF_YEARS,0)), INDEX([1]!SIXTH_PLAN_SF, MATCH($C$9,[1]!APPLIANCES,0), MATCH(AW$10,[1]!SIXTH_PLAN_SF_YEARS,0)),"pre-dates plan") -> 443089.1068 | AX11: =IF(ISNUMBER(MATCH(AX10,[1]!SIXTH_PLAN_SF_YEARS,0)), INDEX([1]!SIXTH_PLAN_SF, MATCH($C$9,[1]!APPLIANCES,0), MATCH(AX$10,[1]!SIXTH_PLAN_SF_YEARS,0)),"pre-dates plan") -> 443089.1068 | AY11: =IF(ISNUMBER(MATCH(AY10,[1]!SIXTH_PLAN_SF_YEARS,0)), INDEX([1]!SIXTH_PLAN_SF, MATCH($C$9,[1]!APPLIANCES,0), MATCH(AY$10,[1]!SIXTH_PLAN_SF_YEARS,0)),"pre-dates plan") -> 443089.1068 | AZ11: =IF(ISNUMBER(MATCH(AZ10,[1]!SIXTH_PLAN_SF_YEARS,0)), INDEX([1]!SIXTH_PLAN_SF, MATCH($C$9,[1]!APPLIANCES,0), MATCH(AZ$10,[1]!SIXTH_PLAN_SF_YEARS,0)),"pre-dates plan") -> 443089.1068 | BA11: =IF(ISNUMBER(MATCH(BA10,[1]!SIXTH_PLAN_SF_YEARS,0)), INDEX([1]!SIXTH_PLAN_SF, MATCH($C$9,[1]!APPLIANCES,0), MATCH(BA$10,[1]!SIXTH_PLAN_SF_YEARS,0)),"pre-dates plan") -> 443089.1068 | BB11: =IF(ISNUMBER(MATCH(BB10,[1]!SIXTH_PLAN_SF_YEARS,0)), INDEX([1]!SIXTH_PLAN_SF, MATCH($C$9,[1]!APPLIANCES,0), MATCH(BB$10,[1]!SIXTH_PLAN_SF_YEARS,0)),"pre-dates plan") -> 443089.1068 | BC11: =IF(ISNUMBER(MATCH(BC10,[1]!SIXTH_PLAN_SF_YEARS,0)), INDEX([1]!SIXTH_PLAN_SF, MATCH($C$9,[1]!APPLIANCES,0), MATCH(BC$10,[1]!SIXTH_PLAN_SF_YEARS,0)),"pre-dates plan") -> 443089.1068 | BD11: =IF(ISNUMBER(MATCH(BD10,[1]!SIXTH_PLAN_SF_YEARS,0)), INDEX([1]!SIXTH_PLAN_SF, MATCH($C$9,[1]!APPLIANCES,0), MATCH(BD$10,[1]!SIXTH_PLAN_SF_YEARS,0)),"pre-dates plan") -> 443089.1068 | BE11: =IF(ISNUMBER(MATCH(BE10,[1]!SIXTH_PLAN_SF_YEARS,0)), INDEX([1]!SIXTH_PLAN_SF, MATCH($C$9,[1]!APPLIANCES,0), MATCH(BE$10,[1]!SIXTH_PLAN_SF_YEARS,0)),"pre-dates plan") -> 443089.1068 | BF11: =IF(ISNUMBER(MATCH(BF10,[1]!SIXTH_PLAN_SF_YEARS,0)), INDEX([1]!SIXTH_PLAN_SF, MATCH($C$9,[1]!APPLIANCES,0), MATCH(BF$10,[1]!SIXTH_PLAN_SF_YEARS,0)),"pre-dates plan") -> 443089.1068
C12: Replacement Shipments | D12: (units) | E12: =INDEX([1]!SHIPMENTS_SF, ((MATCH($C$9,[1]!APPLIANCES,0)-1)*2)+1, MATCH(E$10,[1]!SHIPMENTS_SF_YEARS,0)) -> 260528.2942 | F12: =INDEX([1]!SHIPMENTS_SF, ((MATCH($C$9,[1]!APPLIANCES,0)-1)*2)+1, MATCH(F$10,[1]!SHIPMENTS_SF_YEARS,0)) -> 260528.2942 | G12: =INDEX([1]!SHIPMENTS_SF, ((MATCH($C$9,[1]!APPLIANCES,0)-1)*2)+1, MATCH(G$10,[1]!SHIPMENTS_SF_YEARS,0)) -> 260528.2942 | H12: =INDEX([1]!SHIPMENTS_SF, ((MATCH($C$9,[1]!APPLIANCES,0)-1)*2)+1, MATCH(H$10,[1]!SHIPMENTS_SF_YEARS,0)) -> 260528.2942 | I12: =INDEX([1]!SHIPMENTS_SF, ((MATCH($C$9,[1]!APPLIANCES,0)-1)*2)+1, MATCH(I$10,[1]!SHIPMENTS_SF_YEARS,0)) -> 260528.2942 | J12: =INDEX([1]!SHIPMENTS_SF, ((MATCH($C$9,[1]!APPLIANCES,0)-1)*2)+1, MATCH(J$10,[1]!SHIPMENTS_SF_YEARS,0)) -> 260528.2942 | K12: =INDEX([1]!SHIPMENTS_SF, ((MATCH($C$9,[1]!APPLIANCES,0)-1)*2)+1, MATCH(K$10,[1]!SHIPMENTS_SF_YEARS,0)) -> 260528.2942 | L12: =INDEX([1]!SHIPMENTS_SF, ((MATCH($C$9,[1]!APPLIANCES,0)-1)*2)+1, MATCH(L$10,[1]!SHIPMENTS_SF_YEARS,0)) -> 260528.2942 | M12: =INDEX([1]!SHIPMENTS_SF, ((MATCH($C$9,[1]!APPLIANCES,0)-1)*2)+1, MATCH(M$10,[1]!SHIPMENTS_SF_YEARS,0)) -> 260528.2942 | N12: =INDEX([1]!SHIPMENTS_SF, ((MATCH($C$9,[1]!APPLIANCES,0)-1)*2)+1, MATCH(N$10,[1]!SHIPMENTS_SF_YEARS,0)) -> 290145.8556 | O12: =INDEX([1]!SHIPMENTS_SF, ((MATCH($C$9,[1]!APPLIANCES,0)-1)*2)+1, MATCH(O$10,[1]!SHIPMENTS_SF_YEARS,0)) -> 280894.1991 | P12: =INDEX([1]!SHIPMENTS_SF, ((MATCH($C$9,[1]!APPLIANCES,0)-1)*2)+1, MATCH(P$10,[1]!SHIPMENTS_SF_YEARS,0)) -> 292115.7941 | Q12: =INDEX([1]!SHIPMENTS_SF, ((MATCH($C$9,[1]!APPLIANCES,0)-1)*2)+1, MATCH(Q$10,[1]!SHIPMENTS_SF_YEARS,0)) -> 289880.4506 | R12: =INDEX([1]!SHIPMENTS_SF, ((MATCH($C$9,[1]!APPLIANCES,0)-1)*2)+1, MATCH(R$10,[1]!SHIPMENTS_SF_YEARS,0)) -> 288531.0768 | S12: =INDEX([1]!SHIPMENTS_SF, ((MATCH($C$9,[1]!APPLIANCES,0)-1)*2)+1, MATCH(S$10,[1]!SHIPMENTS_SF_YEARS,0)) -> 290772.6134 | T12: =INDEX([1]!SHIPMENTS_SF, ((MATCH($C$9,[1]!APPLIANCES,0)-1)*2)+1, MATCH(T$10,[1]!SHIPMENTS_SF_YEARS,0)) -> 290952.0333 | U12: =INDEX([1]!SHIPMENTS_SF, ((MATCH($C$9,[1]!APPLIANCES,0)-1)*2)+1, MATCH(U$10,[1]!SHIPMENTS_SF_YEARS,0)) -> 294078.5523 | V12: =INDEX([1]!SHIPMENTS_SF, ((MATCH($C$9,[1]!APPLIANCES,0)-1)*2)+1, MATCH(V$10,[1]!SHIPMENTS_SF_YEARS,0)) -> 301755.4607 | W12: =INDEX([1]!SHIPMENTS_SF, ((MATCH($C$9,[1]!APPLIANCES,0)-1)*2)+1, MATCH(W$10,[1]!SHIPMENTS_SF_YEARS,0)) -> 337086.903 | X12: =INDEX([1]!SHIPMENTS_SF, ((MATCH($C$9,[1]!APPLIANCES,0)-1)*2)+1, MATCH(X$10,[1]!SHIPMENTS_SF_YEARS,0)) -> 322014.288 | Y12: =INDEX([1]!SHIPMENTS_SF, ((MATCH($C$9,[1]!APPLIANCES,0)-1)*2)+1, MATCH(Y$10,[1]!SHIPMENTS_SF_YEARS,0)) -> 343051.0203 | Z12: =INDEX([1]!SHIPMENTS_SF, ((MATCH($C$9,[1]!APPLIANCES,0)-1)*2)+1, MATCH(Z$10,[1]!SHIPMENTS_SF_YEARS,0)) -> 356626.4586 | AA12: =INDEX([1]!SHIPMENTS_SF, ((MATCH($C$9,[1]!APPLIANCES,0)-1)*2)+1, MATCH(AA$10,[1]!SHIPMENTS_SF_YEARS,0)) -> 359108.6037 | AB12: =INDEX([1]!SHIPMENTS_SF, ((MATCH($C$9,[1]!APPLIANCES,0)-1)*2)+1, MATCH(AB$10,[1]!SHIPMENTS_SF_YEARS,0)) -> 355278.6825 | AC12: =INDEX([1]!SHIPMENTS_SF, ((MATCH($C$9,[1]!APPLIANCES,0)-1)*2)+1, MATCH(AC$10,[1]!SHIPMENTS_SF_YEARS,0)) -> 358146.8625 | AD12: =INDEX([1]!SHIPMENTS_SF, ((MATCH($C$9,[1]!APPLIANCES,0)-1)*2)+1, MATCH(AD$10,[1]!SHIPMENTS_SF_YEARS,0)) -> 361320.5958 | AE12: =INDEX([1]!SHIPMENTS_SF, ((MATCH($C$9,[1]!APPLIANCES,0)-1)*2)+1, MATCH(AE$10,[1]!SHIPMENTS_SF_YEARS,0)) -> 371478.76 | AF12: =INDEX([1]!SHIPMENTS_SF, ((MATCH($C$9,[1]!APPLIANCES,0)-1)*2)+1, MATCH(AF$10,[1]!SHIPMENTS_SF_YEARS,0)) -> 406036.1767 | AG12: =INDEX([1]!SHIPMENTS_SF, ((MATCH($C$9,[1]!APPLIANCES,0)-1)*2)+1, MATCH(AG$10,[1]!SHIPMENTS_SF_YEARS,0)) -> 386788.3293 | AH12: =INDEX([1]!SHIPMENTS_SF, ((MATCH($C$9,[1]!APPLIANCES,0)-1)*2)+1, MATCH(AH$10,[1]!SHIPMENTS_SF_YEARS,0)) -> 409364.4431 | AI12: =INDEX([1]!SHIPMENTS_SF, ((MATCH($C$9,[1]!APPLIANCES,0)-1)*2)+1, MATCH(AI$10,[1]!SHIPMENTS_SF_YEARS,0)) -> 430015.0013 | AJ12: =INDEX([1]!SHIPMENTS_SF, ((MATCH($C$9,[1]!APPLIANCES,0)-1)*2)+1, MATCH(AJ$10,[1]!SHIPMENTS_SF_YEARS,0)) -> 439526.0494 | AK12: =INDEX([1]!SHIPMENTS_SF, ((MATCH($C$9,[1]!APPLIANCES,0)-1)*2)+1, MATCH(AK$10,[1]!SHIPMENTS_SF_YEARS,0)) -> 439639.4924 | AL12: =INDEX([1]!SHIPMENTS_SF, ((MATCH($C$9,[1]!APPLIANCES,0)-1)*2)+1, MATCH(AL$10,[1]!SHIPMENTS_SF_YEARS,0)) -> 450936.3358 | AM12: =INDEX([1]!SHIPMENTS_SF, ((MATCH($C$9,[1]!APPLIANCES,0)-1)*2)+1, MATCH(AM$10,[1]!SHIPMENTS_SF_YEARS,0)) -> 446423.0964 | AN12: =INDEX([1]!SHIPMENTS_SF, ((MATCH($C$9,[1]!APPLIANCES,0)-1)*2)+1, MATCH(AN$10,[1]!SHIPMENTS_SF_YEARS,0)) -> 439857.079 | AO12: =INDEX([1]!SHIPMENTS_SF, ((MATCH($C$9,[1]!APPLIANCES,0)-1)*2)+1, MATCH(AO$10,[1]!SHIPMENTS_SF_YEARS,0)) -> 452061.4582 | AP12: =INDEX([1]!SHIPMENTS_SF, ((MATCH($C$9,[1]!APPLIANCES,0)-1)*2)+1, MATCH(AP$10,[1]!SHIPMENTS_SF_YEARS,0)) -> 425393.047 | AQ12: =INDEX([1]!SHIPMENTS_SF, ((MATCH($C$9,[1]!APPLIANCES,0)-1)*2)+1, MATCH(AQ$10,[1]!SHIPMENTS_SF_YEARS,0)) -> 463950.4017 | AR12: =INDEX([1]!SHIPMENTS_SF, ((MATCH($C$9,[1]!APPLIANCES,0)-1)*2)+1, MATCH(AR$10,[1]!SHIPMENTS_SF_YEARS,0)) -> 500548.6697 | AS12: =INDEX([1]!SHIPMENTS_SF, ((MATCH($C$9,[1]!APPLIANCES,0)-1)*2)+1, MATCH(AS$10,[1]!SHIPMENTS_SF_YEARS,0)) -> 505470.0124 | AT12: =INDEX([1]!SHIPMENTS_SF, ((MATCH($C$9,[1]!APPLIANCES,0)-1)*2)+1, MATCH(AT$10,[1]!SHIPMENTS_SF_YEARS,0)) -> 507251.777 | AU12: =INDEX([1]!SHIPMENTS_SF, ((MATCH($C$9,[1]!APPLIANCES,0)-1)*2)+1, MATCH(AU$10,[1]!SHIPMENTS_SF_YEARS,0)) -> 518071.719 | AV12: =INDEX([1]!SHIPMENTS_SF, ((MATCH($C$9,[1]!APPLIANCES,0)-1)*2)+1, MATCH(AV$10,[1]!SHIPMENTS_SF_YEARS,0)) -> 513767.1048 | AW12: =INDEX([1]!SHIPMENTS_SF, ((MATCH($C$9,[1]!APPLIANCES,0)-1)*2)+1, MATCH(AW$10,[1]!SHIPMENTS_SF_YEARS,0)) -> 507417.8504 | AX12: =INDEX([1]!SHIPMENTS_SF, ((MATCH($C$9,[1]!APPLIANCES,0)-1)*2)+1, MATCH(AX$10,[1]!SHIPMENTS_SF_YEARS,0)) -> 518438.672 | AY12: =INDEX([1]!SHIPMENTS_SF, ((MATCH($C$9,[1]!APPLIANCES,0)-1)*2)+1, MATCH(AY$10,[1]!SHIPMENTS_SF_YEARS,0)) -> 490448.1432 | AZ12: =INDEX([1]!SHIPMENTS_SF, ((MATCH($C$9,[1]!APPLIANCES,0)-1)*2)+1, MATCH(AZ$10,[1]!SHIPMENTS_SF_YEARS,0)) -> 527580.6013 | BA12: =INDEX([1]!SHIPMENTS_SF, ((MATCH($C$9,[1]!APPLIANCES,0)-1)*2)+1, MATCH(BA$10,[1]!SHIPMENTS_SF_YEARS,0)) -> 563102.7814 | BB12: =INDEX([1]!SHIPMENTS_SF, ((MATCH($C$9,[1]!APPLIANCES,0)-1)*2)+1, MATCH(BB$10,[1]!SHIPMENTS_SF_YEARS,0)) -> 566388.5944 | BC12: =INDEX([1]!SHIPMENTS_SF, ((MATCH($C$9,[1]!APPLIANCES,0)-1)*2)+1, MATCH(BC$10,[1]!SHIPMENTS_SF_YEARS,0)) -> 567088.1566 | BD12: =INDEX([1]!SHIPMENTS_SF, ((MATCH($C$9,[1]!APPLIANCES,0)-1)*2)+1, MATCH(BD$10,[1]!SHIPMENTS_SF_YEARS,0)) -> 577127.8216 | BE12: =INDEX([1]!SHIPMENTS_SF, ((MATCH($C$9,[1]!APPLIANCES,0)-1)*2)+1, MATCH(BE$10,[1]!SHIPMENTS_SF_YEARS,0)) -> 571929.0739 | BF12: =INDEX([1]!SHIPMENTS_SF, ((MATCH($C$9,[1]!APPLIANCES,0)-1)*2)+1, MATCH(BF$10,[1]!SHIPMENTS_SF_YEARS,0)) -> 565381.4364
C13: Net New Shipments | D13: (units) | E13: =INDEX([1]!SHIPMENTS_SF, ((MATCH($C$9,[1]!APPLIANCES,0)-1)*2)+2, MATCH(E$10,[1]!SHIPMENTS_SF_YEARS,0)) -> 29617.56136 | F13: =INDEX([1]!SHIPMENTS_SF, ((MATCH($C$9,[1]!APPLIANCES,0)-1)*2)+2, MATCH(F$10,[1]!SHIPMENTS_SF_YEARS,0)) -> 20365.90484 | G13: =INDEX([1]!SHIPMENTS_SF, ((MATCH($C$9,[1]!APPLIANCES,0)-1)*2)+2, MATCH(G$10,[1]!SHIPMENTS_SF_YEARS,0)) -> 31587.49992 | H13: =INDEX([1]!SHIPMENTS_SF, ((MATCH($C$9,[1]!APPLIANCES,0)-1)*2)+2, MATCH(H$10,[1]!SHIPMENTS_SF_YEARS,0)) -> 29352.15639 | I13: =INDEX([1]!SHIPMENTS_SF, ((MATCH($C$9,[1]!APPLIANCES,0)-1)*2)+2, MATCH(I$10,[1]!SHIPMENTS_SF_YEARS,0)) -> 28002.78258 | J13: =INDEX([1]!SHIPMENTS_SF, ((MATCH($C$9,[1]!APPLIANCES,0)-1)*2)+2, MATCH(J$10,[1]!SHIPMENTS_SF_YEARS,0)) -> 30244.3192 | K13: =INDEX([1]!SHIPMENTS_SF, ((MATCH($C$9,[1]!APPLIANCES,0)-1)*2)+2, MATCH(K$10,[1]!SHIPMENTS_SF_YEARS,0)) -> 30423.73906 | L13: =INDEX([1]!SHIPMENTS_SF, ((MATCH($C$9,[1]!APPLIANCES,0)-1)*2)+2, MATCH(L$10,[1]!SHIPMENTS_SF_YEARS,0)) -> 33550.2581 | M13: =INDEX([1]!SHIPMENTS_SF, ((MATCH($C$9,[1]!APPLIANCES,0)-1)*2)+2, MATCH(M$10,[1]!SHIPMENTS_SF_YEARS,0)) -> 41227.16648 | N13: =INDEX([1]!SHIPMENTS_SF, ((MATCH($C$9,[1]!APPLIANCES,0)-1)*2)+2, MATCH(N$10,[1]!SHIPMENTS_SF_YEARS,0)) -> 46941.04742 | O13: =INDEX([1]!SHIPMENTS_SF, ((MATCH($C$9,[1]!APPLIANCES,0)-1)*2)+2, MATCH(O$10,[1]!SHIPMENTS_SF_YEARS,0)) -> 41120.08899 | P13: =INDEX([1]!SHIPMENTS_SF, ((MATCH($C$9,[1]!APPLIANCES,0)-1)*2)+2, MATCH(P$10,[1]!SHIPMENTS_SF_YEARS,0)) -> 50935.22621 | Q13: =INDEX([1]!SHIPMENTS_SF, ((MATCH($C$9,[1]!APPLIANCES,0)-1)*2)+2, MATCH(Q$10,[1]!SHIPMENTS_SF_YEARS,0)) -> 66746.00801 | R13: =INDEX([1]!SHIPMENTS_SF, ((MATCH($C$9,[1]!APPLIANCES,0)-1)*2)+2, MATCH(R$10,[1]!SHIPMENTS_SF_YEARS,0)) -> 70577.52688 | S13: =INDEX([1]!SHIPMENTS_SF, ((MATCH($C$9,[1]!APPLIANCES,0)-1)*2)+2, MATCH(S$10,[1]!SHIPMENTS_SF_YEARS,0)) -> 64506.06909 | T13: =INDEX([1]!SHIPMENTS_SF, ((MATCH($C$9,[1]!APPLIANCES,0)-1)*2)+2, MATCH(T$10,[1]!SHIPMENTS_SF_YEARS,0)) -> 67194.82925 | U13: =INDEX([1]!SHIPMENTS_SF, ((MATCH($C$9,[1]!APPLIANCES,0)-1)*2)+2, MATCH(U$10,[1]!SHIPMENTS_SF_YEARS,0)) -> 67242.04349 | V13: =INDEX([1]!SHIPMENTS_SF, ((MATCH($C$9,[1]!APPLIANCES,0)-1)*2)+2, MATCH(V$10,[1]!SHIPMENTS_SF_YEARS,0)) -> 69723.29935 | W13: =INDEX([1]!SHIPMENTS_SF, ((MATCH($C$9,[1]!APPLIANCES,0)-1)*2)+2, MATCH(W$10,[1]!SHIPMENTS_SF_YEARS,0)) -> 68949.2737 | X13: =INDEX([1]!SHIPMENTS_SF, ((MATCH($C$9,[1]!APPLIANCES,0)-1)*2)+2, MATCH(X$10,[1]!SHIPMENTS_SF_YEARS,0)) -> 64774.04128 | Y13: =INDEX([1]!SHIPMENTS_SF, ((MATCH($C$9,[1]!APPLIANCES,0)-1)*2)+2, MATCH(Y$10,[1]!SHIPMENTS_SF_YEARS,0)) -> 66313.42281 | Z13: =INDEX([1]!SHIPMENTS_SF, ((MATCH($C$9,[1]!APPLIANCES,0)-1)*2)+2, MATCH(Z$10,[1]!SHIPMENTS_SF_YEARS,0)) -> 73388.54273 | AA13: =INDEX([1]!SHIPMENTS_SF, ((MATCH($C$9,[1]!APPLIANCES,0)-1)*2)+2, MATCH(AA$10,[1]!SHIPMENTS_SF_YEARS,0)) -> 80417.4457 | AB13: =INDEX([1]!SHIPMENTS_SF, ((MATCH($C$9,[1]!APPLIANCES,0)-1)*2)+2, MATCH(AB$10,[1]!SHIPMENTS_SF_YEARS,0)) -> 84360.80987 | AC13: =INDEX([1]!SHIPMENTS_SF, ((MATCH($C$9,[1]!APPLIANCES,0)-1)*2)+2, MATCH(AC$10,[1]!SHIPMENTS_SF_YEARS,0)) -> 92789.47327 | AD13: =INDEX([1]!SHIPMENTS_SF, ((MATCH($C$9,[1]!APPLIANCES,0)-1)*2)+2, MATCH(AD$10,[1]!SHIPMENTS_SF_YEARS,0)) -> 85102.50059 | AE13: =INDEX([1]!SHIPMENTS_SF, ((MATCH($C$9,[1]!APPLIANCES,0)-1)*2)+2, MATCH(AE$10,[1]!SHIPMENTS_SF_YEARS,0)) -> 68378.31892 | AF13: =INDEX([1]!SHIPMENTS_SF, ((MATCH($C$9,[1]!APPLIANCES,0)-1)*2)+2, MATCH(AF$10,[1]!SHIPMENTS_SF_YEARS,0)) -> 46025.28152 | AG13: =INDEX([1]!SHIPMENTS_SF, ((MATCH($C$9,[1]!APPLIANCES,0)-1)*2)+2, MATCH(AG$10,[1]!SHIPMENTS_SF_YEARS,0)) -> 38604.71768 | AH13: =INDEX([1]!SHIPMENTS_SF, ((MATCH($C$9,[1]!APPLIANCES,0)-1)*2)+2, MATCH(AH$10,[1]!SHIPMENTS_SF_YEARS,0)) -> 54585.95857 | AI13: =INDEX([1]!SHIPMENTS_SF, ((MATCH($C$9,[1]!APPLIANCES,0)-1)*2)+2, MATCH(AI$10,[1]!SHIPMENTS_SF_YEARS,0)) -> 70533.66837 | AJ13: =INDEX([1]!SHIPMENTS_SF, ((MATCH($C$9,[1]!APPLIANCES,0)-1)*2)+2, MATCH(AJ$10,[1]!SHIPMENTS_SF_YEARS,0)) -> 65943.96305 | AK13: =INDEX([1]!SHIPMENTS_SF, ((MATCH($C$9,[1]!APPLIANCES,0)-1)*2)+2, MATCH(AK$10,[1]!SHIPMENTS_SF_YEARS,0)) -> 67612.28461 | AL13: =INDEX([1]!SHIPMENTS_SF, ((MATCH($C$9,[1]!APPLIANCES,0)-1)*2)+2, MATCH(AL$10,[1]!SHIPMENTS_SF_YEARS,0)) -> 67135.3832 | AM13: =INDEX([1]!SHIPMENTS_SF, ((MATCH($C$9,[1]!APPLIANCES,0)-1)*2)+2, MATCH(AM$10,[1]!SHIPMENTS_SF_YEARS,0)) -> 67344.00842 | AN13: =INDEX([1]!SHIPMENTS_SF, ((MATCH($C$9,[1]!APPLIANCES,0)-1)*2)+2, MATCH(AN$10,[1]!SHIPMENTS_SF_YEARS,0)) -> 67560.77147 | AO13: =INDEX([1]!SHIPMENTS_SF, ((MATCH($C$9,[1]!APPLIANCES,0)-1)*2)+2, MATCH(AO$10,[1]!SHIPMENTS_SF_YEARS,0)) -> 66377.21383 | AP13: =INDEX([1]!SHIPMENTS_SF, ((MATCH($C$9,[1]!APPLIANCES,0)-1)*2)+2, MATCH(AP$10,[1]!SHIPMENTS_SF_YEARS,0)) -> 65055.0962 | AQ13: =INDEX([1]!SHIPMENTS_SF, ((MATCH($C$9,[1]!APPLIANCES,0)-1)*2)+2, MATCH(AQ$10,[1]!SHIPMENTS_SF_YEARS,0)) -> 63630.19959 | AR13: =INDEX([1]!SHIPMENTS_SF, ((MATCH($C$9,[1]!APPLIANCES,0)-1)*2)+2, MATCH(AR$10,[1]!SHIPMENTS_SF_YEARS,0)) -> 62554.11169 | AS13: =INDEX([1]!SHIPMENTS_SF, ((MATCH($C$9,[1]!APPLIANCES,0)-1)*2)+2, MATCH(AS$10,[1]!SHIPMENTS_SF_YEARS,0)) -> 60918.58203 | AT13: =INDEX([1]!SHIPMENTS_SF, ((MATCH($C$9,[1]!APPLIANCES,0)-1)*2)+2, MATCH(AT$10,[1]!SHIPMENTS_SF_YEARS,0)) -> 59836.37968 | AU13: =INDEX([1]!SHIPMENTS_SF, ((MATCH($C$9,[1]!APPLIANCES,0)-1)*2)+2, MATCH(AU$10,[1]!SHIPMENTS_SF_YEARS,0)) -> 59056.10263 | AV13: =INDEX([1]!SHIPMENTS_SF, ((MATCH($C$9,[1]!APPLIANCES,0)-1)*2)+2, MATCH(AV$10,[1]!SHIPMENTS_SF_YEARS,0)) -> 58161.96912 | AW13: =INDEX([1]!SHIPMENTS_SF, ((MATCH($C$9,[1]!APPLIANCES,0)-1)*2)+2, MATCH(AW$10,[1]!SHIPMENTS_SF_YEARS,0)) -> 57963.58596 | AX13: =INDEX([1]!SHIPMENTS_SF, ((MATCH($C$9,[1]!APPLIANCES,0)-1)*2)+2, MATCH(AX$10,[1]!SHIPMENTS_SF_YEARS,0)) -> 57436.49032 | AY13: =INDEX([1]!SHIPMENTS_SF, ((MATCH($C$9,[1]!APPLIANCES,0)-1)*2)+2, MATCH(AY$10,[1]!SHIPMENTS_SF_YEARS,0)) -> 56309.74688 | AZ13: =INDEX([1]!SHIPMENTS_SF, ((MATCH($C$9,[1]!APPLIANCES,0)-1)*2)+2, MATCH(AZ$10,[1]!SHIPMENTS_SF_YEARS,0)) -> 54843.44949 | BA13: =INDEX([1]!SHIPMENTS_SF, ((MATCH($C$9,[1]!APPLIANCES,0)-1)*2)+2, MATCH(BA$10,[1]!SHIPMENTS_SF_YEARS,0)) -> 53843.69331 | BB13: =INDEX([1]!SHIPMENTS_SF, ((MATCH($C$9,[1]!APPLIANCES,0)-1)*2)+2, MATCH(BB$10,[1]!SHIPMENTS_SF_YEARS,0)) -> 53627.47628 | BC13: =INDEX([1]!SHIPMENTS_SF, ((MATCH($C$9,[1]!APPLIANCES,0)-1)*2)+2, MATCH(BC$10,[1]!SHIPMENTS_SF_YEARS,0)) -> 54163.75105 | BD13: =INDEX([1]!SHIPMENTS_SF, ((MATCH($C$9,[1]!APPLIANCES,0)-1)*2)+2, MATCH(BD$10,[1]!SHIPMENTS_SF_YEARS,0)) -> 54705.38856 | BE13: =INDEX([1]!SHIPMENTS_SF, ((MATCH($C$9,[1]!APPLIANCES,0)-1)*2)+2, MATCH(BE$10,[1]!SHIPMENTS_SF_YEARS,0)) -> 55252.44244 | BF13: =INDEX([1]!SHIPMENTS_SF, ((MATCH($C$9,[1]!APPLIANCES,0)-1)*2)+2, MATCH(BF$10,[1]!SHIPMENTS_SF_YEARS,0)) -> 55804.96687
C14: Total Model Shipments | D14: (units) | E14: =SUM(E12:E13) -> 290145.8556 | F14: =SUM(F12:F13) -> 280894.1991 | G14: 292115.7941 | H14: 289880.4506 | I14: 288531.0768 | J14: 290772.6134 | K14: 290952.0333 | L14: 294078.5523 | M14: 301755.4607 | N14: 337086.903 | O14: 322014.288 | P14: 343051.0203 | Q14: 356626.4586 | R14: 359108.6037 | S14: 355278.6825 | T14: 358146.8625 | U14: 361320.5958 | V14: 371478.76 | W14: 406036.1767 | X14: 386788.3293 | Y14: 409364.4431 | Z14: 430015.0013 | AA14: 439526.0494 | AB14: 439639.4924 | AC14: 450936.3358 | AD14: 446423.0964 | AE14: 439857.079 | AF14: 452061.4582 | AG14: 425393.047 | AH14: 463950.4017 | AI14: 500548.6697 | AJ14: 505470.0124 | AK14: 507251.777 | AL14: 518071.719 | AM14: 513767.1048 | AN14: 507417.8504 | AO14: 518438.672 | AP14: 490448.1432 | AQ14: 527580.6013 | AR14: 563102.7814 | AS14: 566388.5944 | AT14: 567088.1566 | AU14: 577127.8216 | AV14: 571929.0739 | AW14: 565381.4364 | AX14: 575875.1624 | AY14: 546757.8901 | AZ14: 582424.0508 | BA14: 616946.4747 | BB14: 620016.0707 | BC14: 621251.9077 | BD14: 631833.2102 | BE14: 627181.5164 | BF14: 621186.4033
C15: Model Installed Stock | D15: (units) | E15: =INDEX([1]!STOCK_SF, MATCH($C$9,[1]!APPLIANCES,0), MATCH(E$10,[1]!STOCK_SF_YEARS,0)) -> 2374372.209 | F15: =INDEX([1]!STOCK_SF, MATCH($C$9,[1]!APPLIANCES,0), MATCH(F$10,[1]!STOCK_SF_YEARS,0)) -> 2394738.114 | G15: =INDEX([1]!STOCK_SF, MATCH($C$9,[1]!APPLIANCES,0), MATCH(G$10,[1]!STOCK_SF_YEARS,0)) -> 2426325.614 | H15: =INDEX([1]!STOCK_SF, MATCH($C$9,[1]!APPLIANCES,0), MATCH(H$10,[1]!STOCK_SF_YEARS,0)) -> 2455677.77 | I15: =INDEX([1]!STOCK_SF, MATCH($C$9,[1]!APPLIANCES,0), MATCH(I$10,[1]!STOCK_SF_YEARS,0)) -> 2483680.553 | J15: =INDEX([1]!STOCK_SF, MATCH($C$9,[1]!APPLIANCES,0), MATCH(J$10,[1]!STOCK_SF_YEARS,0)) -> 2513924.872 | K15: =INDEX([1]!STOCK_SF, MATCH($C$9,[1]!APPLIANCES,0), MATCH(K$10,[1]!STOCK_SF_YEARS,0)) -> 2544348.611 | L15: =INDEX([1]!STOCK_SF, MATCH($C$9,[1]!APPLIANCES,0), MATCH(L$10,[1]!STOCK_SF_YEARS,0)) -> 2577898.869 | M15: =INDEX([1]!STOCK_SF, MATCH($C$9,[1]!APPLIANCES,0), MATCH(M$10,[1]!STOCK_SF_YEARS,0)) -> 2619126.036 | N15: =INDEX([1]!STOCK_SF, MATCH($C$9,[1]!APPLIANCES,0), MATCH(N$10,[1]!STOCK_SF_YEARS,0)) -> 2666067.083 | O15: =INDEX([1]!STOCK_SF, MATCH($C$9,[1]!APPLIANCES,0), MATCH(O$10,[1]!STOCK_SF_YEARS,0)) -> 2707187.172 | P15: =INDEX([1]!STOCK_SF, MATCH($C$9,[1]!APPLIANCES,0), MATCH(P$10,[1]!STOCK_SF_YEARS,0)) -> 2758122.398 | Q15: =INDEX([1]!STOCK_SF, MATCH($C$9,[1]!APPLIANCES,0), MATCH(Q$10,[1]!STOCK_SF_YEARS,0)) -> 2824868.406 | R15: =INDEX([1]!STOCK_SF, MATCH($C$9,[1]!APPLIANCES,0), MATCH(R$10,[1]!STOCK_SF_YEARS,0)) -> 2895445.933 | S15: =INDEX([1]!STOCK_SF, MATCH($C$9,[1]!APPLIANCES,0), MATCH(S$10,[1]!STOCK_SF_YEARS,0)) -> 2959952.002 | T15: =INDEX([1]!STOCK_SF, MATCH($C$9,[1]!APPLIANCES,0), MATCH(T$10,[1]!STOCK_SF_YEARS,0)) -> 3027146.832 | U15: =INDEX([1]!STOCK_SF, MATCH($C$9,[1]!APPLIANCES,0), MATCH(U$10,[1]!STOCK_SF_YEARS,0)) -> 3094388.875 | V15: =INDEX([1]!STOCK_SF, MATCH($C$9,[1]!APPLIANCES,0), MATCH(V$10,[1]!STOCK_SF_YEARS,0)) -> 3164112.174 | W15: =INDEX([1]!STOCK_SF, MATCH($C$9,[1]!APPLIANCES,0), MATCH(W$10,[1]!STOCK_SF_YEARS,0)) -> 3233061.448 | X15: =INDEX([1]!STOCK_SF, MATCH($C$9,[1]!APPLIANCES,0), MATCH(X$10,[1]!STOCK_SF_YEARS,0)) -> 3297835.489 | Y15: =INDEX([1]!STOCK_SF, MATCH($C$9,[1]!APPLIANCES,0), MATCH(Y$10,[1]!STOCK_SF_YEARS,0)) -> 3364148.912 | Z15: =INDEX([1]!STOCK_SF, MATCH($C$9,[1]!APPLIANCES,0), MATCH(Z$10,[1]!STOCK_SF_YEARS,0)) -> 3437537.455 | AA15: =INDEX([1]!STOCK_SF, MATCH($C$9,[1]!APPLIANCES,0), MATCH(AA$10,[1]!STOCK_SF_YEARS,0)) -> 3517954.901 | AB15: =INDEX([1]!STOCK_SF, MATCH($C$9,[1]!APPLIANCES,0), MATCH(AB$10,[1]!STOCK_SF_YEARS,0)) -> 3602315.711 | AC15: =INDEX([1]!STOCK_SF, MATCH($C$9,[1]!APPLIANCES,0), MATCH(AC$10,[1]!STOCK_SF_YEARS,0)) -> 3695105.184 | AD15: =INDEX([1]!STOCK_SF, MATCH($C$9,[1]!APPLIANCES,0), MATCH(AD$10,[1]!STOCK_SF_YEARS,0)) -> 3780207.684 | AE15: =INDEX([1]!STOCK_SF, MATCH($C$9,[1]!APPLIANCES,0), MATCH(AE$10,[1]!STOCK_SF_YEARS,0)) -> 3848586.003 | AF15: =INDEX([1]!STOCK_SF, MATCH($C$9,[1]!APPLIANCES,0), MATCH(AF$10,[1]!STOCK_SF_YEARS,0)) -> 3894611.285 | AG15: =INDEX([1]!STOCK_SF, MATCH($C$9,[1]!APPLIANCES,0), MATCH(AG$10,[1]!STOCK_SF_YEARS,0)) -> 3933216.003 | AH15: =INDEX([1]!STOCK_SF, MATCH($C$9,[1]!APPLIANCES,0), MATCH(AH$10,[1]!STOCK_SF_YEARS,0)) -> 3987801.961 | AI15: =INDEX([1]!STOCK_SF, MATCH($C$9,[1]!APPLIANCES,0), MATCH(AI$10,[1]!STOCK_SF_YEARS,0)) -> 4058335.629 | AJ15: =INDEX([1]!STOCK_SF, MATCH($C$9,[1]!APPLIANCES,0), MATCH(AJ$10,[1]!STOCK_SF_YEARS,0)) -> 4124279.593 | AK15: =INDEX([1]!STOCK_SF, MATCH($C$9,[1]!APPLIANCES,0), MATCH(AK$10,[1]!STOCK_SF_YEARS,0)) -> 4191891.877 | AL15: =INDEX([1]!STOCK_SF, MATCH($C$9,[1]!APPLIANCES,0), MATCH(AL$10,[1]!STOCK_SF_YEARS,0)) -> 4259027.26 | AM15: =INDEX([1]!STOCK_SF, MATCH($C$9,[1]!APPLIANCES,0), MATCH(AM$10,[1]!STOCK_SF_YEARS,0)) -> 4326371.269 | AN15: =INDEX([1]!STOCK_SF, MATCH($C$9,[1]!APPLIANCES,0), MATCH(AN$10,[1]!STOCK_SF_YEARS,0)) -> 4393932.04 | AO15: =INDEX([1]!STOCK_SF, MATCH($C$9,[1]!APPLIANCES,0), MATCH(AO$10,[1]!STOCK_SF_YEARS,0)) -> 4460309.254 | AP15: =INDEX([1]!STOCK_SF, MATCH($C$9,[1]!APPLIANCES,0), MATCH(AP$10,[1]!STOCK_SF_YEARS,0)) -> 4525364.35 | AQ15: =INDEX([1]!STOCK_SF, MATCH($C$9,[1]!APPLIANCES,0), MATCH(AQ$10,[1]!STOCK_SF_YEARS,0)) -> 4588994.55 | AR15: =INDEX([1]!STOCK_SF, MATCH($C$9,[1]!APPLIANCES,0), MATCH(AR$10,[1]!STOCK_SF_YEARS,0)) -> 4651548.662 | AS15: =INDEX([1]!STOCK_SF, MATCH($C$9,[1]!APPLIANCES,0), MATCH(AS$10,[1]!STOCK_SF_YEARS,0)) -> 4712467.244 | AT15: =INDEX([1]!STOCK_SF, MATCH($C$9,[1]!APPLIANCES,0), MATCH(AT$10,[1]!STOCK_SF_YEARS,0)) -> 4772303.623 | AU15: =INDEX([1]!STOCK_SF, MATCH($C$9,[1]!APPLIANCES,0), MATCH(AU$10,[1]!STOCK_SF_YEARS,0)) -> 4831359.726 | AV15: =INDEX([1]!STOCK_SF, MATCH($C$9,[1]!APPLIANCES,0), MATCH(AV$10,[1]!STOCK_SF_YEARS,0)) -> 4889521.695 | AW15: =INDEX([1]!STOCK_SF, MATCH($C$9,[1]!APPLIANCES,0), MATCH(AW$10,[1]!STOCK_SF_YEARS,0)) -> 4947485.281 | AX15: =INDEX([1]!STOCK_SF, MATCH($C$9,[1]!APPLIANCES,0), MATCH(AX$10,[1]!STOCK_SF_YEARS,0)) -> 5004921.771 | AY15: =INDEX([1]!STOCK_SF, MATCH($C$9,[1]!APPLIANCES,0), MATCH(AY$10,[1]!STOCK_SF_YEARS,0)) -> 5061231.518 | AZ15: =INDEX([1]!STOCK_SF, MATCH($C$9,[1]!APPLIANCES,0), MATCH(AZ$10,[1]!STOCK_SF_YEARS,0)) -> 5116074.968 | BA15: =INDEX([1]!STOCK_SF, MATCH($C$9,[1]!APPLIANCES,0), MATCH(BA$10,[1]!STOCK_SF_YEARS,0)) -> 5169918.661 | BB15: =INDEX([1]!STOCK_SF, MATCH($C$9,[1]!APPLIANCES,0), MATCH(BB$10,[1]!STOCK_SF_YEARS,0)) -> 5223546.137 | BC15: =INDEX([1]!STOCK_SF, MATCH($C$9,[1]!APPLIANCES,0), MATCH(BC$10,[1]!STOCK_SF_YEARS,0)) -> 5277709.888 | BD15: =INDEX([1]!STOCK_SF, MATCH($C$9,[1]!APPLIANCES,0), MATCH(BD$10,[1]!STOCK_SF_YEARS,0)) -> 5332415.277 | BE15: =INDEX([1]!STOCK_SF, MATCH($C$9,[1]!APPLIANCES,0), MATCH(BE$10,[1]!STOCK_SF_YEARS,0)) -> 5387667.719 | BF15: =INDEX([1]!STOCK_SF, MATCH($C$9,[1]!APPLIANCES,0), MATCH(BF$10,[1]!STOCK_SF_YEARS,0)) -> 5443472.686

Sheet Shipments and Stock - MF
C2: Shipments and Stock - MF
C4: NAVIGATION
C6: COMMENTS
C9: =MODEL_NAME -> Microwave Ovens
E10: 1981 | F10: 1982 | G10: 1983 | H10: 1984 | I10: 1985 | J10: 1986 | K10: 1987 | L10: 1988 | M10: 1989 | N10: 1990 | O10: 1991 | P10: 1992 | Q10: 1993 | R10: 1994 | S10: 1995 | T10: 1996 | U10: 1997 | V10: 1998 | W10: 1999 | X10: 2000 | Y10: 2001 | Z10: 2002 | AA10: 2003 | AB10: 2004 | AC10: 2005 | AD10: 2006 | AE10: 2007 | AF10: 2008 | AG10: 2009 | AH10: 2010 | AI10: 2011 | AJ10: 2012 | AK10: 2013 | AL10: 2014 | AM10: 2015 | AN10: 2016 | AO10: 2017 | AP10: 2018 | AQ10: 2019 | AR10: 2020 | AS10: 2021 | AT10: 2022 | AU10: 2023 | AV10: 2024 | AW10: 2025 | AX10: 2026 | AY10: 2027 | AZ10: 2028 | BA10: 2029 | BB10: 2030 | BC10: 2031 | BD10: 2032 | BE10: 2033 | BF10: 2034
C11: 6P Shipments | D11: (units) | E11: =IF(ISNUMBER(MATCH(E10,[1]!SIXTH_PLAN_MF_YEARS,0)), INDEX([1]!SIXTH_PLAN_MF, MATCH($C$9,[1]!APPLIANCES,0), MATCH(E$10,[1]!SIXTH_PLAN_MF_YEARS,0)),"pre-dates plan") -> pre-dates plan | F11: =IF(ISNUMBER(MATCH(F10,[1]!SIXTH_PLAN_MF_YEARS,0)), INDEX([1]!SIXTH_PLAN_MF, MATCH($C$9,[1]!APPLIANCES,0), MATCH(F$10,[1]!SIXTH_PLAN_MF_YEARS,0)),"pre-dates plan") -> pre-dates plan | G11: =IF(ISNUMBER(MATCH(G10,[1]!SIXTH_PLAN_MF_YEARS,0)), INDEX([1]!SIXTH_PLAN_MF, MATCH($C$9,[1]!APPLIANCES,0), MATCH(G$10,[1]!SIXTH_PLAN_MF_YEARS,0)),"pre-dates plan") -> pre-dates plan | H11: =IF(ISNUMBER(MATCH(H10,[1]!SIXTH_PLAN_MF_YEARS,0)), INDEX([1]!SIXTH_PLAN_MF, MATCH($C$9,[1]!APPLIANCES,0), MATCH(H$10,[1]!SIXTH_PLAN_MF_YEARS,0)),"pre-dates plan") -> pre-dates plan | I11: =IF(ISNUMBER(MATCH(I10,[1]!SIXTH_PLAN_MF_YEARS,0)), INDEX([1]!SIXTH_PLAN_MF, MATCH($C$9,[1]!APPLIANCES,0), MATCH(I$10,[1]!SIXTH_PLAN_MF_YEARS,0)),"pre-dates plan") -> pre-dates plan | J11: =IF(ISNUMBER(MATCH(J10,[1]!SIXTH_PLAN_MF_YEARS,0)), INDEX([1]!SIXTH_PLAN_MF, MATCH($C$9,[1]!APPLIANCES,0), MATCH(J$10,[1]!SIXTH_PLAN_MF_YEARS,0)),"pre-dates plan") -> pre-dates plan | K11: =IF(ISNUMBER(MATCH(K10,[1]!SIXTH_PLAN_MF_YEARS,0)), INDEX([1]!SIXTH_PLAN_MF, MATCH($C$9,[1]!APPLIANCES,0), MATCH(K$10,[1]!SIXTH_PLAN_MF_YEARS,0)),"pre-dates plan") -> pre-dates plan | L11: =IF(ISNUMBER(MATCH(L10,[1]!SIXTH_PLAN_MF_YEARS,0)), INDEX([1]!SIXTH_PLAN_MF, MATCH($C$9,[1]!APPLIANCES,0), MATCH(L$10,[1]!SIXTH_PLAN_MF_YEARS,0)),"pre-dates plan") -> pre-dates plan | M11: =IF(ISNUMBER(MATCH(M10,[1]!SIXTH_PLAN_MF_YEARS,0)), INDEX([1]!SIXTH_PLAN_MF, MATCH($C$9,[1]!APPLIANCES,0), MATCH(M$10,[1]!SIXTH_PLAN_MF_YEARS,0)),"pre-dates plan") -> pre-dates plan | N11: =IF(ISNUMBER(MATCH(N10,[1]!SIXTH_PLAN_MF_YEARS,0)), INDEX([1]!SIXTH_PLAN_MF, MATCH($C$9,[1]!APPLIANCES,0), MATCH(N$10,[1]!SIXTH_PLAN_MF_YEARS,0)),"pre-dates plan") -> pre-dates plan | O11: =IF(ISNUMBER(MATCH(O10,[1]!SIXTH_PLAN_MF_YEARS,0)), INDEX([1]!SIXTH_PLAN_MF, MATCH($C$9,[1]!APPLIANCES,0), MATCH(O$10,[1]!SIXTH_PLAN_MF_YEARS,0)),"pre-dates plan") -> pre-dates plan | P11: =IF(ISNUMBER(MATCH(P10,[1]!SIXTH_PLAN_MF_YEARS,0)), INDEX([1]!SIXTH_PLAN_MF, MATCH($C$9,[1]!APPLIANCES,0), MATCH(P$10,[1]!SIXTH_PLAN_MF_YEARS,0)),"pre-dates plan") -> pre-dates plan | Q11: =IF(ISNUMBER(MATCH(Q10,[1]!SIXTH_PLAN_MF_YEARS,0)), INDEX([1]!SIXTH_PLAN_MF, MATCH($C$9,[1]!APPLIANCES,0), MATCH(Q$10,[1]!SIXTH_PLAN_MF_YEARS,0)),"pre-dates plan") -> pre-dates plan | R11: =IF(ISNUMBER(MATCH(R10,[1]!SIXTH_PLAN_MF_YEARS,0)), INDEX([1]!SIXTH_PLAN_MF, MATCH($C$9,[1]!APPLIANCES,0), MATCH(R$10,[1]!SIXTH_PLAN_MF_YEARS,0)),"pre-dates plan") -> pre-dates plan | S11: =IF(ISNUMBER(MATCH(S10,[1]!SIXTH_PLAN_MF_YEARS,0)), INDEX([1]!SIXTH_PLAN_MF, MATCH($C$9,[1]!APPLIANCES,0), MATCH(S$10,[1]!SIXTH_PLAN_MF_YEARS,0)),"pre-dates plan") -> pre-dates plan | T11: =IF(ISNUMBER(MATCH(T10,[1]!SIXTH_PLAN_MF_YEARS,0)), INDEX([1]!SIXTH_PLAN_MF, MATCH($C$9,[1]!APPLIANCES,0), MATCH(T$10,[1]!SIXTH_PLAN_MF_YEARS,0)),"pre-dates plan") -> pre-dates plan | U11: =IF(ISNUMBER(MATCH(U10,[1]!SIXTH_PLAN_MF_YEARS,0)), INDEX([1]!SIXTH_PLAN_MF, MATCH($C$9,[1]!APPLIANCES,0), MATCH(U$10,[1]!SIXTH_PLAN_MF_YEARS,0)),"pre-dates plan") -> pre-dates plan | V11: =IF(ISNUMBER(MATCH(V10,[1]!SIXTH_PLAN_MF_YEARS,0)), INDEX([1]!SIXTH_PLAN_MF, MATCH($C$9,[1]!APPLIANCES,0), MATCH(V$10,[1]!SIXTH_PLAN_MF_YEARS,0)),"pre-dates plan") -> pre-dates plan | W11: =IF(ISNUMBER(MATCH(W10,[1]!SIXTH_PLAN_MF_YEARS,0)), INDEX([1]!SIXTH_PLAN_MF, MATCH($C$9,[1]!APPLIANCES,0), MATCH(W$10,[1]!SIXTH_PLAN_MF_YEARS,0)),"pre-dates plan") -> pre-dates plan | X11: =IF(ISNUMBER(MATCH(X10,[1]!SIXTH_PLAN_MF_YEARS,0)), INDEX([1]!SIXTH_PLAN_MF, MATCH($C$9,[1]!APPLIANCES,0), MATCH(X$10,[1]!SIXTH_PLAN_MF_YEARS,0)),"pre-dates plan") -> pre-dates plan | Y11: =IF(ISNUMBER(MATCH(Y10,[1]!SIXTH_PLAN_MF_YEARS,0)), INDEX([1]!SIXTH_PLAN_MF, MATCH($C$9,[1]!APPLIANCES,0), MATCH(Y$10,[1]!SIXTH_PLAN_MF_YEARS,0)),"pre-dates plan") -> pre-dates plan | Z11: =IF(ISNUMBER(MATCH(Z10,[1]!SIXTH_PLAN_MF_YEARS,0)), INDEX([1]!SIXTH_PLAN_MF, MATCH($C$9,[1]!APPLIANCES,0), MATCH(Z$10,[1]!SIXTH_PLAN_MF_YEARS,0)),"pre-dates plan") -> pre-dates plan | AA11: =IF(ISNUMBER(MATCH(AA10,[1]!SIXTH_PLAN_MF_YEARS,0)), INDEX([1]!SIXTH_PLAN_MF, MATCH($C$9,[1]!APPLIANCES,0), MATCH(AA$10,[1]!SIXTH_PLAN_MF_YEARS,0)),"pre-dates plan") -> pre-dates plan | AB11: =IF(ISNUMBER(MATCH(AB10,[1]!SIXTH_PLAN_MF_YEARS,0)), INDEX([1]!SIXTH_PLAN_MF, MATCH($C$9,[1]!APPLIANCES,0), MATCH(AB$10,[1]!SIXTH_PLAN_MF_YEARS,0)),"pre-dates plan") -> pre-dates plan | AC11: =IF(ISNUMBER(MATCH(AC10,[1]!SIXTH_PLAN_MF_YEARS,0)), INDEX([1]!SIXTH_PLAN_MF, MATCH($C$9,[1]!APPLIANCES,0), MATCH(AC$10,[1]!SIXTH_PLAN_MF_YEARS,0)),"pre-dates plan") -> pre-dates plan | AD11: =IF(ISNUMBER(MATCH(AD10,[1]!SIXTH_PLAN_MF_YEARS,0)), INDEX([1]!SIXTH_PLAN_MF, MATCH($C$9,[1]!APPLIANCES,0), MATCH(AD$10,[1]!SIXTH_PLAN_MF_YEARS,0)),"pre-dates plan") -> pre-dates plan | AE11: =IF(ISNUMBER(MATCH(AE10,[1]!SIXTH_PLAN_MF_YEARS,0)), INDEX([1]!SIXTH_PLAN_MF, MATCH($C$9,[1]!APPLIANCES,0), MATCH(AE$10,[1]!SIXTH_PLAN_MF_YEARS,0)),"pre-dates plan") -> pre-dates plan | AF11: =IF(ISNUMBER(MATCH(AF10,[1]!SIXTH_PLAN_MF_YEARS,0)), INDEX([1]!SIXTH_PLAN_MF, MATCH($C$9,[1]!APPLIANCES,0), MATCH(AF$10,[1]!SIXTH_PLAN_MF_YEARS,0)),"pre-dates plan") -> pre-dates plan | AG11: =IF(ISNUMBER(MATCH(AG10,[1]!SIXTH_PLAN_MF_YEARS,0)), INDEX([1]!SIXTH_PLAN_MF, MATCH($C$9,[1]!APPLIANCES,0), MATCH(AG$10,[1]!SIXTH_PLAN_MF_YEARS,0)),"pre-dates plan") -> pre-dates plan | AH11: =IF(ISNUMBER(MATCH(AH10,[1]!SIXTH_PLAN_MF_YEARS,0)), INDEX([1]!SIXTH_PLAN_MF, MATCH($C$9,[1]!APPLIANCES,0), MATCH(AH$10,[1]!SIXTH_PLAN_MF_YEARS,0)),"pre-dates plan") -> 107592.0716 | AI11: =IF(ISNUMBER(MATCH(AI10,[1]!SIXTH_PLAN_MF_YEARS,0)), INDEX([1]!SIXTH_PLAN_MF, MATCH($C$9,[1]!APPLIANCES,0), MATCH(AI$10,[1]!SIXTH_PLAN_MF_YEARS,0)),"pre-dates plan") -> 107592.0716 | AJ11: =IF(ISNUMBER(MATCH(AJ10,[1]!SIXTH_PLAN_MF_YEARS,0)), INDEX([1]!SIXTH_PLAN_MF, MATCH($C$9,[1]!APPLIANCES,0), MATCH(AJ$10,[1]!SIXTH_PLAN_MF_YEARS,0)),"pre-dates plan") -> 107592.0716 | AK11: =IF(ISNUMBER(MATCH(AK10,[1]!SIXTH_PLAN_MF_YEARS,0)), INDEX([1]!SIXTH_PLAN_MF, MATCH($C$9,[1]!APPLIANCES,0), MATCH(AK$10,[1]!SIXTH_PLAN_MF_YEARS,0)),"pre-dates plan") -> 107592.0716 | AL11: =IF(ISNUMBER(MATCH(AL10,[1]!SIXTH_PLAN_MF_YEARS,0)), INDEX([1]!SIXTH_PLAN_MF, MATCH($C$9,[1]!APPLIANCES,0), MATCH(AL$10,[1]!SIXTH_PLAN_MF_YEARS,0)),"pre-dates plan") -> 107592.0716 | AM11: =IF(ISNUMBER(MATCH(AM10,[1]!SIXTH_PLAN_MF_YEARS,0)), INDEX([1]!SIXTH_PLAN_MF, MATCH($C$9,[1]!APPLIANCES,0), MATCH(AM$10,[1]!SIXTH_PLAN_MF_YEARS,0)),"pre-dates plan") -> 107592.0716 | AN11: =IF(ISNUMBER(MATCH(AN10,[1]!SIXTH_PLAN_MF_YEARS,0)), INDEX([1]!SIXTH_PLAN_MF, MATCH($C$9,[1]!APPLIANCES,0), MATCH(AN$10,[1]!SIXTH_PLAN_MF_YEARS,0)),"pre-dates plan") -> 107592.0716 | AO11: =IF(ISNUMBER(MATCH(AO10,[1]!SIXTH_PLAN_MF_YEARS,0)), INDEX([1]!SIXTH_PLAN_MF, MATCH($C$9,[1]!APPLIANCES,0), MATCH(AO$10,[1]!SIXTH_PLAN_MF_YEARS,0)),"pre-dates plan") -> 107592.0716 | AP11: =IF(ISNUMBER(MATCH(AP10,[1]!SIXTH_PLAN_MF_YEARS,0)), INDEX([1]!SIXTH_PLAN_MF, MATCH($C$9,[1]!APPLIANCES,0), MATCH(AP$10,[1]!SIXTH_PLAN_MF_YEARS,0)),"pre-dates plan") -> 107592.0716 | AQ11: =IF(ISNUMBER(MATCH(AQ10,[1]!SIXTH_PLAN_MF_YEARS,0)), INDEX([1]!SIXTH_PLAN_MF, MATCH($C$9,[1]!APPLIANCES,0), MATCH(AQ$10,[1]!SIXTH_PLAN_MF_YEARS,0)),"pre-dates plan") -> 107592.0716 | AR11: =IF(ISNUMBER(MATCH(AR10,[1]!SIXTH_PLAN_MF_YEARS,0)), INDEX([1]!SIXTH_PLAN_MF, MATCH($C$9,[1]!APPLIANCES,0), MATCH(AR$10,[1]!SIXTH_PLAN_MF_YEARS,0)),"pre-dates plan") -> 107592.0716 | AS11: =IF(ISNUMBER(MATCH(AS10,[1]!SIXTH_PLAN_MF_YEARS,0)), INDEX([1]!SIXTH_PLAN_MF, MATCH($C$9,[1]!APPLIANCES,0), MATCH(AS$10,[1]!SIXTH_PLAN_MF_YEARS,0)),"pre-dates plan") -> 107592.0716 | AT11: =IF(ISNUMBER(MATCH(AT10,[1]!SIXTH_PLAN_MF_YEARS,0)), INDEX([1]!SIXTH_PLAN_MF, MATCH($C$9,[1]!APPLIANCES,0), MATCH(AT$10,[1]!SIXTH_PLAN_MF_YEARS,0)),"pre-dates plan") -> 107592.0716 | AU11: =IF(ISNUMBER(MATCH(AU10,[1]!SIXTH_PLAN_MF_YEARS,0)), INDEX([1]!SIXTH_PLAN_MF, MATCH($C$9,[1]!APPLIANCES,0), MATCH(AU$10,[1]!SIXTH_PLAN_MF_YEARS,0)),"pre-dates plan") -> 107592.0716 | AV11: =IF(ISNUMBER(MATCH(AV10,[1]!SIXTH_PLAN_MF_YEARS,0)), INDEX([1]!SIXTH_PLAN_MF, MATCH($C$9,[1]!APPLIANCES,0), MATCH(AV$10,[1]!SIXTH_PLAN_MF_YEARS,0)),"pre-dates plan") -> 107592.0716 | AW11: =IF(ISNUMBER(MATCH(AW10,[1]!SIXTH_PLAN_MF_YEARS,0)), INDEX([1]!SIXTH_PLAN_MF, MATCH($C$9,[1]!APPLIANCES,0), MATCH(AW$10,[1]!SIXTH_PLAN_MF_YEARS,0)),"pre-dates plan") -> 107592.0716 | AX11: =IF(ISNUMBER(MATCH(AX10,[1]!SIXTH_PLAN_MF_YEARS,0)), INDEX([1]!SIXTH_PLAN_MF, MATCH($C$9,[1]!APPLIANCES,0), MATCH(AX$10,[1]!SIXTH_PLAN_MF_YEARS,0)),"pre-dates plan") -> 107592.0716 | AY11: =IF(ISNUMBER(MATCH(AY10,[1]!SIXTH_PLAN_MF_YEARS,0)), INDEX([1]!SIXTH_PLAN_MF, MATCH($C$9,[1]!APPLIANCES,0), MATCH(AY$10,[1]!SIXTH_PLAN_MF_YEARS,0)),"pre-dates plan") -> 107592.0716 | AZ11: =IF(ISNUMBER(MATCH(AZ10,[1]!SIXTH_PLAN_MF_YEARS,0)), INDEX([1]!SIXTH_PLAN_MF, MATCH($C$9,[1]!APPLIANCES,0), MATCH(AZ$10,[1]!SIXTH_PLAN_MF_YEARS,0)),"pre-dates plan") -> 107592.0716 | BA11: =IF(ISNUMBER(MATCH(BA10,[1]!SIXTH_PLAN_MF_YEARS,0)), INDEX([1]!SIXTH_PLAN_MF, MATCH($C$9,[1]!APPLIANCES,0), MATCH(BA$10,[1]!SIXTH_PLAN_MF_YEARS,0)),"pre-dates plan") -> 107592.0716 | BB11: =IF(ISNUMBER(MATCH(BB10,[1]!SIXTH_PLAN_MF_YEARS,0)), INDEX([1]!SIXTH_PLAN_MF, MATCH($C$9,[1]!APPLIANCES,0), MATCH(BB$10,[1]!SIXTH_PLAN_MF_YEARS,0)),"pre-dates plan") -> 107592.0716 | BC11: =IF(ISNUMBER(MATCH(BC10,[1]!SIXTH_PLAN_MF_YEARS,0)), INDEX([1]!SIXTH_PLAN_MF, MATCH($C$9,[1]!APPLIANCES,0), MATCH(BC$10,[1]!SIXTH_PLAN_MF_YEARS,0)),"pre-dates plan") -> 107592.0716 | BD11: =IF(ISNUMBER(MATCH(BD10,[1]!SIXTH_PLAN_MF_YEARS,0)), INDEX([1]!SIXTH_PLAN_MF, MATCH($C$9,[1]!APPLIANCES,0), MATCH(BD$10,[1]!SIXTH_PLAN_MF_YEARS,0)),"pre-dates plan") -> 107592.0716 | BE11: =IF(ISNUMBER(MATCH(BE10,[1]!SIXTH_PLAN_MF_YEARS,0)), INDEX([1]!SIXTH_PLAN_MF, MATCH($C$9,[1]!APPLIANCES,0), MATCH(BE$10,[1]!SIXTH_PLAN_MF_YEARS,0)),"pre-dates plan") -> 107592.0716 | BF11: =IF(ISNUMBER(MATCH(BF10,[1]!SIXTH_PLAN_MF_YEARS,0)), INDEX([1]!SIXTH_PLAN_MF, MATCH($C$9,[1]!APPLIANCES,0), MATCH(BF$10,[1]!SIXTH_PLAN_MF_YEARS,0)),"pre-dates plan") -> 107592.0716
C12: Replacement Shipments | D12: (units) | E12: =INDEX([1]!SHIPMENTS_MF, ((MATCH($C$9,[1]!APPLIANCES,0)-1)*2)+1, MATCH(E$10,[1]!SHIPMENTS_MF_YEARS,0)) -> 50781.07731 | F12: =INDEX([1]!SHIPMENTS_MF, ((MATCH($C$9,[1]!APPLIANCES,0)-1)*2)+1, MATCH(F$10,[1]!SHIPMENTS_MF_YEARS,0)) -> 50781.07731 | G12: =INDEX([1]!SHIPMENTS_MF, ((MATCH($C$9,[1]!APPLIANCES,0)-1)*2)+1, MATCH(G$10,[1]!SHIPMENTS_MF_YEARS,0)) -> 50781.07731 | H12: =INDEX([1]!SHIPMENTS_MF, ((MATCH($C$9,[1]!APPLIANCES,0)-1)*2)+1, MATCH(H$10,[1]!SHIPMENTS_MF_YEARS,0)) -> 50781.07731 | I12: =INDEX([1]!SHIPMENTS_MF, ((MATCH($C$9,[1]!APPLIANCES,0)-1)*2)+1, MATCH(I$10,[1]!SHIPMENTS_MF_YEARS,0)) -> 50781.07731 | J12: =INDEX([1]!SHIPMENTS_MF, ((MATCH($C$9,[1]!APPLIANCES,0)-1)*2)+1, MATCH(J$10,[1]!SHIPMENTS_MF_YEARS,0)) -> 50781.07731 | K12: =INDEX([1]!SHIPMENTS_MF, ((MATCH($C$9,[1]!APPLIANCES,0)-1)*2)+1, MATCH(K$10,[1]!SHIPMENTS_MF_YEARS,0)) -> 50781.07731 | L12: =INDEX([1]!SHIPMENTS_MF, ((MATCH($C$9,[1]!APPLIANCES,0)-1)*2)+1, MATCH(L$10,[1]!SHIPMENTS_MF_YEARS,0)) -> 50781.07731 | M12: =INDEX([1]!SHIPMENTS_MF, ((MATCH($C$9,[1]!APPLIANCES,0)-1)*2)+1, MATCH(M$10,[1]!SHIPMENTS_MF_YEARS,0)) -> 50781.07731 | N12: =INDEX([1]!SHIPMENTS_MF, ((MATCH($C$9,[1]!APPLIANCES,0)-1)*2)+1, MATCH(N$10,[1]!SHIPMENTS_MF_YEARS,0)) -> 60380.08494 | O12: =INDEX([1]!SHIPMENTS_MF, ((MATCH($C$9,[1]!APPLIANCES,0)-1)*2)+1, MATCH(O$10,[1]!SHIPMENTS_MF_YEARS,0)) -> 57613.21342 | P12: =INDEX([1]!SHIPMENTS_MF, ((MATCH($C$9,[1]!APPLIANCES,0)-1)*2)+1, MATCH(P$10,[1]!SHIPMENTS_MF_YEARS,0)) -> 58839.71289 | Q12: =INDEX([1]!SHIPMENTS_MF, ((MATCH($C$9,[1]!APPLIANCES,0)-1)*2)+1, MATCH(Q$10,[1]!SHIPMENTS_MF_YEARS,0)) -> 63079.7301 | R12: =INDEX([1]!SHIPMENTS_MF, ((MATCH($C$9,[1]!APPLIANCES,0)-1)*2)+1, MATCH(R$10,[1]!SHIPMENTS_MF_YEARS,0)) -> 69697.80099 | S12: =INDEX([1]!SHIPMENTS_MF, ((MATCH($C$9,[1]!APPLIANCES,0)-1)*2)+1, MATCH(S$10,[1]!SHIPMENTS_MF_YEARS,0)) -> 67586.13959 | T12: =INDEX([1]!SHIPMENTS_MF, ((MATCH($C$9,[1]!APPLIANCES,0)-1)*2)+1, MATCH(T$10,[1]!SHIPMENTS_MF_YEARS,0)) -> 69537.05013 | U12: =INDEX([1]!SHIPMENTS_MF, ((MATCH($C$9,[1]!APPLIANCES,0)-1)*2)+1, MATCH(U$10,[1]!SHIPMENTS_MF_YEARS,0)) -> 74117.05856 | V12: =INDEX([1]!SHIPMENTS_MF, ((MATCH($C$9,[1]!APPLIANCES,0)-1)*2)+1, MATCH(V$10,[1]!SHIPMENTS_MF_YEARS,0)) -> 78713.76138 | W12: =INDEX([1]!SHIPMENTS_MF, ((MATCH($C$9,[1]!APPLIANCES,0)-1)*2)+1, MATCH(W$10,[1]!SHIPMENTS_MF_YEARS,0)) -> 83992.511 | X12: =INDEX([1]!SHIPMENTS_MF, ((MATCH($C$9,[1]!APPLIANCES,0)-1)*2)+1, MATCH(X$10,[1]!SHIPMENTS_MF_YEARS,0)) -> 68668.7621 | Y12: =INDEX([1]!SHIPMENTS_MF, ((MATCH($C$9,[1]!APPLIANCES,0)-1)*2)+1, MATCH(Y$10,[1]!SHIPMENTS_MF_YEARS,0)) -> 70169.19325 | Z12: =INDEX([1]!SHIPMENTS_MF, ((MATCH($C$9,[1]!APPLIANCES,0)-1)*2)+1, MATCH(Z$10,[1]!SHIPMENTS_MF_YEARS,0)) -> 78725.20011 | AA12: =INDEX([1]!SHIPMENTS_MF, ((MATCH($C$9,[1]!APPLIANCES,0)-1)*2)+1, MATCH(AA$10,[1]!SHIPMENTS_MF_YEARS,0)) -> 88271.47414 | AB12: =INDEX([1]!SHIPMENTS_MF, ((MATCH($C$9,[1]!APPLIANCES,0)-1)*2)+1, MATCH(AB$10,[1]!SHIPMENTS_MF_YEARS,0)) -> 87678.90714 | AC12: =INDEX([1]!SHIPMENTS_MF, ((MATCH($C$9,[1]!APPLIANCES,0)-1)*2)+1, MATCH(AC$10,[1]!SHIPMENTS_MF_YEARS,0)) -> 89908.50832 | AD12: =INDEX([1]!SHIPMENTS_MF, ((MATCH($C$9,[1]!APPLIANCES,0)-1)*2)+1, MATCH(AD$10,[1]!SHIPMENTS_MF_YEARS,0)) -> 94901.98758 | AE12: =INDEX([1]!SHIPMENTS_MF, ((MATCH($C$9,[1]!APPLIANCES,0)-1)*2)+1, MATCH(AE$10,[1]!SHIPMENTS_MF_YEARS,0)) -> 102078.0485 | AF12: =INDEX([1]!SHIPMENTS_MF, ((MATCH($C$9,[1]!APPLIANCES,0)-1)*2)+1, MATCH(AF$10,[1]!SHIPMENTS_MF_YEARS,0)) -> 104209.1122 | AG12: =INDEX([1]!SHIPMENTS_MF, ((MATCH($C$9,[1]!APPLIANCES,0)-1)*2)+1, MATCH(AG$10,[1]!SHIPMENTS_MF_YEARS,0)) -> 85917.86038 | AH12: =INDEX([1]!SHIPMENTS_MF, ((MATCH($C$9,[1]!APPLIANCES,0)-1)*2)+1, MATCH(AH$10,[1]!SHIPMENTS_MF_YEARS,0)) -> 87729.01302 | AI12: =INDEX([1]!SHIPMENTS_MF, ((MATCH($C$9,[1]!APPLIANCES,0)-1)*2)+1, MATCH(AI$10,[1]!SHIPMENTS_MF_YEARS,0)) -> 95215.91369 | AJ12: =INDEX([1]!SHIPMENTS_MF, ((MATCH($C$9,[1]!APPLIANCES,0)-1)*2)+1, MATCH(AJ$10,[1]!SHIPMENTS_MF_YEARS,0)) -> 105193.6327 | AK12: =INDEX([1]!SHIPMENTS_MF, ((MATCH($C$9,[1]!APPLIANCES,0)-1)*2)+1, MATCH(AK$10,[1]!SHIPMENTS_MF_YEARS,0)) -> 106467.2118 | AL12: =INDEX([1]!SHIPMENTS_MF, ((MATCH($C$9,[1]!APPLIANCES,0)-1)*2)+1, MATCH(AL$10,[1]!SHIPMENTS_MF_YEARS,0)) -> 108518.6815 | AM12: =INDEX([1]!SHIPMENTS_MF, ((MATCH($C$9,[1]!APPLIANCES,0)-1)*2)+1, MATCH(AM$10,[1]!SHIPMENTS_MF_YEARS,0)) -> 115454.1034 | AN12: =INDEX([1]!SHIPMENTS_MF, ((MATCH($C$9,[1]!APPLIANCES,0)-1)*2)+1, MATCH(AN$10,[1]!SHIPMENTS_MF_YEARS,0)) -> 122403.9052 | AO12: =INDEX([1]!SHIPMENTS_MF, ((MATCH($C$9,[1]!APPLIANCES,0)-1)*2)+1, MATCH(AO$10,[1]!SHIPMENTS_MF_YEARS,0)) -> 120281.1256 | AP12: =INDEX([1]!SHIPMENTS_MF, ((MATCH($C$9,[1]!APPLIANCES,0)-1)*2)+1, MATCH(AP$10,[1]!SHIPMENTS_MF_YEARS,0)) -> 94840.65018 | AQ12: =INDEX([1]!SHIPMENTS_MF, ((MATCH($C$9,[1]!APPLIANCES,0)-1)*2)+1, MATCH(AQ$10,[1]!SHIPMENTS_MF_YEARS,0)) -> 99953.42004 | AR12: =INDEX([1]!SHIPMENTS_MF, ((MATCH($C$9,[1]!APPLIANCES,0)-1)*2)+1, MATCH(AR$10,[1]!SHIPMENTS_MF_YEARS,0)) -> 111610.2147 | AS12: =INDEX([1]!SHIPMENTS_MF, ((MATCH($C$9,[1]!APPLIANCES,0)-1)*2)+1, MATCH(AS$10,[1]!SHIPMENTS_MF_YEARS,0)) -> 119440.0951 | AT12: =INDEX([1]!SHIPMENTS_MF, ((MATCH($C$9,[1]!APPLIANCES,0)-1)*2)+1, MATCH(AT$10,[1]!SHIPMENTS_MF_YEARS,0)) -> 121516.3454 | AU12: =INDEX([1]!SHIPMENTS_MF, ((MATCH($C$9,[1]!APPLIANCES,0)-1)*2)+1, MATCH(AU$10,[1]!SHIPMENTS_MF_YEARS,0)) -> 124681.1787 | AV12: =INDEX([1]!SHIPMENTS_MF, ((MATCH($C$9,[1]!APPLIANCES,0)-1)*2)+1, MATCH(AV$10,[1]!SHIPMENTS_MF_YEARS,0)) -> 132938.5705 | AW12: =INDEX([1]!SHIPMENTS_MF, ((MATCH($C$9,[1]!APPLIANCES,0)-1)*2)+1, MATCH(AW$10,[1]!SHIPMENTS_MF_YEARS,0)) -> 140974.3333 | AX12: =INDEX([1]!SHIPMENTS_MF, ((MATCH($C$9,[1]!APPLIANCES,0)-1)*2)+1, MATCH(AX$10,[1]!SHIPMENTS_MF_YEARS,0)) -> 139461.0194 | AY12: =INDEX([1]!SHIPMENTS_MF, ((MATCH($C$9,[1]!APPLIANCES,0)-1)*2)+1, MATCH(AY$10,[1]!SHIPMENTS_MF_YEARS,0)) -> 114689.2018 | AZ12: =INDEX([1]!SHIPMENTS_MF, ((MATCH($C$9,[1]!APPLIANCES,0)-1)*2)+1, MATCH(AZ$10,[1]!SHIPMENTS_MF_YEARS,0)) -> 120574.9226 | BA12: =INDEX([1]!SHIPMENTS_MF, ((MATCH($C$9,[1]!APPLIANCES,0)-1)*2)+1, MATCH(BA$10,[1]!SHIPMENTS_MF_YEARS,0)) -> 132688.5341 | BB12: =INDEX([1]!SHIPMENTS_MF, ((MATCH($C$9,[1]!APPLIANCES,0)-1)*2)+1, MATCH(BB$10,[1]!SHIPMENTS_MF_YEARS,0)) -> 140146.0651 | BC12: =INDEX([1]!SHIPMENTS_MF, ((MATCH($C$9,[1]!APPLIANCES,0)-1)*2)+1, MATCH(BC$10,[1]!SHIPMENTS_MF_YEARS,0)) -> 142454.0253 | BD12: =INDEX([1]!SHIPMENTS_MF, ((MATCH($C$9,[1]!APPLIANCES,0)-1)*2)+1, MATCH(BD$10,[1]!SHIPMENTS_MF_YEARS,0)) -> 145715.108 | BE12: =INDEX([1]!SHIPMENTS_MF, ((MATCH($C$9,[1]!APPLIANCES,0)-1)*2)+1, MATCH(BE$10,[1]!SHIPMENTS_MF_YEARS,0)) -> 153914.1109 | BF12: =INDEX([1]!SHIPMENTS_MF, ((MATCH($C$9,[1]!APPLIANCES,0)-1)*2)+1, MATCH(BF$10,[1]!SHIPMENTS_MF_YEARS,0)) -> 161723.1964
C13: Net New Shipments | D13: (units) | E13: =INDEX([1]!SHIPMENTS_MF, ((MATCH($C$9,[1]!APPLIANCES,0)-1)*2)+2, MATCH(E$10,[1]!SHIPMENTS_MF_YEARS,0)) -> 9599.00763 | F13: =INDEX([1]!SHIPMENTS_MF, ((MATCH($C$9,[1]!APPLIANCES,0)-1)*2)+2, MATCH(F$10,[1]!SHIPMENTS_MF_YEARS,0)) -> 6832.136112 | G13: =INDEX([1]!SHIPMENTS_MF, ((MATCH($C$9,[1]!APPLIANCES,0)-1)*2)+2, MATCH(G$10,[1]!SHIPMENTS_MF_YEARS,0)) -> 8058.635586 | H13: =INDEX([1]!SHIPMENTS_MF, ((MATCH($C$9,[1]!APPLIANCES,0)-1)*2)+2, MATCH(H$10,[1]!SHIPMENTS_MF_YEARS,0)) -> 12298.6528 | I13: =INDEX([1]!SHIPMENTS_MF, ((MATCH($C$9,[1]!APPLIANCES,0)-1)*2)+2, MATCH(I$10,[1]!SHIPMENTS_MF_YEARS,0)) -> 18916.72369 | J13: =INDEX([1]!SHIPMENTS_MF, ((MATCH($C$9,[1]!APPLIANCES,0)-1)*2)+2, MATCH(J$10,[1]!SHIPMENTS_MF_YEARS,0)) -> 16805.06228 | K13: =INDEX([1]!SHIPMENTS_MF, ((MATCH($C$9,[1]!APPLIANCES,0)-1)*2)+2, MATCH(K$10,[1]!SHIPMENTS_MF_YEARS,0)) -> 18755.97282 | L13: =INDEX([1]!SHIPMENTS_MF, ((MATCH($C$9,[1]!APPLIANCES,0)-1)*2)+2, MATCH(L$10,[1]!SHIPMENTS_MF_YEARS,0)) -> 23335.98125 | M13: =INDEX([1]!SHIPMENTS_MF, ((MATCH($C$9,[1]!APPLIANCES,0)-1)*2)+2, MATCH(M$10,[1]!SHIPMENTS_MF_YEARS,0)) -> 27932.68407 | N13: =INDEX([1]!SHIPMENTS_MF, ((MATCH($C$9,[1]!APPLIANCES,0)-1)*2)+2, MATCH(N$10,[1]!SHIPMENTS_MF_YEARS,0)) -> 23612.42606 | O13: =INDEX([1]!SHIPMENTS_MF, ((MATCH($C$9,[1]!APPLIANCES,0)-1)*2)+2, MATCH(O$10,[1]!SHIPMENTS_MF_YEARS,0)) -> 11055.54868 | P13: =INDEX([1]!SHIPMENTS_MF, ((MATCH($C$9,[1]!APPLIANCES,0)-1)*2)+2, MATCH(P$10,[1]!SHIPMENTS_MF_YEARS,0)) -> 11329.48036 | Q13: =INDEX([1]!SHIPMENTS_MF, ((MATCH($C$9,[1]!APPLIANCES,0)-1)*2)+2, MATCH(Q$10,[1]!SHIPMENTS_MF_YEARS,0)) -> 15645.47001 | R13: =INDEX([1]!SHIPMENTS_MF, ((MATCH($C$9,[1]!APPLIANCES,0)-1)*2)+2, MATCH(R$10,[1]!SHIPMENTS_MF_YEARS,0)) -> 18573.67315 | S13: =INDEX([1]!SHIPMENTS_MF, ((MATCH($C$9,[1]!APPLIANCES,0)-1)*2)+2, MATCH(S$10,[1]!SHIPMENTS_MF_YEARS,0)) -> 20092.76756 | T13: =INDEX([1]!SHIPMENTS_MF, ((MATCH($C$9,[1]!APPLIANCES,0)-1)*2)+2, MATCH(T$10,[1]!SHIPMENTS_MF_YEARS,0)) -> 20371.45819 | U13: =INDEX([1]!SHIPMENTS_MF, ((MATCH($C$9,[1]!APPLIANCES,0)-1)*2)+2, MATCH(U$10,[1]!SHIPMENTS_MF_YEARS,0)) -> 20784.92902 | V13: =INDEX([1]!SHIPMENTS_MF, ((MATCH($C$9,[1]!APPLIANCES,0)-1)*2)+2, MATCH(V$10,[1]!SHIPMENTS_MF_YEARS,0)) -> 23364.28717 | W13: =INDEX([1]!SHIPMENTS_MF, ((MATCH($C$9,[1]!APPLIANCES,0)-1)*2)+2, MATCH(W$10,[1]!SHIPMENTS_MF_YEARS,0)) -> 20216.60117 | X13: =INDEX([1]!SHIPMENTS_MF, ((MATCH($C$9,[1]!APPLIANCES,0)-1)*2)+2, MATCH(X$10,[1]!SHIPMENTS_MF_YEARS,0)) -> 17249.09828 | Y13: =INDEX([1]!SHIPMENTS_MF, ((MATCH($C$9,[1]!APPLIANCES,0)-1)*2)+2, MATCH(Y$10,[1]!SHIPMENTS_MF_YEARS,0)) -> 17559.81977 | Z13: =INDEX([1]!SHIPMENTS_MF, ((MATCH($C$9,[1]!APPLIANCES,0)-1)*2)+2, MATCH(Z$10,[1]!SHIPMENTS_MF_YEARS,0)) -> 16490.71357 | AA13: =INDEX([1]!SHIPMENTS_MF, ((MATCH($C$9,[1]!APPLIANCES,0)-1)*2)+2, MATCH(AA$10,[1]!SHIPMENTS_MF_YEARS,0)) -> 16922.15861 | AB13: =INDEX([1]!SHIPMENTS_MF, ((MATCH($C$9,[1]!APPLIANCES,0)-1)*2)+2, MATCH(AB$10,[1]!SHIPMENTS_MF_YEARS,0)) -> 18788.30471 | AC13: =INDEX([1]!SHIPMENTS_MF, ((MATCH($C$9,[1]!APPLIANCES,0)-1)*2)+2, MATCH(AC$10,[1]!SHIPMENTS_MF_YEARS,0)) -> 18610.17317 | AD13: =INDEX([1]!SHIPMENTS_MF, ((MATCH($C$9,[1]!APPLIANCES,0)-1)*2)+2, MATCH(AD$10,[1]!SHIPMENTS_MF_YEARS,0)) -> 20552.11583 | AE13: =INDEX([1]!SHIPMENTS_MF, ((MATCH($C$9,[1]!APPLIANCES,0)-1)*2)+2, MATCH(AE$10,[1]!SHIPMENTS_MF_YEARS,0)) -> 20325.85664 | AF13: =INDEX([1]!SHIPMENTS_MF, ((MATCH($C$9,[1]!APPLIANCES,0)-1)*2)+2, MATCH(AF$10,[1]!SHIPMENTS_MF_YEARS,0)) -> 16072.01343 | AG13: =INDEX([1]!SHIPMENTS_MF, ((MATCH($C$9,[1]!APPLIANCES,0)-1)*2)+2, MATCH(AG$10,[1]!SHIPMENTS_MF_YEARS,0)) -> 8922.789805 | AH13: =INDEX([1]!SHIPMENTS_MF, ((MATCH($C$9,[1]!APPLIANCES,0)-1)*2)+2, MATCH(AH$10,[1]!SHIPMENTS_MF_YEARS,0)) -> 12224.40702 | AI13: =INDEX([1]!SHIPMENTS_MF, ((MATCH($C$9,[1]!APPLIANCES,0)-1)*2)+2, MATCH(AI$10,[1]!SHIPMENTS_MF_YEARS,0)) -> 16394.30104 | AJ13: =INDEX([1]!SHIPMENTS_MF, ((MATCH($C$9,[1]!APPLIANCES,0)-1)*2)+2, MATCH(AJ$10,[1]!SHIPMENTS_MF_YEARS,0)) -> 14246.4624 | AK13: =INDEX([1]!SHIPMENTS_MF, ((MATCH($C$9,[1]!APPLIANCES,0)-1)*2)+2, MATCH(AK$10,[1]!SHIPMENTS_MF_YEARS,0)) -> 15049.13354 | AL13: =INDEX([1]!SHIPMENTS_MF, ((MATCH($C$9,[1]!APPLIANCES,0)-1)*2)+2, MATCH(AL$10,[1]!SHIPMENTS_MF_YEARS,0)) -> 16162.49724 | AM13: =INDEX([1]!SHIPMENTS_MF, ((MATCH($C$9,[1]!APPLIANCES,0)-1)*2)+2, MATCH(AM$10,[1]!SHIPMENTS_MF_YEARS,0)) -> 17484.46704 | AN13: =INDEX([1]!SHIPMENTS_MF, ((MATCH($C$9,[1]!APPLIANCES,0)-1)*2)+2, MATCH(AN$10,[1]!SHIPMENTS_MF_YEARS,0)) -> 18570.42816 | AO13: =INDEX([1]!SHIPMENTS_MF, ((MATCH($C$9,[1]!APPLIANCES,0)-1)*2)+2, MATCH(AO$10,[1]!SHIPMENTS_MF_YEARS,0)) -> 19179.89377 | AP13: =INDEX([1]!SHIPMENTS_MF, ((MATCH($C$9,[1]!APPLIANCES,0)-1)*2)+2, MATCH(AP$10,[1]!SHIPMENTS_MF_YEARS,0)) -> 19848.55164 | AQ13: =INDEX([1]!SHIPMENTS_MF, ((MATCH($C$9,[1]!APPLIANCES,0)-1)*2)+2, MATCH(AQ$10,[1]!SHIPMENTS_MF_YEARS,0)) -> 20621.50251 | AR13: =INDEX([1]!SHIPMENTS_MF, ((MATCH($C$9,[1]!APPLIANCES,0)-1)*2)+2, MATCH(AR$10,[1]!SHIPMENTS_MF_YEARS,0)) -> 21078.31938 | AS13: =INDEX([1]!SHIPMENTS_MF, ((MATCH($C$9,[1]!APPLIANCES,0)-1)*2)+2, MATCH(AS$10,[1]!SHIPMENTS_MF_YEARS,0)) -> 20705.96991 | AT13: =INDEX([1]!SHIPMENTS_MF, ((MATCH($C$9,[1]!APPLIANCES,0)-1)*2)+2, MATCH(AT$10,[1]!SHIPMENTS_MF_YEARS,0)) -> 20937.67995 | AU13: =INDEX([1]!SHIPMENTS_MF, ((MATCH($C$9,[1]!APPLIANCES,0)-1)*2)+2, MATCH(AU$10,[1]!SHIPMENTS_MF_YEARS,0)) -> 21033.9293 | AV13: =INDEX([1]!SHIPMENTS_MF, ((MATCH($C$9,[1]!APPLIANCES,0)-1)*2)+2, MATCH(AV$10,[1]!SHIPMENTS_MF_YEARS,0)) -> 20975.54048 | AW13: =INDEX([1]!SHIPMENTS_MF, ((MATCH($C$9,[1]!APPLIANCES,0)-1)*2)+2, MATCH(AW$10,[1]!SHIPMENTS_MF_YEARS,0)) -> 20748.86303 | AX13: =INDEX([1]!SHIPMENTS_MF, ((MATCH($C$9,[1]!APPLIANCES,0)-1)*2)+2, MATCH(AX$10,[1]!SHIPMENTS_MF_YEARS,0)) -> 20437.70339 | AY13: =INDEX([1]!SHIPMENTS_MF, ((MATCH($C$9,[1]!APPLIANCES,0)-1)*2)+2, MATCH(AY$10,[1]!SHIPMENTS_MF_YEARS,0)) -> 20341.16678 | AZ13: =INDEX([1]!SHIPMENTS_MF, ((MATCH($C$9,[1]!APPLIANCES,0)-1)*2)+2, MATCH(AZ$10,[1]!SHIPMENTS_MF_YEARS,0)) -> 20300.32767 | BA13: =INDEX([1]!SHIPMENTS_MF, ((MATCH($C$9,[1]!APPLIANCES,0)-1)*2)+2, MATCH(BA$10,[1]!SHIPMENTS_MF_YEARS,0)) -> 20232.65319 | BB13: =INDEX([1]!SHIPMENTS_MF, ((MATCH($C$9,[1]!APPLIANCES,0)-1)*2)+2, MATCH(BB$10,[1]!SHIPMENTS_MF_YEARS,0)) -> 20012.52126 | BC13: =INDEX([1]!SHIPMENTS_MF, ((MATCH($C$9,[1]!APPLIANCES,0)-1)*2)+2, MATCH(BC$10,[1]!SHIPMENTS_MF_YEARS,0)) -> 20212.64647 | BD13: =INDEX([1]!SHIPMENTS_MF, ((MATCH($C$9,[1]!APPLIANCES,0)-1)*2)+2, MATCH(BD$10,[1]!SHIPMENTS_MF_YEARS,0)) -> 20414.77294 | BE13: =INDEX([1]!SHIPMENTS_MF, ((MATCH($C$9,[1]!APPLIANCES,0)-1)*2)+2, MATCH(BE$10,[1]!SHIPMENTS_MF_YEARS,0)) -> 20618.92067 | BF13: =INDEX([1]!SHIPMENTS_MF, ((MATCH($C$9,[1]!APPLIANCES,0)-1)*2)+2, MATCH(BF$10,[1]!SHIPMENTS_MF_YEARS,0)) -> 20825.10988
C14: Total Model Shipments | D14: (units) | E14: =SUM(E12:E13) -> 60380.08494 | F14: =SUM(F12:F13) -> 57613.21342 | G14: 58839.71289 | H14: 63079.7301 | I14: 69697.80099 | J14: 67586.13959 | K14: 69537.05013 | L14: 74117.05856 | M14: 78713.76138 | N14: 83992.511 | O14: 68668.7621 | P14: 70169.19325 | Q14: 78725.20011 | R14: 88271.47414 | S14: 87678.90714 | T14: 89908.50832 | U14: 94901.98758 | V14: 102078.0485 | W14: 104209.1122 | X14: 85917.86038 | Y14: 87729.01302 | Z14: 95215.91369 | AA14: 105193.6327 | AB14: 106467.2118 | AC14: 108518.6815 | AD14: 115454.1034 | AE14: 122403.9052 | AF14: 120281.1256 | AG14: 94840.65018 | AH14: 99953.42004 | AI14: 111610.2147 | AJ14: 119440.0951 | AK14: 121516.3454 | AL14: 124681.1787 | AM14: 132938.5705 | AN14: 140974.3333 | AO14: 139461.0194 | AP14: 114689.2018 | AQ14: 120574.9226 | AR14: 132688.5341 | AS14: 140146.0651 | AT14: 142454.0253 | AU14: 145715.108 | AV14: 153914.1109 | AW14: 161723.1964 | AX14: 159898.7228 | AY14: 135030.3686 | AZ14: 140875.2502 | BA14: 152921.1873 | BB14: 160158.5863 | BC14: 162666.6718 | BD14: 166129.881 | BE14: 174533.0316 | BF14: 182548.3063
C15: Model Installed Stock | D15: (units) | E15: =INDEX([1]!STOCK_MF, MATCH($C$9,[1]!APPLIANCES,0), MATCH(E$10,[1]!STOCK_MF_YEARS,0)) -> 466628.7034 | F15: =INDEX([1]!STOCK_MF, MATCH($C$9,[1]!APPLIANCES,0), MATCH(F$10,[1]!STOCK_MF_YEARS,0)) -> 473460.8395 | G15: =INDEX([1]!STOCK_MF, MATCH($C$9,[1]!APPLIANCES,0), MATCH(G$10,[1]!STOCK_MF_YEARS,0)) -> 481519.4751 | H15: =INDEX([1]!STOCK_MF, MATCH($C$9,[1]!APPLIANCES,0), MATCH(H$10,[1]!STOCK_MF_YEARS,0)) -> 493818.1279 | I15: =INDEX([1]!STOCK_MF, MATCH($C$9,[1]!APPLIANCES,0), MATCH(I$10,[1]!STOCK_MF_YEARS,0)) -> 512734.8516 | J15: =INDEX([1]!STOCK_MF, MATCH($C$9,[1]!APPLIANCES,0), MATCH(J$10,[1]!STOCK_MF_YEARS,0)) -> 529539.9138 | K15: =INDEX([1]!STOCK_MF, MATCH($C$9,[1]!APPLIANCES,0), MATCH(K$10,[1]!STOCK_MF_YEARS,0)) -> 548295.8867 | L15: =INDEX([1]!STOCK_MF, MATCH($C$9,[1]!APPLIANCES,0), MATCH(L$10,[1]!STOCK_MF_YEARS,0)) -> 571631.8679 | M15: =INDEX([1]!STOCK_MF, MATCH($C$9,[1]!APPLIANCES,0), MATCH(M$10,[1]!STOCK_MF_YEARS,0)) -> 599564.552 | N15: =INDEX([1]!STOCK_MF, MATCH($C$9,[1]!APPLIANCES,0), MATCH(N$10,[1]!STOCK_MF_YEARS,0)) -> 623176.9781 | O15: =INDEX([1]!STOCK_MF, MATCH($C$9,[1]!APPLIANCES,0), MATCH(O$10,[1]!STOCK_MF_YEARS,0)) -> 634232.5267 | P15: =INDEX([1]!STOCK_MF, MATCH($C$9,[1]!APPLIANCES,0), MATCH(P$10,[1]!STOCK_MF_YEARS,0)) -> 645562.0071 | Q15: =INDEX([1]!STOCK_MF, MATCH($C$9,[1]!APPLIANCES,0), MATCH(Q$10,[1]!STOCK_MF_YEARS,0)) -> 661207.4771 | R15: =INDEX([1]!STOCK_MF, MATCH($C$9,[1]!APPLIANCES,0), MATCH(R$10,[1]!STOCK_MF_YEARS,0)) -> 679781.1503 | S15: =INDEX([1]!STOCK_MF, MATCH($C$9,[1]!APPLIANCES,0), MATCH(S$10,[1]!STOCK_MF_YEARS,0)) -> 699873.9178 | T15: =INDEX([1]!STOCK_MF, MATCH($C$9,[1]!APPLIANCES,0), MATCH(T$10,[1]!STOCK_MF_YEARS,0)) -> 720245.376 | U15: =INDEX([1]!STOCK_MF, MATCH($C$9,[1]!APPLIANCES,0), MATCH(U$10,[1]!STOCK_MF_YEARS,0)) -> 741030.305 | V15: =INDEX([1]!STOCK_MF, MATCH($C$9,[1]!APPLIANCES,0), MATCH(V$10,[1]!STOCK_MF_YEARS,0)) -> 764394.5922 | W15: =INDEX([1]!STOCK_MF, MATCH($C$9,[1]!APPLIANCES,0), MATCH(W$10,[1]!STOCK_MF_YEARS,0)) -> 784611.1934 | X15: =INDEX([1]!STOCK_MF, MATCH($C$9,[1]!APPLIANCES,0), MATCH(X$10,[1]!STOCK_MF_YEARS,0)) -> 801860.2916 | Y15: =INDEX([1]!STOCK_MF, MATCH($C$9,[1]!APPLIANCES,0), MATCH(Y$10,[1]!STOCK_MF_YEARS,0)) -> 819420.1114 | Z15: =INDEX([1]!STOCK_MF, MATCH($C$9,[1]!APPLIANCES,0), MATCH(Z$10,[1]!STOCK_MF_YEARS,0)) -> 835910.825 | AA15: =INDEX([1]!STOCK_MF, MATCH($C$9,[1]!APPLIANCES,0), MATCH(AA$10,[1]!STOCK_MF_YEARS,0)) -> 852832.9836 | AB15: =INDEX([1]!STOCK_MF, MATCH($C$9,[1]!APPLIANCES,0), MATCH(AB$10,[1]!STOCK_MF_YEARS,0)) -> 871621.2883 | AC15: =INDEX([1]!STOCK_MF, MATCH($C$9,[1]!APPLIANCES,0), MATCH(AC$10,[1]!STOCK_MF_YEARS,0)) -> 890231.4615 | AD15: =INDEX([1]!STOCK_MF, MATCH($C$9,[1]!APPLIANCES,0), MATCH(AD$10,[1]!STOCK_MF_YEARS,0)) -> 910783.5773 | AE15: =INDEX([1]!STOCK_MF, MATCH($C$9,[1]!APPLIANCES,0), MATCH(AE$10,[1]!STOCK_MF_YEARS,0)) -> 931109.4339 | AF15: =INDEX([1]!STOCK_MF, MATCH($C$9,[1]!APPLIANCES,0), MATCH(AF$10,[1]!STOCK_MF_YEARS,0)) -> 947181.4474 | AG15: =INDEX([1]!STOCK_MF, MATCH($C$9,[1]!APPLIANCES,0), MATCH(AG$10,[1]!STOCK_MF_YEARS,0)) -> 956104.2372 | AH15: =INDEX([1]!STOCK_MF, MATCH($C$9,[1]!APPLIANCES,0), MATCH(AH$10,[1]!STOCK_MF_YEARS,0)) -> 968328.6442 | AI15: =INDEX([1]!STOCK_MF, MATCH($C$9,[1]!APPLIANCES,0), MATCH(AI$10,[1]!STOCK_MF_YEARS,0)) -> 984722.9452 | AJ15: =INDEX([1]!STOCK_MF, MATCH($C$9,[1]!APPLIANCES,0), MATCH(AJ$10,[1]!STOCK_MF_YEARS,0)) -> 998969.4076 | AK15: =INDEX([1]!STOCK_MF, MATCH($C$9,[1]!APPLIANCES,0), MATCH(AK$10,[1]!STOCK_MF_YEARS,0)) -> 1014018.541 | AL15: =INDEX([1]!STOCK_MF, MATCH($C$9,[1]!APPLIANCES,0), MATCH(AL$10,[1]!STOCK_MF_YEARS,0)) -> 1030181.038 | AM15: =INDEX([1]!STOCK_MF, MATCH($C$9,[1]!APPLIANCES,0), MATCH(AM$10,[1]!STOCK_MF_YEARS,0)) -> 1047665.505 | AN15: =INDEX([1]!STOCK_MF, MATCH($C$9,[1]!APPLIANCES,0), MATCH(AN$10,[1]!STOCK_MF_YEARS,0)) -> 1066235.934 | AO15: =INDEX([1]!STOCK_MF, MATCH($C$9,[1]!APPLIANCES,0), MATCH(AO$10,[1]!STOCK_MF_YEARS,0)) -> 1085415.827 | AP15: =INDEX([1]!STOCK_MF, MATCH($C$9,[1]!APPLIANCES,0), MATCH(AP$10,[1]!STOCK_MF_YEARS,0)) -> 1105264.379 | AQ15: =INDEX([1]!STOCK_MF, MATCH($C$9,[1]!APPLIANCES,0), MATCH(AQ$10,[1]!STOCK_MF_YEARS,0)) -> 1125885.882 | AR15: =INDEX([1]!STOCK_MF, MATCH($C$9,[1]!APPLIANCES,0), MATCH(AR$10,[1]!STOCK_MF_YEARS,0)) -> 1146964.201 | AS15: =INDEX([1]!STOCK_MF, MATCH($C$9,[1]!APPLIANCES,0), MATCH(AS$10,[1]!STOCK_MF_YEARS,0)) -> 1167670.171 | AT15: =INDEX([1]!STOCK_MF, MATCH($C$9,[1]!APPLIANCES,0), MATCH(AT$10,[1]!STOCK_MF_YEARS,0)) -> 1188607.851 | AU15: =INDEX([1]!STOCK_MF, MATCH($C$9,[1]!APPLIANCES,0), MATCH(AU$10,[1]!STOCK_MF_YEARS,0)) -> 1209641.78 | AV15: =INDEX([1]!STOCK_MF, MATCH($C$9,[1]!APPLIANCES,0), MATCH(AV$10,[1]!STOCK_MF_YEARS,0)) -> 1230617.321 | AW15: =INDEX([1]!STOCK_MF, MATCH($C$9,[1]!APPLIANCES,0), MATCH(AW$10,[1]!STOCK_MF_YEARS,0)) -> 1251366.184 | AX15: =INDEX([1]!STOCK_MF, MATCH($C$9,[1]!APPLIANCES,0), MATCH(AX$10,[1]!STOCK_MF_YEARS,0)) -> 1271803.887 | AY15: =INDEX([1]!STOCK_MF, MATCH($C$9,[1]!APPLIANCES,0), MATCH(AY$10,[1]!STOCK_MF_YEARS,0)) -> 1292145.054 | AZ15: =INDEX([1]!STOCK_MF, MATCH($C$9,[1]!APPLIANCES,0), MATCH(AZ$10,[1]!STOCK_MF_YEARS,0)) -> 1312445.381 | BA15: =INDEX([1]!STOCK_MF, MATCH($C$9,[1]!APPLIANCES,0), MATCH(BA$10,[1]!STOCK_MF_YEARS,0)) -> 1332678.035 | BB15: =INDEX([1]!STOCK_MF, MATCH($C$9,[1]!APPLIANCES,0), MATCH(BB$10,[1]!STOCK_MF_YEARS,0)) -> 1352690.556 | BC15: =INDEX([1]!STOCK_MF, MATCH($C$9,[1]!APPLIANCES,0), MATCH(BC$10,[1]!STOCK_MF_YEARS,0)) -> 1372903.202 | BD15: =INDEX([1]!STOCK_MF, MATCH($C$9,[1]!APPLIANCES,0), MATCH(BD$10,[1]!STOCK_MF_YEARS,0)) -> 1393317.975 | BE15: =INDEX([1]!STOCK_MF, MATCH($C$9,[1]!APPLIANCES,0), MATCH(BE$10,[1]!STOCK_MF_YEARS,0)) -> 1413936.896 | BF15: =INDEX([1]!STOCK_MF, MATCH($C$9,[1]!APPLIANCES,0), MATCH(BF$10,[1]!STOCK_MF_YEARS,0)) -> 1434762.006

Sheet Shipments and Stock - MH
C2: Shipments and Stock - MH
C4: NAVIGATION
C6: COMMENTS
C9: =MODEL_NAME -> Microwave Ovens
E10: 1981 | F10: 1982 | G10: 1983 | H10: 1984 | I10: 1985 | J10: 1986 | K10: 1987 | L10: 1988 | M10: 1989 | N10: 1990 | O10: 1991 | P10: 1992 | Q10: 1993 | R10: 1994 | S10: 1995 | T10: 1996 | U10: 1997 | V10: 1998 | W10: 1999 | X10: 2000 | Y10: 2001 | Z10: 2002 | AA10: 2003 | AB10: 2004 | AC10: 2005 | AD10: 2006 | AE10: 2007 | AF10: 2008 | AG10: 2009 | AH10: 2010 | AI10: 2011 | AJ10: 2012 | AK10: 2013 | AL10: 2014 | AM10: 2015 | AN10: 2016 | AO10: 2017 | AP10: 2018 | AQ10: 2019 | AR10: 2020 | AS10: 2021 | AT10: 2022 | AU10: 2023 | AV10: 2024 | AW10: 2025 | AX10: 2026 | AY10: 2027 | AZ10: 2028 | BA10: 2029 | BB10: 2030 | BC10: 2031 | BD10: 2032 | BE10: 2033 | BF10: 2034
C11: 6P Shipments | D11: (units) | E11: =IF(ISNUMBER(MATCH(E10,[1]!SIXTH_PLAN_MH_YEARS,0)), INDEX([1]!SIXTH_PLAN_MH, MATCH($C$9,[1]!APPLIANCES,0), MATCH(E$10,[1]!SIXTH_PLAN_MH_YEARS,0)),"pre-dates plan") -> pre-dates plan | F11: =IF(ISNUMBER(MATCH(F10,[1]!SIXTH_PLAN_MH_YEARS,0)), INDEX([1]!SIXTH_PLAN_MH, MATCH($C$9,[1]!APPLIANCES,0), MATCH(F$10,[1]!SIXTH_PLAN_MH_YEARS,0)),"pre-dates plan") -> pre-dates plan | G11: =IF(ISNUMBER(MATCH(G10,[1]!SIXTH_PLAN_MH_YEARS,0)), INDEX([1]!SIXTH_PLAN_MH, MATCH($C$9,[1]!APPLIANCES,0), MATCH(G$10,[1]!SIXTH_PLAN_MH_YEARS,0)),"pre-dates plan") -> pre-dates plan | H11: =IF(ISNUMBER(MATCH(H10,[1]!SIXTH_PLAN_MH_YEARS,0)), INDEX([1]!SIXTH_PLAN_MH, MATCH($C$9,[1]!APPLIANCES,0), MATCH(H$10,[1]!SIXTH_PLAN_MH_YEARS,0)),"pre-dates plan") -> pre-dates plan | I11: =IF(ISNUMBER(MATCH(I10,[1]!SIXTH_PLAN_MH_YEARS,0)), INDEX([1]!SIXTH_PLAN_MH, MATCH($C$9,[1]!APPLIANCES,0), MATCH(I$10,[1]!SIXTH_PLAN_MH_YEARS,0)),"pre-dates plan") -> pre-dates plan | J11: =IF(ISNUMBER(MATCH(J10,[1]!SIXTH_PLAN_MH_YEARS,0)), INDEX([1]!SIXTH_PLAN_MH, MATCH($C$9,[1]!APPLIANCES,0), MATCH(J$10,[1]!SIXTH_PLAN_MH_YEARS,0)),"pre-dates plan") -> pre-dates plan | K11: =IF(ISNUMBER(MATCH(K10,[1]!SIXTH_PLAN_MH_YEARS,0)), INDEX([1]!SIXTH_PLAN_MH, MATCH($C$9,[1]!APPLIANCES,0), MATCH(K$10,[1]!SIXTH_PLAN_MH_YEARS,0)),"pre-dates plan") -> pre-dates plan | L11: =IF(ISNUMBER(MATCH(L10,[1]!SIXTH_PLAN_MH_YEARS,0)), INDEX([1]!SIXTH_PLAN_MH, MATCH($C$9,[1]!APPLIANCES,0), MATCH(L$10,[1]!SIXTH_PLAN_MH_YEARS,0)),"pre-dates plan") -> pre-dates plan | M11: =IF(ISNUMBER(MATCH(M10,[1]!SIXTH_PLAN_MH_YEARS,0)), INDEX([1]!SIXTH_PLAN_MH, MATCH($C$9,[1]!APPLIANCES,0), MATCH(M$10,[1]!SIXTH_PLAN_MH_YEARS,0)),"pre-dates plan") -> pre-dates plan | N11: =IF(ISNUMBER(MATCH(N10,[1]!SIXTH_PLAN_MH_YEARS,0)), INDEX([1]!SIXTH_PLAN_MH, MATCH($C$9,[1]!APPLIANCES,0), MATCH(N$10,[1]!SIXTH_PLAN_MH_YEARS,0)),"pre-dates plan") -> pre-dates plan | O11: =IF(ISNUMBER(MATCH(O10,[1]!SIXTH_PLAN_MH_YEARS,0)), INDEX([1]!SIXTH_PLAN_MH, MATCH($C$9,[1]!APPLIANCES,0), MATCH(O$10,[1]!SIXTH_PLAN_MH_YEARS,0)),"pre-dates plan") -> pre-dates plan | P11: =IF(ISNUMBER(MATCH(P10,[1]!SIXTH_PLAN_MH_YEARS,0)), INDEX([1]!SIXTH_PLAN_MH, MATCH($C$9,[1]!APPLIANCES,0), MATCH(P$10,[1]!SIXTH_PLAN_MH_YEARS,0)),"pre-dates plan") -> pre-dates plan | Q11: =IF(ISNUMBER(MATCH(Q10,[1]!SIXTH_PLAN_MH_YEARS,0)), INDEX([1]!SIXTH_PLAN_MH, MATCH($C$9,[1]!APPLIANCES,0), MATCH(Q$10,[1]!SIXTH_PLAN_MH_YEARS,0)),"pre-dates plan") -> pre-dates plan | R11: =IF(ISNUMBER(MATCH(R10,[1]!SIXTH_PLAN_MH_YEARS,0)), INDEX([1]!SIXTH_PLAN_MH, MATCH($C$9,[1]!APPLIANCES,0), MATCH(R$10,[1]!SIXTH_PLAN_MH_YEARS,0)),"pre-dates plan") -> pre-dates plan | S11: =IF(ISNUMBER(MATCH(S10,[1]!SIXTH_PLAN_MH_YEARS,0)), INDEX([1]!SIXTH_PLAN_MH, MATCH($C$9,[1]!APPLIANCES,0), MATCH(S$10,[1]!SIXTH_PLAN_MH_YEARS,0)),"pre-dates plan") -> pre-dates plan | T11: =IF(ISNUMBER(MATCH(T10,[1]!SIXTH_PLAN_MH_YEARS,0)), INDEX([1]!SIXTH_PLAN_MH, MATCH($C$9,[1]!APPLIANCES,0), MATCH(T$10,[1]!SIXTH_PLAN_MH_YEARS,0)),"pre-dates plan") -> pre-dates plan | U11: =IF(ISNUMBER(MATCH(U10,[1]!SIXTH_PLAN_MH_YEARS,0)), INDEX([1]!SIXTH_PLAN_MH, MATCH($C$9,[1]!APPLIANCES,0), MATCH(U$10,[1]!SIXTH_PLAN_MH_YEARS,0)),"pre-dates plan") -> pre-dates plan | V11: =IF(ISNUMBER(MATCH(V10,[1]!SIXTH_PLAN_MH_YEARS,0)), INDEX([1]!SIXTH_PLAN_MH, MATCH($C$9,[1]!APPLIANCES,0), MATCH(V$10,[1]!SIXTH_PLAN_MH_YEARS,0)),"pre-dates plan") -> pre-dates plan | W11: =IF(ISNUMBER(MATCH(W10,[1]!SIXTH_PLAN_MH_YEARS,0)), INDEX([1]!SIXTH_PLAN_MH, MATCH($C$9,[1]!APPLIANCES,0), MATCH(W$10,[1]!SIXTH_PLAN_MH_YEARS,0)),"pre-dates plan") -> pre-dates plan | X11: =IF(ISNUMBER(MATCH(X10,[1]!SIXTH_PLAN_MH_YEARS,0)), INDEX([1]!SIXTH_PLAN_MH, MATCH($C$9,[1]!APPLIANCES,0), MATCH(X$10,[1]!SIXTH_PLAN_MH_YEARS,0)),"pre-dates plan") -> pre-dates plan | Y11: =IF(ISNUMBER(MATCH(Y10,[1]!SIXTH_PLAN_MH_YEARS,0)), INDEX([1]!SIXTH_PLAN_MH, MATCH($C$9,[1]!APPLIANCES,0), MATCH(Y$10,[1]!SIXTH_PLAN_MH_YEARS,0)),"pre-dates plan") -> pre-dates plan | Z11: =IF(ISNUMBER(MATCH(Z10,[1]!SIXTH_PLAN_MH_YEARS,0)), INDEX([1]!SIXTH_PLAN_MH, MATCH($C$9,[1]!APPLIANCES,0), MATCH(Z$10,[1]!SIXTH_PLAN_MH_YEARS,0)),"pre-dates plan") -> pre-dates plan | AA11: =IF(ISNUMBER(MATCH(AA10,[1]!SIXTH_PLAN_MH_YEARS,0)), INDEX([1]!SIXTH_PLAN_MH, MATCH($C$9,[1]!APPLIANCES,0), MATCH(AA$10,[1]!SIXTH_PLAN_MH_YEARS,0)),"pre-dates plan") -> pre-dates plan | AB11: =IF(ISNUMBER(MATCH(AB10,[1]!SIXTH_PLAN_MH_YEARS,0)), INDEX([1]!SIXTH_PLAN_MH, MATCH($C$9,[1]!APPLIANCES,0), MATCH(AB$10,[1]!SIXTH_PLAN_MH_YEARS,0)),"pre-dates plan") -> pre-dates plan | AC11: =IF(ISNUMBER(MATCH(AC10,[1]!SIXTH_PLAN_MH_YEARS,0)), INDEX([1]!SIXTH_PLAN_MH, MATCH($C$9,[1]!APPLIANCES,0), MATCH(AC$10,[1]!SIXTH_PLAN_MH_YEARS,0)),"pre-dates plan") -> pre-dates plan | AD11: =IF(ISNUMBER(MATCH(AD10,[1]!SIXTH_PLAN_MH_YEARS,0)), INDEX([1]!SIXTH_PLAN_MH, MATCH($C$9,[1]!APPLIANCES,0), MATCH(AD$10,[1]!SIXTH_PLAN_MH_YEARS,0)),"pre-dates plan") -> pre-dates plan | AE11: =IF(ISNUMBER(MATCH(AE10,[1]!SIXTH_PLAN_MH_YEARS,0)), INDEX([1]!SIXTH_PLAN_MH, MATCH($C$9,[1]!APPLIANCES,0), MATCH(AE$10,[1]!SIXTH_PLAN_MH_YEARS,0)),"pre-dates plan") -> pre-dates plan | AF11: =IF(ISNUMBER(MATCH(AF10,[1]!SIXTH_PLAN_MH_YEARS,0)), INDEX([1]!SIXTH_PLAN_MH, MATCH($C$9,[1]!APPLIANCES,0), MATCH(AF$10,[1]!SIXTH_PLAN_MH_YEARS,0)),"pre-dates plan") -> pre-dates plan | AG11: =IF(ISNUMBER(MATCH(AG10,[1]!SIXTH_PLAN_MH_YEARS,0)), INDEX([1]!SIXTH_PLAN_MH, MATCH($C$9,[1]!APPLIANCES,0), MATCH(AG$10,[1]!SIXTH_PLAN_MH_YEARS,0)),"pre-dates plan") -> pre-dates plan | AH11: =IF(ISNUMBER(MATCH(AH10,[1]!SIXTH_PLAN_MH_YEARS,0)), INDEX([1]!SIXTH_PLAN_MH, MATCH($C$9,[1]!APPLIANCES,0), MATCH(AH$10,[1]!SIXTH_PLAN_MH_YEARS,0)),"pre-dates plan") -> 64884.56483 | AI11: =IF(ISNUMBER(MATCH(AI10,[1]!SIXTH_PLAN_MH_YEARS,0)), INDEX([1]!SIXTH_PLAN_MH, MATCH($C$9,[1]!APPLIANCES,0), MATCH(AI$10,[1]!SIXTH_PLAN_MH_YEARS,0)),"pre-dates plan") -> 64884.56483 | AJ11: =IF(ISNUMBER(MATCH(AJ10,[1]!SIXTH_PLAN_MH_YEARS,0)), INDEX([1]!SIXTH_PLAN_MH, MATCH($C$9,[1]!APPLIANCES,0), MATCH(AJ$10,[1]!SIXTH_PLAN_MH_YEARS,0)),"pre-dates plan") -> 64884.56483 | AK11: =IF(ISNUMBER(MATCH(AK10,[1]!SIXTH_PLAN_MH_YEARS,0)), INDEX([1]!SIXTH_PLAN_MH, MATCH($C$9,[1]!APPLIANCES,0), MATCH(AK$10,[1]!SIXTH_PLAN_MH_YEARS,0)),"pre-dates plan") -> 64884.56483 | AL11: =IF(ISNUMBER(MATCH(AL10,[1]!SIXTH_PLAN_MH_YEARS,0)), INDEX([1]!SIXTH_PLAN_MH, MATCH($C$9,[1]!APPLIANCES,0), MATCH(AL$10,[1]!SIXTH_PLAN_MH_YEARS,0)),"pre-dates plan") -> 64884.56483 | AM11: =IF(ISNUMBER(MATCH(AM10,[1]!SIXTH_PLAN_MH_YEARS,0)), INDEX([1]!SIXTH_PLAN_MH, MATCH($C$9,[1]!APPLIANCES,0), MATCH(AM$10,[1]!SIXTH_PLAN_MH_YEARS,0)),"pre-dates plan") -> 64884.56483 | AN11: =IF(ISNUMBER(MATCH(AN10,[1]!SIXTH_PLAN_MH_YEARS,0)), INDEX([1]!SIXTH_PLAN_MH, MATCH($C$9,[1]!APPLIANCES,0), MATCH(AN$10,[1]!SIXTH_PLAN_MH_YEARS,0)),"pre-dates plan") -> 64884.56483 | AO11: =IF(ISNUMBER(MATCH(AO10,[1]!SIXTH_PLAN_MH_YEARS,0)), INDEX([1]!SIXTH_PLAN_MH, MATCH($C$9,[1]!APPLIANCES,0), MATCH(AO$10,[1]!SIXTH_PLAN_MH_YEARS,0)),"pre-dates plan") -> 64884.56483 | AP11: =IF(ISNUMBER(MATCH(AP10,[1]!SIXTH_PLAN_MH_YEARS,0)), INDEX([1]!SIXTH_PLAN_MH, MATCH($C$9,[1]!APPLIANCES,0), MATCH(AP$10,[1]!SIXTH_PLAN_MH_YEARS,0)),"pre-dates plan") -> 64884.56483 | AQ11: =IF(ISNUMBER(MATCH(AQ10,[1]!SIXTH_PLAN_MH_YEARS,0)), INDEX([1]!SIXTH_PLAN_MH, MATCH($C$9,[1]!APPLIANCES,0), MATCH(AQ$10,[1]!SIXTH_PLAN_MH_YEARS,0)),"pre-dates plan") -> 64884.56483 | AR11: =IF(ISNUMBER(MATCH(AR10,[1]!SIXTH_PLAN_MH_YEARS,0)), INDEX([1]!SIXTH_PLAN_MH, MATCH($C$9,[1]!APPLIANCES,0), MATCH(AR$10,[1]!SIXTH_PLAN_MH_YEARS,0)),"pre-dates plan") -> 64884.56483 | AS11: =IF(ISNUMBER(MATCH(AS10,[1]!SIXTH_PLAN_MH_YEARS,0)), INDEX([1]!SIXTH_PLAN_MH, MATCH($C$9,[1]!APPLIANCES,0), MATCH(AS$10,[1]!SIXTH_PLAN_MH_YEARS,0)),"pre-dates plan") -> 64884.56483 | AT11: =IF(ISNUMBER(MATCH(AT10,[1]!SIXTH_PLAN_MH_YEARS,0)), INDEX([1]!SIXTH_PLAN_MH, MATCH($C$9,[1]!APPLIANCES,0), MATCH(AT$10,[1]!SIXTH_PLAN_MH_YEARS,0)),"pre-dates plan") -> 64884.56483 | AU11: =IF(ISNUMBER(MATCH(AU10,[1]!SIXTH_PLAN_MH_YEARS,0)), INDEX([1]!SIXTH_PLAN_MH, MATCH($C$9,[1]!APPLIANCES,0), MATCH(AU$10,[1]!SIXTH_PLAN_MH_YEARS,0)),"pre-dates plan") -> 64884.56483 | AV11: =IF(ISNUMBER(MATCH(AV10,[1]!SIXTH_PLAN_MH_YEARS,0)), INDEX([1]!SIXTH_PLAN_MH, MATCH($C$9,[1]!APPLIANCES,0), MATCH(AV$10,[1]!SIXTH_PLAN_MH_YEARS,0)),"pre-dates plan") -> 64884.56483 | AW11: =IF(ISNUMBER(MATCH(AW10,[1]!SIXTH_PLAN_MH_YEARS,0)), INDEX([1]!SIXTH_PLAN_MH, MATCH($C$9,[1]!APPLIANCES,0), MATCH(AW$10,[1]!SIXTH_PLAN_MH_YEARS,0)),"pre-dates plan") -> 64884.56483 | AX11: =IF(ISNUMBER(MATCH(AX10,[1]!SIXTH_PLAN_MH_YEARS,0)), INDEX([1]!SIXTH_PLAN_MH, MATCH($C$9,[1]!APPLIANCES,0), MATCH(AX$10,[1]!SIXTH_PLAN_MH_YEARS,0)),"pre-dates plan") -> 64884.56483 | AY11: =IF(ISNUMBER(MATCH(AY10,[1]!SIXTH_PLAN_MH_YEARS,0)), INDEX([1]!SIXTH_PLAN_MH, MATCH($C$9,[1]!APPLIANCES,0), MATCH(AY$10,[1]!SIXTH_PLAN_MH_YEARS,0)),"pre-dates plan") -> 64884.56483 | AZ11: =IF(ISNUMBER(MATCH(AZ10,[1]!SIXTH_PLAN_MH_YEARS,0)), INDEX([1]!SIXTH_PLAN_MH, MATCH($C$9,[1]!APPLIANCES,0), MATCH(AZ$10,[1]!SIXTH_PLAN_MH_YEARS,0)),"pre-dates plan") -> 64884.56483 | BA11: =IF(ISNUMBER(MATCH(BA10,[1]!SIXTH_PLAN_MH_YEARS,0)), INDEX([1]!SIXTH_PLAN_MH, MATCH($C$9,[1]!APPLIANCES,0), MATCH(BA$10,[1]!SIXTH_PLAN_MH_YEARS,0)),"pre-dates plan") -> 64884.56483 | BB11: =IF(ISNUMBER(MATCH(BB10,[1]!SIXTH_PLAN_MH_YEARS,0)), INDEX([1]!SIXTH_PLAN_MH, MATCH($C$9,[1]!APPLIANCES,0), MATCH(BB$10,[1]!SIXTH_PLAN_MH_YEARS,0)),"pre-dates plan") -> 64884.56483 | BC11: =IF(ISNUMBER(MATCH(BC10,[1]!SIXTH_PLAN_MH_YEARS,0)), INDEX([1]!SIXTH_PLAN_MH, MATCH($C$9,[1]!APPLIANCES,0), MATCH(BC$10,[1]!SIXTH_PLAN_MH_YEARS,0)),"pre-dates plan") -> 64884.56483 | BD11: =IF(ISNUMBER(MATCH(BD10,[1]!SIXTH_PLAN_MH_YEARS,0)), INDEX([1]!SIXTH_PLAN_MH, MATCH($C$9,[1]!APPLIANCES,0), MATCH(BD$10,[1]!SIXTH_PLAN_MH_YEARS,0)),"pre-dates plan") -> 64884.56483 | BE11: =IF(ISNUMBER(MATCH(BE10,[1]!SIXTH_PLAN_MH_YEARS,0)), INDEX([1]!SIXTH_PLAN_MH, MATCH($C$9,[1]!APPLIANCES,0), MATCH(BE$10,[1]!SIXTH_PLAN_MH_YEARS,0)),"pre-dates plan") -> 64884.56483 | BF11: =IF(ISNUMBER(MATCH(BF10,[1]!SIXTH_PLAN_MH_YEARS,0)), INDEX([1]!SIXTH_PLAN_MH, MATCH($C$9,[1]!APPLIANCES,0), MATCH(BF$10,[1]!SIXTH_PLAN_MH_YEARS,0)),"pre-dates plan") -> 64884.56483
C12: Replacement Shipments | D12: (units) | E12: =INDEX([1]!SHIPMENTS_MH, ((MATCH($C$9,[1]!APPLIANCES,0)-1)*2)+1, MATCH(E$10,[1]!SHIPMENTS_MH_YEARS,0)) -> 27460.58375 | F12: =INDEX([1]!SHIPMENTS_MH, ((MATCH($C$9,[1]!APPLIANCES,0)-1)*2)+1, MATCH(F$10,[1]!SHIPMENTS_MH_YEARS,0)) -> 27460.58375 | G12: =INDEX([1]!SHIPMENTS_MH, ((MATCH($C$9,[1]!APPLIANCES,0)-1)*2)+1, MATCH(G$10,[1]!SHIPMENTS_MH_YEARS,0)) -> 27460.58375 | H12: =INDEX([1]!SHIPMENTS_MH, ((MATCH($C$9,[1]!APPLIANCES,0)-1)*2)+1, MATCH(H$10,[1]!SHIPMENTS_MH_YEARS,0)) -> 27460.58375 | I12: =INDEX([1]!SHIPMENTS_MH, ((MATCH($C$9,[1]!APPLIANCES,0)-1)*2)+1, MATCH(I$10,[1]!SHIPMENTS_MH_YEARS,0)) -> 27460.58375 | J12: =INDEX([1]!SHIPMENTS_MH, ((MATCH($C$9,[1]!APPLIANCES,0)-1)*2)+1, MATCH(J$10,[1]!SHIPMENTS_MH_YEARS,0)) -> 27460.58375 | K12: =INDEX([1]!SHIPMENTS_MH, ((MATCH($C$9,[1]!APPLIANCES,0)-1)*2)+1, MATCH(K$10,[1]!SHIPMENTS_MH_YEARS,0)) -> 27460.58375 | L12: =INDEX([1]!SHIPMENTS_MH, ((MATCH($C$9,[1]!APPLIANCES,0)-1)*2)+1, MATCH(L$10,[1]!SHIPMENTS_MH_YEARS,0)) -> 27460.58375 | M12: =INDEX([1]!SHIPMENTS_MH, ((MATCH($C$9,[1]!APPLIANCES,0)-1)*2)+1, MATCH(M$10,[1]!SHIPMENTS_MH_YEARS,0)) -> 27460.58375 | N12: =INDEX([1]!SHIPMENTS_MH, ((MATCH($C$9,[1]!APPLIANCES,0)-1)*2)+1, MATCH(N$10,[1]!SHIPMENTS_MH_YEARS,0)) -> 37192.69776 | O12: =INDEX([1]!SHIPMENTS_MH, ((MATCH($C$9,[1]!APPLIANCES,0)-1)*2)+1, MATCH(O$10,[1]!SHIPMENTS_MH_YEARS,0)) -> 35321.30998 | P12: =INDEX([1]!SHIPMENTS_MH, ((MATCH($C$9,[1]!APPLIANCES,0)-1)*2)+1, MATCH(P$10,[1]!SHIPMENTS_MH_YEARS,0)) -> 38333.48139 | Q12: =INDEX([1]!SHIPMENTS_MH, ((MATCH($C$9,[1]!APPLIANCES,0)-1)*2)+1, MATCH(Q$10,[1]!SHIPMENTS_MH_YEARS,0)) -> 38134.22571 | R12: =INDEX([1]!SHIPMENTS_MH, ((MATCH($C$9,[1]!APPLIANCES,0)-1)*2)+1, MATCH(R$10,[1]!SHIPMENTS_MH_YEARS,0)) -> 36516.84404 | S12: =INDEX([1]!SHIPMENTS_MH, ((MATCH($C$9,[1]!APPLIANCES,0)-1)*2)+1, MATCH(S$10,[1]!SHIPMENTS_MH_YEARS,0)) -> 34956.90545 | T12: =INDEX([1]!SHIPMENTS_MH, ((MATCH($C$9,[1]!APPLIANCES,0)-1)*2)+1, MATCH(T$10,[1]!SHIPMENTS_MH_YEARS,0)) -> 34553.00881 | U12: =INDEX([1]!SHIPMENTS_MH, ((MATCH($C$9,[1]!APPLIANCES,0)-1)*2)+1, MATCH(U$10,[1]!SHIPMENTS_MH_YEARS,0)) -> 35582.49647 | V12: =INDEX([1]!SHIPMENTS_MH, ((MATCH($C$9,[1]!APPLIANCES,0)-1)*2)+1, MATCH(V$10,[1]!SHIPMENTS_MH_YEARS,0)) -> 36406.44563 | W12: =INDEX([1]!SHIPMENTS_MH, ((MATCH($C$9,[1]!APPLIANCES,0)-1)*2)+1, MATCH(W$10,[1]!SHIPMENTS_MH_YEARS,0)) -> 47851.08141 | X12: =INDEX([1]!SHIPMENTS_MH, ((MATCH($C$9,[1]!APPLIANCES,0)-1)*2)+1, MATCH(X$10,[1]!SHIPMENTS_MH_YEARS,0)) -> 45925.84074 | Y12: =INDEX([1]!SHIPMENTS_MH, ((MATCH($C$9,[1]!APPLIANCES,0)-1)*2)+1, MATCH(Y$10,[1]!SHIPMENTS_MH_YEARS,0)) -> 50705.28436 | Z12: =INDEX([1]!SHIPMENTS_MH, ((MATCH($C$9,[1]!APPLIANCES,0)-1)*2)+1, MATCH(Z$10,[1]!SHIPMENTS_MH_YEARS,0)) -> 55240.17204 | AA12: =INDEX([1]!SHIPMENTS_MH, ((MATCH($C$9,[1]!APPLIANCES,0)-1)*2)+1, MATCH(AA$10,[1]!SHIPMENTS_MH_YEARS,0)) -> 56428.5702 | AB12: =INDEX([1]!SHIPMENTS_MH, ((MATCH($C$9,[1]!APPLIANCES,0)-1)*2)+1, MATCH(AB$10,[1]!SHIPMENTS_MH_YEARS,0)) -> 54212.12538 | AC12: =INDEX([1]!SHIPMENTS_MH, ((MATCH($C$9,[1]!APPLIANCES,0)-1)*2)+1, MATCH(AC$10,[1]!SHIPMENTS_MH_YEARS,0)) -> 51645.27753 | AD12: =INDEX([1]!SHIPMENTS_MH, ((MATCH($C$9,[1]!APPLIANCES,0)-1)*2)+1, MATCH(AD$10,[1]!SHIPMENTS_MH_YEARS,0)) -> 52947.2925 | AE12: =INDEX([1]!SHIPMENTS_MH, ((MATCH($C$9,[1]!APPLIANCES,0)-1)*2)+1, MATCH(AE$10,[1]!SHIPMENTS_MH_YEARS,0)) -> 54521.47296 | AF12: =INDEX([1]!SHIPMENTS_MH, ((MATCH($C$9,[1]!APPLIANCES,0)-1)*2)+1, MATCH(AF$10,[1]!SHIPMENTS_MH_YEARS,0)) -> 62976.29229 | AG12: =INDEX([1]!SHIPMENTS_MH, ((MATCH($C$9,[1]!APPLIANCES,0)-1)*2)+1, MATCH(AG$10,[1]!SHIPMENTS_MH_YEARS,0)) -> 56476.49919 | AH12: =INDEX([1]!SHIPMENTS_MH, ((MATCH($C$9,[1]!APPLIANCES,0)-1)*2)+1, MATCH(AH$10,[1]!SHIPMENTS_MH_YEARS,0)) -> 59204.06694 | AI12: =INDEX([1]!SHIPMENTS_MH, ((MATCH($C$9,[1]!APPLIANCES,0)-1)*2)+1, MATCH(AI$10,[1]!SHIPMENTS_MH_YEARS,0)) -> 63954.81292 | AJ12: =INDEX([1]!SHIPMENTS_MH, ((MATCH($C$9,[1]!APPLIANCES,0)-1)*2)+1, MATCH(AJ$10,[1]!SHIPMENTS_MH_YEARS,0)) -> 64660.77579 | AK12: =INDEX([1]!SHIPMENTS_MH, ((MATCH($C$9,[1]!APPLIANCES,0)-1)*2)+1, MATCH(AK$10,[1]!SHIPMENTS_MH_YEARS,0)) -> 62268.24362 | AL12: =INDEX([1]!SHIPMENTS_MH, ((MATCH($C$9,[1]!APPLIANCES,0)-1)*2)+1, MATCH(AL$10,[1]!SHIPMENTS_MH_YEARS,0)) -> 59742.94586 | AM12: =INDEX([1]!SHIPMENTS_MH, ((MATCH($C$9,[1]!APPLIANCES,0)-1)*2)+1, MATCH(AM$10,[1]!SHIPMENTS_MH_YEARS,0)) -> 60792.21229 | AN12: =INDEX([1]!SHIPMENTS_MH, ((MATCH($C$9,[1]!APPLIANCES,0)-1)*2)+1, MATCH(AN$10,[1]!SHIPMENTS_MH_YEARS,0)) -> 64008.31639 | AO12: =INDEX([1]!SHIPMENTS_MH, ((MATCH($C$9,[1]!APPLIANCES,0)-1)*2)+1, MATCH(AO$10,[1]!SHIPMENTS_MH_YEARS,0)) -> 72792.68484 | AP12: =INDEX([1]!SHIPMENTS_MH, ((MATCH($C$9,[1]!APPLIANCES,0)-1)*2)+1, MATCH(AP$10,[1]!SHIPMENTS_MH_YEARS,0)) -> 66462.78714 | AQ12: =INDEX([1]!SHIPMENTS_MH, ((MATCH($C$9,[1]!APPLIANCES,0)-1)*2)+1, MATCH(AQ$10,[1]!SHIPMENTS_MH_YEARS,0)) -> 69278.3046 | AR12: =INDEX([1]!SHIPMENTS_MH, ((MATCH($C$9,[1]!APPLIANCES,0)-1)*2)+1, MATCH(AR$10,[1]!SHIPMENTS_MH_YEARS,0)) -> 73961.21875 | AS12: =INDEX([1]!SHIPMENTS_MH, ((MATCH($C$9,[1]!APPLIANCES,0)-1)*2)+1, MATCH(AS$10,[1]!SHIPMENTS_MH_YEARS,0)) -> 72401.44495 | AT12: =INDEX([1]!SHIPMENTS_MH, ((MATCH($C$9,[1]!APPLIANCES,0)-1)*2)+1, MATCH(AT$10,[1]!SHIPMENTS_MH_YEARS,0)) -> 69664.18346 | AU12: =INDEX([1]!SHIPMENTS_MH, ((MATCH($C$9,[1]!APPLIANCES,0)-1)*2)+1, MATCH(AU$10,[1]!SHIPMENTS_MH_YEARS,0)) -> 66697.47806 | AV12: =INDEX([1]!SHIPMENTS_MH, ((MATCH($C$9,[1]!APPLIANCES,0)-1)*2)+1, MATCH(AV$10,[1]!SHIPMENTS_MH_YEARS,0)) -> 67338.21999 | AW12: =INDEX([1]!SHIPMENTS_MH, ((MATCH($C$9,[1]!APPLIANCES,0)-1)*2)+1, MATCH(AW$10,[1]!SHIPMENTS_MH_YEARS,0)) -> 70244.94565 | AX12: =INDEX([1]!SHIPMENTS_MH, ((MATCH($C$9,[1]!APPLIANCES,0)-1)*2)+1, MATCH(AX$10,[1]!SHIPMENTS_MH_YEARS,0)) -> 78849.95436 | AY12: =INDEX([1]!SHIPMENTS_MH, ((MATCH($C$9,[1]!APPLIANCES,0)-1)*2)+1, MATCH(AY$10,[1]!SHIPMENTS_MH_YEARS,0)) -> 72487.93425 | AZ12: =INDEX([1]!SHIPMENTS_MH, ((MATCH($C$9,[1]!APPLIANCES,0)-1)*2)+1, MATCH(AZ$10,[1]!SHIPMENTS_MH_YEARS,0)) -> 75411.57807 | BA12: =INDEX([1]!SHIPMENTS_MH, ((MATCH($C$9,[1]!APPLIANCES,0)-1)*2)+1, MATCH(BA$10,[1]!SHIPMENTS_MH_YEARS,0)) -> 80304.41253 | BB12: =INDEX([1]!SHIPMENTS_MH, ((MATCH($C$9,[1]!APPLIANCES,0)-1)*2)+1, MATCH(BB$10,[1]!SHIPMENTS_MH_YEARS,0)) -> 79013.64549 | BC12: =INDEX([1]!SHIPMENTS_MH, ((MATCH($C$9,[1]!APPLIANCES,0)-1)*2)+1, MATCH(BC$10,[1]!SHIPMENTS_MH_YEARS,0)) -> 76546.36561 | BD12: =INDEX([1]!SHIPMENTS_MH, ((MATCH($C$9,[1]!APPLIANCES,0)-1)*2)+1, MATCH(BD$10,[1]!SHIPMENTS_MH_YEARS,0)) -> 73794.59904 | BE12: =INDEX([1]!SHIPMENTS_MH, ((MATCH($C$9,[1]!APPLIANCES,0)-1)*2)+1, MATCH(BE$10,[1]!SHIPMENTS_MH_YEARS,0)) -> 74552.80362 | BF12: =INDEX([1]!SHIPMENTS_MH, ((MATCH($C$9,[1]!APPLIANCES,0)-1)*2)+1, MATCH(BF$10,[1]!SHIPMENTS_MH_YEARS,0)) -> 77455.44479
C13: Net New Shipments | D13: (units) | E13: =INDEX([1]!SHIPMENTS_MH, ((MATCH($C$9,[1]!APPLIANCES,0)-1)*2)+2, MATCH(E$10,[1]!SHIPMENTS_MH_YEARS,0)) -> 9732.114013 | F13: =INDEX([1]!SHIPMENTS_MH, ((MATCH($C$9,[1]!APPLIANCES,0)-1)*2)+2, MATCH(F$10,[1]!SHIPMENTS_MH_YEARS,0)) -> 7860.726231 | G13: =INDEX([1]!SHIPMENTS_MH, ((MATCH($C$9,[1]!APPLIANCES,0)-1)*2)+2, MATCH(G$10,[1]!SHIPMENTS_MH_YEARS,0)) -> 10872.89764 | H13: =INDEX([1]!SHIPMENTS_MH, ((MATCH($C$9,[1]!APPLIANCES,0)-1)*2)+2, MATCH(H$10,[1]!SHIPMENTS_MH_YEARS,0)) -> 10673.64197 | I13: =INDEX([1]!SHIPMENTS_MH, ((MATCH($C$9,[1]!APPLIANCES,0)-1)*2)+2, MATCH(I$10,[1]!SHIPMENTS_MH_YEARS,0)) -> 9056.260296 | J13: =INDEX([1]!SHIPMENTS_MH, ((MATCH($C$9,[1]!APPLIANCES,0)-1)*2)+2, MATCH(J$10,[1]!SHIPMENTS_MH_YEARS,0)) -> 7496.321704 | K13: =INDEX([1]!SHIPMENTS_MH, ((MATCH($C$9,[1]!APPLIANCES,0)-1)*2)+2, MATCH(K$10,[1]!SHIPMENTS_MH_YEARS,0)) -> 7092.42506 | L13: =INDEX([1]!SHIPMENTS_MH, ((MATCH($C$9,[1]!APPLIANCES,0)-1)*2)+2, MATCH(L$10,[1]!SHIPMENTS_MH_YEARS,0)) -> 8121.912727 | M13: =INDEX([1]!SHIPMENTS_MH, ((MATCH($C$9,[1]!APPLIANCES,0)-1)*2)+2, MATCH(M$10,[1]!SHIPMENTS_MH_YEARS,0)) -> 8945.86188 | N13: =INDEX([1]!SHIPMENTS_MH, ((MATCH($C$9,[1]!APPLIANCES,0)-1)*2)+2, MATCH(N$10,[1]!SHIPMENTS_MH_YEARS,0)) -> 10658.38365 | O13: =INDEX([1]!SHIPMENTS_MH, ((MATCH($C$9,[1]!APPLIANCES,0)-1)*2)+2, MATCH(O$10,[1]!SHIPMENTS_MH_YEARS,0)) -> 10604.53076 | P13: =INDEX([1]!SHIPMENTS_MH, ((MATCH($C$9,[1]!APPLIANCES,0)-1)*2)+2, MATCH(P$10,[1]!SHIPMENTS_MH_YEARS,0)) -> 12371.80297 | Q13: =INDEX([1]!SHIPMENTS_MH, ((MATCH($C$9,[1]!APPLIANCES,0)-1)*2)+2, MATCH(Q$10,[1]!SHIPMENTS_MH_YEARS,0)) -> 17105.94633 | R13: =INDEX([1]!SHIPMENTS_MH, ((MATCH($C$9,[1]!APPLIANCES,0)-1)*2)+2, MATCH(R$10,[1]!SHIPMENTS_MH_YEARS,0)) -> 19911.72616 | S13: =INDEX([1]!SHIPMENTS_MH, ((MATCH($C$9,[1]!APPLIANCES,0)-1)*2)+2, MATCH(S$10,[1]!SHIPMENTS_MH_YEARS,0)) -> 19255.21992 | T13: =INDEX([1]!SHIPMENTS_MH, ((MATCH($C$9,[1]!APPLIANCES,0)-1)*2)+2, MATCH(T$10,[1]!SHIPMENTS_MH_YEARS,0)) -> 17092.26873 | U13: =INDEX([1]!SHIPMENTS_MH, ((MATCH($C$9,[1]!APPLIANCES,0)-1)*2)+2, MATCH(U$10,[1]!SHIPMENTS_MH_YEARS,0)) -> 17364.79602 | V13: =INDEX([1]!SHIPMENTS_MH, ((MATCH($C$9,[1]!APPLIANCES,0)-1)*2)+2, MATCH(V$10,[1]!SHIPMENTS_MH_YEARS,0)) -> 18115.02733 | W13: =INDEX([1]!SHIPMENTS_MH, ((MATCH($C$9,[1]!APPLIANCES,0)-1)*2)+2, MATCH(W$10,[1]!SHIPMENTS_MH_YEARS,0)) -> 15125.21088 | X13: =INDEX([1]!SHIPMENTS_MH, ((MATCH($C$9,[1]!APPLIANCES,0)-1)*2)+2, MATCH(X$10,[1]!SHIPMENTS_MH_YEARS,0)) -> 10550.65845 | Y13: =INDEX([1]!SHIPMENTS_MH, ((MATCH($C$9,[1]!APPLIANCES,0)-1)*2)+2, MATCH(Y$10,[1]!SHIPMENTS_MH_YEARS,0)) -> 8498.782582 | Z13: =INDEX([1]!SHIPMENTS_MH, ((MATCH($C$9,[1]!APPLIANCES,0)-1)*2)+2, MATCH(Z$10,[1]!SHIPMENTS_MH_YEARS,0)) -> 8714.640876 | AA13: =INDEX([1]!SHIPMENTS_MH, ((MATCH($C$9,[1]!APPLIANCES,0)-1)*2)+2, MATCH(AA$10,[1]!SHIPMENTS_MH_YEARS,0)) -> 8232.205593 | AB13: =INDEX([1]!SHIPMENTS_MH, ((MATCH($C$9,[1]!APPLIANCES,0)-1)*2)+2, MATCH(AB$10,[1]!SHIPMENTS_MH_YEARS,0)) -> 8056.118249 | AC13: =INDEX([1]!SHIPMENTS_MH, ((MATCH($C$9,[1]!APPLIANCES,0)-1)*2)+2, MATCH(AC$10,[1]!SHIPMENTS_MH_YEARS,0)) -> 8097.668327 | AD13: =INDEX([1]!SHIPMENTS_MH, ((MATCH($C$9,[1]!APPLIANCES,0)-1)*2)+2, MATCH(AD$10,[1]!SHIPMENTS_MH_YEARS,0)) -> 7844.919797 | AE13: =INDEX([1]!SHIPMENTS_MH, ((MATCH($C$9,[1]!APPLIANCES,0)-1)*2)+2, MATCH(AE$10,[1]!SHIPMENTS_MH_YEARS,0)) -> 9486.843432 | AF13: =INDEX([1]!SHIPMENTS_MH, ((MATCH($C$9,[1]!APPLIANCES,0)-1)*2)+2, MATCH(AF$10,[1]!SHIPMENTS_MH_YEARS,0)) -> 9816.392548 | AG13: =INDEX([1]!SHIPMENTS_MH, ((MATCH($C$9,[1]!APPLIANCES,0)-1)*2)+2, MATCH(AG$10,[1]!SHIPMENTS_MH_YEARS,0)) -> 9986.28795 | AH13: =INDEX([1]!SHIPMENTS_MH, ((MATCH($C$9,[1]!APPLIANCES,0)-1)*2)+2, MATCH(AH$10,[1]!SHIPMENTS_MH_YEARS,0)) -> 10074.23767 | AI13: =INDEX([1]!SHIPMENTS_MH, ((MATCH($C$9,[1]!APPLIANCES,0)-1)*2)+2, MATCH(AI$10,[1]!SHIPMENTS_MH_YEARS,0)) -> 10006.40583 | AJ13: =INDEX([1]!SHIPMENTS_MH, ((MATCH($C$9,[1]!APPLIANCES,0)-1)*2)+2, MATCH(AJ$10,[1]!SHIPMENTS_MH_YEARS,0)) -> 7740.669162 | AK13: =INDEX([1]!SHIPMENTS_MH, ((MATCH($C$9,[1]!APPLIANCES,0)-1)*2)+2, MATCH(AK$10,[1]!SHIPMENTS_MH_YEARS,0)) -> 7395.939833 | AL13: =INDEX([1]!SHIPMENTS_MH, ((MATCH($C$9,[1]!APPLIANCES,0)-1)*2)+2, MATCH(AL$10,[1]!SHIPMENTS_MH_YEARS,0)) -> 6954.532195 | AM13: =INDEX([1]!SHIPMENTS_MH, ((MATCH($C$9,[1]!APPLIANCES,0)-1)*2)+2, MATCH(AM$10,[1]!SHIPMENTS_MH_YEARS,0)) -> 6546.007697 | AN13: =INDEX([1]!SHIPMENTS_MH, ((MATCH($C$9,[1]!APPLIANCES,0)-1)*2)+2, MATCH(AN$10,[1]!SHIPMENTS_MH_YEARS,0)) -> 6236.629261 | AO13: =INDEX([1]!SHIPMENTS_MH, ((MATCH($C$9,[1]!APPLIANCES,0)-1)*2)+2, MATCH(AO$10,[1]!SHIPMENTS_MH_YEARS,0)) -> 6057.269527 | AP13: =INDEX([1]!SHIPMENTS_MH, ((MATCH($C$9,[1]!APPLIANCES,0)-1)*2)+2, MATCH(AP$10,[1]!SHIPMENTS_MH_YEARS,0)) -> 6025.147111 | AQ13: =INDEX([1]!SHIPMENTS_MH, ((MATCH($C$9,[1]!APPLIANCES,0)-1)*2)+2, MATCH(AQ$10,[1]!SHIPMENTS_MH_YEARS,0)) -> 6133.273463 | AR13: =INDEX([1]!SHIPMENTS_MH, ((MATCH($C$9,[1]!APPLIANCES,0)-1)*2)+2, MATCH(AR$10,[1]!SHIPMENTS_MH_YEARS,0)) -> 6343.193786 | AS13: =INDEX([1]!SHIPMENTS_MH, ((MATCH($C$9,[1]!APPLIANCES,0)-1)*2)+2, MATCH(AS$10,[1]!SHIPMENTS_MH_YEARS,0)) -> 6612.20054 | AT13: =INDEX([1]!SHIPMENTS_MH, ((MATCH($C$9,[1]!APPLIANCES,0)-1)*2)+2, MATCH(AT$10,[1]!SHIPMENTS_MH_YEARS,0)) -> 6882.182152 | AU13: =INDEX([1]!SHIPMENTS_MH, ((MATCH($C$9,[1]!APPLIANCES,0)-1)*2)+2, MATCH(AU$10,[1]!SHIPMENTS_MH_YEARS,0)) -> 7097.12098 | AV13: =INDEX([1]!SHIPMENTS_MH, ((MATCH($C$9,[1]!APPLIANCES,0)-1)*2)+2, MATCH(AV$10,[1]!SHIPMENTS_MH_YEARS,0)) -> 7214.583627 | AW13: =INDEX([1]!SHIPMENTS_MH, ((MATCH($C$9,[1]!APPLIANCES,0)-1)*2)+2, MATCH(AW$10,[1]!SHIPMENTS_MH_YEARS,0)) -> 7210.499136 | AX13: =INDEX([1]!SHIPMENTS_MH, ((MATCH($C$9,[1]!APPLIANCES,0)-1)*2)+2, MATCH(AX$10,[1]!SHIPMENTS_MH_YEARS,0)) -> 7082.52208 | AY13: =INDEX([1]!SHIPMENTS_MH, ((MATCH($C$9,[1]!APPLIANCES,0)-1)*2)+2, MATCH(AY$10,[1]!SHIPMENTS_MH_YEARS,0)) -> 6851.946586 | AZ13: =INDEX([1]!SHIPMENTS_MH, ((MATCH($C$9,[1]!APPLIANCES,0)-1)*2)+2, MATCH(AZ$10,[1]!SHIPMENTS_MH_YEARS,0)) -> 6555.97649 | BA13: =INDEX([1]!SHIPMENTS_MH, ((MATCH($C$9,[1]!APPLIANCES,0)-1)*2)+2, MATCH(BA$10,[1]!SHIPMENTS_MH_YEARS,0)) -> 6241.490145 | BB13: =INDEX([1]!SHIPMENTS_MH, ((MATCH($C$9,[1]!APPLIANCES,0)-1)*2)+2, MATCH(BB$10,[1]!SHIPMENTS_MH_YEARS,0)) -> 5957.099759 | BC13: =INDEX([1]!SHIPMENTS_MH, ((MATCH($C$9,[1]!APPLIANCES,0)-1)*2)+2, MATCH(BC$10,[1]!SHIPMENTS_MH_YEARS,0)) -> 6016.670756 | BD13: =INDEX([1]!SHIPMENTS_MH, ((MATCH($C$9,[1]!APPLIANCES,0)-1)*2)+2, MATCH(BD$10,[1]!SHIPMENTS_MH_YEARS,0)) -> 6076.837464 | BE13: =INDEX([1]!SHIPMENTS_MH, ((MATCH($C$9,[1]!APPLIANCES,0)-1)*2)+2, MATCH(BE$10,[1]!SHIPMENTS_MH_YEARS,0)) -> 6137.605839 | BF13: =INDEX([1]!SHIPMENTS_MH, ((MATCH($C$9,[1]!APPLIANCES,0)-1)*2)+2, MATCH(BF$10,[1]!SHIPMENTS_MH_YEARS,0)) -> 6198.981897
C14: Total Model Shipments | D14: (units) | E14: =SUM(E12:E13) -> 37192.69776 | F14: =SUM(F12:F13) -> 35321.30998 | G14: 38333.48139 | H14: 38134.22571 | I14: 36516.84404 | J14: 34956.90545 | K14: 34553.00881 | L14: 35582.49647 | M14: 36406.44563 | N14: 47851.08141 | O14: 45925.84074 | P14: 50705.28436 | Q14: 55240.17204 | R14: 56428.5702 | S14: 54212.12538 | T14: 51645.27753 | U14: 52947.2925 | V14: 54521.47296 | W14: 62976.29229 | X14: 56476.49919 | Y14: 59204.06694 | Z14: 63954.81292 | AA14: 64660.77579 | AB14: 62268.24362 | AC14: 59742.94586 | AD14: 60792.21229 | AE14: 64008.31639 | AF14: 72792.68484 | AG14: 66462.78714 | AH14: 69278.3046 | AI14: 73961.21875 | AJ14: 72401.44495 | AK14: 69664.18346 | AL14: 66697.47806 | AM14: 67338.21999 | AN14: 70244.94565 | AO14: 78849.95436 | AP14: 72487.93425 | AQ14: 75411.57807 | AR14: 80304.41253 | AS14: 79013.64549 | AT14: 76546.36561 | AU14: 73794.59904 | AV14: 74552.80362 | AW14: 77455.44479 | AX14: 85932.47644 | AY14: 79339.88084 | AZ14: 81967.55456 | BA14: 86545.90268 | BB14: 84970.74525 | BC14: 82563.03637 | BD14: 79871.4365 | BE14: 80690.40946 | BF14: 83654.42668
C15: Model Installed Stock | D15: (units) | E15: =INDEX([1]!STOCK_MH, MATCH($C$9,[1]!APPLIANCES,0), MATCH(E$10,[1]!STOCK_MH_YEARS,0)) -> 256877.3677 | F15: =INDEX([1]!STOCK_MH, MATCH($C$9,[1]!APPLIANCES,0), MATCH(F$10,[1]!STOCK_MH_YEARS,0)) -> 264738.094 | G15: =INDEX([1]!STOCK_MH, MATCH($C$9,[1]!APPLIANCES,0), MATCH(G$10,[1]!STOCK_MH_YEARS,0)) -> 275610.9916 | H15: =INDEX([1]!STOCK_MH, MATCH($C$9,[1]!APPLIANCES,0), MATCH(H$10,[1]!STOCK_MH_YEARS,0)) -> 286284.6336 | I15: =INDEX([1]!STOCK_MH, MATCH($C$9,[1]!APPLIANCES,0), MATCH(I$10,[1]!STOCK_MH_YEARS,0)) -> 295340.8939 | J15: =INDEX([1]!STOCK_MH, MATCH($C$9,[1]!APPLIANCES,0), MATCH(J$10,[1]!STOCK_MH_YEARS,0)) -> 302837.2156 | K15: =INDEX([1]!STOCK_MH, MATCH($C$9,[1]!APPLIANCES,0), MATCH(K$10,[1]!STOCK_MH_YEARS,0)) -> 309929.6406 | L15: =INDEX([1]!STOCK_MH, MATCH($C$9,[1]!APPLIANCES,0), MATCH(L$10,[1]!STOCK_MH_YEARS,0)) -> 318051.5534 | M15: =INDEX([1]!STOCK_MH, MATCH($C$9,[1]!APPLIANCES,0), MATCH(M$10,[1]!STOCK_MH_YEARS,0)) -> 326997.4152 | N15: =INDEX([1]!STOCK_MH, MATCH($C$9,[1]!APPLIANCES,0), MATCH(N$10,[1]!STOCK_MH_YEARS,0)) -> 337655.7989 | O15: =INDEX([1]!STOCK_MH, MATCH($C$9,[1]!APPLIANCES,0), MATCH(O$10,[1]!STOCK_MH_YEARS,0)) -> 348260.3297 | P15: =INDEX([1]!STOCK_MH, MATCH($C$9,[1]!APPLIANCES,0), MATCH(P$10,[1]!STOCK_MH_YEARS,0)) -> 360632.1326 | Q15: =INDEX([1]!STOCK_MH, MATCH($C$9,[1]!APPLIANCES,0), MATCH(Q$10,[1]!STOCK_MH_YEARS,0)) -> 377738.0789 | R15: =INDEX([1]!STOCK_MH, MATCH($C$9,[1]!APPLIANCES,0), MATCH(R$10,[1]!STOCK_MH_YEARS,0)) -> 397649.8051 | S15: =INDEX([1]!STOCK_MH, MATCH($C$9,[1]!APPLIANCES,0), MATCH(S$10,[1]!STOCK_MH_YEARS,0)) -> 416905.025 | T15: =INDEX([1]!STOCK_MH, MATCH($C$9,[1]!APPLIANCES,0), MATCH(T$10,[1]!STOCK_MH_YEARS,0)) -> 433997.2938 | U15: =INDEX([1]!STOCK_MH, MATCH($C$9,[1]!APPLIANCES,0), MATCH(U$10,[1]!STOCK_MH_YEARS,0)) -> 451362.0898 | V15: =INDEX([1]!STOCK_MH, MATCH($C$9,[1]!APPLIANCES,0), MATCH(V$10,[1]!STOCK_MH_YEARS,0)) -> 469477.1171 | W15: =INDEX([1]!STOCK_MH, MATCH($C$9,[1]!APPLIANCES,0), MATCH(W$10,[1]!STOCK_MH_YEARS,0)) -> 484602.328 | X15: =INDEX([1]!STOCK_MH, MATCH($C$9,[1]!APPLIANCES,0), MATCH(X$10,[1]!STOCK_MH_YEARS,0)) -> 495152.9864 | Y15: =INDEX([1]!STOCK_MH, MATCH($C$9,[1]!APPLIANCES,0), MATCH(Y$10,[1]!STOCK_MH_YEARS,0)) -> 503651.769 | Z15: =INDEX([1]!STOCK_MH, MATCH($C$9,[1]!APPLIANCES,0), MATCH(Z$10,[1]!STOCK_MH_YEARS,0)) -> 512366.4099 | AA15: =INDEX([1]!STOCK_MH, MATCH($C$9,[1]!APPLIANCES,0), MATCH(AA$10,[1]!STOCK_MH_YEARS,0)) -> 520598.6155 | AB15: =INDEX([1]!STOCK_MH, MATCH($C$9,[1]!APPLIANCES,0), MATCH(AB$10,[1]!STOCK_MH_YEARS,0)) -> 528654.7337 | AC15: =INDEX([1]!STOCK_MH, MATCH($C$9,[1]!APPLIANCES,0), MATCH(AC$10,[1]!STOCK_MH_YEARS,0)) -> 536752.4021 | AD15: =INDEX([1]!STOCK_MH, MATCH($C$9,[1]!APPLIANCES,0), MATCH(AD$10,[1]!STOCK_MH_YEARS,0)) -> 544597.3219 | AE15: =INDEX([1]!STOCK_MH, MATCH($C$9,[1]!APPLIANCES,0), MATCH(AE$10,[1]!STOCK_MH_YEARS,0)) -> 554084.1653 | AF15: =INDEX([1]!STOCK_MH, MATCH($C$9,[1]!APPLIANCES,0), MATCH(AF$10,[1]!STOCK_MH_YEARS,0)) -> 563900.5578 | AG15: =INDEX([1]!STOCK_MH, MATCH($C$9,[1]!APPLIANCES,0), MATCH(AG$10,[1]!STOCK_MH_YEARS,0)) -> 573886.8458 | AH15: =INDEX([1]!STOCK_MH, MATCH($C$9,[1]!APPLIANCES,0), MATCH(AH$10,[1]!STOCK_MH_YEARS,0)) -> 583961.0835 | AI15: =INDEX([1]!STOCK_MH, MATCH($C$9,[1]!APPLIANCES,0), MATCH(AI$10,[1]!STOCK_MH_YEARS,0)) -> 593967.4893 | AJ15: =INDEX([1]!STOCK_MH, MATCH($C$9,[1]!APPLIANCES,0), MATCH(AJ$10,[1]!STOCK_MH_YEARS,0)) -> 601708.1584 | AK15: =INDEX([1]!STOCK_MH, MATCH($C$9,[1]!APPLIANCES,0), MATCH(AK$10,[1]!STOCK_MH_YEARS,0)) -> 609104.0983 | AL15: =INDEX([1]!STOCK_MH, MATCH($C$9,[1]!APPLIANCES,0), MATCH(AL$10,[1]!STOCK_MH_YEARS,0)) -> 616058.6305 | AM15: =INDEX([1]!STOCK_MH, MATCH($C$9,[1]!APPLIANCES,0), MATCH(AM$10,[1]!STOCK_MH_YEARS,0)) -> 622604.6382 | AN15: =INDEX([1]!STOCK_MH, MATCH($C$9,[1]!APPLIANCES,0), MATCH(AN$10,[1]!STOCK_MH_YEARS,0)) -> 628841.2674 | AO15: =INDEX([1]!STOCK_MH, MATCH($C$9,[1]!APPLIANCES,0), MATCH(AO$10,[1]!STOCK_MH_YEARS,0)) -> 634898.537 | AP15: =INDEX([1]!STOCK_MH, MATCH($C$9,[1]!APPLIANCES,0), MATCH(AP$10,[1]!STOCK_MH_YEARS,0)) -> 640923.6841 | AQ15: =INDEX([1]!STOCK_MH, MATCH($C$9,[1]!APPLIANCES,0), MATCH(AQ$10,[1]!STOCK_MH_YEARS,0)) -> 647056.9575 | AR15: =INDEX([1]!STOCK_MH, MATCH($C$9,[1]!APPLIANCES,0), MATCH(AR$10,[1]!STOCK_MH_YEARS,0)) -> 653400.1513 | AS15: =INDEX([1]!STOCK_MH, MATCH($C$9,[1]!APPLIANCES,0), MATCH(AS$10,[1]!STOCK_MH_YEARS,0)) -> 660012.3519 | AT15: =INDEX([1]!STOCK_MH, MATCH($C$9,[1]!APPLIANCES,0), MATCH(AT$10,[1]!STOCK_MH_YEARS,0)) -> 666894.534 | AU15: =INDEX([1]!STOCK_MH, MATCH($C$9,[1]!APPLIANCES,0), MATCH(AU$10,[1]!STOCK_MH_YEARS,0)) -> 673991.655 | AV15: =INDEX([1]!STOCK_MH, MATCH($C$9,[1]!APPLIANCES,0), MATCH(AV$10,[1]!STOCK_MH_YEARS,0)) -> 681206.2386 | AW15: =INDEX([1]!STOCK_MH, MATCH($C$9,[1]!APPLIANCES,0), MATCH(AW$10,[1]!STOCK_MH_YEARS,0)) -> 688416.7378 | AX15: =INDEX([1]!STOCK_MH, MATCH($C$9,[1]!APPLIANCES,0), MATCH(AX$10,[1]!STOCK_MH_YEARS,0)) -> 695499.2598 | AY15: =INDEX([1]!STOCK_MH, MATCH($C$9,[1]!APPLIANCES,0), MATCH(AY$10,[1]!STOCK_MH_YEARS,0)) -> 702351.2064 | AZ15: =INDEX([1]!STOCK_MH, MATCH($C$9,[1]!APPLIANCES,0), MATCH(AZ$10,[1]!STOCK_MH_YEARS,0)) -> 708907.1829 | BA15: =INDEX([1]!STOCK_MH, MATCH($C$9,[1]!APPLIANCES,0), MATCH(BA$10,[1]!STOCK_MH_YEARS,0)) -> 715148.6731 | BB15: =INDEX([1]!STOCK_MH, MATCH($C$9,[1]!APPLIANCES,0), MATCH(BB$10,[1]!STOCK_MH_YEARS,0)) -> 721105.7728 | BC15: =INDEX([1]!STOCK_MH, MATCH($C$9,[1]!APPLIANCES,0), MATCH(BC$10,[1]!STOCK_MH_YEARS,0)) -> 727122.4436 | BD15: =INDEX([1]!STOCK_MH, MATCH($C$9,[1]!APPLIANCES,0), MATCH(BD$10,[1]!STOCK_MH_YEARS,0)) -> 733199.281 | BE15: =INDEX([1]!STOCK_MH, MATCH($C$9,[1]!APPLIANCES,0), MATCH(BE$10,[1]!STOCK_MH_YEARS,0)) -> 739336.8869 | BF15: =INDEX([1]!STOCK_MH, MATCH($C$9,[1]!APPLIANCES,0), MATCH(BF$10,[1]!STOCK_MH_YEARS,0)) -> 745535.8688

Sheet Efficiency Dist - SF
C2: Efficiency Distributions by Product Class - Single Family
C4: =Navigation!$C$15 -> NAVIGATION
C6: COMMENTS
D9: PC1 - Microwave-Only Ovens and Countertop Convection Microwave Ovens
D11: PRE-Case | F11: Static Distribution 1
D12: Efficiency Level | E12: Energy Use kWh/year | F12: 2014 | H12: 1981 | I12: 1982 | J12: 1983 | K12: 1984 | L12: 1985 | M12: 1986 | N12: 1987 | O12: 1988 | P12: 1989 | Q12: 1990 | R12: 1991 | S12: 1992 | T12: 1993 | U12: 1994 | V12: 1995 | W12: 1996 | X12: 1997 | Y12: 1998 | Z12: 1999 | AA12: 2000 | AB12: 2001 | AC12: 2002 | AD12: 2003 | AE12: 2004 | AF12: 2005 | AG12: 2006 | AH12: 2007 | AI12: 2008 | AJ12: 2009 | AK12: 2010 | AL12: 2011 | AM12: 2012 | AN12: 2013 | AO12: 2014 | AP12: 2015 | AQ12: 2016 | AR12: 2017 | AS12: 2018 | AT12: 2019 | AU12: 2020 | AV12: 2021 | AW12: 2022 | AX12: 2023 | AY12: 2024 | AZ12: 2025 | BA12: 2026 | BB12: 2027 | BC12: 2028 | BD12: 2029 | BE12: 2030 | BF12: 2031 | BG12: 2032 | BH12: 2033 | BI12: 2034
D13: EL0 | E13: 34.76 | F13: 0.462 | H13: =$F13 -> 0.462 | I13: 0.462 | J13: 0.462 | K13: 0.462 | L13: 0.462 | M13: 0.462 | N13: 0.462 | O13: 0.462 | P13: 0.462 | Q13: 0.462 | R13: =$F13 -> 0.462 | S13: 0.462 | T13: 0.462 | U13: 0.462 | V13: 0.462 | W13: 0.462 | X13: 0.462 | Y13: 0.462 | Z13: 0.462 | AA13: 0.462 | AB13: 0.462 | AC13: 0.462 | AD13: 0.462 | AE13: 0.462 | AF13: 0.462 | AG13: 0.462 | AH13: 0.462 | AI13: 0.462 | AJ13: 0.462 | AK13: 0.462 | AL13: 0.462 | AM13: 0.462 | AN13: 0.462 | AO13: 0.462 | AP13: 0.462 | AQ13: 0.462 | AR13: 0.462 | AS13: 0.462 | AT13: 0.462 | AU13: 0.462 | AV13: 0.462 | AW13: 0.462 | AX13: 0.462 | AY13: 0.462 | AZ13: 0.462 | BA13: 0.462 | BB13: 0.462 | BC13: 0.462 | BD13: 0.462 | BE13: 0.462 | BF13: 0.462 | BG13: 0.462 | BH13: 0.462 | BI13: 0.462
D14: EL1 | E14: 17.38 | F14: 0.346 | H14: 0.346 | I14: 0.346 | J14: 0.346 | K14: 0.346 | L14: 0.346 | M14: 0.346 | N14: 0.346 | O14: 0.346 | P14: 0.346 | Q14: 0.346 | R14: =$F14 -> 0.346 | S14: 0.346 | T14: 0.346 | U14: 0.346 | V14: 0.346 | W14: 0.346 | X14: 0.346 | Y14: 0.346 | Z14: 0.346 | AA14: 0.346 | AB14: 0.346 | AC14: 0.346 | AD14: 0.346 | AE14: 0.346 | AF14: 0.346 | AG14: 0.346 | AH14: 0.346 | AI14: 0.346 | AJ14: 0.346 | AK14: 0.346 | AL14: 0.346 | AM14: 0.346 | AN14: 0.346 | AO14: 0.346 | AP14: 0.346 | AQ14: 0.346 | AR14: 0.346 | AS14: 0.346 | AT14: 0.346 | AU14: 0.346 | AV14: 0.346 | AW14: 0.346 | AX14: 0.346 | AY14: 0.346 | AZ14: 0.346 | BA14: 0.346 | BB14: 0.346 | BC14: 0.346 | BD14: 0.346 | BE14: 0.346 | BF14: 0.346 | BG14: 0.346 | BH14: 0.346 | BI14: 0.346
D15: EL2 | E15: 13.03 | F15: 0.192 | H15: 0.192 | I15: 0.192 | J15: 0.192 | K15: 0.192 | L15: 0.192 | M15: 0.192 | N15: 0.192 | O15: 0.192 | P15: 0.192 | Q15: 0.192 | R15: 0.192 | S15: 0.192 | T15: 0.192 | U15: 0.192 | V15: 0.192 | W15: 0.192 | X15: 0.192 | Y15: 0.192 | Z15: 0.192 | AA15: 0.192 | AB15: 0.192 | AC15: 0.192 | AD15: 0.192 | AE15: 0.192 | AF15: 0.192 | AG15: 0.192 | AH15: 0.192 | AI15: 0.192 | AJ15: 0.192 | AK15: 0.192 | AL15: 0.192 | AM15: 0.192 | AN15: 0.192 | AO15: 0.192 | AP15: 0.192 | AQ15: 0.192 | AR15: 0.192 | AS15: 0.192 | AT15: 0.192 | AU15: 0.192 | AV15: 0.192 | AW15: 0.192 | AX15: 0.192 | AY15: 0.192 | AZ15: 0.192 | BA15: 0.192 | BB15: 0.192 | BC15: 0.192 | BD15: 0.192 | BE15: 0.192 | BF15: 0.192 | BG15: 0.192 | BH15: 0.192 | BI15: 0.192
D16: EL3 | E16: 8.69 | F16: 0 | H16: 0 | I16: 0 | J16: 0 | K16: 0 | L16: 0 | M16: 0 | N16: 0 | O16: 0 | P16: 0 | Q16: 0 | R16: 0 | S16: 0 | T16: 0 | U16: 0 | V16: 0 | W16: 0 | X16: 0 | Y16: 0 | Z16: 0 | AA16: 0 | AB16: 0 | AC16: 0 | AD16: 0 | AE16: 0 | AF16: 0 | AG16: 0 | AH16: 0 | AI16: 0 | AJ16: 0 | AK16: 0 | AL16: 0 | AM16: 0 | AN16: 0 | AO16: 0 | AP16: 0 | AQ16: 0 | AR16: 0 | AS16: 0 | AT16: 0 | AU16: 0 | AV16: 0 | AW16: 0 | AX16: 0 | AY16: 0 | AZ16: 0 | BA16: 0 | BB16: 0 | BC16: 0 | BD16: 0 | BE16: 0 | BF16: 0 | BG16: 0 | BH16: 0 | BI16: 0
D17: EL4 | E17: 0.17 | F17: 0 | H17: 0 | I17: 0 | J17: 0 | K17: 0 | L17: 0 | M17: 0 | N17: 0 | O17: 0 | P17: 0 | Q17: 0 | R17: 0 | S17: 0 | T17: 0 | U17: 0 | V17: 0 | W17: 0 | X17: 0 | Y17: 0 | Z17: 0 | AA17: 0 | AB17: 0 | AC17: 0 | AD17: 0 | AE17: 0 | AF17: 0 | AG17: 0 | AH17: 0 | AI17: 0 | AJ17: 0 | AK17: 0 | AL17: 0 | AM17: 0 | AN17: 0 | AO17: 0 | AP17: 0 | AQ17: 0 | AR17: 0 | AS17: 0 | AT17: 0 | AU17: 0 | AV17: 0 | AW17: 0 | AX17: 0 | AY17: 0 | AZ17: 0 | BA17: 0 | BB17: 0 | BC17: 0 | BD17: 0 | BE17: 0 | BF17: 0 | BG17: 0 | BH17: 0 | BI17: 0
D18: TOTAL | F18: =SUM(F13:F17) -> 1 | H18: =SUM(H13:H17) -> 1 | I18: 1 | J18: 1 | K18: 1 | L18: 1 | M18: 1 | N18: 1 | O18: 1 | P18: 1 | Q18: 1 | R18: 1 | S18: 1 | T18: 1 | U18: 1 | V18: 1 | W18: 1 | X18: 1 | Y18: 1 | Z18: 1 | AA18: 1 | AB18: 1 | AC18: 1 | AD18: 1 | AE18: 1 | AF18: 1 | AG18: 1 | AH18: 1 | AI18: 1 | AJ18: 1 | AK18: 1 | AL18: 1 | AM18: 1 | AN18: =SUM(AN13:AN17) -> 1 | AO18: 1 | AP18: 1 | AQ18: 1 | AR18: 1 | AS18: 1 | AT18: 1 | AU18: 1 | AV18: 1 | AW18: 1 | AX18: 1 | AY18: 1 | AZ18: 1 | BA18: 1 | BB18: 1 | BC18: 1 | BD18: 1 | BE18: 1 | BF18: 1 | BG18: 1 | BH18: 1 | BI18: 1
D20: POST-Case
D21: Efficiency Level | E21: Energy Use kWh/year | H21: 1981 | I21: 1982 | J21: 1983 | K21: 1984 | L21: 1985 | M21: 1986 | N21: 1987 | O21: 1988 | P21: 1989 | Q21: 1990 | R21: 1991 | S21: 1992 | T21: 1993 | U21: 1994 | V21: 1995 | W21: 1996 | X21: 1997 | Y21: 1998 | Z21: 1999 | AA21: 2000 | AB21: 2001 | AC21: 2002 | AD21: 2003 | AE21: 2004 | AF21: 2005 | AG21: 2006 | AH21: 2007 | AI21: 2008 | AJ21: 2009 | AK21: 2010 | AL21: 2011 | AM21: 2012 | AN21: 2013 | AO21: 2014 | AP21: 2015 | AQ21: 2016 | AR21: 2017 | AS21: 2018 | AT21: 2019 | AU21: 2020 | AV21: 2021 | AW21: 2022 | AX21: 2023 | AY21: 2024 | AZ21: 2025 | BA21: 2026 | BB21: 2027 | BC21: 2028 | BD21: 2029 | BE21: 2030 | BF21: 2031 | BG21: 2032 | BH21: 2033 | BI21: 2034
D22: EL0 | E22: 34.76 | H22: =H13 -> 0.462 | I22: 0.462 | J22: 0.462 | K22: 0.462 | L22: 0.462 | M22: 0.462 | N22: 0.462 | O22: 0.462 | P22: 0.462 | Q22: 0.462 | R22: 0.462 | S22: 0.462 | T22: 0.462 | U22: 0.462 | V22: 0.462 | W22: 0.462 | X22: 0.462 | Y22: 0.462 | Z22: 0.462 | AA22: 0.462 | AB22: 0.462 | AC22: 0.462 | AD22: 0.462 | AE22: 0.462 | AF22: 0.462 | AG22: 0.462 | AH22: 0.462 | AI22: 0.462 | AJ22: 0.462 | AK22: 0.462 | AL22: 0.462 | AM22: 0.462 | AN22: 0.462 | AO22: 0.462 | AP22: 0.462 | AQ22: 0 | AR22: 0 | AS22: 0 | AT22: 0 | AU22: 0 | AV22: 0 | AW22: 0 | AX22: 0 | AY22: 0 | AZ22: 0 | BA22: 0 | BB22: 0 | BC22: 0 | BD22: 0 | BE22: 0 | BF22: 0 | BG22: 0 | BH22: 0 | BI22: 0
D23: EL1 | E23: 17.38 | H23: =H14 -> 0.346 | I23: 0.346 | J23: 0.346 | K23: 0.346 | L23: 0.346 | M23: 0.346 | N23: 0.346 | O23: 0.346 | P23: 0.346 | Q23: 0.346 | R23: 0.346 | S23: 0.346 | T23: 0.346 | U23: 0.346 | V23: 0.346 | W23: 0.346 | X23: 0.346 | Y23: 0.346 | Z23: 0.346 | AA23: 0.346 | AB23: 0.346 | AC23: 0.346 | AD23: 0.346 | AE23: 0.346 | AF23: 0.346 | AG23: 0.346 | AH23: 0.346 | AI23: 0.346 | AJ23: 0.346 | AK23: 0.346 | AL23: 0.346 | AM23: 0.346 | AN23: 0.346 | AO23: 0.346 | AP23: 0.346 | AQ23: 0 | AR23: 0 | AS23: 0 | AT23: 0 | AU23: 0 | AV23: 0 | AW23: 0 | AX23: 0 | AY23: 0 | AZ23: 0 | BA23: 0 | BB23: 0 | BC23: 0 | BD23: 0 | BE23: 0 | BF23: 0 | BG23: 0 | BH23: 0 | BI23: 0
D24: EL2 | E24: 13.03 | H24: =H15 -> 0.192 | I24: 0.192 | J24: 0.192 | K24: 0.192 | L24: 0.192 | M24: 0.192 | N24: 0.192 | O24: 0.192 | P24: 0.192 | Q24: 0.192 | R24: 0.192 | S24: 0.192 | T24: 0.192 | U24: 0.192 | V24: 0.192 | W24: 0.192 | X24: 0.192 | Y24: 0.192 | Z24: 0.192 | AA24: 0.192 | AB24: 0.192 | AC24: 0.192 | AD24: 0.192 | AE24: 0.192 | AF24: 0.192 | AG24: 0.192 | AH24: 0.192 | AI24: 0.192 | AJ24: 0.192 | AK24: 0.192 | AL24: 0.192 | AM24: 0.192 | AN24: 0.192 | AO24: 0.192 | AP24: 0.192 | AQ24: 0 | AR24: 0 | AS24: 0 | AT24: 0 | AU24: 0 | AV24: 0 | AW24: 0 | AX24: 0 | AY24: 0 | AZ24: 0 | BA24: 0 | BB24: 0 | BC24: 0 | BD24: 0 | BE24: 0 | BF24: 0 | BG24: 0 | BH24: 0 | BI24: 0
D25: EL3 | E25: 8.69 | H25: =H16 -> 0 | I25: 0 | J25: 0 | K25: 0 | L25: 0 | M25: 0 | N25: 0 | O25: 0 | P25: 0 | Q25: 0 | R25: 0 | S25: 0 | T25: 0 | U25: 0 | V25: 0 | W25: 0 | X25: 0 | Y25: 0 | Z25: 0 | AA25: 0 | AB25: 0 | AC25: 0 | AD25: 0 | AE25: 0 | AF25: 0 | AG25: 0 | AH25: 0 | AI25: 0 | AJ25: 0 | AK25: 0 | AL25: 0 | AM25: 0 | AN25: 0 | AO25: 0 | AP25: 0 | AQ25: =SUM(AQ13:AQ16) -> 1 | AR25: 1 | AS25: 1 | AT25: 1 | AU25: 1 | AV25: 1 | AW25: 1 | AX25: 1 | AY25: 1 | AZ25: 1 | BA25: 1 | BB25: 1 | BC25: 1 | BD25: 1 | BE25: 1 | BF25: 1 | BG25: 1 | BH25: 1 | BI25: 1
D26: EL4 | E26: 0.17 | H26: =H17 -> 0 | I26: 0 | J26: 0 | K26: 0 | L26: 0 | M26: 0 | N26: 0 | O26: 0 | P26: 0 | Q26: 0 | R26: 0 | S26: 0 | T26: 0 | U26: 0 | V26: 0 | W26: 0 | X26: 0 | Y26: 0 | Z26: 0 | AA26: 0 | AB26: 0 | AC26: 0 | AD26: 0 | AE26: 0 | AF26: 0 | AG26: 0 | AH26: 0 | AI26: 0 | AJ26: 0 | AK26: 0 | AL26: 0 | AM26: 0 | AN26: 0 | AO26: 0 | AP26: 0 | AQ26: =AQ17 -> 0 | AR26: 0 | AS26: 0 | AT26: 0 | AU26: 0 | AV26: 0 | AW26: 0 | AX26: 0 | AY26: 0 | AZ26: 0 | BA26: 0 | BB26: 0 | BC26: 0 | BD26: 0 | BE26: 0 | BF26: 0 | BG26: 0 | BH26: 0 | BI26: 0
D27: TOTAL | H27: =SUM(H22:H26) -> 1 | I27: 1 | J27: 1 | K27: 1 | L27: 1 | M27: 1 | N27: 1 | O27: 1 | P27: 1 | Q27: 1 | R27: 1 | S27: 1 | T27: 1 | U27: 1 | V27: 1 | W27: 1 | X27: 1 | Y27: 1 | Z27: 1 | AA27: 1 | AB27: 1 | AC27: 1 | AD27: 1 | AE27: 1 | AF27: 1 | AG27: 1 | AH27: 1 | AI27: 1 | AJ27: 1 | AK27: 1 | AL27: 1 | AM27: 1 | AN27: =SUM(AN22:AN26) -> 1 | AO27: 1 | AP27: 1 | AQ27: 1 | AR27: 1 | AS27: 1 | AT27: 1 | AU27: 1 | AV27: 1 | AW27: 1 | AX27: 1 | AY27: 1 | AZ27: 1 | BA27: 1 | BB27: 1 | BC27: 1 | BD27: 1 | BE27: 1 | BF27: 1 | BG27: 1 | BH27: 1 | BI27: 1
D29: Sources | E29: 2013 DOE Final Rule Technical Support Document Chapter 8: Life-Cycle Cost and Paybacck Period Table 8.2.16 Microwave-Only and Countertop Convection Microwave Ovens: Base-Case Market Shares

Sheet Efficiency Dist - MF
C2: Efficiency Distributions by Product Class - Multi-Family
C4: =Navigation!$C$15 -> NAVIGATION
C6: COMMENTS
D9: PC1 - Microwave-Only Ovens and Countertop Convection Microwave Ovens
D11: PRE-Case | F11: Static Distribution 1
D12: Efficiency Level | E12: Energy Use kWh/year | F12: 2014 | H12: 1981 | I12: 1982 | J12: 1983 | K12: 1984 | L12: 1985 | M12: 1986 | N12: 1987 | O12: 1988 | P12: 1989 | Q12: 1990 | R12: 1991 | S12: 1992 | T12: 1993 | U12: 1994 | V12: 1995 | W12: 1996 | X12: 1997 | Y12: 1998 | Z12: 1999 | AA12: 2000 | AB12: 2001 | AC12: 2002 | AD12: 2003 | AE12: 2004 | AF12: 2005 | AG12: 2006 | AH12: 2007 | AI12: 2008 | AJ12: 2009 | AK12: 2010 | AL12: 2011 | AM12: 2012 | AN12: 2013 | AO12: 2014 | AP12: 2015 | AQ12: 2016 | AR12: 2017 | AS12: 2018 | AT12: 2019 | AU12: 2020 | AV12: 2021 | AW12: 2022 | AX12: 2023 | AY12: 2024 | AZ12: 2025 | BA12: 2026 | BB12: 2027 | BC12: 2028 | BD12: 2029 | BE12: 2030 | BF12: 2031 | BG12: 2032 | BH12: 2033 | BI12: 2034
D13: EL0 | E13: 34.76 | F13: 0.462 | H13: =$F13 -> 0.462 | I13: 0.462 | J13: 0.462 | K13: 0.462 | L13: 0.462 | M13: 0.462 | N13: 0.462 | O13: 0.462 | P13: 0.462 | Q13: 0.462 | R13: 0.462 | S13: 0.462 | T13: 0.462 | U13: 0.462 | V13: 0.462 | W13: 0.462 | X13: =$F13 -> 0.462 | Y13: 0.462 | Z13: 0.462 | AA13: 0.462 | AB13: 0.462 | AC13: 0.462 | AD13: 0.462 | AE13: 0.462 | AF13: 0.462 | AG13: 0.462 | AH13: 0.462 | AI13: 0.462 | AJ13: 0.462 | AK13: 0.462 | AL13: 0.462 | AM13: 0.462 | AN13: 0.462 | AO13: 0.462 | AP13: 0.462 | AQ13: 0.462 | AR13: 0.462 | AS13: 0.462 | AT13: 0.462 | AU13: 0.462 | AV13: 0.462 | AW13: 0.462 | AX13: 0.462 | AY13: 0.462 | AZ13: 0.462 | BA13: 0.462 | BB13: 0.462 | BC13: 0.462 | BD13: 0.462 | BE13: 0.462 | BF13: 0.462 | BG13: 0.462 | BH13: 0.462 | BI13: 0.462
D14: EL1 | E14: 17.38 | F14: 0.346 | H14: 0.346 | I14: 0.346 | J14: 0.346 | K14: 0.346 | L14: 0.346 | M14: 0.346 | N14: 0.346 | O14: 0.346 | P14: 0.346 | Q14: 0.346 | R14: 0.346 | S14: 0.346 | T14: 0.346 | U14: 0.346 | V14: 0.346 | W14: 0.346 | X14: 0.346 | Y14: 0.346 | Z14: 0.346 | AA14: 0.346 | AB14: 0.346 | AC14: 0.346 | AD14: 0.346 | AE14: 0.346 | AF14: 0.346 | AG14: 0.346 | AH14: 0.346 | AI14: 0.346 | AJ14: 0.346 | AK14: 0.346 | AL14: 0.346 | AM14: 0.346 | AN14: 0.346 | AO14: 0.346 | AP14: 0.346 | AQ14: 0.346 | AR14: 0.346 | AS14: 0.346 | AT14: 0.346 | AU14: 0.346 | AV14: 0.346 | AW14: 0.346 | AX14: 0.346 | AY14: 0.346 | AZ14: 0.346 | BA14: 0.346 | BB14: 0.346 | BC14: 0.346 | BD14: 0.346 | BE14: 0.346 | BF14: 0.346 | BG14: 0.346 | BH14: 0.346 | BI14: 0.346
D15: EL2 | E15: 13.03 | F15: 0.192 | H15: 0.192 | I15: 0.192 | J15: 0.192 | K15: 0.192 | L15: 0.192 | M15: 0.192 | N15: 0.192 | O15: 0.192 | P15: 0.192 | Q15: 0.192 | R15: 0.192 | S15: 0.192 | T15: 0.192 | U15: 0.192 | V15: 0.192 | W15: 0.192 | X15: 0.192 | Y15: 0.192 | Z15: 0.192 | AA15: 0.192 | AB15: 0.192 | AC15: 0.192 | AD15: 0.192 | AE15: 0.192 | AF15: 0.192 | AG15: 0.192 | AH15: 0.192 | AI15: 0.192 | AJ15: 0.192 | AK15: 0.192 | AL15: 0.192 | AM15: 0.192 | AN15: 0.192 | AO15: 0.192 | AP15: 0.192 | AQ15: 0.192 | AR15: 0.192 | AS15: 0.192 | AT15: 0.192 | AU15: 0.192 | AV15: 0.192 | AW15: 0.192 | AX15: 0.192 | AY15: 0.192 | AZ15: 0.192 | BA15: 0.192 | BB15: 0.192 | BC15: 0.192 | BD15: 0.192 | BE15: 0.192 | BF15: 0.192 | BG15: 0.192 | BH15: 0.192 | BI15: 0.192
D16: EL3 | E16: 8.69 | F16: 0 | H16: 0 | I16: 0 | J16: 0 | K16: 0 | L16: 0 | M16: 0 | N16: 0 | O16: 0 | P16: 0 | Q16: 0 | R16: 0 | S16: 0 | T16: 0 | U16: 0 | V16: 0 | W16: 0 | X16: 0 | Y16: 0 | Z16: 0 | AA16: 0 | AB16: 0 | AC16: 0 | AD16: 0 | AE16: 0 | AF16: 0 | AG16: 0 | AH16: 0 | AI16: 0 | AJ16: 0 | AK16: 0 | AL16: 0 | AM16: 0 | AN16: 0 | AO16: 0 | AP16: 0 | AQ16: 0 | AR16: 0 | AS16: 0 | AT16: 0 | AU16: 0 | AV16: 0 | AW16: 0 | AX16: 0 | AY16: 0 | AZ16: 0 | BA16: 0 | BB16: 0 | BC16: 0 | BD16: 0 | BE16: 0 | BF16: 0 | BG16: 0 | BH16: 0 | BI16: 0
D17: EL4 | E17: 0.17 | F17: 0 | H17: 0 | I17: 0 | J17: 0 | K17: 0 | L17: 0 | M17: 0 | N17: 0 | O17: 0 | P17: 0 | Q17: 0 | R17: 0 | S17: 0 | T17: 0 | U17: 0 | V17: 0 | W17: 0 | X17: 0 | Y17: 0 | Z17: 0 | AA17: 0 | AB17: 0 | AC17: 0 | AD17: 0 | AE17: 0 | AF17: 0 | AG17: 0 | AH17: 0 | AI17: 0 | AJ17: 0 | AK17: 0 | AL17: 0 | AM17: 0 | AN17: 0 | AO17: 0 | AP17: 0 | AQ17: 0 | AR17: 0 | AS17: 0 | AT17: 0 | AU17: 0 | AV17: 0 | AW17: 0 | AX17: 0 | AY17: 0 | AZ17: 0 | BA17: 0 | BB17: 0 | BC17: 0 | BD17: 0 | BE17: 0 | BF17: 0 | BG17: 0 | BH17: 0 | BI17: 0
D18: TOTAL | F18: =SUM(F13:F17) -> 1 | H18: =SUM(H13:H17) -> 1 | I18: 1 | J18: 1 | K18: 1 | L18: 1 | M18: 1 | N18: 1 | O18: 1 | P18: 1 | Q18: 1 | R18: 1 | S18: 1 | T18: 1 | U18: 1 | V18: 1 | W18: 1 | X18: 1 | Y18: 1 | Z18: 1 | AA18: 1 | AB18: 1 | AC18: 1 | AD18: 1 | AE18: 1 | AF18: 1 | AG18: 1 | AH18: 1 | AI18: 1 | AJ18: 1 | AK18: 1 | AL18: 1 | AM18: 1 | AN18: =SUM(AN13:AN17) -> 1 | AO18: 1 | AP18: 1 | AQ18: 1 | AR18: 1 | AS18: 1 | AT18: 1 | AU18: 1 | AV18: 1 | AW18: 1 | AX18: 1 | AY18: 1 | AZ18: 1 | BA18: 1 | BB18: 1 | BC18: 1 | BD18: 1 | BE18: 1 | BF18: 1 | BG18: 1 | BH18: 1 | BI18: 1
D20: POST-Case
D21: Efficiency Level | E21: Energy Use kWh/year | H21: 1981 | I21: 1982 | J21: 1983 | K21: 1984 | L21: 1985 | M21: 1986 | N21: 1987 | O21: 1988 | P21: 1989 | Q21: 1990 | R21: 1991 | S21: 1992 | T21: 1993 | U21: 1994 | V21: 1995 | W21: 1996 | X21: 1997 | Y21: 1998 | Z21: 1999 | AA21: 2000 | AB21: 2001 | AC21: 2002 | AD21: 2003 | AE21: 2004 | AF21: 2005 | AG21: 2006 | AH21: 2007 | AI21: 2008 | AJ21: 2009 | AK21: 2010 | AL21: 2011 | AM21: 2012 | AN21: 2013 | AO21: 2014 | AP21: 2015 | AQ21: 2016 | AR21: 2017 | AS21: 2018 | AT21: 2019 | AU21: 2020 | AV21: 2021 | AW21: 2022 | AX21: 2023 | AY21: 2024 | AZ21: 2025 | BA21: 2026 | BB21: 2027 | BC21: 2028 | BD21: 2029 | BE21: 2030 | BF21: 2031 | BG21: 2032 | BH21: 2033 | BI21: 2034
D22: EL0 | E22: 34.76 | H22: =H13 -> 0.462 | I22: 0.462 | J22: 0.462 | K22: 0.462 | L22: 0.462 | M22: 0.462 | N22: 0.462 | O22: 0.462 | P22: 0.462 | Q22: 0.462 | R22: 0.462 | S22: 0.462 | T22: 0.462 | U22: 0.462 | V22: 0.462 | W22: 0.462 | X22: 0.462 | Y22: 0.462 | Z22: 0.462 | AA22: 0.462 | AB22: 0.462 | AC22: 0.462 | AD22: 0.462 | AE22: 0.462 | AF22: 0.462 | AG22: 0.462 | AH22: 0.462 | AI22: 0.462 | AJ22: 0.462 | AK22: 0.462 | AL22: 0.462 | AM22: 0.462 | AN22: 0.462 | AO22: 0.462 | AP22: 0.462 | AQ22: 0 | AR22: 0 | AS22: 0 | AT22: 0 | AU22: 0 | AV22: 0 | AW22: 0 | AX22: 0 | AY22: 0 | AZ22: 0 | BA22: 0 | BB22: 0 | BC22: 0 | BD22: 0 | BE22: 0 | BF22: 0 | BG22: 0 | BH22: 0 | BI22: 0
D23: EL1 | E23: 17.38 | H23: =H14 -> 0.346 | I23: 0.346 | J23: 0.346 | K23: 0.346 | L23: 0.346 | M23: 0.346 | N23: 0.346 | O23: 0.346 | P23: 0.346 | Q23: 0.346 | R23: 0.346 | S23: 0.346 | T23: 0.346 | U23: 0.346 | V23: 0.346 | W23: 0.346 | X23: 0.346 | Y23: 0.346 | Z23: 0.346 | AA23: 0.346 | AB23: 0.346 | AC23: 0.346 | AD23: 0.346 | AE23: 0.346 | AF23: 0.346 | AG23: 0.346 | AH23: 0.346 | AI23: 0.346 | AJ23: 0.346 | AK23: 0.346 | AL23: 0.346 | AM23: 0.346 | AN23: 0.346 | AO23: 0.346 | AP23: 0.346 | AQ23: 0 | AR23: 0 | AS23: 0 | AT23: 0 | AU23: 0 | AV23: 0 | AW23: 0 | AX23: 0 | AY23: 0 | AZ23: 0 | BA23: 0 | BB23: 0 | BC23: 0 | BD23: 0 | BE23: 0 | BF23: 0 | BG23: 0 | BH23: 0 | BI23: 0
D24: EL2 | E24: 13.03 | H24: =H15 -> 0.192 | I24: 0.192 | J24: 0.192 | K24: 0.192 | L24: 0.192 | M24: 0.192 | N24: 0.192 | O24: 0.192 | P24: 0.192 | Q24: 0.192 | R24: 0.192 | S24: 0.192 | T24: 0.192 | U24: 0.192 | V24: 0.192 | W24: 0.192 | X24: 0.192 | Y24: 0.192 | Z24: 0.192 | AA24: 0.192 | AB24: 0.192 | AC24: 0.192 | AD24: 0.192 | AE24: 0.192 | AF24: 0.192 | AG24: 0.192 | AH24: 0.192 | AI24: 0.192 | AJ24: 0.192 | AK24: 0.192 | AL24: 0.192 | AM24: 0.192 | AN24: 0.192 | AO24: 0.192 | AP24: 0.192 | AQ24: 0 | AR24: 0 | AS24: 0 | AT24: 0 | AU24: 0 | AV24: 0 | AW24: 0 | AX24: 0 | AY24: 0 | AZ24: 0 | BA24: 0 | BB24: 0 | BC24: 0 | BD24: 0 | BE24: 0 | BF24: 0 | BG24: 0 | BH24: 0 | BI24: 0
D25: EL3 | E25: 8.69 | H25: =H16 -> 0 | I25: 0 | J25: 0 | K25: 0 | L25: 0 | M25: 0 | N25: 0 | O25: 0 | P25: 0 | Q25: 0 | R25: 0 | S25: 0 | T25: 0 | U25: 0 | V25: 0 | W25: 0 | X25: 0 | Y25: 0 | Z25: 0 | AA25: 0 | AB25: 0 | AC25: 0 | AD25: 0 | AE25: 0 | AF25: 0 | AG25: 0 | AH25: 0 | AI25: 0 | AJ25: 0 | AK25: 0 | AL25: 0 | AM25: 0 | AN25: 0 | AO25: 0 | AP25: 0 | AQ25: =SUM(AQ13:AQ16) -> 1 | AR25: 1 | AS25: 1 | AT25: 1 | AU25: 1 | AV25: 1 | AW25: 1 | AX25: 1 | AY25: 1 | AZ25: 1 | BA25: 1 | BB25: 1 | BC25: 1 | BD25: 1 | BE25: 1 | BF25: 1 | BG25: 1 | BH25: 1 | BI25: 1
D26: EL4 | E26: 0.17 | H26: =H17 -> 0 | I26: 0 | J26: 0 | K26: 0 | L26: 0 | M26: 0 | N26: 0 | O26: 0 | P26: 0 | Q26: 0 | R26: 0 | S26: 0 | T26: 0 | U26: 0 | V26: 0 | W26: 0 | X26: 0 | Y26: 0 | Z26: 0 | AA26: 0 | AB26: 0 | AC26: 0 | AD26: 0 | AE26: 0 | AF26: 0 | AG26: 0 | AH26: 0 | AI26: 0 | AJ26: 0 | AK26: 0 | AL26: 0 | AM26: 0 | AN26: 0 | AO26: 0 | AP26: 0 | AQ26: =AQ17 -> 0 | AR26: 0 | AS26: 0 | AT26: 0 | AU26: 0 | AV26: 0 | AW26: 0 | AX26: 0 | AY26: 0 | AZ26: 0 | BA26: 0 | BB26: 0 | BC26: 0 | BD26: 0 | BE26: 0 | BF26: 0 | BG26: 0 | BH26: 0 | BI26: 0
D27: TOTAL | H27: =SUM(H22:H26) -> 1 | I27: 1 | J27: 1 | K27: 1 | L27: 1 | M27: 1 | N27: 1 | O27: 1 | P27: 1 | Q27: 1 | R27: 1 | S27: 1 | T27: 1 | U27: 1 | V27: 1 | W27: 1 | X27: 1 | Y27: 1 | Z27: 1 | AA27: 1 | AB27: 1 | AC27: 1 | AD27: 1 | AE27: 1 | AF27: 1 | AG27: 1 | AH27: 1 | AI27: 1 | AJ27: 1 | AK27: 1 | AL27: 1 | AM27: 1 | AN27: =SUM(AN22:AN26) -> 1 | AO27: 1 | AP27: 1 | AQ27: 1 | AR27: 1 | AS27: 1 | AT27: 1 | AU27: 1 | AV27: 1 | AW27: 1 | AX27: 1 | AY27: 1 | AZ27: 1 | BA27: 1 | BB27: 1 | BC27: 1 | BD27: 1 | BE27: 1 | BF27: 1 | BG27: 1 | BH27: 1 | BI27: 1
D29: Sources | E29: 2013 DOE Final Rule Technical Support Document Chapter 8: Life-Cycle Cost and Paybacck Period Table 8.2.16 Microwave-Only and Countertop Convection Microwave Ovens: Base-Case Market Shares

Sheet Efficiency Dist - MH
C2: Efficiency Distributions by Product Class - Multi-Family
C4: =Navigation!$C$15 -> NAVIGATION
C6: COMMENTS
D9: PC1 - Microwave-Only Ovens and Countertop Convection Microwave Ovens
D11: PRE-Case | F11: Static Distribution 1
D12: Efficiency Level | E12: Energy Use kWh/year | F12: 2014 | H12: 1981 | I12: 1982 | J12: 1983 | K12: 1984 | L12: 1985 | M12: 1986 | N12: 1987 | O12: 1988 | P12: 1989 | Q12: 1990 | R12: 1991 | S12: 1992 | T12: 1993 | U12: 1994 | V12: 1995 | W12: 1996 | X12: 1997 | Y12: 1998 | Z12: 1999 | AA12: 2000 | AB12: 2001 | AC12: 2002 | AD12: 2003 | AE12: 2004 | AF12: 2005 | AG12: 2006 | AH12: 2007 | AI12: 2008 | AJ12: 2009 | AK12: 2010 | AL12: 2011 | AM12: 2012 | AN12: 2013 | AO12: 2014 | AP12: 2015 | AQ12: 2016 | AR12: 2017 | AS12: 2018 | AT12: 2019 | AU12: 2020 | AV12: 2021 | AW12: 2022 | AX12: 2023 | AY12: 2024 | AZ12: 2025 | BA12: 2026 | BB12: 2027 | BC12: 2028 | BD12: 2029 | BE12: 2030 | BF12: 2031 | BG12: 2032 | BH12: 2033 | BI12: 2034
D13: EL0 | E13: 34.76 | F13: 0.462 | H13: =$F13 -> 0.462 | I13: 0.462 | J13: 0.462 | K13: 0.462 | L13: 0.462 | M13: 0.462 | N13: 0.462 | O13: 0.462 | P13: 0.462 | Q13: 0.462 | R13: 0.462 | S13: 0.462 | T13: 0.462 | U13: 0.462 | V13: 0.462 | W13: 0.462 | X13: =$F13 -> 0.462 | Y13: 0.462 | Z13: 0.462 | AA13: 0.462 | AB13: 0.462 | AC13: 0.462 | AD13: 0.462 | AE13: 0.462 | AF13: 0.462 | AG13: 0.462 | AH13: 0.462 | AI13: 0.462 | AJ13: 0.462 | AK13: 0.462 | AL13: 0.462 | AM13: 0.462 | AN13: 0.462 | AO13: 0.462 | AP13: 0.462 | AQ13: 0.462 | AR13: 0.462 | AS13: 0.462 | AT13: 0.462 | AU13: 0.462 | AV13: 0.462 | AW13: 0.462 | AX13: 0.462 | AY13: 0.462 | AZ13: 0.462 | BA13: 0.462 | BB13: 0.462 | BC13: 0.462 | BD13: 0.462 | BE13: 0.462 | BF13: 0.462 | BG13: 0.462 | BH13: 0.462 | BI13: 0.462
D14: EL1 | E14: 17.38 | F14: 0.346 | H14: 0.346 | I14: 0.346 | J14: 0.346 | K14: 0.346 | L14: 0.346 | M14: 0.346 | N14: 0.346 | O14: 0.346 | P14: 0.346 | Q14: 0.346 | R14: 0.346 | S14: 0.346 | T14: 0.346 | U14: 0.346 | V14: 0.346 | W14: 0.346 | X14: 0.346 | Y14: 0.346 | Z14: 0.346 | AA14: 0.346 | AB14: 0.346 | AC14: 0.346 | AD14: 0.346 | AE14: 0.346 | AF14: 0.346 | AG14: 0.346 | AH14: 0.346 | AI14: 0.346 | AJ14: 0.346 | AK14: 0.346 | AL14: 0.346 | AM14: 0.346 | AN14: 0.346 | AO14: 0.346 | AP14: 0.346 | AQ14: 0.346 | AR14: 0.346 | AS14: 0.346 | AT14: 0.346 | AU14: 0.346 | AV14: 0.346 | AW14: 0.346 | AX14: 0.346 | AY14: 0.346 | AZ14: 0.346 | BA14: 0.346 | BB14: 0.346 | BC14: 0.346 | BD14: 0.346 | BE14: 0.346 | BF14: 0.346 | BG14: 0.346 | BH14: 0.346 | BI14: 0.346
D15: EL2 | E15: 13.03 | F15: 0.192 | H15: 0.192 | I15: 0.192 | J15: 0.192 | K15: 0.192 | L15: 0.192 | M15: 0.192 | N15: 0.192 | O15: 0.192 | P15: 0.192 | Q15: 0.192 | R15: 0.192 | S15: 0.192 | T15: 0.192 | U15: 0.192 | V15: 0.192 | W15: 0.192 | X15: 0.192 | Y15: 0.192 | Z15: 0.192 | AA15: 0.192 | AB15: 0.192 | AC15: 0.192 | AD15: 0.192 | AE15: 0.192 | AF15: 0.192 | AG15: 0.192 | AH15: 0.192 | AI15: 0.192 | AJ15: 0.192 | AK15: 0.192 | AL15: 0.192 | AM15: 0.192 | AN15: 0.192 | AO15: 0.192 | AP15: 0.192 | AQ15: 0.192 | AR15: 0.192 | AS15: 0.192 | AT15: 0.192 | AU15: 0.192 | AV15: 0.192 | AW15: 0.192 | AX15: 0.192 | AY15: 0.192 | AZ15: 0.192 | BA15: 0.192 | BB15: 0.192 | BC15: 0.192 | BD15: 0.192 | BE15: 0.192 | BF15: 0.192 | BG15: 0.192 | BH15: 0.192 | BI15: 0.192
D16: EL3 | E16: 8.69 | F16: 0 | H16: 0 | I16: 0 | J16: 0 | K16: 0 | L16: 0 | M16: 0 | N16: 0 | O16: 0 | P16: 0 | Q16: 0 | R16: 0 | S16: 0 | T16: 0 | U16: 0 | V16: 0 | W16: 0 | X16: 0 | Y16: 0 | Z16: 0 | AA16: 0 | AB16: 0 | AC16: 0 | AD16: 0 | AE16: 0 | AF16: 0 | AG16: 0 | AH16: 0 | AI16: 0 | AJ16: 0 | AK16: 0 | AL16: 0 | AM16: 0 | AN16: 0 | AO16: 0 | AP16: 0 | AQ16: 0 | AR16: 0 | AS16: 0 | AT16: 0 | AU16: 0 | AV16: 0 | AW16: 0 | AX16: 0 | AY16: 0 | AZ16: 0 | BA16: 0 | BB16: 0 | BC16: 0 | BD16: 0 | BE16: 0 | BF16: 0 | BG16: 0 | BH16: 0 | BI16: 0
D17: EL4 | E17: 0.17 | F17: 0 | H17: 0 | I17: 0 | J17: 0 | K17: 0 | L17: 0 | M17: 0 | N17: 0 | O17: 0 | P17: 0 | Q17: 0 | R17: 0 | S17: 0 | T17: 0 | U17: 0 | V17: 0 | W17: 0 | X17: 0 | Y17: 0 | Z17: 0 | AA17: 0 | AB17: 0 | AC17: 0 | AD17: 0 | AE17: 0 | AF17: 0 | AG17: 0 | AH17: 0 | AI17: 0 | AJ17: 0 | AK17: 0 | AL17: 0 | AM17: 0 | AN17: 0 | AO17: 0 | AP17: 0 | AQ17: 0 | AR17: 0 | AS17: 0 | AT17: 0 | AU17: 0 | AV17: 0 | AW17: 0 | AX17: 0 | AY17: 0 | AZ17: 0 | BA17: 0 | BB17: 0 | BC17: 0 | BD17: 0 | BE17: 0 | BF17: 0 | BG17: 0 | BH17: 0 | BI17: 0
D18: TOTAL | F18: =SUM(F13:F17) -> 1 | H18: =SUM(H13:H17) -> 1 | I18: 1 | J18: 1 | K18: 1 | L18: 1 | M18: 1 | N18: 1 | O18: 1 | P18: 1 | Q18: 1 | R18: 1 | S18: 1 | T18: 1 | U18: 1 | V18: 1 | W18: 1 | X18: 1 | Y18: 1 | Z18: 1 | AA18: 1 | AB18: 1 | AC18: 1 | AD18: 1 | AE18: 1 | AF18: 1 | AG18: 1 | AH18: 1 | AI18: 1 | AJ18: 1 | AK18: 1 | AL18: 1 | AM18: 1 | AN18: =SUM(AN13:AN17) -> 1 | AO18: 1 | AP18: 1 | AQ18: 1 | AR18: 1 | AS18: 1 | AT18: 1 | AU18: 1 | AV18: 1 | AW18: 1 | AX18: 1 | AY18: 1 | AZ18: 1 | BA18: 1 | BB18: 1 | BC18: 1 | BD18: 1 | BE18: 1 | BF18: 1 | BG18: 1 | BH18: 1 | BI18: 1
D20: POST-Case
D21: Efficiency Level | E21: Energy Use kWh/year | H21: 1981 | I21: 1982 | J21: 1983 | K21: 1984 | L21: 1985 | M21: 1986 | N21: 1987 | O21: 1988 | P21: 1989 | Q21: 1990 | R21: 1991 | S21: 1992 | T21: 1993 | U21: 1994 | V21: 1995 | W21: 1996 | X21: 1997 | Y21: 1998 | Z21: 1999 | AA21: 2000 | AB21: 2001 | AC21: 2002 | AD21: 2003 | AE21: 2004 | AF21: 2005 | AG21: 2006 | AH21: 2007 | AI21: 2008 | AJ21: 2009 | AK21: 2010 | AL21: 2011 | AM21: 2012 | AN21: 2013 | AO21: 2014 | AP21: 2015 | AQ21: 2016 | AR21: 2017 | AS21: 2018 | AT21: 2019 | AU21: 2020 | AV21: 2021 | AW21: 2022 | AX21: 2023 | AY21: 2024 | AZ21: 2025 | BA21: 2026 | BB21: 2027 | BC21: 2028 | BD21: 2029 | BE21: 2030 | BF21: 2031 | BG21: 2032 | BH21: 2033 | BI21: 2034
D22: EL0 | E22: 34.76 | H22: =H13 -> 0.462 | I22: 0.462 | J22: 0.462 | K22: 0.462 | L22: 0.462 | M22: 0.462 | N22: 0.462 | O22: 0.462 | P22: 0.462 | Q22: 0.462 | R22: 0.462 | S22: 0.462 | T22: 0.462 | U22: 0.462 | V22: 0.462 | W22: 0.462 | X22: 0.462 | Y22: 0.462 | Z22: 0.462 | AA22: 0.462 | AB22: 0.462 | AC22: 0.462 | AD22: 0.462 | AE22: 0.462 | AF22: 0.462 | AG22: 0.462 | AH22: 0.462 | AI22: 0.462 | AJ22: 0.462 | AK22: 0.462 | AL22: 0.462 | AM22: 0.462 | AN22: 0.462 | AO22: 0.462 | AP22: 0.462 | AQ22: 0 | AR22: 0 | AS22: 0 | AT22: 0 | AU22: 0 | AV22: 0 | AW22: 0 | AX22: 0 | AY22: 0 | AZ22: 0 | BA22: 0 | BB22: 0 | BC22: 0 | BD22: 0 | BE22: 0 | BF22: 0 | BG22: 0 | BH22: 0 | BI22: 0
D23: EL1 | E23: 17.38 | H23: =H14 -> 0.346 | I23: 0.346 | J23: 0.346 | K23: 0.346 | L23: 0.346 | M23: 0.346 | N23: 0.346 | O23: 0.346 | P23: 0.346 | Q23: 0.346 | R23: 0.346 | S23: 0.346 | T23: 0.346 | U23: 0.346 | V23: 0.346 | W23: 0.346 | X23: 0.346 | Y23: 0.346 | Z23: 0.346 | AA23: 0.346 | AB23: 0.346 | AC23: 0.346 | AD23: 0.346 | AE23: 0.346 | AF23: 0.346 | AG23: 0.346 | AH23: 0.346 | AI23: 0.346 | AJ23: 0.346 | AK23: 0.346 | AL23: 0.346 | AM23: 0.346 | AN23: 0.346 | AO23: 0.346 | AP23: 0.346 | AQ23: 0 | AR23: 0 | AS23: 0 | AT23: 0 | AU23: 0 | AV23: 0 | AW23: 0 | AX23: 0 | AY23: 0 | AZ23: 0 | BA23: 0 | BB23: 0 | BC23: 0 | BD23: 0 | BE23: 0 | BF23: 0 | BG23: 0 | BH23: 0 | BI23: 0
D24: EL2 | E24: 13.03 | H24: =H15 -> 0.192 | I24: 0.192 | J24: 0.192 | K24: 0.192 | L24: 0.192 | M24: 0.192 | N24: 0.192 | O24: 0.192 | P24: 0.192 | Q24: 0.192 | R24: 0.192 | S24: 0.192 | T24: 0.192 | U24: 0.192 | V24: 0.192 | W24: 0.192 | X24: 0.192 | Y24: 0.192 | Z24: 0.192 | AA24: 0.192 | AB24: 0.192 | AC24: 0.192 | AD24: 0.192 | AE24: 0.192 | AF24: 0.192 | AG24: 0.192 | AH24: 0.192 | AI24: 0.192 | AJ24: 0.192 | AK24: 0.192 | AL24: 0.192 | AM24: 0.192 | AN24: 0.192 | AO24: 0.192 | AP24: 0.192 | AQ24: 0 | AR24: 0 | AS24: 0 | AT24: 0 | AU24: 0 | AV24: 0 | AW24: 0 | AX24: 0 | AY24: 0 | AZ24: 0 | BA24: 0 | BB24: 0 | BC24: 0 | BD24: 0 | BE24: 0 | BF24: 0 | BG24: 0 | BH24: 0 | BI24: 0
D25: EL3 | E25: 8.69 | H25: =H16 -> 0 | I25: 0 | J25: 0 | K25: 0 | L25: 0 | M25: 0 | N25: 0 | O25: 0 | P25: 0 | Q25: 0 | R25: 0 | S25: 0 | T25: 0 | U25: 0 | V25: 0 | W25: 0 | X25: 0 | Y25: 0 | Z25: 0 | AA25: 0 | AB25: 0 | AC25: 0 | AD25: 0 | AE25: 0 | AF25: 0 | AG25: 0 | AH25: 0 | AI25: 0 | AJ25: 0 | AK25: 0 | AL25: 0 | AM25: 0 | AN25: 0 | AO25: 0 | AP25: 0 | AQ25: =SUM(AQ13:AQ16) -> 1 | AR25: 1 | AS25: 1 | AT25: 1 | AU25: 1 | AV25: 1 | AW25: 1 | AX25: 1 | AY25: 1 | AZ25: 1 | BA25: 1 | BB25: 1 | BC25: 1 | BD25: 1 | BE25: 1 | BF25: 1 | BG25: 1 | BH25: 1 | BI25: 1
D26: EL4 | E26: 0.17 | H26: =H17 -> 0 | I26: 0 | J26: 0 | K26: 0 | L26: 0 | M26: 0 | N26: 0 | O26: 0 | P26: 0 | Q26: 0 | R26: 0 | S26: 0 | T26: 0 | U26: 0 | V26: 0 | W26: 0 | X26: 0 | Y26: 0 | Z26: 0 | AA26: 0 | AB26: 0 | AC26: 0 | AD26: 0 | AE26: 0 | AF26: 0 | AG26: 0 | AH26: 0 | AI26: 0 | AJ26: 0 | AK26: 0 | AL26: 0 | AM26: 0 | AN26: 0 | AO26: 0 | AP26: 0 | AQ26: =AQ17 -> 0 | AR26: 0 | AS26: 0 | AT26: 0 | AU26: 0 | AV26: 0 | AW26: 0 | AX26: 0 | AY26: 0 | AZ26: 0 | BA26: 0 | BB26: 0 | BC26: 0 | BD26: 0 | BE26: 0 | BF26: 0 | BG26: 0 | BH26: 0 | BI26: 0
D27: TOTAL | H27: =SUM(H22:H26) -> 1 | I27: 1 | J27: 1 | K27: 1 | L27: 1 | M27: 1 | N27: 1 | O27: 1 | P27: 1 | Q27: 1 | R27: 1 | S27: 1 | T27: 1 | U27: 1 | V27: 1 | W27: 1 | X27: 1 | Y27: 1 | Z27: 1 | AA27: 1 | AB27: 1 | AC27: 1 | AD27: 1 | AE27: 1 | AF27: 1 | AG27: 1 | AH27: 1 | AI27: 1 | AJ27: 1 | AK27: 1 | AL27: 1 | AM27: 1 | AN27: =SUM(AN22:AN26) -> 1 | AO27: 1 | AP27: 1 | AQ27: 1 | AR27: 1 | AS27: 1 | AT27: 1 | AU27: 1 | AV27: 1 | AW27: 1 | AX27: 1 | AY27: 1 | AZ27: 1 | BA27: 1 | BB27: 1 | BC27: 1 | BD27: 1 | BE27: 1 | BF27: 1 | BG27: 1 | BH27: 1 | BI27: 1
D29: Sources | E29: 2013 DOE Final Rule Technical Support Document Chapter 8: Life-Cycle Cost and Paybacck Period Table 8.2.16 Microwave-Only and Countertop Convection Microwave Ovens: Base-Case Market Shares

Sheet 6P UEC Development
C2: 6P UEC Development
C4: NAVIGATION
C6: COMMENTS
F9: Cooking | G9: Standby Power
C10: Efficiency Level | D10: Efficiency Level Source | E10: Efficiency | F10: kWh/yr | G10: kWh/yr | H10: Sources
C11: EL0 | D11: Baseline | E11: 0.557 | F11: 131 | G11: 17.376 | H11: 6P Conservation Supply Curve Files: Microwaves and Ovens -'Input Assumptions’ tab, cells A51:G59 (Unknown Origin)
C12: EL1 | D12: 0 + More Efficient Power Supply | E12: 0.586 | F12: 124.5170648 | G12: 17.376
C13: EL2 | D13: 1 + More Efficient Fan | E13: 0.588 | F13: 124.0935374 | G13: 17.376
C14: EL3 | D14: 2 +More Efficient Magnetron | E14: 0.597 | F14: 122.2227806 | G14: 17.376
C15: EL4 | D15: 3 + Reflective Surfaces | E15: 0.602 | F15: 121.2076412 | G15: 17.376

Sheet Constants
C2: Constants
C4: NAVIGATION
C6: COMMENTS
C9: Constant | D9: Value
C10: Hours/Day | D10: 24
C11: Days/Week | D11: 7
C12: Days/Year | D12: 365.25
C13: kW/MW | D13: 1000

Sheet UEC Development
C2: UEC Development by Building Type
C4: NAVIGATION
C6: COMMENTS
C9: PC1 - Microwave-Only Ovens and Countertop Convection Microwave Ovens
D11: Per Cycle Energy Consumption | K11: Unit Energy Consumption (UEC)
C12: Efficiency Level | D12: Energy Consumption | E12: Energy Consumption | G12: Single Family | H12: Multi-Family | I12: Manufactured Homes | K12: Single Family | L12: Multi-Family | M12: Manufactured Homes
D13: Maximum Standby Power (W) | E13: kWh / year | G13: Standby hours / year | H13: Standby hours / year | I13: Standby hours / year | K13: kWh / year | L13: kWh / year | M13: kWh / year
C14: EL0 | D14: ='Efficiency Levels'!E12 -> 4 | E14: ='Efficiency Levels'!D12 -> 34.76 | G14: ='Lifetime and Usage Data'!D$16 -> 8695 | H14: ='Lifetime and Usage Data'!E$16 -> 8695 | I14: ='Lifetime and Usage Data'!F$16 -> 8695 | K14: =($D14*G14)/1000 -> 34.78 | L14: =($D14*H14)/1000 -> 34.78 | M14: 34.78
C15: EL1 | D15: ='Efficiency Levels'!E13 -> 2 | E15: ='Efficiency Levels'!D13 -> 17.38 | G15: ='Lifetime and Usage Data'!D$16 -> 8695 | H15: ='Lifetime and Usage Data'!E$16 -> 8695 | I15: ='Lifetime and Usage Data'!F$16 -> 8695 | K15: =($D15*G15)/1000 -> 17.39 | L15: 17.39 | M15: 17.39
C16: EL2 | D16: ='Efficiency Levels'!E14 -> 1.5 | E16: ='Efficiency Levels'!D14 -> 13.03 | G16: ='Lifetime and Usage Data'!D$16 -> 8695 | H16: ='Lifetime and Usage Data'!E$16 -> 8695 | I16: ='Lifetime and Usage Data'!F$16 -> 8695 | K16: 13.0425 | L16: 13.0425 | M16: 13.0425
C17: EL3 | D17: ='Efficiency Levels'!E15 -> 1 | E17: ='Efficiency Levels'!D15 -> 8.69 | G17: ='Lifetime and Usage Data'!D$16 -> 8695 | H17: ='Lifetime and Usage Data'!E$16 -> 8695 | I17: ='Lifetime and Usage Data'!F$16 -> 8695 | K17: 8.695 | L17: 8.695 | M17: 8.695
C18: EL4 | D18: ='Efficiency Levels'!E16 -> 0.02 | E18: ='Efficiency Levels'!D16 -> 0.17 | G18: ='Lifetime and Usage Data'!D$16 -> 8695 | H18: ='Lifetime and Usage Data'!E$16 -> 8695 | I18: ='Lifetime and Usage Data'!F$16 -> 8695 | K18: 0.1739 | L18: 0.1739 | M18: 0.1739

Sheet UEC-SF
C2: Weighted Annual UEC - Single Family
C4: NAVIGATION
C6: COMMENTS
C9: Market UEC (Shipment Weighted Average)
D10: 1981 | E10: 1982 | F10: 1983 | G10: 1984 | H10: 1985 | I10: 1986 | J10: 1987 | K10: 1988 | L10: 1989 | M10: 1990 | N10: 1991 | O10: 1992 | P10: 1993 | Q10: 1994 | R10: 1995 | S10: 1996 | T10: 1997 | U10: 1998 | V10: 1999 | W10: 2000 | X10: 2001 | Y10: 2002 | Z10: 2003 | AA10: 2004 | AB10: 2005 | AC10: 2006 | AD10: 2007 | AE10: 2008 | AF10: 2009 | AG10: 2010 | AH10: 2011 | AI10: 2012 | AJ10: 2013 | AK10: 2014 | AL10: 2015 | AM10: 2016 | AN10: 2017 | AO10: 2018 | AP10: 2019 | AQ10: 2020 | AR10: 2021 | AS10: 2022 | AT10: 2023 | AU10: 2024 | AV10: 2025 | AW10: 2026 | AX10: 2027 | AY10: 2028 | AZ10: 2029 | BA10: 2030 | BB10: 2031 | BC10: 2032 | BD10: 2033 | BE10: 2034
C11: PRE-Case UEC | D11: =SUMPRODUCT('UEC Development'!$K$14:$K$18,'Efficiency Dist - SF'!H$13:H$17) -> 24.58946 | E11: =SUMPRODUCT('UEC Development'!$K$14:$K$18,'Efficiency Dist - SF'!I$13:I$17) -> 24.58946 | F11: =SUMPRODUCT('UEC Development'!$K$14:$K$18,'Efficiency Dist - SF'!J$13:J$17) -> 24.58946 | G11: =SUMPRODUCT('UEC Development'!$K$14:$K$18,'Efficiency Dist - SF'!K$13:K$17) -> 24.58946 | H11: =SUMPRODUCT('UEC Development'!$K$14:$K$18,'Efficiency Dist - SF'!L$13:L$17) -> 24.58946 | I11: =SUMPRODUCT('UEC Development'!$K$14:$K$18,'Efficiency Dist - SF'!M$13:M$17) -> 24.58946 | J11: =SUMPRODUCT('UEC Development'!$K$14:$K$18,'Efficiency Dist - SF'!N$13:N$17) -> 24.58946 | K11: =SUMPRODUCT('UEC Development'!$K$14:$K$18,'Efficiency Dist - SF'!O$13:O$17) -> 24.58946 | L11: =SUMPRODUCT('UEC Development'!$K$14:$K$18,'Efficiency Dist - SF'!P$13:P$17) -> 24.58946 | M11: =SUMPRODUCT('UEC Development'!$K$14:$K$18,'Efficiency Dist - SF'!Q$13:Q$17) -> 24.58946 | N11: =SUMPRODUCT('UEC Development'!$K$14:$K$18,'Efficiency Dist - SF'!R$13:R$17) -> 24.58946 | O11: =SUMPRODUCT('UEC Development'!$K$14:$K$18,'Efficiency Dist - SF'!S$13:S$17) -> 24.58946 | P11: =SUMPRODUCT('UEC Development'!$K$14:$K$18,'Efficiency Dist - SF'!T$13:T$17) -> 24.58946 | Q11: =SUMPRODUCT('UEC Development'!$K$14:$K$18,'Efficiency Dist - SF'!U$13:U$17) -> 24.58946 | R11: =SUMPRODUCT('UEC Development'!$K$14:$K$18,'Efficiency Dist - SF'!V$13:V$17) -> 24.58946 | S11: =SUMPRODUCT('UEC Development'!$K$14:$K$18,'Efficiency Dist - SF'!W$13:W$17) -> 24.58946 | T11: =SUMPRODUCT('UEC Development'!$K$14:$K$18,'Efficiency Dist - SF'!X$13:X$17) -> 24.58946 | U11: =SUMPRODUCT('UEC Development'!$K$14:$K$18,'Efficiency Dist - SF'!Y$13:Y$17) -> 24.58946 | V11: =SUMPRODUCT('UEC Development'!$K$14:$K$18,'Efficiency Dist - SF'!Z$13:Z$17) -> 24.58946 | W11: =SUMPRODUCT('UEC Development'!$K$14:$K$18,'Efficiency Dist - SF'!AA$13:AA$17) -> 24.58946 | X11: =SUMPRODUCT('UEC Development'!$K$14:$K$18,'Efficiency Dist - SF'!AB$13:AB$17) -> 24.58946 | Y11: =SUMPRODUCT('UEC Development'!$K$14:$K$18,'Efficiency Dist - SF'!AC$13:AC$17) -> 24.58946 | Z11: =SUMPRODUCT('UEC Development'!$K$14:$K$18,'Efficiency Dist - SF'!AD$13:AD$17) -> 24.58946 | AA11: =SUMPRODUCT('UEC Development'!$K$14:$K$18,'Efficiency Dist - SF'!AE$13:AE$17) -> 24.58946 | AB11: =SUMPRODUCT('UEC Development'!$K$14:$K$18,'Efficiency Dist - SF'!AF$13:AF$17) -> 24.58946 | AC11: =SUMPRODUCT('UEC Development'!$K$14:$K$18,'Efficiency Dist - SF'!AG$13:AG$17) -> 24.58946 | AD11: =SUMPRODUCT('UEC Development'!$K$14:$K$18,'Efficiency Dist - SF'!AH$13:AH$17) -> 24.58946 | AE11: =SUMPRODUCT('UEC Development'!$K$14:$K$18,'Efficiency Dist - SF'!AI$13:AI$17) -> 24.58946 | AF11: =SUMPRODUCT('UEC Development'!$K$14:$K$18,'Efficiency Dist - SF'!AJ$13:AJ$17) -> 24.58946 | AG11: =SUMPRODUCT('UEC Development'!$K$14:$K$18,'Efficiency Dist - SF'!AK$13:AK$17) -> 24.58946 | AH11: =SUMPRODUCT('UEC Development'!$K$14:$K$18,'Efficiency Dist - SF'!AL$13:AL$17) -> 24.58946 | AI11: =SUMPRODUCT('UEC Development'!$K$14:$K$18,'Efficiency Dist - SF'!AM$13:AM$17) -> 24.58946 | AJ11: =SUMPRODUCT('UEC Development'!$K$14:$K$18,'Efficiency Dist - SF'!AN$13:AN$17) -> 24.58946 | AK11: =SUMPRODUCT('UEC Development'!$K$14:$K$18,'Efficiency Dist - SF'!AO$13:AO$17) -> 24.58946 | AL11: =SUMPRODUCT('UEC Development'!$K$14:$K$18,'Efficiency Dist - SF'!AP$13:AP$17) -> 24.58946 | AM11: =SUMPRODUCT('UEC Development'!$K$14:$K$18,'Efficiency Dist - SF'!AQ$13:AQ$17) -> 24.58946 | AN11: =SUMPRODUCT('UEC Development'!$K$14:$K$18,'Efficiency Dist - SF'!AR$13:AR$17) -> 24.58946 | AO11: =SUMPRODUCT('UEC Development'!$K$14:$K$18,'Efficiency Dist - SF'!AS$13:AS$17) -> 24.58946 | AP11: =SUMPRODUCT('UEC Development'!$K$14:$K$18,'Efficiency Dist - SF'!AT$13:AT$17) -> 24.58946 | AQ11: =SUMPRODUCT('UEC Development'!$K$14:$K$18,'Efficiency Dist - SF'!AU$13:AU$17) -> 24.58946 | AR11: =SUMPRODUCT('UEC Development'!$K$14:$K$18,'Efficiency Dist - SF'!AV$13:AV$17) -> 24.58946 | AS11: =SUMPRODUCT('UEC Development'!$K$14:$K$18,'Efficiency Dist - SF'!AW$13:AW$17) -> 24.58946 | AT11: =SUMPRODUCT('UEC Development'!$K$14:$K$18,'Efficiency Dist - SF'!AX$13:AX$17) -> 24.58946 | AU11: =SUMPRODUCT('UEC Development'!$K$14:$K$18,'Efficiency Dist - SF'!AY$13:AY$17) -> 24.58946 | AV11: =SUMPRODUCT('UEC Development'!$K$14:$K$18,'Efficiency Dist - SF'!AZ$13:AZ$17) -> 24.58946 | AW11: =SUMPRODUCT('UEC Development'!$K$14:$K$18,'Efficiency Dist - SF'!BA$13:BA$17) -> 24.58946 | AX11: =SUMPRODUCT('UEC Development'!$K$14:$K$18,'Efficiency Dist - SF'!BB$13:BB$17) -> 24.58946 | AY11: =SUMPRODUCT('UEC Development'!$K$14:$K$18,'Efficiency Dist - SF'!BC$13:BC$17) -> 24.58946 | AZ11: =SUMPRODUCT('UEC Development'!$K$14:$K$18,'Efficiency Dist - SF'!BD$13:BD$17) -> 24.58946 | BA11: =SUMPRODUCT('UEC Development'!$K$14:$K$18,'Efficiency Dist - SF'!BE$13:BE$17) -> 24.58946 | BB11: =SUMPRODUCT('UEC Development'!$K$14:$K$18,'Efficiency Dist - SF'!BF$13:BF$17) -> 24.58946 | BC11: =SUMPRODUCT('UEC Development'!$K$14:$K$18,'Efficiency Dist - SF'!BG$13:BG$17) -> 24.58946 | BD11: =SUMPRODUCT('UEC Development'!$K$14:$K$18,'Efficiency Dist - SF'!BH$13:BH$17) -> 24.58946 | BE11: =SUMPRODUCT('UEC Development'!$K$14:$K$18,'Efficiency Dist - SF'!BI$13:BI$17) -> 24.58946
C12: POST-Case UEC | D12: =SUMPRODUCT('UEC Development'!$K$14:$K$18,'Efficiency Dist - SF'!H$22:H$26) -> 24.58946 | E12: =SUMPRODUCT('UEC Development'!$K$14:$K$18,'Efficiency Dist - SF'!I$22:I$26) -> 24.58946 | F12: =SUMPRODUCT('UEC Development'!$K$14:$K$18,'Efficiency Dist - SF'!J$22:J$26) -> 24.58946 | G12: =SUMPRODUCT('UEC Development'!$K$14:$K$18,'Efficiency Dist - SF'!K$22:K$26) -> 24.58946 | H12: =SUMPRODUCT('UEC Development'!$K$14:$K$18,'Efficiency Dist - SF'!L$22:L$26) -> 24.58946 | I12: =SUMPRODUCT('UEC Development'!$K$14:$K$18,'Efficiency Dist - SF'!M$22:M$26) -> 24.58946 | J12: =SUMPRODUCT('UEC Development'!$K$14:$K$18,'Efficiency Dist - SF'!N$22:N$26) -> 24.58946 | K12: =SUMPRODUCT('UEC Development'!$K$14:$K$18,'Efficiency Dist - SF'!O$22:O$26) -> 24.58946 | L12: =SUMPRODUCT('UEC Development'!$K$14:$K$18,'Efficiency Dist - SF'!P$22:P$26) -> 24.58946 | M12: =SUMPRODUCT('UEC Development'!$K$14:$K$18,'Efficiency Dist - SF'!Q$22:Q$26) -> 24.58946 | N12: =SUMPRODUCT('UEC Development'!$K$14:$K$18,'Efficiency Dist - SF'!R$22:R$26) -> 24.58946 | O12: =SUMPRODUCT('UEC Development'!$K$14:$K$18,'Efficiency Dist - SF'!S$22:S$26) -> 24.58946 | P12: =SUMPRODUCT('UEC Development'!$K$14:$K$18,'Efficiency Dist - SF'!T$22:T$26) -> 24.58946 | Q12: =SUMPRODUCT('UEC Development'!$K$14:$K$18,'Efficiency Dist - SF'!U$22:U$26) -> 24.58946 | R12: =SUMPRODUCT('UEC Development'!$K$14:$K$18,'Efficiency Dist - SF'!V$22:V$26) -> 24.58946 | S12: =SUMPRODUCT('UEC Development'!$K$14:$K$18,'Efficiency Dist - SF'!W$22:W$26) -> 24.58946 | T12: =SUMPRODUCT('UEC Development'!$K$14:$K$18,'Efficiency Dist - SF'!X$22:X$26) -> 24.58946 | U12: =SUMPRODUCT('UEC Development'!$K$14:$K$18,'Efficiency Dist - SF'!Y$22:Y$26) -> 24.58946 | V12: =SUMPRODUCT('UEC Development'!$K$14:$K$18,'Efficiency Dist - SF'!Z$22:Z$26) -> 24.58946 | W12: =SUMPRODUCT('UEC Development'!$K$14:$K$18,'Efficiency Dist - SF'!AA$22:AA$26) -> 24.58946 | X12: =SUMPRODUCT('UEC Development'!$K$14:$K$18,'Efficiency Dist - SF'!AB$22:AB$26) -> 24.58946 | Y12: =SUMPRODUCT('UEC Development'!$K$14:$K$18,'Efficiency Dist - SF'!AC$22:AC$26) -> 24.58946 | Z12: =SUMPRODUCT('UEC Development'!$K$14:$K$18,'Efficiency Dist - SF'!AD$22:AD$26) -> 24.58946 | AA12: =SUMPRODUCT('UEC Development'!$K$14:$K$18,'Efficiency Dist - SF'!AE$22:AE$26) -> 24.58946 | AB12: =SUMPRODUCT('UEC Development'!$K$14:$K$18,'Efficiency Dist - SF'!AF$22:AF$26) -> 24.58946 | AC12: =SUMPRODUCT('UEC Development'!$K$14:$K$18,'Efficiency Dist - SF'!AG$22:AG$26) -> 24.58946 | AD12: =SUMPRODUCT('UEC Development'!$K$14:$K$18,'Efficiency Dist - SF'!AH$22:AH$26) -> 24.58946 | AE12: =SUMPRODUCT('UEC Development'!$K$14:$K$18,'Efficiency Dist - SF'!AI$22:AI$26) -> 24.58946 | AF12: =SUMPRODUCT('UEC Development'!$K$14:$K$18,'Efficiency Dist - SF'!AJ$22:AJ$26) -> 24.58946 | AG12: =SUMPRODUCT('UEC Development'!$K$14:$K$18,'Efficiency Dist - SF'!AK$22:AK$26) -> 24.58946 | AH12: =SUMPRODUCT('UEC Development'!$K$14:$K$18,'Efficiency Dist - SF'!AL$22:AL$26) -> 24.58946 | AI12: =SUMPRODUCT('UEC Development'!$K$14:$K$18,'Efficiency Dist - SF'!AM$22:AM$26) -> 24.58946 | AJ12: =SUMPRODUCT('UEC Development'!$K$14:$K$18,'Efficiency Dist - SF'!AN$22:AN$26) -> 24.58946 | AK12: =SUMPRODUCT('UEC Development'!$K$14:$K$18,'Efficiency Dist - SF'!AO$22:AO$26) -> 24.58946 | AL12: =SUMPRODUCT('UEC Development'!$K$14:$K$18,'Efficiency Dist - SF'!AP$22:AP$26) -> 24.58946 | AM12: =SUMPRODUCT('UEC Development'!$K$14:$K$18,'Efficiency Dist - SF'!AQ$22:AQ$26) -> 8.695 | AN12: =SUMPRODUCT('UEC Development'!$K$14:$K$18,'Efficiency Dist - SF'!AR$22:AR$26) -> 8.695 | AO12: =SUMPRODUCT('UEC Development'!$K$14:$K$18,'Efficiency Dist - SF'!AS$22:AS$26) -> 8.695 | AP12: =SUMPRODUCT('UEC Development'!$K$14:$K$18,'Efficiency Dist - SF'!AT$22:AT$26) -> 8.695 | AQ12: =SUMPRODUCT('UEC Development'!$K$14:$K$18,'Efficiency Dist - SF'!AU$22:AU$26) -> 8.695 | AR12: =SUMPRODUCT('UEC Development'!$K$14:$K$18,'Efficiency Dist - SF'!AV$22:AV$26) -> 8.695 | AS12: =SUMPRODUCT('UEC Development'!$K$14:$K$18,'Efficiency Dist - SF'!AW$22:AW$26) -> 8.695 | AT12: =SUMPRODUCT('UEC Development'!$K$14:$K$18,'Efficiency Dist - SF'!AX$22:AX$26) -> 8.695 | AU12: =SUMPRODUCT('UEC Development'!$K$14:$K$18,'Efficiency Dist - SF'!AY$22:AY$26) -> 8.695 | AV12: =SUMPRODUCT('UEC Development'!$K$14:$K$18,'Efficiency Dist - SF'!AZ$22:AZ$26) -> 8.695 | AW12: =SUMPRODUCT('UEC Development'!$K$14:$K$18,'Efficiency Dist - SF'!BA$22:BA$26) -> 8.695 | AX12: =SUMPRODUCT('UEC Development'!$K$14:$K$18,'Efficiency Dist - SF'!BB$22:BB$26) -> 8.695 | AY12: =SUMPRODUCT('UEC Development'!$K$14:$K$18,'Efficiency Dist - SF'!BC$22:BC$26) -> 8.695 | AZ12: =SUMPRODUCT('UEC Development'!$K$14:$K$18,'Efficiency Dist - SF'!BD$22:BD$26) -> 8.695 | BA12: =SUMPRODUCT('UEC Development'!$K$14:$K$18,'Efficiency Dist - SF'!BE$22:BE$26) -> 8.695 | BB12: =SUMPRODUCT('UEC Development'!$K$14:$K$18,'Efficiency Dist - SF'!BF$22:BF$26) -> 8.695 | BC12: =SUMPRODUCT('UEC Development'!$K$14:$K$18,'Efficiency Dist - SF'!BG$22:BG$26) -> 8.695 | BD12: =SUMPRODUCT('UEC Development'!$K$14:$K$18,'Efficiency Dist - SF'!BH$22:BH$26) -> 8.695 | BE12: =SUMPRODUCT('UEC Development'!$K$14:$K$18,'Efficiency Dist - SF'!BI$22:BI$26) -> 8.695
C14: Installed UEC (Vintage Weighted Average)
D15: 1981 | E15: 1982 | F15: 1983 | G15: 1984 | H15: 1985 | I15: 1986 | J15: 1987 | K15: 1988 | L15: 1989 | M15: 1990 | N15: 1991 | O15: 1992 | P15: 1993 | Q15: 1994 | R15: 1995 | S15: 1996 | T15: 1997 | U15: 1998 | V15: 1999 | W15: 2000 | X15: 2001 | Y15: 2002 | Z15: 2003 | AA15: 2004 | AB15: 2005 | AC15: 2006 | AD15: 2007 | AE15: 2008 | AF15: 2009 | AG15: 2010 | AH15: 2011 | AI15: 2012 | AJ15: 2013 | AK15: 2014 | AL15: 2015 | AM15: 2016 | AN15: 2017 | AO15: 2018 | AP15: 2019 | AQ15: 2020 | AR15: 2021 | AS15: 2022 | AT15: 2023 | AU15: 2024 | AV15: 2025 | AW15: 2026 | AX15: 2027 | AY15: 2028 | AZ15: 2029 | BA15: 2030 | BB15: 2031 | BC15: 2032 | BD15: 2033 | BE15: 2034
C16: PRE-Case UEC | D16: =IF(D$15-$D$15+2<=LIFETIME_SF,D11, SUMPRODUCT(OFFSET(D11,0,(-1*LIFETIME_SF)+1,1,LIFETIME_SF),OFFSET('Shipments and Stock - SF'!E$14,0,(-1*LIFETIME_SF)+1,1,LIFETIME_SF))/ SUM(OFFSET('Shipments and Stock - SF'!E$14,0,(-1*LIFETIME_SF)+1,1,LIFETIME_SF))) -> 24.58946 | E16: =IF(E$15-$D$15+2<=LIFETIME_SF,E11, SUMPRODUCT(OFFSET(E11,0,(-1*LIFETIME_SF)+1,1,LIFETIME_SF),OFFSET('Shipments and Stock - SF'!F$14,0,(-1*LIFETIME_SF)+1,1,LIFETIME_SF))/ SUM(OFFSET('Shipments and Stock - SF'!F$14,0,(-1*LIFETIME_SF)+1,1,LIFETIME_SF))) -> 24.58946 | F16: =IF(F$15-$D$15+2<=LIFETIME_SF,F11, SUMPRODUCT(OFFSET(F11,0,(-1*LIFETIME_SF)+1,1,LIFETIME_SF),OFFSET('Shipments and Stock - SF'!G$14,0,(-1*LIFETIME_SF)+1,1,LIFETIME_SF))/ SUM(OFFSET('Shipments and Stock - SF'!G$14,0,(-1*LIFETIME_SF)+1,1,LIFETIME_SF))) -> 24.58946 | G16: =IF(G$15-$D$15+2<=LIFETIME_SF,G11, SUMPRODUCT(OFFSET(G11,0,(-1*LIFETIME_SF)+1,1,LIFETIME_SF),OFFSET('Shipments and Stock - SF'!H$14,0,(-1*LIFETIME_SF)+1,1,LIFETIME_SF))/ SUM(OFFSET('Shipments and Stock - SF'!H$14,0,(-1*LIFETIME_SF)+1,1,LIFETIME_SF))) -> 24.58946 | H16: =IF(H$15-$D$15+2<=LIFETIME_SF,H11, SUMPRODUCT(OFFSET(H11,0,(-1*LIFETIME_SF)+1,1,LIFETIME_SF),OFFSET('Shipments and Stock - SF'!I$14,0,(-1*LIFETIME_SF)+1,1,LIFETIME_SF))/ SUM(OFFSET('Shipments and Stock - SF'!I$14,0,(-1*LIFETIME_SF)+1,1,LIFETIME_SF))) -> 24.58946 | I16: =IF(I$15-$D$15+2<=LIFETIME_SF,I11, SUMPRODUCT(OFFSET(I11,0,(-1*LIFETIME_SF)+1,1,LIFETIME_SF),OFFSET('Shipments and Stock - SF'!J$14,0,(-1*LIFETIME_SF)+1,1,LIFETIME_SF))/ SUM(OFFSET('Shipments and Stock - SF'!J$14,0,(-1*LIFETIME_SF)+1,1,LIFETIME_SF))) -> 24.58946 | J16: =IF(J$15-$D$15+2<=LIFETIME_SF,J11, SUMPRODUCT(OFFSET(J11,0,(-1*LIFETIME_SF)+1,1,LIFETIME_SF),OFFSET('Shipments and Stock - SF'!K$14,0,(-1*LIFETIME_SF)+1,1,LIFETIME_SF))/ SUM(OFFSET('Shipments and Stock - SF'!K$14,0,(-1*LIFETIME_SF)+1,1,LIFETIME_SF))) -> 24.58946 | K16: =IF(K$15-$D$15+2<=LIFETIME_SF,K11, SUMPRODUCT(OFFSET(K11,0,(-1*LIFETIME_SF)+1,1,LIFETIME_SF),OFFSET('Shipments and Stock - SF'!L$14,0,(-1*LIFETIME_SF)+1,1,LIFETIME_SF))/ SUM(OFFSET('Shipments and Stock - SF'!L$14,0,(-1*LIFETIME_SF)+1,1,LIFETIME_SF))) -> 24.58946 | L16: =IF(L$15-$D$15+2<=LIFETIME_SF,L11, SUMPRODUCT(OFFSET(L11,0,(-1*LIFETIME_SF)+1,1,LIFETIME_SF),OFFSET('Shipments and Stock - SF'!M$14,0,(-1*LIFETIME_SF)+1,1,LIFETIME_SF))/ SUM(OFFSET('Shipments and Stock - SF'!M$14,0,(-1*LIFETIME_SF)+1,1,LIFETIME_SF))) -> 24.58946 | M16: =IF(M$15-$D$15+2<=LIFETIME_SF,M11, SUMPRODUCT(OFFSET(M11,0,(-1*LIFETIME_SF)+1,1,LIFETIME_SF),OFFSET('Shipments and Stock - SF'!N$14,0,(-1*LIFETIME_SF)+1,1,LIFETIME_SF))/ SUM(OFFSET('Shipments and Stock - SF'!N$14,0,(-1*LIFETIME_SF)+1,1,LIFETIME_SF))) -> 24.58946 | N16: =IF(N$15-$D$15+2<=LIFETIME_SF,N11, SUMPRODUCT(OFFSET(N11,0,(-1*LIFETIME_SF)+1,1,LIFETIME_SF),OFFSET('Shipments and Stock - SF'!O$14,0,(-1*LIFETIME_SF)+1,1,LIFETIME_SF))/ SUM(OFFSET('Shipments and Stock - SF'!O$14,0,(-1*LIFETIME_SF)+1,1,LIFETIME_SF))) -> 24.58946 | O16: =IF(O$15-$D$15+2<=LIFETIME_SF,O11, SUMPRODUCT(OFFSET(O11,0,(-1*LIFETIME_SF)+1,1,LIFETIME_SF),OFFSET('Shipments and Stock - SF'!P$14,0,(-1*LIFETIME_SF)+1,1,LIFETIME_SF))/ SUM(OFFSET('Shipments and Stock - SF'!P$14,0,(-1*LIFETIME_SF)+1,1,LIFETIME_SF))) -> 24.58946 | P16: =IF(P$15-$D$15+2<=LIFETIME_SF,P11, SUMPRODUCT(OFFSET(P11,0,(-1*LIFETIME_SF)+1,1,LIFETIME_SF),OFFSET('Shipments and Stock - SF'!Q$14,0,(-1*LIFETIME_SF)+1,1,LIFETIME_SF))/ SUM(OFFSET('Shipments and Stock - SF'!Q$14,0,(-1*LIFETIME_SF)+1,1,LIFETIME_SF))) -> 24.58946 | Q16: =IF(Q$15-$D$15+2<=LIFETIME_SF,Q11, SUMPRODUCT(OFFSET(Q11,0,(-1*LIFETIME_SF)+1,1,LIFETIME_SF),OFFSET('Shipments and Stock - SF'!R$14,0,(-1*LIFETIME_SF)+1,1,LIFETIME_SF))/ SUM(OFFSET('Shipments and Stock - SF'!R$14,0,(-1*LIFETIME_SF)+1,1,LIFETIME_SF))) -> 24.58946 | R16: =IF(R$15-$D$15+2<=LIFETIME_SF,R11, SUMPRODUCT(OFFSET(R11,0,(-1*LIFETIME_SF)+1,1,LIFETIME_SF),OFFSET('Shipments and Stock - SF'!S$14,0,(-1*LIFETIME_SF)+1,1,LIFETIME_SF))/ SUM(OFFSET('Shipments and Stock - SF'!S$14,0,(-1*LIFETIME_SF)+1,1,LIFETIME_SF))) -> 24.58946 | S16: =IF(S$15-$D$15+2<=LIFETIME_SF,S11, SUMPRODUCT(OFFSET(S11,0,(-1*LIFETIME_SF)+1,1,LIFETIME_SF),OFFSET('Shipments and Stock - SF'!T$14,0,(-1*LIFETIME_SF)+1,1,LIFETIME_SF))/ SUM(OFFSET('Shipments and Stock - SF'!T$14,0,(-1*LIFETIME_SF)+1,1,LIFETIME_SF))) -> 24.58946 | T16: =IF(T$15-$D$15+2<=LIFETIME_SF,T11, SUMPRODUCT(OFFSET(T11,0,(-1*LIFETIME_SF)+1,1,LIFETIME_SF),OFFSET('Shipments and Stock - SF'!U$14,0,(-1*LIFETIME_SF)+1,1,LIFETIME_SF))/ SUM(OFFSET('Shipments and Stock - SF'!U$14,0,(-1*LIFETIME_SF)+1,1,LIFETIME_SF))) -> 24.58946 | U16: =IF(U$15-$D$15+2<=LIFETIME_SF,U11, SUMPRODUCT(OFFSET(U11,0,(-1*LIFETIME_SF)+1,1,LIFETIME_SF),OFFSET('Shipments and Stock - SF'!V$14,0,(-1*LIFETIME_SF)+1,1,LIFETIME_SF))/ SUM(OFFSET('Shipments and Stock - SF'!V$14,0,(-1*LIFETIME_SF)+1,1,LIFETIME_SF))) -> 24.58946 | V16: =IF(V$15-$D$15+2<=LIFETIME_SF,V11, SUMPRODUCT(OFFSET(V11,0,(-1*LIFETIME_SF)+1,1,LIFETIME_SF),OFFSET('Shipments and Stock - SF'!W$14,0,(-1*LIFETIME_SF)+1,1,LIFETIME_SF))/ SUM(OFFSET('Shipments and Stock - SF'!W$14,0,(-1*LIFETIME_SF)+1,1,LIFETIME_SF))) -> 24.58946 | W16: =IF(W$15-$D$15+2<=LIFETIME_SF,W11, SUMPRODUCT(OFFSET(W11,0,(-1*LIFETIME_SF)+1,1,LIFETIME_SF),OFFSET('Shipments and Stock - SF'!X$14,0,(-1*LIFETIME_SF)+1,1,LIFETIME_SF))/ SUM(OFFSET('Shipments and Stock - SF'!X$14,0,(-1*LIFETIME_SF)+1,1,LIFETIME_SF))) -> 24.58946 | X16: =IF(X$15-$D$15+2<=LIFETIME_SF,X11, SUMPRODUCT(OFFSET(X11,0,(-1*LIFETIME_SF)+1,1,LIFETIME_SF),OFFSET('Shipments and Stock - SF'!Y$14,0,(-1*LIFETIME_SF)+1,1,LIFETIME_SF))/ SUM(OFFSET('Shipments and Stock - SF'!Y$14,0,(-1*LIFETIME_SF)+1,1,LIFETIME_SF))) -> 24.58946 | Y16: =IF(Y$15-$D$15+2<=LIFETIME_SF,Y11, SUMPRODUCT(OFFSET(Y11,0,(-1*LIFETIME_SF)+1,1,LIFETIME_SF),OFFSET('Shipments and Stock - SF'!Z$14,0,(-1*LIFETIME_SF)+1,1,LIFETIME_SF))/ SUM(OFFSET('Shipments and Stock - SF'!Z$14,0,(-1*LIFETIME_SF)+1,1,LIFETIME_SF))) -> 24.58946 | Z16: =IF(Z$15-$D$15+2<=LIFETIME_SF,Z11, SUMPRODUCT(OFFSET(Z11,0,(-1*LIFETIME_SF)+1,1,LIFETIME_SF),OFFSET('Shipments and Stock - SF'!AA$14,0,(-1*LIFETIME_SF)+1,1,LIFETIME_SF))/ SUM(OFFSET('Shipments and Stock - SF'!AA$14,0,(-1*LIFETIME_SF)+1,1,LIFETIME_SF))) -> 24.58946 | AA16: =IF(AA$15-$D$15+2<=LIFETIME_SF,AA11, SUMPRODUCT(OFFSET(AA11,0,(-1*LIFETIME_SF)+1,1,LIFETIME_SF),OFFSET('Shipments and Stock - SF'!AB$14,0,(-1*LIFETIME_SF)+1,1,LIFETIME_SF))/ SUM(OFFSET('Shipments and Stock - SF'!AB$14,0,(-1*LIFETIME_SF)+1,1,LIFETIME_SF))) -> 24.58946 | AB16: =IF(AB$15-$D$15+2<=LIFETIME_SF,AB11, SUMPRODUCT(OFFSET(AB11,0,(-1*LIFETIME_SF)+1,1,LIFETIME_SF),OFFSET('Shipments and Stock - SF'!AC$14,0,(-1*LIFETIME_SF)+1,1,LIFETIME_SF))/ SUM(OFFSET('Shipments and Stock - SF'!AC$14,0,(-1*LIFETIME_SF)+1,1,LIFETIME_SF))) -> 24.58946 | AC16: =IF(AC$15-$D$15+2<=LIFETIME_SF,AC11, SUMPRODUCT(OFFSET(AC11,0,(-1*LIFETIME_SF)+1,1,LIFETIME_SF),OFFSET('Shipments and Stock - SF'!AD$14,0,(-1*LIFETIME_SF)+1,1,LIFETIME_SF))/ SUM(OFFSET('Shipments and Stock - SF'!AD$14,0,(-1*LIFETIME_SF)+1,1,LIFETIME_SF))) -> 24.58946 | AD16: =IF(AD$15-$D$15+2<=LIFETIME_SF,AD11, SUMPRODUCT(OFFSET(AD11,0,(-1*LIFETIME_SF)+1,1,LIFETIME_SF),OFFSET('Shipments and Stock - SF'!AE$14,0,(-1*LIFETIME_SF)+1,1,LIFETIME_SF))/ SUM(OFFSET('Shipments and Stock - SF'!AE$14,0,(-1*LIFETIME_SF)+1,1,LIFETIME_SF))) -> 24.58946 | AE16: =IF(AE$15-$D$15+2<=LIFETIME_SF,AE11, SUMPRODUCT(OFFSET(AE11,0,(-1*LIFETIME_SF)+1,1,LIFETIME_SF),OFFSET('Shipments and Stock - SF'!AF$14,0,(-1*LIFETIME_SF)+1,1,LIFETIME_SF))/ SUM(OFFSET('Shipments and Stock - SF'!AF$14,0,(-1*LIFETIME_SF)+1,1,LIFETIME_SF))) -> 24.58946 | AF16: =IF(AF$15-$D$15+2<=LIFETIME_SF,AF11, SUMPRODUCT(OFFSET(AF11,0,(-1*LIFETIME_SF)+1,1,LIFETIME_SF),OFFSET('Shipments and Stock - SF'!AG$14,0,(-1*LIFETIME_SF)+1,1,LIFETIME_SF))/ SUM(OFFSET('Shipments and Stock - SF'!AG$14,0,(-1*LIFETIME_SF)+1,1,LIFETIME_SF))) -> 24.58946 | AG16: =IF(AG$15-$D$15+2<=LIFETIME_SF,AG11, SUMPRODUCT(OFFSET(AG11,0,(-1*LIFETIME_SF)+1,1,LIFETIME_SF),OFFSET('Shipments and Stock - SF'!AH$14,0,(-1*LIFETIME_SF)+1,1,LIFETIME_SF))/ SUM(OFFSET('Shipments and Stock - SF'!AH$14,0,(-1*LIFETIME_SF)+1,1,LIFETIME_SF))) -> 24.58946 | AH16: =IF(AH$15-$D$15+2<=LIFETIME_SF,AH11, SUMPRODUCT(OFFSET(AH11,0,(-1*LIFETIME_SF)+1,1,LIFETIME_SF),OFFSET('Shipments and Stock - SF'!AI$14,0,(-1*LIFETIME_SF)+1,1,LIFETIME_SF))/ SUM(OFFSET('Shipments and Stock - SF'!AI$14,0,(-1*LIFETIME_SF)+1,1,LIFETIME_SF))) -> 24.58946 | AI16: =IF(AI$15-$D$15+2<=LIFETIME_SF,AI11, SUMPRODUCT(OFFSET(AI11,0,(-1*LIFETIME_SF)+1,1,LIFETIME_SF),OFFSET('Shipments and Stock - SF'!AJ$14,0,(-1*LIFETIME_SF)+1,1,LIFETIME_SF))/ SUM(OFFSET('Shipments and Stock - SF'!AJ$14,0,(-1*LIFETIME_SF)+1,1,LIFETIME_SF))) -> 24.58946 | AJ16: =IF(AJ$15-$D$15+2<=LIFETIME_SF,AJ11, SUMPRODUCT(OFFSET(AJ11,0,(-1*LIFETIME_SF)+1,1,LIFETIME_SF),OFFSET('Shipments and Stock - SF'!AK$14,0,(-1*LIFETIME_SF)+1,1,LIFETIME_SF))/ SUM(OFFSET('Shipments and Stock - SF'!AK$14,0,(-1*LIFETIME_SF)+1,1,LIFETIME_SF))) -> 24.58946 | AK16: =IF(AK$15-$D$15+2<=LIFETIME_SF,AK11, SUMPRODUCT(OFFSET(AK11,0,(-1*LIFETIME_SF)+1,1,LIFETIME_SF),OFFSET('Shipments and Stock - SF'!AL$14,0,(-1*LIFETIME_SF)+1,1,LIFETIME_SF))/ SUM(OFFSET('Shipments and Stock - SF'!AL$14,0,(-1*LIFETIME_SF)+1,1,LIFETIME_SF))) -> 24.58946 | AL16: =IF(AL$15-$D$15+2<=LIFETIME_SF,AL11, SUMPRODUCT(OFFSET(AL11,0,(-1*LIFETIME_SF)+1,1,LIFETIME_SF),OFFSET('Shipments and Stock - SF'!AM$14,0,(-1*LIFETIME_SF)+1,1,LIFETIME_SF))/ SUM(OFFSET('Shipments and Stock - SF'!AM$14,0,(-1*LIFETIME_SF)+1,1,LIFETIME_SF))) -> 24.58946 | AM16: =IF(AM$15-$D$15+2<=LIFETIME_SF,AM11, SUMPRODUCT(OFFSET(AM11,0,(-1*LIFETIME_SF)+1,1,LIFETIME_SF),OFFSET('Shipments and Stock - SF'!AN$14,0,(-1*LIFETIME_SF)+1,1,LIFETIME_SF))/ SUM(OFFSET('Shipments and Stock - SF'!AN$14,0,(-1*LIFETIME_SF)+1,1,LIFETIME_SF))) -> 24.58946 | AN16: =IF(AN$15-$D$15+2<=LIFETIME_SF,AN11, SUMPRODUCT(OFFSET(AN11,0,(-1*LIFETIME_SF)+1,1,LIFETIME_SF),OFFSET('Shipments and Stock - SF'!AO$14,0,(-1*LIFETIME_SF)+1,1,LIFETIME_SF))/ SUM(OFFSET('Shipments and Stock - SF'!AO$14,0,(-1*LIFETIME_SF)+1,1,LIFETIME_SF))) -> 24.58946 | AO16: =IF(AO$15-$D$15+2<=LIFETIME_SF,AO11, SUMPRODUCT(OFFSET(AO11,0,(-1*LIFETIME_SF)+1,1,LIFETIME_SF),OFFSET('Shipments and Stock - SF'!AP$14,0,(-1*LIFETIME_SF)+1,1,LIFETIME_SF))/ SUM(OFFSET('Shipments and Stock - SF'!AP$14,0,(-1*LIFETIME_SF)+1,1,LIFETIME_SF))) -> 24.58946 | AP16: =IF(AP$15-$D$15+2<=LIFETIME_SF,AP11, SUMPRODUCT(OFFSET(AP11,0,(-1*LIFETIME_SF)+1,1,LIFETIME_SF),OFFSET('Shipments and Stock - SF'!AQ$14,0,(-1*LIFETIME_SF)+1,1,LIFETIME_SF))/ SUM(OFFSET('Shipments and Stock - SF'!AQ$14,0,(-1*LIFETIME_SF)+1,1,LIFETIME_SF))) -> 24.58946 | AQ16: =IF(AQ$15-$D$15+2<=LIFETIME_SF,AQ11, SUMPRODUCT(OFFSET(AQ11,0,(-1*LIFETIME_SF)+1,1,LIFETIME_SF),OFFSET('Shipments and Stock - SF'!AR$14,0,(-1*LIFETIME_SF)+1,1,LIFETIME_SF))/ SUM(OFFSET('Shipments and Stock - SF'!AR$14,0,(-1*LIFETIME_SF)+1,1,LIFETIME_SF))) -> 24.58946 | AR16: =IF(AR$15-$D$15+2<=LIFETIME_SF,AR11, SUMPRODUCT(OFFSET(AR11,0,(-1*LIFETIME_SF)+1,1,LIFETIME_SF),OFFSET('Shipments and Stock - SF'!AS$14,0,(-1*LIFETIME_SF)+1,1,LIFETIME_SF))/ SUM(OFFSET('Shipments and Stock - SF'!AS$14,0,(-1*LIFETIME_SF)+1,1,LIFETIME_SF))) -> 24.58946 | AS16: =IF(AS$15-$D$15+2<=LIFETIME_SF,AS11, SUMPRODUCT(OFFSET(AS11,0,(-1*LIFETIME_SF)+1,1,LIFETIME_SF),OFFSET('Shipments and Stock - SF'!AT$14,0,(-1*LIFETIME_SF)+1,1,LIFETIME_SF))/ SUM(OFFSET('Shipments and Stock - SF'!AT$14,0,(-1*LIFETIME_SF)+1,1,LIFETIME_SF))) -> 24.58946 | AT16: =IF(AT$15-$D$15+2<=LIFETIME_SF,AT11, SUMPRODUCT(OFFSET(AT11,0,(-1*LIFETIME_SF)+1,1,LIFETIME_SF),OFFSET('Shipments and Stock - SF'!AU$14,0,(-1*LIFETIME_SF)+1,1,LIFETIME_SF))/ SUM(OFFSET('Shipments and Stock - SF'!AU$14,0,(-1*LIFETIME_SF)+1,1,LIFETIME_SF))) -> 24.58946 | AU16: =IF(AU$15-$D$15+2<=LIFETIME_SF,AU11, SUMPRODUCT(OFFSET(AU11,0,(-1*LIFETIME_SF)+1,1,LIFETIME_SF),OFFSET('Shipments and Stock - SF'!AV$14,0,(-1*LIFETIME_SF)+1,1,LIFETIME_SF))/ SUM(OFFSET('Shipments and Stock - SF'!AV$14,0,(-1*LIFETIME_SF)+1,1,LIFETIME_SF))) -> 24.58946 | AV16: =IF(AV$15-$D$15+2<=LIFETIME_SF,AV11, SUMPRODUCT(OFFSET(AV11,0,(-1*LIFETIME_SF)+1,1,LIFETIME_SF),OFFSET('Shipments and Stock - SF'!AW$14,0,(-1*LIFETIME_SF)+1,1,LIFETIME_SF))/ SUM(OFFSET('Shipments and Stock - SF'!AW$14,0,(-1*LIFETIME_SF)+1,1,LIFETIME_SF))) -> 24.58946 | AW16: =IF(AW$15-$D$15+2<=LIFETIME_SF,AW11, SUMPRODUCT(OFFSET(AW11,0,(-1*LIFETIME_SF)+1,1,LIFETIME_SF),OFFSET('Shipments and Stock - SF'!AX$14,0,(-1*LIFETIME_SF)+1,1,LIFETIME_SF))/ SUM(OFFSET('Shipments and Stock - SF'!AX$14,0,(-1*LIFETIME_SF)+1,1,LIFETIME_SF))) -> 24.58946 | AX16: =IF(AX$15-$D$15+2<=LIFETIME_SF,AX11, SUMPRODUCT(OFFSET(AX11,0,(-1*LIFETIME_SF)+1,1,LIFETIME_SF),OFFSET('Shipments and Stock - SF'!AY$14,0,(-1*LIFETIME_SF)+1,1,LIFETIME_SF))/ SUM(OFFSET('Shipments and Stock - SF'!AY$14,0,(-1*LIFETIME_SF)+1,1,LIFETIME_SF))) -> 24.58946 | AY16: =IF(AY$15-$D$15+2<=LIFETIME_SF,AY11, SUMPRODUCT(OFFSET(AY11,0,(-1*LIFETIME_SF)+1,1,LIFETIME_SF),OFFSET('Shipments and Stock - SF'!AZ$14,0,(-1*LIFETIME_SF)+1,1,LIFETIME_SF))/ SUM(OFFSET('Shipments and Stock - SF'!AZ$14,0,(-1*LIFETIME_SF)+1,1,LIFETIME_SF))) -> 24.58946 | AZ16: =IF(AZ$15-$D$15+2<=LIFETIME_SF,AZ11, SUMPRODUCT(OFFSET(AZ11,0,(-1*LIFETIME_SF)+1,1,LIFETIME_SF),OFFSET('Shipments and Stock - SF'!BA$14,0,(-1*LIFETIME_SF)+1,1,LIFETIME_SF))/ SUM(OFFSET('Shipments and Stock - SF'!BA$14,0,(-1*LIFETIME_SF)+1,1,LIFETIME_SF))) -> 24.58946 | BA16: =IF(BA$15-$D$15+2<=LIFETIME_SF,BA11, SUMPRODUCT(OFFSET(BA11,0,(-1*LIFETIME_SF)+1,1,LIFETIME_SF),OFFSET('Shipments and Stock - SF'!BB$14,0,(-1*LIFETIME_SF)+1,1,LIFETIME_SF))/ SUM(OFFSET('Shipments and Stock - SF'!BB$14,0,(-1*LIFETIME_SF)+1,1,LIFETIME_SF))) -> 24.58946 | BB16: =IF(BB$15-$D$15+2<=LIFETIME_SF,BB11, SUMPRODUCT(OFFSET(BB11,0,(-1*LIFETIME_SF)+1,1,LIFETIME_SF),OFFSET('Shipments and Stock - SF'!BC$14,0,(-1*LIFETIME_SF)+1,1,LIFETIME_SF))/ SUM(OFFSET('Shipments and Stock - SF'!BC$14,0,(-1*LIFETIME_SF)+1,1,LIFETIME_SF))) -> 24.58946 | BC16: =IF(BC$15-$D$15+2<=LIFETIME_SF,BC11, SUMPRODUCT(OFFSET(BC11,0,(-1*LIFETIME_SF)+1,1,LIFETIME_SF),OFFSET('Shipments and Stock - SF'!BD$14,0,(-1*LIFETIME_SF)+1,1,LIFETIME_SF))/ SUM(OFFSET('Shipments and Stock - SF'!BD$14,0,(-1*LIFETIME_SF)+1,1,LIFETIME_SF))) -> 24.58946 | BD16: =IF(BD$15-$D$15+2<=LIFETIME_SF,BD11, SUMPRODUCT(OFFSET(BD11,0,(-1*LIFETIME_SF)+1,1,LIFETIME_SF),OFFSET('Shipments and Stock - SF'!BE$14,0,(-1*LIFETIME_SF)+1,1,LIFETIME_SF))/ SUM(OFFSET('Shipments and Stock - SF'!BE$14,0,(-1*LIFETIME_SF)+1,1,LIFETIME_SF))) -> 24.58946 | BE16: =IF(BE$15-$D$15+2<=LIFETIME_SF,BE11, SUMPRODUCT(OFFSET(BE11,0,(-1*LIFETIME_SF)+1,1,LIFETIME_SF),OFFSET('Shipments and Stock - SF'!BF$14,0,(-1*LIFETIME_SF)+1,1,LIFETIME_SF))/ SUM(OFFSET('Shipments and Stock - SF'!BF$14,0,(-1*LIFETIME_SF)+1,1,LIFETIME_SF))) -> 24.58946
C17: POST-Case UEC | D17: =IF(D$15-$D$15+2<=LIFETIME_SF,D12, SUMPRODUCT(OFFSET(D12,0,(-1*LIFETIME_SF)+1,1,LIFETIME_SF),OFFSET('Shipments and Stock - SF'!E$14,0,(-1*LIFETIME_SF)+1,1,LIFETIME_SF))/ SUM(OFFSET('Shipments and Stock - SF'!E$14,0,(-1*LIFETIME_SF)+1,1,LIFETIME_SF))) -> 24.58946 | E17: =IF(E$15-$D$15+2<=LIFETIME_SF,E12, SUMPRODUCT(OFFSET(E12,0,(-1*LIFETIME_SF)+1,1,LIFETIME_SF),OFFSET('Shipments and Stock - SF'!F$14,0,(-1*LIFETIME_SF)+1,1,LIFETIME_SF))/ SUM(OFFSET('Shipments and Stock - SF'!F$14,0,(-1*LIFETIME_SF)+1,1,LIFETIME_SF))) -> 24.58946 | F17: =IF(F$15-$D$15+2<=LIFETIME_SF,F12, SUMPRODUCT(OFFSET(F12,0,(-1*LIFETIME_SF)+1,1,LIFETIME_SF),OFFSET('Shipments and Stock - SF'!G$14,0,(-1*LIFETIME_SF)+1,1,LIFETIME_SF))/ SUM(OFFSET('Shipments and Stock - SF'!G$14,0,(-1*LIFETIME_SF)+1,1,LIFETIME_SF))) -> 24.58946 | G17: =IF(G$15-$D$15+2<=LIFETIME_SF,G12, SUMPRODUCT(OFFSET(G12,0,(-1*LIFETIME_SF)+1,1,LIFETIME_SF),OFFSET('Shipments and Stock - SF'!H$14,0,(-1*LIFETIME_SF)+1,1,LIFETIME_SF))/ SUM(OFFSET('Shipments and Stock - SF'!H$14,0,(-1*LIFETIME_SF)+1,1,LIFETIME_SF))) -> 24.58946 | H17: =IF(H$15-$D$15+2<=LIFETIME_SF,H12, SUMPRODUCT(OFFSET(H12,0,(-1*LIFETIME_SF)+1,1,LIFETIME_SF),OFFSET('Shipments and Stock - SF'!I$14,0,(-1*LIFETIME_SF)+1,1,LIFETIME_SF))/ SUM(OFFSET('Shipments and Stock - SF'!I$14,0,(-1*LIFETIME_SF)+1,1,LIFETIME_SF))) -> 24.58946 | I17: =IF(I$15-$D$15+2<=LIFETIME_SF,I12, SUMPRODUCT(OFFSET(I12,0,(-1*LIFETIME_SF)+1,1,LIFETIME_SF),OFFSET('Shipments and Stock - SF'!J$14,0,(-1*LIFETIME_SF)+1,1,LIFETIME_SF))/ SUM(OFFSET('Shipments and Stock - SF'!J$14,0,(-1*LIFETIME_SF)+1,1,LIFETIME_SF))) -> 24.58946 | J17: =IF(J$15-$D$15+2<=LIFETIME_SF,J12, SUMPRODUCT(OFFSET(J12,0,(-1*LIFETIME_SF)+1,1,LIFETIME_SF),OFFSET('Shipments and Stock - SF'!K$14,0,(-1*LIFETIME_SF)+1,1,LIFETIME_SF))/ SUM(OFFSET('Shipments and Stock - SF'!K$14,0,(-1*LIFETIME_SF)+1,1,LIFETIME_SF))) -> 24.58946 | K17: =IF(K$15-$D$15+2<=LIFETIME_SF,K12, SUMPRODUCT(OFFSET(K12,0,(-1*LIFETIME_SF)+1,1,LIFETIME_SF),OFFSET('Shipments and Stock - SF'!L$14,0,(-1*LIFETIME_SF)+1,1,LIFETIME_SF))/ SUM(OFFSET('Shipments and Stock - SF'!L$14,0,(-1*LIFETIME_SF)+1,1,LIFETIME_SF))) -> 24.58946 | L17: =IF(L$15-$D$15+2<=LIFETIME_SF,L12, SUMPRODUCT(OFFSET(L12,0,(-1*LIFETIME_SF)+1,1,LIFETIME_SF),OFFSET('Shipments and Stock - SF'!M$14,0,(-1*LIFETIME_SF)+1,1,LIFETIME_SF))/ SUM(OFFSET('Shipments and Stock - SF'!M$14,0,(-1*LIFETIME_SF)+1,1,LIFETIME_SF))) -> 24.58946 | M17: =IF(M$15-$D$15+2<=LIFETIME_SF,M12, SUMPRODUCT(OFFSET(M12,0,(-1*LIFETIME_SF)+1,1,LIFETIME_SF),OFFSET('Shipments and Stock - SF'!N$14,0,(-1*LIFETIME_SF)+1,1,LIFETIME_SF))/ SUM(OFFSET('Shipments and Stock - SF'!N$14,0,(-1*LIFETIME_SF)+1,1,LIFETIME_SF))) -> 24.58946 | N17: =IF(N$15-$D$15+2<=LIFETIME_SF,N12, SUMPRODUCT(OFFSET(N12,0,(-1*LIFETIME_SF)+1,1,LIFETIME_SF),OFFSET('Shipments and Stock - SF'!O$14,0,(-1*LIFETIME_SF)+1,1,LIFETIME_SF))/ SUM(OFFSET('Shipments and Stock - SF'!O$14,0,(-1*LIFETIME_SF)+1,1,LIFETIME_SF))) -> 24.58946 | O17: =IF(O$15-$D$15+2<=LIFETIME_SF,O12, SUMPRODUCT(OFFSET(O12,0,(-1*LIFETIME_SF)+1,1,LIFETIME_SF),OFFSET('Shipments and Stock - SF'!P$14,0,(-1*LIFETIME_SF)+1,1,LIFETIME_SF))/ SUM(OFFSET('Shipments and Stock - SF'!P$14,0,(-1*LIFETIME_SF)+1,1,LIFETIME_SF))) -> 24.58946 | P17: =IF(P$15-$D$15+2<=LIFETIME_SF,P12, SUMPRODUCT(OFFSET(P12,0,(-1*LIFETIME_SF)+1,1,LIFETIME_SF),OFFSET('Shipments and Stock - SF'!Q$14,0,(-1*LIFETIME_SF)+1,1,LIFETIME_SF))/ SUM(OFFSET('Shipments and Stock - SF'!Q$14,0,(-1*LIFETIME_SF)+1,1,LIFETIME_SF))) -> 24.58946 | Q17: =IF(Q$15-$D$15+2<=LIFETIME_SF,Q12, SUMPRODUCT(OFFSET(Q12,0,(-1*LIFETIME_SF)+1,1,LIFETIME_SF),OFFSET('Shipments and Stock - SF'!R$14,0,(-1*LIFETIME_SF)+1,1,LIFETIME_SF))/ SUM(OFFSET('Shipments and Stock - SF'!R$14,0,(-1*LIFETIME_SF)+1,1,LIFETIME_SF))) -> 24.58946 | R17: =IF(R$15-$D$15+2<=LIFETIME_SF,R12, SUMPRODUCT(OFFSET(R12,0,(-1*LIFETIME_SF)+1,1,LIFETIME_SF),OFFSET('Shipments and Stock - SF'!S$14,0,(-1*LIFETIME_SF)+1,1,LIFETIME_SF))/ SUM(OFFSET('Shipments and Stock - SF'!S$14,0,(-1*LIFETIME_SF)+1,1,LIFETIME_SF))) -> 24.58946 | S17: =IF(S$15-$D$15+2<=LIFETIME_SF,S12, SUMPRODUCT(OFFSET(S12,0,(-1*LIFETIME_SF)+1,1,LIFETIME_SF),OFFSET('Shipments and Stock - SF'!T$14,0,(-1*LIFETIME_SF)+1,1,LIFETIME_SF))/ SUM(OFFSET('Shipments and Stock - SF'!T$14,0,(-1*LIFETIME_SF)+1,1,LIFETIME_SF))) -> 24.58946 | T17: =IF(T$15-$D$15+2<=LIFETIME_SF,T12, SUMPRODUCT(OFFSET(T12,0,(-1*LIFETIME_SF)+1,1,LIFETIME_SF),OFFSET('Shipments and Stock - SF'!U$14,0,(-1*LIFETIME_SF)+1,1,LIFETIME_SF))/ SUM(OFFSET('Shipments and Stock - SF'!U$14,0,(-1*LIFETIME_SF)+1,1,LIFETIME_SF))) -> 24.58946 | U17: =IF(U$15-$D$15+2<=LIFETIME_SF,U12, SUMPRODUCT(OFFSET(U12,0,(-1*LIFETIME_SF)+1,1,LIFETIME_SF),OFFSET('Shipments and Stock - SF'!V$14,0,(-1*LIFETIME_SF)+1,1,LIFETIME_SF))/ SUM(OFFSET('Shipments and Stock - SF'!V$14,0,(-1*LIFETIME_SF)+1,1,LIFETIME_SF))) -> 24.58946 | V17: =IF(V$15-$D$15+2<=LIFETIME_SF,V12, SUMPRODUCT(OFFSET(V12,0,(-1*LIFETIME_SF)+1,1,LIFETIME_SF),OFFSET('Shipments and Stock - SF'!W$14,0,(-1*LIFETIME_SF)+1,1,LIFETIME_SF))/ SUM(OFFSET('Shipments and Stock - SF'!W$14,0,(-1*LIFETIME_SF)+1,1,LIFETIME_SF))) -> 24.58946 | W17: =IF(W$15-$D$15+2<=LIFETIME_SF,W12, SUMPRODUCT(OFFSET(W12,0,(-1*LIFETIME_SF)+1,1,LIFETIME_SF),OFFSET('Shipments and Stock - SF'!X$14,0,(-1*LIFETIME_SF)+1,1,LIFETIME_SF))/ SUM(OFFSET('Shipments and Stock - SF'!X$14,0,(-1*LIFETIME_SF)+1,1,LIFETIME_SF))) -> 24.58946 | X17: =IF(X$15-$D$15+2<=LIFETIME_SF,X12, SUMPRODUCT(OFFSET(X12,0,(-1*LIFETIME_SF)+1,1,LIFETIME_SF),OFFSET('Shipments and Stock - SF'!Y$14,0,(-1*LIFETIME_SF)+1,1,LIFETIME_SF))/ SUM(OFFSET('Shipments and Stock - SF'!Y$14,0,(-1*LIFETIME_SF)+1,1,LIFETIME_SF))) -> 24.58946 | Y17: =IF(Y$15-$D$15+2<=LIFETIME_SF,Y12, SUMPRODUCT(OFFSET(Y12,0,(-1*LIFETIME_SF)+1,1,LIFETIME_SF),OFFSET('Shipments and Stock - SF'!Z$14,0,(-1*LIFETIME_SF)+1,1,LIFETIME_SF))/ SUM(OFFSET('Shipments and Stock - SF'!Z$14,0,(-1*LIFETIME_SF)+1,1,LIFETIME_SF))) -> 24.58946 | Z17: =IF(Z$15-$D$15+2<=LIFETIME_SF,Z12, SUMPRODUCT(OFFSET(Z12,0,(-1*LIFETIME_SF)+1,1,LIFETIME_SF),OFFSET('Shipments and Stock - SF'!AA$14,0,(-1*LIFETIME_SF)+1,1,LIFETIME_SF))/ SUM(OFFSET('Shipments and Stock - SF'!AA$14,0,(-1*LIFETIME_SF)+1,1,LIFETIME_SF))) -> 24.58946 | AA17: =IF(AA$15-$D$15+2<=LIFETIME_SF,AA12, SUMPRODUCT(OFFSET(AA12,0,(-1*LIFETIME_SF)+1,1,LIFETIME_SF),OFFSET('Shipments and Stock - SF'!AB$14,0,(-1*LIFETIME_SF)+1,1,LIFETIME_SF))/ SUM(OFFSET('Shipments and Stock - SF'!AB$14,0,(-1*LIFETIME_SF)+1,1,LIFETIME_SF))) -> 24.58946 | AB17: =IF(AB$15-$D$15+2<=LIFETIME_SF,AB12, SUMPRODUCT(OFFSET(AB12,0,(-1*LIFETIME_SF)+1,1,LIFETIME_SF),OFFSET('Shipments and Stock - SF'!AC$14,0,(-1*LIFETIME_SF)+1,1,LIFETIME_SF))/ SUM(OFFSET('Shipments and Stock - SF'!AC$14,0,(-1*LIFETIME_SF)+1,1,LIFETIME_SF))) -> 24.58946 | AC17: =IF(AC$15-$D$15+2<=LIFETIME_SF,AC12, SUMPRODUCT(OFFSET(AC12,0,(-1*LIFETIME_SF)+1,1,LIFETIME_SF),OFFSET('Shipments and Stock - SF'!AD$14,0,(-1*LIFETIME_SF)+1,1,LIFETIME_SF))/ SUM(OFFSET('Shipments and Stock - SF'!AD$14,0,(-1*LIFETIME_SF)+1,1,LIFETIME_SF))) -> 24.58946 | AD17: =IF(AD$15-$D$15+2<=LIFETIME_SF,AD12, SUMPRODUCT(OFFSET(AD12,0,(-1*LIFETIME_SF)+1,1,LIFETIME_SF),OFFSET('Shipments and Stock - SF'!AE$14,0,(-1*LIFETIME_SF)+1,1,LIFETIME_SF))/ SUM(OFFSET('Shipments and Stock - SF'!AE$14,0,(-1*LIFETIME_SF)+1,1,LIFETIME_SF))) -> 24.58946 | AE17: =IF(AE$15-$D$15+2<=LIFETIME_SF,AE12, SUMPRODUCT(OFFSET(AE12,0,(-1*LIFETIME_SF)+1,1,LIFETIME_SF),OFFSET('Shipments and Stock - SF'!AF$14,0,(-1*LIFETIME_SF)+1,1,LIFETIME_SF))/ SUM(OFFSET('Shipments and Stock - SF'!AF$14,0,(-1*LIFETIME_SF)+1,1,LIFETIME_SF))) -> 24.58946 | AF17: =IF(AF$15-$D$15+2<=LIFETIME_SF,AF12, SUMPRODUCT(OFFSET(AF12,0,(-1*LIFETIME_SF)+1,1,LIFETIME_SF),OFFSET('Shipments and Stock - SF'!AG$14,0,(-1*LIFETIME_SF)+1,1,LIFETIME_SF))/ SUM(OFFSET('Shipments and Stock - SF'!AG$14,0,(-1*LIFETIME_SF)+1,1,LIFETIME_SF))) -> 24.58946 | AG17: =IF(AG$15-$D$15+2<=LIFETIME_SF,AG12, SUMPRODUCT(OFFSET(AG12,0,(-1*LIFETIME_SF)+1,1,LIFETIME_SF),OFFSET('Shipments and Stock - SF'!AH$14,0,(-1*LIFETIME_SF)+1,1,LIFETIME_SF))/ SUM(OFFSET('Shipments and Stock - SF'!AH$14,0,(-1*LIFETIME_SF)+1,1,LIFETIME_SF))) -> 24.58946 | AH17: =IF(AH$15-$D$15+2<=LIFETIME_SF,AH12, SUMPRODUCT(OFFSET(AH12,0,(-1*LIFETIME_SF)+1,1,LIFETIME_SF),OFFSET('Shipments and Stock - SF'!AI$14,0,(-1*LIFETIME_SF)+1,1,LIFETIME_SF))/ SUM(OFFSET('Shipments and Stock - SF'!AI$14,0,(-1*LIFETIME_SF)+1,1,LIFETIME_SF))) -> 24.58946 | AI17: =IF(AI$15-$D$15+2<=LIFETIME_SF,AI12, SUMPRODUCT(OFFSET(AI12,0,(-1*LIFETIME_SF)+1,1,LIFETIME_SF),OFFSET('Shipments and Stock - SF'!AJ$14,0,(-1*LIFETIME_SF)+1,1,LIFETIME_SF))/ SUM(OFFSET('Shipments and Stock - SF'!AJ$14,0,(-1*LIFETIME_SF)+1,1,LIFETIME_SF))) -> 24.58946 | AJ17: =IF(AJ$15-$D$15+2<=LIFETIME_SF,AJ12, SUMPRODUCT(OFFSET(AJ12,0,(-1*LIFETIME_SF)+1,1,LIFETIME_SF),OFFSET('Shipments and Stock - SF'!AK$14,0,(-1*LIFETIME_SF)+1,1,LIFETIME_SF))/ SUM(OFFSET('Shipments and Stock - SF'!AK$14,0,(-1*LIFETIME_SF)+1,1,LIFETIME_SF))) -> 24.58946 | AK17: =IF(AK$15-$D$15+2<=LIFETIME_SF,AK12, SUMPRODUCT(OFFSET(AK12,0,(-1*LIFETIME_SF)+1,1,LIFETIME_SF),OFFSET('Shipments and Stock - SF'!AL$14,0,(-1*LIFETIME_SF)+1,1,LIFETIME_SF))/ SUM(OFFSET('Shipments and Stock - SF'!AL$14,0,(-1*LIFETIME_SF)+1,1,LIFETIME_SF))) -> 24.58946 | AL17: =IF(AL$15-$D$15+2<=LIFETIME_SF,AL12, SUMPRODUCT(OFFSET(AL12,0,(-1*LIFETIME_SF)+1,1,LIFETIME_SF),OFFSET('Shipments and Stock - SF'!AM$14,0,(-1*LIFETIME_SF)+1,1,LIFETIME_SF))/ SUM(OFFSET('Shipments and Stock - SF'!AM$14,0,(-1*LIFETIME_SF)+1,1,LIFETIME_SF))) -> 24.58946 | AM17: =IF(AM$15-$D$15+2<=LIFETIME_SF,AM12, SUMPRODUCT(OFFSET(AM12,0,(-1*LIFETIME_SF)+1,1,LIFETIME_SF),OFFSET('Shipments and Stock - SF'!AN$14,0,(-1*LIFETIME_SF)+1,1,LIFETIME_SF))/ SUM(OFFSET('Shipments and Stock - SF'!AN$14,0,(-1*LIFETIME_SF)+1,1,LIFETIME_SF))) -> 22.75394396 | AN17: =IF(AN$15-$D$15+2<=LIFETIME_SF,AN12, SUMPRODUCT(OFFSET(AN12,0,(-1*LIFETIME_SF)+1,1,LIFETIME_SF),OFFSET('Shipments and Stock - SF'!AO$14,0,(-1*LIFETIME_SF)+1,1,LIFETIME_SF))/ SUM(OFFSET('Shipments and Stock - SF'!AO$14,0,(-1*LIFETIME_SF)+1,1,LIFETIME_SF))) -> 20.93378625 | AO17: =IF(AO$15-$D$15+2<=LIFETIME_SF,AO12, SUMPRODUCT(OFFSET(AO12,0,(-1*LIFETIME_SF)+1,1,LIFETIME_SF),OFFSET('Shipments and Stock - SF'!AP$14,0,(-1*LIFETIME_SF)+1,1,LIFETIME_SF))/ SUM(OFFSET('Shipments and Stock - SF'!AP$14,0,(-1*LIFETIME_SF)+1,1,LIFETIME_SF))) -> 19.26373549 | AP17: =IF(AP$15-$D$15+2<=LIFETIME_SF,AP12, SUMPRODUCT(OFFSET(AP12,0,(-1*LIFETIME_SF)+1,1,LIFETIME_SF),OFFSET('Shipments and Stock - SF'!AQ$14,0,(-1*LIFETIME_SF)+1,1,LIFETIME_SF))/ SUM(OFFSET('Shipments and Stock - SF'!AQ$14,0,(-1*LIFETIME_SF)+1,1,LIFETIME_SF))) -> 17.51025076 | AQ17: =IF(AQ$15-$D$15+2<=LIFETIME_SF,AQ12, SUMPRODUCT(OFFSET(AQ12,0,(-1*LIFETIME_SF)+1,1,LIFETIME_SF),OFFSET('Shipments and Stock - SF'!AR$14,0,(-1*LIFETIME_SF)+1,1,LIFETIME_SF))/ SUM(OFFSET('Shipments and Stock - SF'!AR$14,0,(-1*LIFETIME_SF)+1,1,LIFETIME_SF))) -> 15.68131558 | AR17: =IF(AR$15-$D$15+2<=LIFETIME_SF,AR12, SUMPRODUCT(OFFSET(AR12,0,(-1*LIFETIME_SF)+1,1,LIFETIME_SF),OFFSET('Shipments and Stock - SF'!AS$14,0,(-1*LIFETIME_SF)+1,1,LIFETIME_SF))/ SUM(OFFSET('Shipments and Stock - SF'!AS$14,0,(-1*LIFETIME_SF)+1,1,LIFETIME_SF))) -> 13.88612659 | AS17: =IF(AS$15-$D$15+2<=LIFETIME_SF,AS12, SUMPRODUCT(OFFSET(AS12,0,(-1*LIFETIME_SF)+1,1,LIFETIME_SF),OFFSET('Shipments and Stock - SF'!AT$14,0,(-1*LIFETIME_SF)+1,1,LIFETIME_SF))/ SUM(OFFSET('Shipments and Stock - SF'!AT$14,0,(-1*LIFETIME_SF)+1,1,LIFETIME_SF))) -> 12.13160467 | AT17: =IF(AT$15-$D$15+2<=LIFETIME_SF,AT12, SUMPRODUCT(OFFSET(AT12,0,(-1*LIFETIME_SF)+1,1,LIFETIME_SF),OFFSET('Shipments and Stock - SF'!AU$14,0,(-1*LIFETIME_SF)+1,1,LIFETIME_SF))/ SUM(OFFSET('Shipments and Stock - SF'!AU$14,0,(-1*LIFETIME_SF)+1,1,LIFETIME_SF))) -> 10.3852179 | AU17: =IF(AU$15-$D$15+2<=LIFETIME_SF,AU12, SUMPRODUCT(OFFSET(AU12,0,(-1*LIFETIME_SF)+1,1,LIFETIME_SF),OFFSET('Shipments and Stock - SF'!AV$14,0,(-1*LIFETIME_SF)+1,1,LIFETIME_SF))/ SUM(OFFSET('Shipments and Stock - SF'!AV$14,0,(-1*LIFETIME_SF)+1,1,LIFETIME_SF))) -> 8.695 | AV17: =IF(AV$15-$D$15+2<=LIFETIME_SF,AV12, SUMPRODUCT(OFFSET(AV12,0,(-1*LIFETIME_SF)+1,1,LIFETIME_SF),OFFSET('Shipments and Stock - SF'!AW$14,0,(-1*LIFETIME_SF)+1,1,LIFETIME_SF))/ SUM(OFFSET('Shipments and Stock - SF'!AW$14,0,(-1*LIFETIME_SF)+1,1,LIFETIME_SF))) -> 8.695 | AW17: =IF(AW$15-$D$15+2<=LIFETIME_SF,AW12, SUMPRODUCT(OFFSET(AW12,0,(-1*LIFETIME_SF)+1,1,LIFETIME_SF),OFFSET('Shipments and Stock - SF'!AX$14,0,(-1*LIFETIME_SF)+1,1,LIFETIME_SF))/ SUM(OFFSET('Shipments and Stock - SF'!AX$14,0,(-1*LIFETIME_SF)+1,1,LIFETIME_SF))) -> 8.695 | AX17: =IF(AX$15-$D$15+2<=LIFETIME_SF,AX12, SUMPRODUCT(OFFSET(AX12,0,(-1*LIFETIME_SF)+1,1,LIFETIME_SF),OFFSET('Shipments and Stock - SF'!AY$14,0,(-1*LIFETIME_SF)+1,1,LIFETIME_SF))/ SUM(OFFSET('Shipments and Stock - SF'!AY$14,0,(-1*LIFETIME_SF)+1,1,LIFETIME_SF))) -> 8.695 | AY17: =IF(AY$15-$D$15+2<=LIFETIME_SF,AY12, SUMPRODUCT(OFFSET(AY12,0,(-1*LIFETIME_SF)+1,1,LIFETIME_SF),OFFSET('Shipments and Stock - SF'!AZ$14,0,(-1*LIFETIME_SF)+1,1,LIFETIME_SF))/ SUM(OFFSET('Shipments and Stock - SF'!AZ$14,0,(-1*LIFETIME_SF)+1,1,LIFETIME_SF))) -> 8.695 | AZ17: =IF(AZ$15-$D$15+2<=LIFETIME_SF,AZ12, SUMPRODUCT(OFFSET(AZ12,0,(-1*LIFETIME_SF)+1,1,LIFETIME_SF),OFFSET('Shipments and Stock - SF'!BA$14,0,(-1*LIFETIME_SF)+1,1,LIFETIME_SF))/ SUM(OFFSET('Shipments and Stock - SF'!BA$14,0,(-1*LIFETIME_SF)+1,1,LIFETIME_SF))) -> 8.695 | BA17: =IF(BA$15-$D$15+2<=LIFETIME_SF,BA12, SUMPRODUCT(OFFSET(BA12,0,(-1*LIFETIME_SF)+1,1,LIFETIME_SF),OFFSET('Shipments and Stock - SF'!BB$14,0,(-1*LIFETIME_SF)+1,1,LIFETIME_SF))/ SUM(OFFSET('Shipments and Stock - SF'!BB$14,0,(-1*LIFETIME_SF)+1,1,LIFETIME_SF))) -> 8.695 | BB17: =IF(BB$15-$D$15+2<=LIFETIME_SF,BB12, SUMPRODUCT(OFFSET(BB12,0,(-1*LIFETIME_SF)+1,1,LIFETIME_SF),OFFSET('Shipments and Stock - SF'!BC$14,0,(-1*LIFETIME_SF)+1,1,LIFETIME_SF))/ SUM(OFFSET('Shipments and Stock - SF'!BC$14,0,(-1*LIFETIME_SF)+1,1,LIFETIME_SF))) -> 8.695 | BC17: =IF(BC$15-$D$15+2<=LIFETIME_SF,BC12, SUMPRODUCT(OFFSET(BC12,0,(-1*LIFETIME_SF)+1,1,LIFETIME_SF),OFFSET('Shipments and Stock - SF'!BD$14,0,(-1*LIFETIME_SF)+1,1,LIFETIME_SF))/ SUM(OFFSET('Shipments and Stock - SF'!BD$14,0,(-1*LIFETIME_SF)+1,1,LIFETIME_SF))) -> 8.695 | BD17: =IF(BD$15-$D$15+2<=LIFETIME_SF,BD12, SUMPRODUCT(OFFSET(BD12,0,(-1*LIFETIME_SF)+1,1,LIFETIME_SF),OFFSET('Shipments and Stock - SF'!BE$14,0,(-1*LIFETIME_SF)+1,1,LIFETIME_SF))/ SUM(OFFSET('Shipments and Stock - SF'!BE$14,0,(-1*LIFETIME_SF)+1,1,LIFETIME_SF))) -> 8.695 | BE17: =IF(BE$15-$D$15+2<=LIFETIME_SF,BE12, SUMPRODUCT(OFFSET(BE12,0,(-1*LIFETIME_SF)+1,1,LIFETIME_SF),OFFSET('Shipments and Stock - SF'!BF$14,0,(-1*LIFETIME_SF)+1,1,LIFETIME_SF))/ SUM(OFFSET('Shipments and Stock - SF'!BF$14,0,(-1*LIFETIME_SF)+1,1,LIFETIME_SF))) -> 8.695

Sheet UEC-MF
C2: Weighted Annual UEC - Multi-Family
C4: NAVIGATION
C6: COMMENTS
C9: Market UEC (Shipment Weighted Average)
D10: 1981 | E10: 1982 | F10: 1983 | G10: 1984 | H10: 1985 | I10: 1986 | J10: 1987 | K10: 1988 | L10: 1989 | M10: 1990 | N10: 1991 | O10: 1992 | P10: 1993 | Q10: 1994 | R10: 1995 | S10: 1996 | T10: 1997 | U10: 1998 | V10: 1999 | W10: 2000 | X10: 2001 | Y10: 2002 | Z10: 2003 | AA10: 2004 | AB10: 2005 | AC10: 2006 | AD10: 2007 | AE10: 2008 | AF10: 2009 | AG10: 2010 | AH10: 2011 | AI10: 2012 | AJ10: 2013 | AK10: 2014 | AL10: 2015 | AM10: 2016 | AN10: 2017 | AO10: 2018 | AP10: 2019 | AQ10: 2020 | AR10: 2021 | AS10: 2022 | AT10: 2023 | AU10: 2024 | AV10: 2025 | AW10: 2026 | AX10: 2027 | AY10: 2028 | AZ10: 2029 | BA10: 2030 | BB10: 2031 | BC10: 2032 | BD10: 2033 | BE10: 2034
C11: PRE-Case UEC | D11: =SUMPRODUCT('UEC Development'!$L$14:$L$18,'Efficiency Dist - MF'!H$13:H$17) -> 24.58946 | E11: =SUMPRODUCT('UEC Development'!$L$14:$L$18,'Efficiency Dist - MF'!I$13:I$17) -> 24.58946 | F11: =SUMPRODUCT('UEC Development'!$L$14:$L$18,'Efficiency Dist - MF'!J$13:J$17) -> 24.58946 | G11: =SUMPRODUCT('UEC Development'!$L$14:$L$18,'Efficiency Dist - MF'!K$13:K$17) -> 24.58946 | H11: =SUMPRODUCT('UEC Development'!$L$14:$L$18,'Efficiency Dist - MF'!L$13:L$17) -> 24.58946 | I11: =SUMPRODUCT('UEC Development'!$L$14:$L$18,'Efficiency Dist - MF'!M$13:M$17) -> 24.58946 | J11: =SUMPRODUCT('UEC Development'!$L$14:$L$18,'Efficiency Dist - MF'!N$13:N$17) -> 24.58946 | K11: =SUMPRODUCT('UEC Development'!$L$14:$L$18,'Efficiency Dist - MF'!O$13:O$17) -> 24.58946 | L11: =SUMPRODUCT('UEC Development'!$L$14:$L$18,'Efficiency Dist - MF'!P$13:P$17) -> 24.58946 | M11: =SUMPRODUCT('UEC Development'!$L$14:$L$18,'Efficiency Dist - MF'!Q$13:Q$17) -> 24.58946 | N11: =SUMPRODUCT('UEC Development'!$L$14:$L$18,'Efficiency Dist - MF'!R$13:R$17) -> 24.58946 | O11: =SUMPRODUCT('UEC Development'!$L$14:$L$18,'Efficiency Dist - MF'!S$13:S$17) -> 24.58946 | P11: =SUMPRODUCT('UEC Development'!$L$14:$L$18,'Efficiency Dist - MF'!T$13:T$17) -> 24.58946 | Q11: =SUMPRODUCT('UEC Development'!$L$14:$L$18,'Efficiency Dist - MF'!U$13:U$17) -> 24.58946 | R11: =SUMPRODUCT('UEC Development'!$L$14:$L$18,'Efficiency Dist - MF'!V$13:V$17) -> 24.58946 | S11: =SUMPRODUCT('UEC Development'!$L$14:$L$18,'Efficiency Dist - MF'!W$13:W$17) -> 24.58946 | T11: =SUMPRODUCT('UEC Development'!$L$14:$L$18,'Efficiency Dist - MF'!X$13:X$17) -> 24.58946 | U11: =SUMPRODUCT('UEC Development'!$L$14:$L$18,'Efficiency Dist - MF'!Y$13:Y$17) -> 24.58946 | V11: =SUMPRODUCT('UEC Development'!$L$14:$L$18,'Efficiency Dist - MF'!Z$13:Z$17) -> 24.58946 | W11: =SUMPRODUCT('UEC Development'!$L$14:$L$18,'Efficiency Dist - MF'!AA$13:AA$17) -> 24.58946 | X11: =SUMPRODUCT('UEC Development'!$L$14:$L$18,'Efficiency Dist - MF'!AB$13:AB$17) -> 24.58946 | Y11: =SUMPRODUCT('UEC Development'!$L$14:$L$18,'Efficiency Dist - MF'!AC$13:AC$17) -> 24.58946 | Z11: =SUMPRODUCT('UEC Development'!$L$14:$L$18,'Efficiency Dist - MF'!AD$13:AD$17) -> 24.58946 | AA11: =SUMPRODUCT('UEC Development'!$L$14:$L$18,'Efficiency Dist - MF'!AE$13:AE$17) -> 24.58946 | AB11: =SUMPRODUCT('UEC Development'!$L$14:$L$18,'Efficiency Dist - MF'!AF$13:AF$17) -> 24.58946 | AC11: =SUMPRODUCT('UEC Development'!$L$14:$L$18,'Efficiency Dist - MF'!AG$13:AG$17) -> 24.58946 | AD11: =SUMPRODUCT('UEC Development'!$L$14:$L$18,'Efficiency Dist - MF'!AH$13:AH$17) -> 24.58946 | AE11: =SUMPRODUCT('UEC Development'!$L$14:$L$18,'Efficiency Dist - MF'!AI$13:AI$17) -> 24.58946 | AF11: =SUMPRODUCT('UEC Development'!$L$14:$L$18,'Efficiency Dist - MF'!AJ$13:AJ$17) -> 24.58946 | AG11: =SUMPRODUCT('UEC Development'!$L$14:$L$18,'Efficiency Dist - MF'!AK$13:AK$17) -> 24.58946 | AH11: =SUMPRODUCT('UEC Development'!$L$14:$L$18,'Efficiency Dist - MF'!AL$13:AL$17) -> 24.58946 | AI11: =SUMPRODUCT('UEC Development'!$L$14:$L$18,'Efficiency Dist - MF'!AM$13:AM$17) -> 24.58946 | AJ11: =SUMPRODUCT('UEC Development'!$L$14:$L$18,'Efficiency Dist - MF'!AN$13:AN$17) -> 24.58946 | AK11: =SUMPRODUCT('UEC Development'!$L$14:$L$18,'Efficiency Dist - MF'!AO$13:AO$17) -> 24.58946 | AL11: =SUMPRODUCT('UEC Development'!$L$14:$L$18,'Efficiency Dist - MF'!AP$13:AP$17) -> 24.58946 | AM11: =SUMPRODUCT('UEC Development'!$L$14:$L$18,'Efficiency Dist - MF'!AQ$13:AQ$17) -> 24.58946 | AN11: =SUMPRODUCT('UEC Development'!$L$14:$L$18,'Efficiency Dist - MF'!AR$13:AR$17) -> 24.58946 | AO11: =SUMPRODUCT('UEC Development'!$L$14:$L$18,'Efficiency Dist - MF'!AS$13:AS$17) -> 24.58946 | AP11: =SUMPRODUCT('UEC Development'!$L$14:$L$18,'Efficiency Dist - MF'!AT$13:AT$17) -> 24.58946 | AQ11: =SUMPRODUCT('UEC Development'!$L$14:$L$18,'Efficiency Dist - MF'!AU$13:AU$17) -> 24.58946 | AR11: =SUMPRODUCT('UEC Development'!$L$14:$L$18,'Efficiency Dist - MF'!AV$13:AV$17) -> 24.58946 | AS11: =SUMPRODUCT('UEC Development'!$L$14:$L$18,'Efficiency Dist - MF'!AW$13:AW$17) -> 24.58946 | AT11: =SUMPRODUCT('UEC Development'!$L$14:$L$18,'Efficiency Dist - MF'!AX$13:AX$17) -> 24.58946 | AU11: =SUMPRODUCT('UEC Development'!$L$14:$L$18,'Efficiency Dist - MF'!AY$13:AY$17) -> 24.58946 | AV11: =SUMPRODUCT('UEC Development'!$L$14:$L$18,'Efficiency Dist - MF'!AZ$13:AZ$17) -> 24.58946 | AW11: =SUMPRODUCT('UEC Development'!$L$14:$L$18,'Efficiency Dist - MF'!BA$13:BA$17) -> 24.58946 | AX11: =SUMPRODUCT('UEC Development'!$L$14:$L$18,'Efficiency Dist - MF'!BB$13:BB$17) -> 24.58946 | AY11: =SUMPRODUCT('UEC Development'!$L$14:$L$18,'Efficiency Dist - MF'!BC$13:BC$17) -> 24.58946 | AZ11: =SUMPRODUCT('UEC Development'!$L$14:$L$18,'Efficiency Dist - MF'!BD$13:BD$17) -> 24.58946 | BA11: =SUMPRODUCT('UEC Development'!$L$14:$L$18,'Efficiency Dist - MF'!BE$13:BE$17) -> 24.58946 | BB11: =SUMPRODUCT('UEC Development'!$L$14:$L$18,'Efficiency Dist - MF'!BF$13:BF$17) -> 24.58946 | BC11: =SUMPRODUCT('UEC Development'!$L$14:$L$18,'Efficiency Dist - MF'!BG$13:BG$17) -> 24.58946 | BD11: =SUMPRODUCT('UEC Development'!$L$14:$L$18,'Efficiency Dist - MF'!BH$13:BH$17) -> 24.58946 | BE11: =SUMPRODUCT('UEC Development'!$L$14:$L$18,'Efficiency Dist - MF'!BI$13:BI$17) -> 24.58946
C12: POST-Case UEC | D12: =SUMPRODUCT('UEC Development'!$L$14:$L$18,'Efficiency Dist - MF'!H$22:H$26) -> 24.58946 | E12: =SUMPRODUCT('UEC Development'!$L$14:$L$18,'Efficiency Dist - MF'!I$22:I$26) -> 24.58946 | F12: =SUMPRODUCT('UEC Development'!$L$14:$L$18,'Efficiency Dist - MF'!J$22:J$26) -> 24.58946 | G12: =SUMPRODUCT('UEC Development'!$L$14:$L$18,'Efficiency Dist - MF'!K$22:K$26) -> 24.58946 | H12: =SUMPRODUCT('UEC Development'!$L$14:$L$18,'Efficiency Dist - MF'!L$22:L$26) -> 24.58946 | I12: =SUMPRODUCT('UEC Development'!$L$14:$L$18,'Efficiency Dist - MF'!M$22:M$26) -> 24.58946 | J12: =SUMPRODUCT('UEC Development'!$L$14:$L$18,'Efficiency Dist - MF'!N$22:N$26) -> 24.58946 | K12: =SUMPRODUCT('UEC Development'!$L$14:$L$18,'Efficiency Dist - MF'!O$22:O$26) -> 24.58946 | L12: =SUMPRODUCT('UEC Development'!$L$14:$L$18,'Efficiency Dist - MF'!P$22:P$26) -> 24.58946 | M12: =SUMPRODUCT('UEC Development'!$L$14:$L$18,'Efficiency Dist - MF'!Q$22:Q$26) -> 24.58946 | N12: =SUMPRODUCT('UEC Development'!$L$14:$L$18,'Efficiency Dist - MF'!R$22:R$26) -> 24.58946 | O12: =SUMPRODUCT('UEC Development'!$L$14:$L$18,'Efficiency Dist - MF'!S$22:S$26) -> 24.58946 | P12: =SUMPRODUCT('UEC Development'!$L$14:$L$18,'Efficiency Dist - MF'!T$22:T$26) -> 24.58946 | Q12: =SUMPRODUCT('UEC Development'!$L$14:$L$18,'Efficiency Dist - MF'!U$22:U$26) -> 24.58946 | R12: =SUMPRODUCT('UEC Development'!$L$14:$L$18,'Efficiency Dist - MF'!V$22:V$26) -> 24.58946 | S12: =SUMPRODUCT('UEC Development'!$L$14:$L$18,'Efficiency Dist - MF'!W$22:W$26) -> 24.58946 | T12: =SUMPRODUCT('UEC Development'!$L$14:$L$18,'Efficiency Dist - MF'!X$22:X$26) -> 24.58946 | U12: =SUMPRODUCT('UEC Development'!$L$14:$L$18,'Efficiency Dist - MF'!Y$22:Y$26) -> 24.58946 | V12: =SUMPRODUCT('UEC Development'!$L$14:$L$18,'Efficiency Dist - MF'!Z$22:Z$26) -> 24.58946 | W12: =SUMPRODUCT('UEC Development'!$L$14:$L$18,'Efficiency Dist - MF'!AA$22:AA$26) -> 24.58946 | X12: =SUMPRODUCT('UEC Development'!$L$14:$L$18,'Efficiency Dist - MF'!AB$22:AB$26) -> 24.58946 | Y12: =SUMPRODUCT('UEC Development'!$L$14:$L$18,'Efficiency Dist - MF'!AC$22:AC$26) -> 24.58946 | Z12: =SUMPRODUCT('UEC Development'!$L$14:$L$18,'Efficiency Dist - MF'!AD$22:AD$26) -> 24.58946 | AA12: =SUMPRODUCT('UEC Development'!$L$14:$L$18,'Efficiency Dist - MF'!AE$22:AE$26) -> 24.58946 | AB12: =SUMPRODUCT('UEC Development'!$L$14:$L$18,'Efficiency Dist - MF'!AF$22:AF$26) -> 24.58946 | AC12: =SUMPRODUCT('UEC Development'!$L$14:$L$18,'Efficiency Dist - MF'!AG$22:AG$26) -> 24.58946 | AD12: =SUMPRODUCT('UEC Development'!$L$14:$L$18,'Efficiency Dist - MF'!AH$22:AH$26) -> 24.58946 | AE12: =SUMPRODUCT('UEC Development'!$L$14:$L$18,'Efficiency Dist - MF'!AI$22:AI$26) -> 24.58946 | AF12: =SUMPRODUCT('UEC Development'!$L$14:$L$18,'Efficiency Dist - MF'!AJ$22:AJ$26) -> 24.58946 | AG12: =SUMPRODUCT('UEC Development'!$L$14:$L$18,'Efficiency Dist - MF'!AK$22:AK$26) -> 24.58946 | AH12: =SUMPRODUCT('UEC Development'!$L$14:$L$18,'Efficiency Dist - MF'!AL$22:AL$26) -> 24.58946 | AI12: =SUMPRODUCT('UEC Development'!$L$14:$L$18,'Efficiency Dist - MF'!AM$22:AM$26) -> 24.58946 | AJ12: =SUMPRODUCT('UEC Development'!$L$14:$L$18,'Efficiency Dist - MF'!AN$22:AN$26) -> 24.58946 | AK12: =SUMPRODUCT('UEC Development'!$L$14:$L$18,'Efficiency Dist - MF'!AO$22:AO$26) -> 24.58946 | AL12: =SUMPRODUCT('UEC Development'!$L$14:$L$18,'Efficiency Dist - MF'!AP$22:AP$26) -> 24.58946 | AM12: =SUMPRODUCT('UEC Development'!$L$14:$L$18,'Efficiency Dist - MF'!AQ$22:AQ$26) -> 8.695 | AN12: =SUMPRODUCT('UEC Development'!$L$14:$L$18,'Efficiency Dist - MF'!AR$22:AR$26) -> 8.695 | AO12: =SUMPRODUCT('UEC Development'!$L$14:$L$18,'Efficiency Dist - MF'!AS$22:AS$26) -> 8.695 | AP12: =SUMPRODUCT('UEC Development'!$L$14:$L$18,'Efficiency Dist - MF'!AT$22:AT$26) -> 8.695 | AQ12: =SUMPRODUCT('UEC Development'!$L$14:$L$18,'Efficiency Dist - MF'!AU$22:AU$26) -> 8.695 | AR12: =SUMPRODUCT('UEC Development'!$L$14:$L$18,'Efficiency Dist - MF'!AV$22:AV$26) -> 8.695 | AS12: =SUMPRODUCT('UEC Development'!$L$14:$L$18,'Efficiency Dist - MF'!AW$22:AW$26) -> 8.695 | AT12: =SUMPRODUCT('UEC Development'!$L$14:$L$18,'Efficiency Dist - MF'!AX$22:AX$26) -> 8.695 | AU12: =SUMPRODUCT('UEC Development'!$L$14:$L$18,'Efficiency Dist - MF'!AY$22:AY$26) -> 8.695 | AV12: =SUMPRODUCT('UEC Development'!$L$14:$L$18,'Efficiency Dist - MF'!AZ$22:AZ$26) -> 8.695 | AW12: =SUMPRODUCT('UEC Development'!$L$14:$L$18,'Efficiency Dist - MF'!BA$22:BA$26) -> 8.695 | AX12: =SUMPRODUCT('UEC Development'!$L$14:$L$18,'Efficiency Dist - MF'!BB$22:BB$26) -> 8.695 | AY12: =SUMPRODUCT('UEC Development'!$L$14:$L$18,'Efficiency Dist - MF'!BC$22:BC$26) -> 8.695 | AZ12: =SUMPRODUCT('UEC Development'!$L$14:$L$18,'Efficiency Dist - MF'!BD$22:BD$26) -> 8.695 | BA12: =SUMPRODUCT('UEC Development'!$L$14:$L$18,'Efficiency Dist - MF'!BE$22:BE$26) -> 8.695 | BB12: =SUMPRODUCT('UEC Development'!$L$14:$L$18,'Efficiency Dist - MF'!BF$22:BF$26) -> 8.695 | BC12: =SUMPRODUCT('UEC Development'!$L$14:$L$18,'Efficiency Dist - MF'!BG$22:BG$26) -> 8.695 | BD12: =SUMPRODUCT('UEC Development'!$L$14:$L$18,'Efficiency Dist - MF'!BH$22:BH$26) -> 8.695 | BE12: =SUMPRODUCT('UEC Development'!$L$14:$L$18,'Efficiency Dist - MF'!BI$22:BI$26) -> 8.695
C14: Installed UEC (Vintage Weighted Average)
D15: 1981 | E15: 1982 | F15: 1983 | G15: 1984 | H15: 1985 | I15: 1986 | J15: 1987 | K15: 1988 | L15: 1989 | M15: 1990 | N15: 1991 | O15: 1992 | P15: 1993 | Q15: 1994 | R15: 1995 | S15: 1996 | T15: 1997 | U15: 1998 | V15: 1999 | W15: 2000 | X15: 2001 | Y15: 2002 | Z15: 2003 | AA15: 2004 | AB15: 2005 | AC15: 2006 | AD15: 2007 | AE15: 2008 | AF15: 2009 | AG15: 2010 | AH15: 2011 | AI15: 2012 | AJ15: 2013 | AK15: 2014 | AL15: 2015 | AM15: 2016 | AN15: 2017 | AO15: 2018 | AP15: 2019 | AQ15: 2020 | AR15: 2021 | AS15: 2022 | AT15: 2023 | AU15: 2024 | AV15: 2025 | AW15: 2026 | AX15: 2027 | AY15: 2028 | AZ15: 2029 | BA15: 2030 | BB15: 2031 | BC15: 2032 | BD15: 2033 | BE15: 2034
C16: PRE-Case UEC | D16: =IF(D$15-$D$15+2<=LIFETIME_MF,D11, SUMPRODUCT(OFFSET(D11,0,(-1*LIFETIME_MF)+1,1,LIFETIME_MF),OFFSET('Shipments and Stock - MF'!E$14,0,(-1*LIFETIME_MF)+1,1,LIFETIME_MF))/ SUM(OFFSET('Shipments and Stock - MF'!E$14,0,(-1*LIFETIME_MF)+1,1,LIFETIME_MF))) -> 24.58946 | E16: =IF(E$15-$D$15+2<=LIFETIME_MF,E11, SUMPRODUCT(OFFSET(E11,0,(-1*LIFETIME_MF)+1,1,LIFETIME_MF),OFFSET('Shipments and Stock - MF'!F$14,0,(-1*LIFETIME_MF)+1,1,LIFETIME_MF))/ SUM(OFFSET('Shipments and Stock - MF'!F$14,0,(-1*LIFETIME_MF)+1,1,LIFETIME_MF))) -> 24.58946 | F16: =IF(F$15-$D$15+2<=LIFETIME_MF,F11, SUMPRODUCT(OFFSET(F11,0,(-1*LIFETIME_MF)+1,1,LIFETIME_MF),OFFSET('Shipments and Stock - MF'!G$14,0,(-1*LIFETIME_MF)+1,1,LIFETIME_MF))/ SUM(OFFSET('Shipments and Stock - MF'!G$14,0,(-1*LIFETIME_MF)+1,1,LIFETIME_MF))) -> 24.58946 | G16: =IF(G$15-$D$15+2<=LIFETIME_MF,G11, SUMPRODUCT(OFFSET(G11,0,(-1*LIFETIME_MF)+1,1,LIFETIME_MF),OFFSET('Shipments and Stock - MF'!H$14,0,(-1*LIFETIME_MF)+1,1,LIFETIME_MF))/ SUM(OFFSET('Shipments and Stock - MF'!H$14,0,(-1*LIFETIME_MF)+1,1,LIFETIME_MF))) -> 24.58946 | H16: =IF(H$15-$D$15+2<=LIFETIME_MF,H11, SUMPRODUCT(OFFSET(H11,0,(-1*LIFETIME_MF)+1,1,LIFETIME_MF),OFFSET('Shipments and Stock - MF'!I$14,0,(-1*LIFETIME_MF)+1,1,LIFETIME_MF))/ SUM(OFFSET('Shipments and Stock - MF'!I$14,0,(-1*LIFETIME_MF)+1,1,LIFETIME_MF))) -> 24.58946 | I16: =IF(I$15-$D$15+2<=LIFETIME_MF,I11, SUMPRODUCT(OFFSET(I11,0,(-1*LIFETIME_MF)+1,1,LIFETIME_MF),OFFSET('Shipments and Stock - MF'!J$14,0,(-1*LIFETIME_MF)+1,1,LIFETIME_MF))/ SUM(OFFSET('Shipments and Stock - MF'!J$14,0,(-1*LIFETIME_MF)+1,1,LIFETIME_MF))) -> 24.58946 | J16: =IF(J$15-$D$15+2<=LIFETIME_MF,J11, SUMPRODUCT(OFFSET(J11,0,(-1*LIFETIME_MF)+1,1,LIFETIME_MF),OFFSET('Shipments and Stock - MF'!K$14,0,(-1*LIFETIME_MF)+1,1,LIFETIME_MF))/ SUM(OFFSET('Shipments and Stock - MF'!K$14,0,(-1*LIFETIME_MF)+1,1,LIFETIME_MF))) -> 24.58946 | K16: =IF(K$15-$D$15+2<=LIFETIME_MF,K11, SUMPRODUCT(OFFSET(K11,0,(-1*LIFETIME_MF)+1,1,LIFETIME_MF),OFFSET('Shipments and Stock - MF'!L$14,0,(-1*LIFETIME_MF)+1,1,LIFETIME_MF))/ SUM(OFFSET('Shipments and Stock - MF'!L$14,0,(-1*LIFETIME_MF)+1,1,LIFETIME_MF))) -> 24.58946 | L16: =IF(L$15-$D$15+2<=LIFETIME_MF,L11, SUMPRODUCT(OFFSET(L11,0,(-1*LIFETIME_MF)+1,1,LIFETIME_MF),OFFSET('Shipments and Stock - MF'!M$14,0,(-1*LIFETIME_MF)+1,1,LIFETIME_MF))/ SUM(OFFSET('Shipments and Stock - MF'!M$14,0,(-1*LIFETIME_MF)+1,1,LIFETIME_MF))) -> 24.58946 | M16: =IF(M$15-$D$15+2<=LIFETIME_MF,M11, SUMPRODUCT(OFFSET(M11,0,(-1*LIFETIME_MF)+1,1,LIFETIME_MF),OFFSET('Shipments and Stock - MF'!N$14,0,(-1*LIFETIME_MF)+1,1,LIFETIME_MF))/ SUM(OFFSET('Shipments and Stock - MF'!N$14,0,(-1*LIFETIME_MF)+1,1,LIFETIME_MF))) -> 24.58946 | N16: =IF(N$15-$D$15+2<=LIFETIME_MF,N11, SUMPRODUCT(OFFSET(N11,0,(-1*LIFETIME_MF)+1,1,LIFETIME_MF),OFFSET('Shipments and Stock - MF'!O$14,0,(-1*LIFETIME_MF)+1,1,LIFETIME_MF))/ SUM(OFFSET('Shipments and Stock - MF'!O$14,0,(-1*LIFETIME_MF)+1,1,LIFETIME_MF))) -> 24.58946 | O16: =IF(O$15-$D$15+2<=LIFETIME_MF,O11, SUMPRODUCT(OFFSET(O11,0,(-1*LIFETIME_MF)+1,1,LIFETIME_MF),OFFSET('Shipments and Stock - MF'!P$14,0,(-1*LIFETIME_MF)+1,1,LIFETIME_MF))/ SUM(OFFSET('Shipments and Stock - MF'!P$14,0,(-1*LIFETIME_MF)+1,1,LIFETIME_MF))) -> 24.58946 | P16: =IF(P$15-$D$15+2<=LIFETIME_MF,P11, SUMPRODUCT(OFFSET(P11,0,(-1*LIFETIME_MF)+1,1,LIFETIME_MF),OFFSET('Shipments and Stock - MF'!Q$14,0,(-1*LIFETIME_MF)+1,1,LIFETIME_MF))/ SUM(OFFSET('Shipments and Stock - MF'!Q$14,0,(-1*LIFETIME_MF)+1,1,LIFETIME_MF))) -> 24.58946 | Q16: =IF(Q$15-$D$15+2<=LIFETIME_MF,Q11, SUMPRODUCT(OFFSET(Q11,0,(-1*LIFETIME_MF)+1,1,LIFETIME_MF),OFFSET('Shipments and Stock - MF'!R$14,0,(-1*LIFETIME_MF)+1,1,LIFETIME_MF))/ SUM(OFFSET('Shipments and Stock - MF'!R$14,0,(-1*LIFETIME_MF)+1,1,LIFETIME_MF))) -> 24.58946 | R16: =IF(R$15-$D$15+2<=LIFETIME_MF,R11, SUMPRODUCT(OFFSET(R11,0,(-1*LIFETIME_MF)+1,1,LIFETIME_MF),OFFSET('Shipments and Stock - MF'!S$14,0,(-1*LIFETIME_MF)+1,1,LIFETIME_MF))/ SUM(OFFSET('Shipments and Stock - MF'!S$14,0,(-1*LIFETIME_MF)+1,1,LIFETIME_MF))) -> 24.58946 | S16: =IF(S$15-$D$15+2<=LIFETIME_MF,S11, SUMPRODUCT(OFFSET(S11,0,(-1*LIFETIME_MF)+1,1,LIFETIME_MF),OFFSET('Shipments and Stock - MF'!T$14,0,(-1*LIFETIME_MF)+1,1,LIFETIME_MF))/ SUM(OFFSET('Shipments and Stock - MF'!T$14,0,(-1*LIFETIME_MF)+1,1,LIFETIME_MF))) -> 24.58946 | T16: =IF(T$15-$D$15+2<=LIFETIME_MF,T11, SUMPRODUCT(OFFSET(T11,0,(-1*LIFETIME_MF)+1,1,LIFETIME_MF),OFFSET('Shipments and Stock - MF'!U$14,0,(-1*LIFETIME_MF)+1,1,LIFETIME_MF))/ SUM(OFFSET('Shipments and Stock - MF'!U$14,0,(-1*LIFETIME_MF)+1,1,LIFETIME_MF))) -> 24.58946 | U16: =IF(U$15-$D$15+2<=LIFETIME_MF,U11, SUMPRODUCT(OFFSET(U11,0,(-1*LIFETIME_MF)+1,1,LIFETIME_MF),OFFSET('Shipments and Stock - MF'!V$14,0,(-1*LIFETIME_MF)+1,1,LIFETIME_MF))/ SUM(OFFSET('Shipments and Stock - MF'!V$14,0,(-1*LIFETIME_MF)+1,1,LIFETIME_MF))) -> 24.58946 | V16: =IF(V$15-$D$15+2<=LIFETIME_MF,V11, SUMPRODUCT(OFFSET(V11,0,(-1*LIFETIME_MF)+1,1,LIFETIME_MF),OFFSET('Shipments and Stock - MF'!W$14,0,(-1*LIFETIME_MF)+1,1,LIFETIME_MF))/ SUM(OFFSET('Shipments and Stock - MF'!W$14,0,(-1*LIFETIME_MF)+1,1,LIFETIME_MF))) -> 24.58946 | W16: =IF(W$15-$D$15+2<=LIFETIME_MF,W11, SUMPRODUCT(OFFSET(W11,0,(-1*LIFETIME_MF)+1,1,LIFETIME_MF),OFFSET('Shipments and Stock - MF'!X$14,0,(-1*LIFETIME_MF)+1,1,LIFETIME_MF))/ SUM(OFFSET('Shipments and Stock - MF'!X$14,0,(-1*LIFETIME_MF)+1,1,LIFETIME_MF))) -> 24.58946 | X16: =IF(X$15-$D$15+2<=LIFETIME_MF,X11, SUMPRODUCT(OFFSET(X11,0,(-1*LIFETIME_MF)+1,1,LIFETIME_MF),OFFSET('Shipments and Stock - MF'!Y$14,0,(-1*LIFETIME_MF)+1,1,LIFETIME_MF))/ SUM(OFFSET('Shipments and Stock - MF'!Y$14,0,(-1*LIFETIME_MF)+1,1,LIFETIME_MF))) -> 24.58946 | Y16: =IF(Y$15-$D$15+2<=LIFETIME_MF,Y11, SUMPRODUCT(OFFSET(Y11,0,(-1*LIFETIME_MF)+1,1,LIFETIME_MF),OFFSET('Shipments and Stock - MF'!Z$14,0,(-1*LIFETIME_MF)+1,1,LIFETIME_MF))/ SUM(OFFSET('Shipments and Stock - MF'!Z$14,0,(-1*LIFETIME_MF)+1,1,LIFETIME_MF))) -> 24.58946 | Z16: =IF(Z$15-$D$15+2<=LIFETIME_MF,Z11, SUMPRODUCT(OFFSET(Z11,0,(-1*LIFETIME_MF)+1,1,LIFETIME_MF),OFFSET('Shipments and Stock - MF'!AA$14,0,(-1*LIFETIME_MF)+1,1,LIFETIME_MF))/ SUM(OFFSET('Shipments and Stock - MF'!AA$14,0,(-1*LIFETIME_MF)+1,1,LIFETIME_MF))) -> 24.58946 | AA16: =IF(AA$15-$D$15+2<=LIFETIME_MF,AA11, SUMPRODUCT(OFFSET(AA11,0,(-1*LIFETIME_MF)+1,1,LIFETIME_MF),OFFSET('Shipments and Stock - MF'!AB$14,0,(-1*LIFETIME_MF)+1,1,LIFETIME_MF))/ SUM(OFFSET('Shipments and Stock - MF'!AB$14,0,(-1*LIFETIME_MF)+1,1,LIFETIME_MF))) -> 24.58946 | AB16: =IF(AB$15-$D$15+2<=LIFETIME_MF,AB11, SUMPRODUCT(OFFSET(AB11,0,(-1*LIFETIME_MF)+1,1,LIFETIME_MF),OFFSET('Shipments and Stock - MF'!AC$14,0,(-1*LIFETIME_MF)+1,1,LIFETIME_MF))/ SUM(OFFSET('Shipments and Stock - MF'!AC$14,0,(-1*LIFETIME_MF)+1,1,LIFETIME_MF))) -> 24.58946 | AC16: =IF(AC$15-$D$15+2<=LIFETIME_MF,AC11, SUMPRODUCT(OFFSET(AC11,0,(-1*LIFETIME_MF)+1,1,LIFETIME_MF),OFFSET('Shipments and Stock - MF'!AD$14,0,(-1*LIFETIME_MF)+1,1,LIFETIME_MF))/ SUM(OFFSET('Shipments and Stock - MF'!AD$14,0,(-1*LIFETIME_MF)+1,1,LIFETIME_MF))) -> 24.58946 | AD16: =IF(AD$15-$D$15+2<=LIFETIME_MF,AD11, SUMPRODUCT(OFFSET(AD11,0,(-1*LIFETIME_MF)+1,1,LIFETIME_MF),OFFSET('Shipments and Stock - MF'!AE$14,0,(-1*LIFETIME_MF)+1,1,LIFETIME_MF))/ SUM(OFFSET('Shipments and Stock - MF'!AE$14,0,(-1*LIFETIME_MF)+1,1,LIFETIME_MF))) -> 24.58946 | AE16: =IF(AE$15-$D$15+2<=LIFETIME_MF,AE11, SUMPRODUCT(OFFSET(AE11,0,(-1*LIFETIME_MF)+1,1,LIFETIME_MF),OFFSET('Shipments and Stock - MF'!AF$14,0,(-1*LIFETIME_MF)+1,1,LIFETIME_MF))/ SUM(OFFSET('Shipments and Stock - MF'!AF$14,0,(-1*LIFETIME_MF)+1,1,LIFETIME_MF))) -> 24.58946 | AF16: =IF(AF$15-$D$15+2<=LIFETIME_MF,AF11, SUMPRODUCT(OFFSET(AF11,0,(-1*LIFETIME_MF)+1,1,LIFETIME_MF),OFFSET('Shipments and Stock - MF'!AG$14,0,(-1*LIFETIME_MF)+1,1,LIFETIME_MF))/ SUM(OFFSET('Shipments and Stock - MF'!AG$14,0,(-1*LIFETIME_MF)+1,1,LIFETIME_MF))) -> 24.58946 | AG16: =IF(AG$15-$D$15+2<=LIFETIME_MF,AG11, SUMPRODUCT(OFFSET(AG11,0,(-1*LIFETIME_MF)+1,1,LIFETIME_MF),OFFSET('Shipments and Stock - MF'!AH$14,0,(-1*LIFETIME_MF)+1,1,LIFETIME_MF))/ SUM(OFFSET('Shipments and Stock - MF'!AH$14,0,(-1*LIFETIME_MF)+1,1,LIFETIME_MF))) -> 24.58946 | AH16: =IF(AH$15-$D$15+2<=LIFETIME_MF,AH11, SUMPRODUCT(OFFSET(AH11,0,(-1*LIFETIME_MF)+1,1,LIFETIME_MF),OFFSET('Shipments and Stock - MF'!AI$14,0,(-1*LIFETIME_MF)+1,1,LIFETIME_MF))/ SUM(OFFSET('Shipments and Stock - MF'!AI$14,0,(-1*LIFETIME_MF)+1,1,LIFETIME_MF))) -> 24.58946 | AI16: =IF(AI$15-$D$15+2<=LIFETIME_MF,AI11, SUMPRODUCT(OFFSET(AI11,0,(-1*LIFETIME_MF)+1,1,LIFETIME_MF),OFFSET('Shipments and Stock - MF'!AJ$14,0,(-1*LIFETIME_MF)+1,1,LIFETIME_MF))/ SUM(OFFSET('Shipments and Stock - MF'!AJ$14,0,(-1*LIFETIME_MF)+1,1,LIFETIME_MF))) -> 24.58946 | AJ16: =IF(AJ$15-$D$15+2<=LIFETIME_MF,AJ11, SUMPRODUCT(OFFSET(AJ11,0,(-1*LIFETIME_MF)+1,1,LIFETIME_MF),OFFSET('Shipments and Stock - MF'!AK$14,0,(-1*LIFETIME_MF)+1,1,LIFETIME_MF))/ SUM(OFFSET('Shipments and Stock - MF'!AK$14,0,(-1*LIFETIME_MF)+1,1,LIFETIME_MF))) -> 24.58946 | AK16: =IF(AK$15-$D$15+2<=LIFETIME_MF,AK11, SUMPRODUCT(OFFSET(AK11,0,(-1*LIFETIME_MF)+1,1,LIFETIME_MF),OFFSET('Shipments and Stock - MF'!AL$14,0,(-1*LIFETIME_MF)+1,1,LIFETIME_MF))/ SUM(OFFSET('Shipments and Stock - MF'!AL$14,0,(-1*LIFETIME_MF)+1,1,LIFETIME_MF))) -> 24.58946 | AL16: =IF(AL$15-$D$15+2<=LIFETIME_MF,AL11, SUMPRODUCT(OFFSET(AL11,0,(-1*LIFETIME_MF)+1,1,LIFETIME_MF),OFFSET('Shipments and Stock - MF'!AM$14,0,(-1*LIFETIME_MF)+1,1,LIFETIME_MF))/ SUM(OFFSET('Shipments and Stock - MF'!AM$14,0,(-1*LIFETIME_MF)+1,1,LIFETIME_MF))) -> 24.58946 | AM16: =IF(AM$15-$D$15+2<=LIFETIME_MF,AM11, SUMPRODUCT(OFFSET(AM11,0,(-1*LIFETIME_MF)+1,1,LIFETIME_MF),OFFSET('Shipments and Stock - MF'!AN$14,0,(-1*LIFETIME_MF)+1,1,LIFETIME_MF))/ SUM(OFFSET('Shipments and Stock - MF'!AN$14,0,(-1*LIFETIME_MF)+1,1,LIFETIME_MF))) -> 24.58946 | AN16: =IF(AN$15-$D$15+2<=LIFETIME_MF,AN11, SUMPRODUCT(OFFSET(AN11,0,(-1*LIFETIME_MF)+1,1,LIFETIME_MF),OFFSET('Shipments and Stock - MF'!AO$14,0,(-1*LIFETIME_MF)+1,1,LIFETIME_MF))/ SUM(OFFSET('Shipments and Stock - MF'!AO$14,0,(-1*LIFETIME_MF)+1,1,LIFETIME_MF))) -> 24.58946 | AO16: =IF(AO$15-$D$15+2<=LIFETIME_MF,AO11, SUMPRODUCT(OFFSET(AO11,0,(-1*LIFETIME_MF)+1,1,LIFETIME_MF),OFFSET('Shipments and Stock - MF'!AP$14,0,(-1*LIFETIME_MF)+1,1,LIFETIME_MF))/ SUM(OFFSET('Shipments and Stock - MF'!AP$14,0,(-1*LIFETIME_MF)+1,1,LIFETIME_MF))) -> 24.58946 | AP16: =IF(AP$15-$D$15+2<=LIFETIME_MF,AP11, SUMPRODUCT(OFFSET(AP11,0,(-1*LIFETIME_MF)+1,1,LIFETIME_MF),OFFSET('Shipments and Stock - MF'!AQ$14,0,(-1*LIFETIME_MF)+1,1,LIFETIME_MF))/ SUM(OFFSET('Shipments and Stock - MF'!AQ$14,0,(-1*LIFETIME_MF)+1,1,LIFETIME_MF))) -> 24.58946 | AQ16: =IF(AQ$15-$D$15+2<=LIFETIME_MF,AQ11, SUMPRODUCT(OFFSET(AQ11,0,(-1*LIFETIME_MF)+1,1,LIFETIME_MF),OFFSET('Shipments and Stock - MF'!AR$14,0,(-1*LIFETIME_MF)+1,1,LIFETIME_MF))/ SUM(OFFSET('Shipments and Stock - MF'!AR$14,0,(-1*LIFETIME_MF)+1,1,LIFETIME_MF))) -> 24.58946 | AR16: =IF(AR$15-$D$15+2<=LIFETIME_MF,AR11, SUMPRODUCT(OFFSET(AR11,0,(-1*LIFETIME_MF)+1,1,LIFETIME_MF),OFFSET('Shipments and Stock - MF'!AS$14,0,(-1*LIFETIME_MF)+1,1,LIFETIME_MF))/ SUM(OFFSET('Shipments and Stock - MF'!AS$14,0,(-1*LIFETIME_MF)+1,1,LIFETIME_MF))) -> 24.58946 | AS16: =IF(AS$15-$D$15+2<=LIFETIME_MF,AS11, SUMPRODUCT(OFFSET(AS11,0,(-1*LIFETIME_MF)+1,1,LIFETIME_MF),OFFSET('Shipments and Stock - MF'!AT$14,0,(-1*LIFETIME_MF)+1,1,LIFETIME_MF))/ SUM(OFFSET('Shipments and Stock - MF'!AT$14,0,(-1*LIFETIME_MF)+1,1,LIFETIME_MF))) -> 24.58946 | AT16: =IF(AT$15-$D$15+2<=LIFETIME_MF,AT11, SUMPRODUCT(OFFSET(AT11,0,(-1*LIFETIME_MF)+1,1,LIFETIME_MF),OFFSET('Shipments and Stock - MF'!AU$14,0,(-1*LIFETIME_MF)+1,1,LIFETIME_MF))/ SUM(OFFSET('Shipments and Stock - MF'!AU$14,0,(-1*LIFETIME_MF)+1,1,LIFETIME_MF))) -> 24.58946 | AU16: =IF(AU$15-$D$15+2<=LIFETIME_MF,AU11, SUMPRODUCT(OFFSET(AU11,0,(-1*LIFETIME_MF)+1,1,LIFETIME_MF),OFFSET('Shipments and Stock - MF'!AV$14,0,(-1*LIFETIME_MF)+1,1,LIFETIME_MF))/ SUM(OFFSET('Shipments and Stock - MF'!AV$14,0,(-1*LIFETIME_MF)+1,1,LIFETIME_MF))) -> 24.58946 | AV16: =IF(AV$15-$D$15+2<=LIFETIME_MF,AV11, SUMPRODUCT(OFFSET(AV11,0,(-1*LIFETIME_MF)+1,1,LIFETIME_MF),OFFSET('Shipments and Stock - MF'!AW$14,0,(-1*LIFETIME_MF)+1,1,LIFETIME_MF))/ SUM(OFFSET('Shipments and Stock - MF'!AW$14,0,(-1*LIFETIME_MF)+1,1,LIFETIME_MF))) -> 24.58946 | AW16: =IF(AW$15-$D$15+2<=LIFETIME_MF,AW11, SUMPRODUCT(OFFSET(AW11,0,(-1*LIFETIME_MF)+1,1,LIFETIME_MF),OFFSET('Shipments and Stock - MF'!AX$14,0,(-1*LIFETIME_MF)+1,1,LIFETIME_MF))/ SUM(OFFSET('Shipments and Stock - MF'!AX$14,0,(-1*LIFETIME_MF)+1,1,LIFETIME_MF))) -> 24.58946 | AX16: =IF(AX$15-$D$15+2<=LIFETIME_MF,AX11, SUMPRODUCT(OFFSET(AX11,0,(-1*LIFETIME_MF)+1,1,LIFETIME_MF),OFFSET('Shipments and Stock - MF'!AY$14,0,(-1*LIFETIME_MF)+1,1,LIFETIME_MF))/ SUM(OFFSET('Shipments and Stock - MF'!AY$14,0,(-1*LIFETIME_MF)+1,1,LIFETIME_MF))) -> 24.58946 | AY16: =IF(AY$15-$D$15+2<=LIFETIME_MF,AY11, SUMPRODUCT(OFFSET(AY11,0,(-1*LIFETIME_MF)+1,1,LIFETIME_MF),OFFSET('Shipments and Stock - MF'!AZ$14,0,(-1*LIFETIME_MF)+1,1,LIFETIME_MF))/ SUM(OFFSET('Shipments and Stock - MF'!AZ$14,0,(-1*LIFETIME_MF)+1,1,LIFETIME_MF))) -> 24.58946 | AZ16: =IF(AZ$15-$D$15+2<=LIFETIME_MF,AZ11, SUMPRODUCT(OFFSET(AZ11,0,(-1*LIFETIME_MF)+1,1,LIFETIME_MF),OFFSET('Shipments and Stock - MF'!BA$14,0,(-1*LIFETIME_MF)+1,1,LIFETIME_MF))/ SUM(OFFSET('Shipments and Stock - MF'!BA$14,0,(-1*LIFETIME_MF)+1,1,LIFETIME_MF))) -> 24.58946 | BA16: =IF(BA$15-$D$15+2<=LIFETIME_MF,BA11, SUMPRODUCT(OFFSET(BA11,0,(-1*LIFETIME_MF)+1,1,LIFETIME_MF),OFFSET('Shipments and Stock - MF'!BB$14,0,(-1*LIFETIME_MF)+1,1,LIFETIME_MF))/ SUM(OFFSET('Shipments and Stock - MF'!BB$14,0,(-1*LIFETIME_MF)+1,1,LIFETIME_MF))) -> 24.58946 | BB16: =IF(BB$15-$D$15+2<=LIFETIME_MF,BB11, SUMPRODUCT(OFFSET(BB11,0,(-1*LIFETIME_MF)+1,1,LIFETIME_MF),OFFSET('Shipments and Stock - MF'!BC$14,0,(-1*LIFETIME_MF)+1,1,LIFETIME_MF))/ SUM(OFFSET('Shipments and Stock - MF'!BC$14,0,(-1*LIFETIME_MF)+1,1,LIFETIME_MF))) -> 24.58946 | BC16: =IF(BC$15-$D$15+2<=LIFETIME_MF,BC11, SUMPRODUCT(OFFSET(BC11,0,(-1*LIFETIME_MF)+1,1,LIFETIME_MF),OFFSET('Shipments and Stock - MF'!BD$14,0,(-1*LIFETIME_MF)+1,1,LIFETIME_MF))/ SUM(OFFSET('Shipments and Stock - MF'!BD$14,0,(-1*LIFETIME_MF)+1,1,LIFETIME_MF))) -> 24.58946 | BD16: =IF(BD$15-$D$15+2<=LIFETIME_MF,BD11, SUMPRODUCT(OFFSET(BD11,0,(-1*LIFETIME_MF)+1,1,LIFETIME_MF),OFFSET('Shipments and Stock - MF'!BE$14,0,(-1*LIFETIME_MF)+1,1,LIFETIME_MF))/ SUM(OFFSET('Shipments and Stock - MF'!BE$14,0,(-1*LIFETIME_MF)+1,1,LIFETIME_MF))) -> 24.58946 | BE16: =IF(BE$15-$D$15+2<=LIFETIME_MF,BE11, SUMPRODUCT(OFFSET(BE11,0,(-1*LIFETIME_MF)+1,1,LIFETIME_MF),OFFSET('Shipments and Stock - MF'!BF$14,0,(-1*LIFETIME_MF)+1,1,LIFETIME_MF))/ SUM(OFFSET('Shipments and Stock - MF'!BF$14,0,(-1*LIFETIME_MF)+1,1,LIFETIME_MF))) -> 24.58946
C17: POST-Case UEC | D17: =IF(D$15-$D$15+2<=LIFETIME_MF,D12, SUMPRODUCT(OFFSET(D12,0,(-1*LIFETIME_MF)+1,1,LIFETIME_MF),OFFSET('Shipments and Stock - MF'!E$14,0,(-1*LIFETIME_MF)+1,1,LIFETIME_MF))/ SUM(OFFSET('Shipments and Stock - MF'!E$14,0,(-1*LIFETIME_MF)+1,1,LIFETIME_MF))) -> 24.58946 | E17: =IF(E$15-$D$15+2<=LIFETIME_MF,E12, SUMPRODUCT(OFFSET(E12,0,(-1*LIFETIME_MF)+1,1,LIFETIME_MF),OFFSET('Shipments and Stock - MF'!F$14,0,(-1*LIFETIME_MF)+1,1,LIFETIME_MF))/ SUM(OFFSET('Shipments and Stock - MF'!F$14,0,(-1*LIFETIME_MF)+1,1,LIFETIME_MF))) -> 24.58946 | F17: =IF(F$15-$D$15+2<=LIFETIME_MF,F12, SUMPRODUCT(OFFSET(F12,0,(-1*LIFETIME_MF)+1,1,LIFETIME_MF),OFFSET('Shipments and Stock - MF'!G$14,0,(-1*LIFETIME_MF)+1,1,LIFETIME_MF))/ SUM(OFFSET('Shipments and Stock - MF'!G$14,0,(-1*LIFETIME_MF)+1,1,LIFETIME_MF))) -> 24.58946 | G17: =IF(G$15-$D$15+2<=LIFETIME_MF,G12, SUMPRODUCT(OFFSET(G12,0,(-1*LIFETIME_MF)+1,1,LIFETIME_MF),OFFSET('Shipments and Stock - MF'!H$14,0,(-1*LIFETIME_MF)+1,1,LIFETIME_MF))/ SUM(OFFSET('Shipments and Stock - MF'!H$14,0,(-1*LIFETIME_MF)+1,1,LIFETIME_MF))) -> 24.58946 | H17: =IF(H$15-$D$15+2<=LIFETIME_MF,H12, SUMPRODUCT(OFFSET(H12,0,(-1*LIFETIME_MF)+1,1,LIFETIME_MF),OFFSET('Shipments and Stock - MF'!I$14,0,(-1*LIFETIME_MF)+1,1,LIFETIME_MF))/ SUM(OFFSET('Shipments and Stock - MF'!I$14,0,(-1*LIFETIME_MF)+1,1,LIFETIME_MF))) -> 24.58946 | I17: =IF(I$15-$D$15+2<=LIFETIME_MF,I12, SUMPRODUCT(OFFSET(I12,0,(-1*LIFETIME_MF)+1,1,LIFETIME_MF),OFFSET('Shipments and Stock - MF'!J$14,0,(-1*LIFETIME_MF)+1,1,LIFETIME_MF))/ SUM(OFFSET('Shipments and Stock - MF'!J$14,0,(-1*LIFETIME_MF)+1,1,LIFETIME_MF))) -> 24.58946 | J17: =IF(J$15-$D$15+2<=LIFETIME_MF,J12, SUMPRODUCT(OFFSET(J12,0,(-1*LIFETIME_MF)+1,1,LIFETIME_MF),OFFSET('Shipments and Stock - MF'!K$14,0,(-1*LIFETIME_MF)+1,1,LIFETIME_MF))/ SUM(OFFSET('Shipments and Stock - MF'!K$14,0,(-1*LIFETIME_MF)+1,1,LIFETIME_MF))) -> 24.58946 | K17: =IF(K$15-$D$15+2<=LIFETIME_MF,K12, SUMPRODUCT(OFFSET(K12,0,(-1*LIFETIME_MF)+1,1,LIFETIME_MF),OFFSET('Shipments and Stock - MF'!L$14,0,(-1*LIFETIME_MF)+1,1,LIFETIME_MF))/ SUM(OFFSET('Shipments and Stock - MF'!L$14,0,(-1*LIFETIME_MF)+1,1,LIFETIME_MF))) -> 24.58946 | L17: =IF(L$15-$D$15+2<=LIFETIME_MF,L12, SUMPRODUCT(OFFSET(L12,0,(-1*LIFETIME_MF)+1,1,LIFETIME_MF),OFFSET('Shipments and Stock - MF'!M$14,0,(-1*LIFETIME_MF)+1,1,LIFETIME_MF))/ SUM(OFFSET('Shipments and Stock - MF'!M$14,0,(-1*LIFETIME_MF)+1,1,LIFETIME_MF))) -> 24.58946 | M17: =IF(M$15-$D$15+2<=LIFETIME_MF,M12, SUMPRODUCT(OFFSET(M12,0,(-1*LIFETIME_MF)+1,1,LIFETIME_MF),OFFSET('Shipments and Stock - MF'!N$14,0,(-1*LIFETIME_MF)+1,1,LIFETIME_MF))/ SUM(OFFSET('Shipments and Stock - MF'!N$14,0,(-1*LIFETIME_MF)+1,1,LIFETIME_MF))) -> 24.58946 | N17: =IF(N$15-$D$15+2<=LIFETIME_MF,N12, SUMPRODUCT(OFFSET(N12,0,(-1*LIFETIME_MF)+1,1,LIFETIME_MF),OFFSET('Shipments and Stock - MF'!O$14,0,(-1*LIFETIME_MF)+1,1,LIFETIME_MF))/ SUM(OFFSET('Shipments and Stock - MF'!O$14,0,(-1*LIFETIME_MF)+1,1,LIFETIME_MF))) -> 24.58946 | O17: =IF(O$15-$D$15+2<=LIFETIME_MF,O12, SUMPRODUCT(OFFSET(O12,0,(-1*LIFETIME_MF)+1,1,LIFETIME_MF),OFFSET('Shipments and Stock - MF'!P$14,0,(-1*LIFETIME_MF)+1,1,LIFETIME_MF))/ SUM(OFFSET('Shipments and Stock - MF'!P$14,0,(-1*LIFETIME_MF)+1,1,LIFETIME_MF))) -> 24.58946 | P17: =IF(P$15-$D$15+2<=LIFETIME_MF,P12, SUMPRODUCT(OFFSET(P12,0,(-1*LIFETIME_MF)+1,1,LIFETIME_MF),OFFSET('Shipments and Stock - MF'!Q$14,0,(-1*LIFETIME_MF)+1,1,LIFETIME_MF))/ SUM(OFFSET('Shipments and Stock - MF'!Q$14,0,(-1*LIFETIME_MF)+1,1,LIFETIME_MF))) -> 24.58946 | Q17: =IF(Q$15-$D$15+2<=LIFETIME_MF,Q12, SUMPRODUCT(OFFSET(Q12,0,(-1*LIFETIME_MF)+1,1,LIFETIME_MF),OFFSET('Shipments and Stock - MF'!R$14,0,(-1*LIFETIME_MF)+1,1,LIFETIME_MF))/ SUM(OFFSET('Shipments and Stock - MF'!R$14,0,(-1*LIFETIME_MF)+1,1,LIFETIME_MF))) -> 24.58946 | R17: =IF(R$15-$D$15+2<=LIFETIME_MF,R12, SUMPRODUCT(OFFSET(R12,0,(-1*LIFETIME_MF)+1,1,LIFETIME_MF),OFFSET('Shipments and Stock - MF'!S$14,0,(-1*LIFETIME_MF)+1,1,LIFETIME_MF))/ SUM(OFFSET('Shipments and Stock - MF'!S$14,0,(-1*LIFETIME_MF)+1,1,LIFETIME_MF))) -> 24.58946 | S17: =IF(S$15-$D$15+2<=LIFETIME_MF,S12, SUMPRODUCT(OFFSET(S12,0,(-1*LIFETIME_MF)+1,1,LIFETIME_MF),OFFSET('Shipments and Stock - MF'!T$14,0,(-1*LIFETIME_MF)+1,1,LIFETIME_MF))/ SUM(OFFSET('Shipments and Stock - MF'!T$14,0,(-1*LIFETIME_MF)+1,1,LIFETIME_MF))) -> 24.58946 | T17: =IF(T$15-$D$15+2<=LIFETIME_MF,T12, SUMPRODUCT(OFFSET(T12,0,(-1*LIFETIME_MF)+1,1,LIFETIME_MF),OFFSET('Shipments and Stock - MF'!U$14,0,(-1*LIFETIME_MF)+1,1,LIFETIME_MF))/ SUM(OFFSET('Shipments and Stock - MF'!U$14,0,(-1*LIFETIME_MF)+1,1,LIFETIME_MF))) -> 24.58946 | U17: =IF(U$15-$D$15+2<=LIFETIME_MF,U12, SUMPRODUCT(OFFSET(U12,0,(-1*LIFETIME_MF)+1,1,LIFETIME_MF),OFFSET('Shipments and Stock - MF'!V$14,0,(-1*LIFETIME_MF)+1,1,LIFETIME_MF))/ SUM(OFFSET('Shipments and Stock - MF'!V$14,0,(-1*LIFETIME_MF)+1,1,LIFETIME_MF))) -> 24.58946 | V17: =IF(V$15-$D$15+2<=LIFETIME_MF,V12, SUMPRODUCT(OFFSET(V12,0,(-1*LIFETIME_MF)+1,1,LIFETIME_MF),OFFSET('Shipments and Stock - MF'!W$14,0,(-1*LIFETIME_MF)+1,1,LIFETIME_MF))/ SUM(OFFSET('Shipments and Stock - MF'!W$14,0,(-1*LIFETIME_MF)+1,1,LIFETIME_MF))) -> 24.58946 | W17: =IF(W$15-$D$15+2<=LIFETIME_MF,W12, SUMPRODUCT(OFFSET(W12,0,(-1*LIFETIME_MF)+1,1,LIFETIME_MF),OFFSET('Shipments and Stock - MF'!X$14,0,(-1*LIFETIME_MF)+1,1,LIFETIME_MF))/ SUM(OFFSET('Shipments and Stock - MF'!X$14,0,(-1*LIFETIME_MF)+1,1,LIFETIME_MF))) -> 24.58946 | X17: =IF(X$15-$D$15+2<=LIFETIME_MF,X12, SUMPRODUCT(OFFSET(X12,0,(-1*LIFETIME_MF)+1,1,LIFETIME_MF),OFFSET('Shipments and Stock - MF'!Y$14,0,(-1*LIFETIME_MF)+1,1,LIFETIME_MF))/ SUM(OFFSET('Shipments and Stock - MF'!Y$14,0,(-1*LIFETIME_MF)+1,1,LIFETIME_MF))) -> 24.58946 | Y17: =IF(Y$15-$D$15+2<=LIFETIME_MF,Y12, SUMPRODUCT(OFFSET(Y12,0,(-1*LIFETIME_MF)+1,1,LIFETIME_MF),OFFSET('Shipments and Stock - MF'!Z$14,0,(-1*LIFETIME_MF)+1,1,LIFETIME_MF))/ SUM(OFFSET('Shipments and Stock - MF'!Z$14,0,(-1*LIFETIME_MF)+1,1,LIFETIME_MF))) -> 24.58946 | Z17: =IF(Z$15-$D$15+2<=LIFETIME_MF,Z12, SUMPRODUCT(OFFSET(Z12,0,(-1*LIFETIME_MF)+1,1,LIFETIME_MF),OFFSET('Shipments and Stock - MF'!AA$14,0,(-1*LIFETIME_MF)+1,1,LIFETIME_MF))/ SUM(OFFSET('Shipments and Stock - MF'!AA$14,0,(-1*LIFETIME_MF)+1,1,LIFETIME_MF))) -> 24.58946 | AA17: =IF(AA$15-$D$15+2<=LIFETIME_MF,AA12, SUMPRODUCT(OFFSET(AA12,0,(-1*LIFETIME_MF)+1,1,LIFETIME_MF),OFFSET('Shipments and Stock - MF'!AB$14,0,(-1*LIFETIME_MF)+1,1,LIFETIME_MF))/ SUM(OFFSET('Shipments and Stock - MF'!AB$14,0,(-1*LIFETIME_MF)+1,1,LIFETIME_MF))) -> 24.58946 | AB17: =IF(AB$15-$D$15+2<=LIFETIME_MF,AB12, SUMPRODUCT(OFFSET(AB12,0,(-1*LIFETIME_MF)+1,1,LIFETIME_MF),OFFSET('Shipments and Stock - MF'!AC$14,0,(-1*LIFETIME_MF)+1,1,LIFETIME_MF))/ SUM(OFFSET('Shipments and Stock - MF'!AC$14,0,(-1*LIFETIME_MF)+1,1,LIFETIME_MF))) -> 24.58946 | AC17: =IF(AC$15-$D$15+2<=LIFETIME_MF,AC12, SUMPRODUCT(OFFSET(AC12,0,(-1*LIFETIME_MF)+1,1,LIFETIME_MF),OFFSET('Shipments and Stock - MF'!AD$14,0,(-1*LIFETIME_MF)+1,1,LIFETIME_MF))/ SUM(OFFSET('Shipments and Stock - MF'!AD$14,0,(-1*LIFETIME_MF)+1,1,LIFETIME_MF))) -> 24.58946 | AD17: =IF(AD$15-$D$15+2<=LIFETIME_MF,AD12, SUMPRODUCT(OFFSET(AD12,0,(-1*LIFETIME_MF)+1,1,LIFETIME_MF),OFFSET('Shipments and Stock - MF'!AE$14,0,(-1*LIFETIME_MF)+1,1,LIFETIME_MF))/ SUM(OFFSET('Shipments and Stock - MF'!AE$14,0,(-1*LIFETIME_MF)+1,1,LIFETIME_MF))) -> 24.58946 | AE17: =IF(AE$15-$D$15+2<=LIFETIME_MF,AE12, SUMPRODUCT(OFFSET(AE12,0,(-1*LIFETIME_MF)+1,1,LIFETIME_MF),OFFSET('Shipments and Stock - MF'!AF$14,0,(-1*LIFETIME_MF)+1,1,LIFETIME_MF))/ SUM(OFFSET('Shipments and Stock - MF'!AF$14,0,(-1*LIFETIME_MF)+1,1,LIFETIME_MF))) -> 24.58946 | AF17: =IF(AF$15-$D$15+2<=LIFETIME_MF,AF12, SUMPRODUCT(OFFSET(AF12,0,(-1*LIFETIME_MF)+1,1,LIFETIME_MF),OFFSET('Shipments and Stock - MF'!AG$14,0,(-1*LIFETIME_MF)+1,1,LIFETIME_MF))/ SUM(OFFSET('Shipments and Stock - MF'!AG$14,0,(-1*LIFETIME_MF)+1,1,LIFETIME_MF))) -> 24.58946 | AG17: =IF(AG$15-$D$15+2<=LIFETIME_MF,AG12, SUMPRODUCT(OFFSET(AG12,0,(-1*LIFETIME_MF)+1,1,LIFETIME_MF),OFFSET('Shipments and Stock - MF'!AH$14,0,(-1*LIFETIME_MF)+1,1,LIFETIME_MF))/ SUM(OFFSET('Shipments and Stock - MF'!AH$14,0,(-1*LIFETIME_MF)+1,1,LIFETIME_MF))) -> 24.58946 | AH17: =IF(AH$15-$D$15+2<=LIFETIME_MF,AH12, SUMPRODUCT(OFFSET(AH12,0,(-1*LIFETIME_MF)+1,1,LIFETIME_MF),OFFSET('Shipments and Stock - MF'!AI$14,0,(-1*LIFETIME_MF)+1,1,LIFETIME_MF))/ SUM(OFFSET('Shipments and Stock - MF'!AI$14,0,(-1*LIFETIME_MF)+1,1,LIFETIME_MF))) -> 24.58946 | AI17: =IF(AI$15-$D$15+2<=LIFETIME_MF,AI12, SUMPRODUCT(OFFSET(AI12,0,(-1*LIFETIME_MF)+1,1,LIFETIME_MF),OFFSET('Shipments and Stock - MF'!AJ$14,0,(-1*LIFETIME_MF)+1,1,LIFETIME_MF))/ SUM(OFFSET('Shipments and Stock - MF'!AJ$14,0,(-1*LIFETIME_MF)+1,1,LIFETIME_MF))) -> 24.58946 | AJ17: =IF(AJ$15-$D$15+2<=LIFETIME_MF,AJ12, SUMPRODUCT(OFFSET(AJ12,0,(-1*LIFETIME_MF)+1,1,LIFETIME_MF),OFFSET('Shipments and Stock - MF'!AK$14,0,(-1*LIFETIME_MF)+1,1,LIFETIME_MF))/ SUM(OFFSET('Shipments and Stock - MF'!AK$14,0,(-1*LIFETIME_MF)+1,1,LIFETIME_MF))) -> 24.58946 | AK17: =IF(AK$15-$D$15+2<=LIFETIME_MF,AK12, SUMPRODUCT(OFFSET(AK12,0,(-1*LIFETIME_MF)+1,1,LIFETIME_MF),OFFSET('Shipments and Stock - MF'!AL$14,0,(-1*LIFETIME_MF)+1,1,LIFETIME_MF))/ SUM(OFFSET('Shipments and Stock - MF'!AL$14,0,(-1*LIFETIME_MF)+1,1,LIFETIME_MF))) -> 24.58946 | AL17: =IF(AL$15-$D$15+2<=LIFETIME_MF,AL12, SUMPRODUCT(OFFSET(AL12,0,(-1*LIFETIME_MF)+1,1,LIFETIME_MF),OFFSET('Shipments and Stock - MF'!AM$14,0,(-1*LIFETIME_MF)+1,1,LIFETIME_MF))/ SUM(OFFSET('Shipments and Stock - MF'!AM$14,0,(-1*LIFETIME_MF)+1,1,LIFETIME_MF))) -> 24.58946 | AM17: =IF(AM$15-$D$15+2<=LIFETIME_MF,AM12, SUMPRODUCT(OFFSET(AM12,0,(-1*LIFETIME_MF)+1,1,LIFETIME_MF),OFFSET('Shipments and Stock - MF'!AN$14,0,(-1*LIFETIME_MF)+1,1,LIFETIME_MF))/ SUM(OFFSET('Shipments and Stock - MF'!AN$14,0,(-1*LIFETIME_MF)+1,1,LIFETIME_MF))) -> 22.48794491 | AN17: =IF(AN$15-$D$15+2<=LIFETIME_MF,AN12, SUMPRODUCT(OFFSET(AN12,0,(-1*LIFETIME_MF)+1,1,LIFETIME_MF),OFFSET('Shipments and Stock - MF'!AO$14,0,(-1*LIFETIME_MF)+1,1,LIFETIME_MF))/ SUM(OFFSET('Shipments and Stock - MF'!AO$14,0,(-1*LIFETIME_MF)+1,1,LIFETIME_MF))) -> 20.48286013 | AO17: =IF(AO$15-$D$15+2<=LIFETIME_MF,AO12, SUMPRODUCT(OFFSET(AO12,0,(-1*LIFETIME_MF)+1,1,LIFETIME_MF),OFFSET('Shipments and Stock - MF'!AP$14,0,(-1*LIFETIME_MF)+1,1,LIFETIME_MF))/ SUM(OFFSET('Shipments and Stock - MF'!AP$14,0,(-1*LIFETIME_MF)+1,1,LIFETIME_MF))) -> 18.90729784 | AP17: =IF(AP$15-$D$15+2<=LIFETIME_MF,AP12, SUMPRODUCT(OFFSET(AP12,0,(-1*LIFETIME_MF)+1,1,LIFETIME_MF),OFFSET('Shipments and Stock - MF'!AQ$14,0,(-1*LIFETIME_MF)+1,1,LIFETIME_MF))/ SUM(OFFSET('Shipments and Stock - MF'!AQ$14,0,(-1*LIFETIME_MF)+1,1,LIFETIME_MF))) -> 17.30917978 | AQ17: =IF(AQ$15-$D$15+2<=LIFETIME_MF,AQ12, SUMPRODUCT(OFFSET(AQ12,0,(-1*LIFETIME_MF)+1,1,LIFETIME_MF),OFFSET('Shipments and Stock - MF'!AR$14,0,(-1*LIFETIME_MF)+1,1,LIFETIME_MF))/ SUM(OFFSET('Shipments and Stock - MF'!AR$14,0,(-1*LIFETIME_MF)+1,1,LIFETIME_MF))) -> 15.60419498 | AR17: =IF(AR$15-$D$15+2<=LIFETIME_MF,AR12, SUMPRODUCT(OFFSET(AR12,0,(-1*LIFETIME_MF)+1,1,LIFETIME_MF),OFFSET('Shipments and Stock - MF'!AS$14,0,(-1*LIFETIME_MF)+1,1,LIFETIME_MF))/ SUM(OFFSET('Shipments and Stock - MF'!AS$14,0,(-1*LIFETIME_MF)+1,1,LIFETIME_MF))) -> 13.85584391 | AS17: =IF(AS$15-$D$15+2<=LIFETIME_MF,AS12, SUMPRODUCT(OFFSET(AS12,0,(-1*LIFETIME_MF)+1,1,LIFETIME_MF),OFFSET('Shipments and Stock - MF'!AT$14,0,(-1*LIFETIME_MF)+1,1,LIFETIME_MF))/ SUM(OFFSET('Shipments and Stock - MF'!AT$14,0,(-1*LIFETIME_MF)+1,1,LIFETIME_MF))) -> 12.13997708 | AT17: =IF(AT$15-$D$15+2<=LIFETIME_MF,AT12, SUMPRODUCT(OFFSET(AT12,0,(-1*LIFETIME_MF)+1,1,LIFETIME_MF),OFFSET('Shipments and Stock - MF'!AU$14,0,(-1*LIFETIME_MF)+1,1,LIFETIME_MF))/ SUM(OFFSET('Shipments and Stock - MF'!AU$14,0,(-1*LIFETIME_MF)+1,1,LIFETIME_MF))) -> 10.44178721 | AU17: =IF(AU$15-$D$15+2<=LIFETIME_MF,AU12, SUMPRODUCT(OFFSET(AU12,0,(-1*LIFETIME_MF)+1,1,LIFETIME_MF),OFFSET('Shipments and Stock - MF'!AV$14,0,(-1*LIFETIME_MF)+1,1,LIFETIME_MF))/ SUM(OFFSET('Shipments and Stock - MF'!AV$14,0,(-1*LIFETIME_MF)+1,1,LIFETIME_MF))) -> 8.695 | AV17: =IF(AV$15-$D$15+2<=LIFETIME_MF,AV12, SUMPRODUCT(OFFSET(AV12,0,(-1*LIFETIME_MF)+1,1,LIFETIME_MF),OFFSET('Shipments and Stock - MF'!AW$14,0,(-1*LIFETIME_MF)+1,1,LIFETIME_MF))/ SUM(OFFSET('Shipments and Stock - MF'!AW$14,0,(-1*LIFETIME_MF)+1,1,LIFETIME_MF))) -> 8.695 | AW17: =IF(AW$15-$D$15+2<=LIFETIME_MF,AW12, SUMPRODUCT(OFFSET(AW12,0,(-1*LIFETIME_MF)+1,1,LIFETIME_MF),OFFSET('Shipments and Stock - MF'!AX$14,0,(-1*LIFETIME_MF)+1,1,LIFETIME_MF))/ SUM(OFFSET('Shipments and Stock - MF'!AX$14,0,(-1*LIFETIME_MF)+1,1,LIFETIME_MF))) -> 8.695 | AX17: =IF(AX$15-$D$15+2<=LIFETIME_MF,AX12, SUMPRODUCT(OFFSET(AX12,0,(-1*LIFETIME_MF)+1,1,LIFETIME_MF),OFFSET('Shipments and Stock - MF'!AY$14,0,(-1*LIFETIME_MF)+1,1,LIFETIME_MF))/ SUM(OFFSET('Shipments and Stock - MF'!AY$14,0,(-1*LIFETIME_MF)+1,1,LIFETIME_MF))) -> 8.695 | AY17: =IF(AY$15-$D$15+2<=LIFETIME_MF,AY12, SUMPRODUCT(OFFSET(AY12,0,(-1*LIFETIME_MF)+1,1,LIFETIME_MF),OFFSET('Shipments and Stock - MF'!AZ$14,0,(-1*LIFETIME_MF)+1,1,LIFETIME_MF))/ SUM(OFFSET('Shipments and Stock - MF'!AZ$14,0,(-1*LIFETIME_MF)+1,1,LIFETIME_MF))) -> 8.695 | AZ17: =IF(AZ$15-$D$15+2<=LIFETIME_MF,AZ12, SUMPRODUCT(OFFSET(AZ12,0,(-1*LIFETIME_MF)+1,1,LIFETIME_MF),OFFSET('Shipments and Stock - MF'!BA$14,0,(-1*LIFETIME_MF)+1,1,LIFETIME_MF))/ SUM(OFFSET('Shipments and Stock - MF'!BA$14,0,(-1*LIFETIME_MF)+1,1,LIFETIME_MF))) -> 8.695 | BA17: =IF(BA$15-$D$15+2<=LIFETIME_MF,BA12, SUMPRODUCT(OFFSET(BA12,0,(-1*LIFETIME_MF)+1,1,LIFETIME_MF),OFFSET('Shipments and Stock - MF'!BB$14,0,(-1*LIFETIME_MF)+1,1,LIFETIME_MF))/ SUM(OFFSET('Shipments and Stock - MF'!BB$14,0,(-1*LIFETIME_MF)+1,1,LIFETIME_MF))) -> 8.695 | BB17: =IF(BB$15-$D$15+2<=LIFETIME_MF,BB12, SUMPRODUCT(OFFSET(BB12,0,(-1*LIFETIME_MF)+1,1,LIFETIME_MF),OFFSET('Shipments and Stock - MF'!BC$14,0,(-1*LIFETIME_MF)+1,1,LIFETIME_MF))/ SUM(OFFSET('Shipments and Stock - MF'!BC$14,0,(-1*LIFETIME_MF)+1,1,LIFETIME_MF))) -> 8.695 | BC17: =IF(BC$15-$D$15+2<=LIFETIME_MF,BC12, SUMPRODUCT(OFFSET(BC12,0,(-1*LIFETIME_MF)+1,1,LIFETIME_MF),OFFSET('Shipments and Stock - MF'!BD$14,0,(-1*LIFETIME_MF)+1,1,LIFETIME_MF))/ SUM(OFFSET('Shipments and Stock - MF'!BD$14,0,(-1*LIFETIME_MF)+1,1,LIFETIME_MF))) -> 8.695 | BD17: =IF(BD$15-$D$15+2<=LIFETIME_MF,BD12, SUMPRODUCT(OFFSET(BD12,0,(-1*LIFETIME_MF)+1,1,LIFETIME_MF),OFFSET('Shipments and Stock - MF'!BE$14,0,(-1*LIFETIME_MF)+1,1,LIFETIME_MF))/ SUM(OFFSET('Shipments and Stock - MF'!BE$14,0,(-1*LIFETIME_MF)+1,1,LIFETIME_MF))) -> 8.695 | BE17: =IF(BE$15-$D$15+2<=LIFETIME_MF,BE12, SUMPRODUCT(OFFSET(BE12,0,(-1*LIFETIME_MF)+1,1,LIFETIME_MF),OFFSET('Shipments and Stock - MF'!BF$14,0,(-1*LIFETIME_MF)+1,1,LIFETIME_MF))/ SUM(OFFSET('Shipments and Stock - MF'!BF$14,0,(-1*LIFETIME_MF)+1,1,LIFETIME_MF))) -> 8.695

Sheet UEC-MH
C2: Weighted Annual UEC - Manufactured Homes
C4: NAVIGATION
C6: COMMENTS
C9: Market UEC (Shipment Weighted Average)
D10: 1981 | E10: 1982 | F10: 1983 | G10: 1984 | H10: 1985 | I10: 1986 | J10: 1987 | K10: 1988 | L10: 1989 | M10: 1990 | N10: 1991 | O10: 1992 | P10: 1993 | Q10: 1994 | R10: 1995 | S10: 1996 | T10: 1997 | U10: 1998 | V10: 1999 | W10: 2000 | X10: 2001 | Y10: 2002 | Z10: 2003 | AA10: 2004 | AB10: 2005 | AC10: 2006 | AD10: 2007 | AE10: 2008 | AF10: 2009 | AG10: 2010 | AH10: 2011 | AI10: 2012 | AJ10: 2013 | AK10: 2014 | AL10: 2015 | AM10: 2016 | AN10: 2017 | AO10: 2018 | AP10: 2019 | AQ10: 2020 | AR10: 2021 | AS10: 2022 | AT10: 2023 | AU10: 2024 | AV10: 2025 | AW10: 2026 | AX10: 2027 | AY10: 2028 | AZ10: 2029 | BA10: 2030 | BB10: 2031 | BC10: 2032 | BD10: 2033 | BE10: 2034
C11: PRE-Case UEC | D11: =SUMPRODUCT('UEC Development'!$M$14:$M$18,'Efficiency Dist - MH'!H$13:H$17) -> 24.58946 | E11: =SUMPRODUCT('UEC Development'!$M$14:$M$18,'Efficiency Dist - MH'!I$13:I$17) -> 24.58946 | F11: =SUMPRODUCT('UEC Development'!$M$14:$M$18,'Efficiency Dist - MH'!J$13:J$17) -> 24.58946 | G11: =SUMPRODUCT('UEC Development'!$M$14:$M$18,'Efficiency Dist - MH'!K$13:K$17) -> 24.58946 | H11: =SUMPRODUCT('UEC Development'!$M$14:$M$18,'Efficiency Dist - MH'!L$13:L$17) -> 24.58946 | I11: =SUMPRODUCT('UEC Development'!$M$14:$M$18,'Efficiency Dist - MH'!M$13:M$17) -> 24.58946 | J11: =SUMPRODUCT('UEC Development'!$M$14:$M$18,'Efficiency Dist - MH'!N$13:N$17) -> 24.58946 | K11: =SUMPRODUCT('UEC Development'!$M$14:$M$18,'Efficiency Dist - MH'!O$13:O$17) -> 24.58946 | L11: =SUMPRODUCT('UEC Development'!$M$14:$M$18,'Efficiency Dist - MH'!P$13:P$17) -> 24.58946 | M11: =SUMPRODUCT('UEC Development'!$M$14:$M$18,'Efficiency Dist - MH'!Q$13:Q$17) -> 24.58946 | N11: =SUMPRODUCT('UEC Development'!$M$14:$M$18,'Efficiency Dist - MH'!R$13:R$17) -> 24.58946 | O11: =SUMPRODUCT('UEC Development'!$M$14:$M$18,'Efficiency Dist - MH'!S$13:S$17) -> 24.58946 | P11: =SUMPRODUCT('UEC Development'!$M$14:$M$18,'Efficiency Dist - MH'!T$13:T$17) -> 24.58946 | Q11: =SUMPRODUCT('UEC Development'!$M$14:$M$18,'Efficiency Dist - MH'!U$13:U$17) -> 24.58946 | R11: =SUMPRODUCT('UEC Development'!$M$14:$M$18,'Efficiency Dist - MH'!V$13:V$17) -> 24.58946 | S11: =SUMPRODUCT('UEC Development'!$M$14:$M$18,'Efficiency Dist - MH'!W$13:W$17) -> 24.58946 | T11: =SUMPRODUCT('UEC Development'!$M$14:$M$18,'Efficiency Dist - MH'!X$13:X$17) -> 24.58946 | U11: =SUMPRODUCT('UEC Development'!$M$14:$M$18,'Efficiency Dist - MH'!Y$13:Y$17) -> 24.58946 | V11: =SUMPRODUCT('UEC Development'!$M$14:$M$18,'Efficiency Dist - MH'!Z$13:Z$17) -> 24.58946 | W11: =SUMPRODUCT('UEC Development'!$M$14:$M$18,'Efficiency Dist - MH'!AA$13:AA$17) -> 24.58946 | X11: =SUMPRODUCT('UEC Development'!$M$14:$M$18,'Efficiency Dist - MH'!AB$13:AB$17) -> 24.58946 | Y11: =SUMPRODUCT('UEC Development'!$M$14:$M$18,'Efficiency Dist - MH'!AC$13:AC$17) -> 24.58946 | Z11: =SUMPRODUCT('UEC Development'!$M$14:$M$18,'Efficiency Dist - MH'!AD$13:AD$17) -> 24.58946 | AA11: =SUMPRODUCT('UEC Development'!$M$14:$M$18,'Efficiency Dist - MH'!AE$13:AE$17) -> 24.58946 | AB11: =SUMPRODUCT('UEC Development'!$M$14:$M$18,'Efficiency Dist - MH'!AF$13:AF$17) -> 24.58946 | AC11: =SUMPRODUCT('UEC Development'!$M$14:$M$18,'Efficiency Dist - MH'!AG$13:AG$17) -> 24.58946 | AD11: =SUMPRODUCT('UEC Development'!$M$14:$M$18,'Efficiency Dist - MH'!AH$13:AH$17) -> 24.58946 | AE11: =SUMPRODUCT('UEC Development'!$M$14:$M$18,'Efficiency Dist - MH'!AI$13:AI$17) -> 24.58946 | AF11: =SUMPRODUCT('UEC Development'!$M$14:$M$18,'Efficiency Dist - MH'!AJ$13:AJ$17) -> 24.58946 | AG11: =SUMPRODUCT('UEC Development'!$M$14:$M$18,'Efficiency Dist - MH'!AK$13:AK$17) -> 24.58946 | AH11: =SUMPRODUCT('UEC Development'!$M$14:$M$18,'Efficiency Dist - MH'!AL$13:AL$17) -> 24.58946 | AI11: =SUMPRODUCT('UEC Development'!$M$14:$M$18,'Efficiency Dist - MH'!AM$13:AM$17) -> 24.58946 | AJ11: =SUMPRODUCT('UEC Development'!$M$14:$M$18,'Efficiency Dist - MH'!AN$13:AN$17) -> 24.58946 | AK11: =SUMPRODUCT('UEC Development'!$M$14:$M$18,'Efficiency Dist - MH'!AO$13:AO$17) -> 24.58946 | AL11: =SUMPRODUCT('UEC Development'!$M$14:$M$18,'Efficiency Dist - MH'!AP$13:AP$17) -> 24.58946 | AM11: =SUMPRODUCT('UEC Development'!$M$14:$M$18,'Efficiency Dist - MH'!AQ$13:AQ$17) -> 24.58946 | AN11: =SUMPRODUCT('UEC Development'!$M$14:$M$18,'Efficiency Dist - MH'!AR$13:AR$17) -> 24.58946 | AO11: =SUMPRODUCT('UEC Development'!$M$14:$M$18,'Efficiency Dist - MH'!AS$13:AS$17) -> 24.58946 | AP11: =SUMPRODUCT('UEC Development'!$M$14:$M$18,'Efficiency Dist - MH'!AT$13:AT$17) -> 24.58946 | AQ11: =SUMPRODUCT('UEC Development'!$M$14:$M$18,'Efficiency Dist - MH'!AU$13:AU$17) -> 24.58946 | AR11: =SUMPRODUCT('UEC Development'!$M$14:$M$18,'Efficiency Dist - MH'!AV$13:AV$17) -> 24.58946 | AS11: =SUMPRODUCT('UEC Development'!$M$14:$M$18,'Efficiency Dist - MH'!AW$13:AW$17) -> 24.58946 | AT11: =SUMPRODUCT('UEC Development'!$M$14:$M$18,'Efficiency Dist - MH'!AX$13:AX$17) -> 24.58946 | AU11: =SUMPRODUCT('UEC Development'!$M$14:$M$18,'Efficiency Dist - MH'!AY$13:AY$17) -> 24.58946 | AV11: =SUMPRODUCT('UEC Development'!$M$14:$M$18,'Efficiency Dist - MH'!AZ$13:AZ$17) -> 24.58946 | AW11: =SUMPRODUCT('UEC Development'!$M$14:$M$18,'Efficiency Dist - MH'!BA$13:BA$17) -> 24.58946 | AX11: =SUMPRODUCT('UEC Development'!$M$14:$M$18,'Efficiency Dist - MH'!BB$13:BB$17) -> 24.58946 | AY11: =SUMPRODUCT('UEC Development'!$M$14:$M$18,'Efficiency Dist - MH'!BC$13:BC$17) -> 24.58946 | AZ11: =SUMPRODUCT('UEC Development'!$M$14:$M$18,'Efficiency Dist - MH'!BD$13:BD$17) -> 24.58946 | BA11: =SUMPRODUCT('UEC Development'!$M$14:$M$18,'Efficiency Dist - MH'!BE$13:BE$17) -> 24.58946 | BB11: =SUMPRODUCT('UEC Development'!$M$14:$M$18,'Efficiency Dist - MH'!BF$13:BF$17) -> 24.58946 | BC11: =SUMPRODUCT('UEC Development'!$M$14:$M$18,'Efficiency Dist - MH'!BG$13:BG$17) -> 24.58946 | BD11: =SUMPRODUCT('UEC Development'!$M$14:$M$18,'Efficiency Dist - MH'!BH$13:BH$17) -> 24.58946 | BE11: =SUMPRODUCT('UEC Development'!$M$14:$M$18,'Efficiency Dist - MH'!BI$13:BI$17) -> 24.58946
C12: POST-Case UEC | D12: =SUMPRODUCT('UEC Development'!$M$14:$M$18,'Efficiency Dist - MH'!H$22:H$26) -> 24.58946 | E12: =SUMPRODUCT('UEC Development'!$M$14:$M$18,'Efficiency Dist - MH'!I$22:I$26) -> 24.58946 | F12: =SUMPRODUCT('UEC Development'!$M$14:$M$18,'Efficiency Dist - MH'!J$22:J$26) -> 24.58946 | G12: =SUMPRODUCT('UEC Development'!$M$14:$M$18,'Efficiency Dist - MH'!K$22:K$26) -> 24.58946 | H12: =SUMPRODUCT('UEC Development'!$M$14:$M$18,'Efficiency Dist - MH'!L$22:L$26) -> 24.58946 | I12: =SUMPRODUCT('UEC Development'!$M$14:$M$18,'Efficiency Dist - MH'!M$22:M$26) -> 24.58946 | J12: =SUMPRODUCT('UEC Development'!$M$14:$M$18,'Efficiency Dist - MH'!N$22:N$26) -> 24.58946 | K12: =SUMPRODUCT('UEC Development'!$M$14:$M$18,'Efficiency Dist - MH'!O$22:O$26) -> 24.58946 | L12: =SUMPRODUCT('UEC Development'!$M$14:$M$18,'Efficiency Dist - MH'!P$22:P$26) -> 24.58946 | M12: =SUMPRODUCT('UEC Development'!$M$14:$M$18,'Efficiency Dist - MH'!Q$22:Q$26) -> 24.58946 | N12: =SUMPRODUCT('UEC Development'!$M$14:$M$18,'Efficiency Dist - MH'!R$22:R$26) -> 24.58946 | O12: =SUMPRODUCT('UEC Development'!$M$14:$M$18,'Efficiency Dist - MH'!S$22:S$26) -> 24.58946 | P12: =SUMPRODUCT('UEC Development'!$M$14:$M$18,'Efficiency Dist - MH'!T$22:T$26) -> 24.58946 | Q12: =SUMPRODUCT('UEC Development'!$M$14:$M$18,'Efficiency Dist - MH'!U$22:U$26) -> 24.58946 | R12: =SUMPRODUCT('UEC Development'!$M$14:$M$18,'Efficiency Dist - MH'!V$22:V$26) -> 24.58946 | S12: =SUMPRODUCT('UEC Development'!$M$14:$M$18,'Efficiency Dist - MH'!W$22:W$26) -> 24.58946 | T12: =SUMPRODUCT('UEC Development'!$M$14:$M$18,'Efficiency Dist - MH'!X$22:X$26) -> 24.58946 | U12: =SUMPRODUCT('UEC Development'!$M$14:$M$18,'Efficiency Dist - MH'!Y$22:Y$26) -> 24.58946 | V12: =SUMPRODUCT('UEC Development'!$M$14:$M$18,'Efficiency Dist - MH'!Z$22:Z$26) -> 24.58946 | W12: =SUMPRODUCT('UEC Development'!$M$14:$M$18,'Efficiency Dist - MH'!AA$22:AA$26) -> 24.58946 | X12: =SUMPRODUCT('UEC Development'!$M$14:$M$18,'Efficiency Dist - MH'!AB$22:AB$26) -> 24.58946 | Y12: =SUMPRODUCT('UEC Development'!$M$14:$M$18,'Efficiency Dist - MH'!AC$22:AC$26) -> 24.58946 | Z12: =SUMPRODUCT('UEC Development'!$M$14:$M$18,'Efficiency Dist - MH'!AD$22:AD$26) -> 24.58946 | AA12: =SUMPRODUCT('UEC Development'!$M$14:$M$18,'Efficiency Dist - MH'!AE$22:AE$26) -> 24.58946 | AB12: =SUMPRODUCT('UEC Development'!$M$14:$M$18,'Efficiency Dist - MH'!AF$22:AF$26) -> 24.58946 | AC12: =SUMPRODUCT('UEC Development'!$M$14:$M$18,'Efficiency Dist - MH'!AG$22:AG$26) -> 24.58946 | AD12: =SUMPRODUCT('UEC Development'!$M$14:$M$18,'Efficiency Dist - MH'!AH$22:AH$26) -> 24.58946 | AE12: =SUMPRODUCT('UEC Development'!$M$14:$M$18,'Efficiency Dist - MH'!AI$22:AI$26) -> 24.58946 | AF12: =SUMPRODUCT('UEC Development'!$M$14:$M$18,'Efficiency Dist - MH'!AJ$22:AJ$26) -> 24.58946 | AG12: =SUMPRODUCT('UEC Development'!$M$14:$M$18,'Efficiency Dist - MH'!AK$22:AK$26) -> 24.58946 | AH12: =SUMPRODUCT('UEC Development'!$M$14:$M$18,'Efficiency Dist - MH'!AL$22:AL$26) -> 24.58946 | AI12: =SUMPRODUCT('UEC Development'!$M$14:$M$18,'Efficiency Dist - MH'!AM$22:AM$26) -> 24.58946 | AJ12: =SUMPRODUCT('UEC Development'!$M$14:$M$18,'Efficiency Dist - MH'!AN$22:AN$26) -> 24.58946 | AK12: =SUMPRODUCT('UEC Development'!$M$14:$M$18,'Efficiency Dist - MH'!AO$22:AO$26) -> 24.58946 | AL12: =SUMPRODUCT('UEC Development'!$M$14:$M$18,'Efficiency Dist - MH'!AP$22:AP$26) -> 24.58946 | AM12: =SUMPRODUCT('UEC Development'!$M$14:$M$18,'Efficiency Dist - MH'!AQ$22:AQ$26) -> 8.695 | AN12: =SUMPRODUCT('UEC Development'!$M$14:$M$18,'Efficiency Dist - MH'!AR$22:AR$26) -> 8.695 | AO12: =SUMPRODUCT('UEC Development'!$M$14:$M$18,'Efficiency Dist - MH'!AS$22:AS$26) -> 8.695 | AP12: =SUMPRODUCT('UEC Development'!$M$14:$M$18,'Efficiency Dist - MH'!AT$22:AT$26) -> 8.695 | AQ12: =SUMPRODUCT('UEC Development'!$M$14:$M$18,'Efficiency Dist - MH'!AU$22:AU$26) -> 8.695 | AR12: =SUMPRODUCT('UEC Development'!$M$14:$M$18,'Efficiency Dist - MH'!AV$22:AV$26) -> 8.695 | AS12: =SUMPRODUCT('UEC Development'!$M$14:$M$18,'Efficiency Dist - MH'!AW$22:AW$26) -> 8.695 | AT12: =SUMPRODUCT('UEC Development'!$M$14:$M$18,'Efficiency Dist - MH'!AX$22:AX$26) -> 8.695 | AU12: =SUMPRODUCT('UEC Development'!$M$14:$M$18,'Efficiency Dist - MH'!AY$22:AY$26) -> 8.695 | AV12: =SUMPRODUCT('UEC Development'!$M$14:$M$18,'Efficiency Dist - MH'!AZ$22:AZ$26) -> 8.695 | AW12: =SUMPRODUCT('UEC Development'!$M$14:$M$18,'Efficiency Dist - MH'!BA$22:BA$26) -> 8.695 | AX12: =SUMPRODUCT('UEC Development'!$M$14:$M$18,'Efficiency Dist - MH'!BB$22:BB$26) -> 8.695 | AY12: =SUMPRODUCT('UEC Development'!$M$14:$M$18,'Efficiency Dist - MH'!BC$22:BC$26) -> 8.695 | AZ12: =SUMPRODUCT('UEC Development'!$M$14:$M$18,'Efficiency Dist - MH'!BD$22:BD$26) -> 8.695 | BA12: =SUMPRODUCT('UEC Development'!$M$14:$M$18,'Efficiency Dist - MH'!BE$22:BE$26) -> 8.695 | BB12: =SUMPRODUCT('UEC Development'!$M$14:$M$18,'Efficiency Dist - MH'!BF$22:BF$26) -> 8.695 | BC12: =SUMPRODUCT('UEC Development'!$M$14:$M$18,'Efficiency Dist - MH'!BG$22:BG$26) -> 8.695 | BD12: =SUMPRODUCT('UEC Development'!$M$14:$M$18,'Efficiency Dist - MH'!BH$22:BH$26) -> 8.695 | BE12: =SUMPRODUCT('UEC Development'!$M$14:$M$18,'Efficiency Dist - MH'!BI$22:BI$26) -> 8.695
C14: Installed UEC (Vintage Weighted Average)
D15: 1981 | E15: 1982 | F15: 1983 | G15: 1984 | H15: 1985 | I15: 1986 | J15: 1987 | K15: 1988 | L15: 1989 | M15: 1990 | N15: 1991 | O15: 1992 | P15: 1993 | Q15: 1994 | R15: 1995 | S15: 1996 | T15: 1997 | U15: 1998 | V15: 1999 | W15: 2000 | X15: 2001 | Y15: 2002 | Z15: 2003 | AA15: 2004 | AB15: 2005 | AC15: 2006 | AD15: 2007 | AE15: 2008 | AF15: 2009 | AG15: 2010 | AH15: 2011 | AI15: 2012 | AJ15: 2013 | AK15: 2014 | AL15: 2015 | AM15: 2016 | AN15: 2017 | AO15: 2018 | AP15: 2019 | AQ15: 2020 | AR15: 2021 | AS15: 2022 | AT15: 2023 | AU15: 2024 | AV15: 2025 | AW15: 2026 | AX15: 2027 | AY15: 2028 | AZ15: 2029 | BA15: 2030 | BB15: 2031 | BC15: 2032 | BD15: 2033 | BE15: 2034
C16: PRE-Case UEC | D16: =IF(D$15-$D$15+2<=LIFETIME_MH,D11, SUMPRODUCT(OFFSET(D11,0,(-1*LIFETIME_MH)+1,1,LIFETIME_MH),OFFSET('Shipments and Stock - MH'!E$14,0,(-1*LIFETIME_MH)+1,1,LIFETIME_MH))/ SUM(OFFSET('Shipments and Stock - MH'!E$14,0,(-1*LIFETIME_MH)+1,1,LIFETIME_MH))) -> 24.58946 | E16: =IF(E$15-$D$15+2<=LIFETIME_MH,E11, SUMPRODUCT(OFFSET(E11,0,(-1*LIFETIME_MH)+1,1,LIFETIME_MH),OFFSET('Shipments and Stock - MH'!F$14,0,(-1*LIFETIME_MH)+1,1,LIFETIME_MH))/ SUM(OFFSET('Shipments and Stock - MH'!F$14,0,(-1*LIFETIME_MH)+1,1,LIFETIME_MH))) -> 24.58946 | F16: =IF(F$15-$D$15+2<=LIFETIME_MH,F11, SUMPRODUCT(OFFSET(F11,0,(-1*LIFETIME_MH)+1,1,LIFETIME_MH),OFFSET('Shipments and Stock - MH'!G$14,0,(-1*LIFETIME_MH)+1,1,LIFETIME_MH))/ SUM(OFFSET('Shipments and Stock - MH'!G$14,0,(-1*LIFETIME_MH)+1,1,LIFETIME_MH))) -> 24.58946 | G16: =IF(G$15-$D$15+2<=LIFETIME_MH,G11, SUMPRODUCT(OFFSET(G11,0,(-1*LIFETIME_MH)+1,1,LIFETIME_MH),OFFSET('Shipments and Stock - MH'!H$14,0,(-1*LIFETIME_MH)+1,1,LIFETIME_MH))/ SUM(OFFSET('Shipments and Stock - MH'!H$14,0,(-1*LIFETIME_MH)+1,1,LIFETIME_MH))) -> 24.58946 | H16: =IF(H$15-$D$15+2<=LIFETIME_MH,H11, SUMPRODUCT(OFFSET(H11,0,(-1*LIFETIME_MH)+1,1,LIFETIME_MH),OFFSET('Shipments and Stock - MH'!I$14,0,(-1*LIFETIME_MH)+1,1,LIFETIME_MH))/ SUM(OFFSET('Shipments and Stock - MH'!I$14,0,(-1*LIFETIME_MH)+1,1,LIFETIME_MH))) -> 24.58946 | I16: =IF(I$15-$D$15+2<=LIFETIME_MH,I11, SUMPRODUCT(OFFSET(I11,0,(-1*LIFETIME_MH)+1,1,LIFETIME_MH),OFFSET('Shipments and Stock - MH'!J$14,0,(-1*LIFETIME_MH)+1,1,LIFETIME_MH))/ SUM(OFFSET('Shipments and Stock - MH'!J$14,0,(-1*LIFETIME_MH)+1,1,LIFETIME_MH))) -> 24.58946 | J16: =IF(J$15-$D$15+2<=LIFETIME_MH,J11, SUMPRODUCT(OFFSET(J11,0,(-1*LIFETIME_MH)+1,1,LIFETIME_MH),OFFSET('Shipments and Stock - MH'!K$14,0,(-1*LIFETIME_MH)+1,1,LIFETIME_MH))/ SUM(OFFSET('Shipments and Stock - MH'!K$14,0,(-1*LIFETIME_MH)+1,1,LIFETIME_MH))) -> 24.58946 | K16: =IF(K$15-$D$15+2<=LIFETIME_MH,K11, SUMPRODUCT(OFFSET(K11,0,(-1*LIFETIME_MH)+1,1,LIFETIME_MH),OFFSET('Shipments and Stock - MH'!L$14,0,(-1*LIFETIME_MH)+1,1,LIFETIME_MH))/ SUM(OFFSET('Shipments and Stock - MH'!L$14,0,(-1*LIFETIME_MH)+1,1,LIFETIME_MH))) -> 24.58946 | L16: =IF(L$15-$D$15+2<=LIFETIME_MH,L11, SUMPRODUCT(OFFSET(L11,0,(-1*LIFETIME_MH)+1,1,LIFETIME_MH),OFFSET('Shipments and Stock - MH'!M$14,0,(-1*LIFETIME_MH)+1,1,LIFETIME_MH))/ SUM(OFFSET('Shipments and Stock - MH'!M$14,0,(-1*LIFETIME_MH)+1,1,LIFETIME_MH))) -> 24.58946 | M16: =IF(M$15-$D$15+2<=LIFETIME_MH,M11, SUMPRODUCT(OFFSET(M11,0,(-1*LIFETIME_MH)+1,1,LIFETIME_MH),OFFSET('Shipments and Stock - MH'!N$14,0,(-1*LIFETIME_MH)+1,1,LIFETIME_MH))/ SUM(OFFSET('Shipments and Stock - MH'!N$14,0,(-1*LIFETIME_MH)+1,1,LIFETIME_MH))) -> 24.58946 | N16: =IF(N$15-$D$15+2<=LIFETIME_MH,N11, SUMPRODUCT(OFFSET(N11,0,(-1*LIFETIME_MH)+1,1,LIFETIME_MH),OFFSET('Shipments and Stock - MH'!O$14,0,(-1*LIFETIME_MH)+1,1,LIFETIME_MH))/ SUM(OFFSET('Shipments and Stock - MH'!O$14,0,(-1*LIFETIME_MH)+1,1,LIFETIME_MH))) -> 24.58946 | O16: =IF(O$15-$D$15+2<=LIFETIME_MH,O11, SUMPRODUCT(OFFSET(O11,0,(-1*LIFETIME_MH)+1,1,LIFETIME_MH),OFFSET('Shipments and Stock - MH'!P$14,0,(-1*LIFETIME_MH)+1,1,LIFETIME_MH))/ SUM(OFFSET('Shipments and Stock - MH'!P$14,0,(-1*LIFETIME_MH)+1,1,LIFETIME_MH))) -> 24.58946 | P16: =IF(P$15-$D$15+2<=LIFETIME_MH,P11, SUMPRODUCT(OFFSET(P11,0,(-1*LIFETIME_MH)+1,1,LIFETIME_MH),OFFSET('Shipments and Stock - MH'!Q$14,0,(-1*LIFETIME_MH)+1,1,LIFETIME_MH))/ SUM(OFFSET('Shipments and Stock - MH'!Q$14,0,(-1*LIFETIME_MH)+1,1,LIFETIME_MH))) -> 24.58946 | Q16: =IF(Q$15-$D$15+2<=LIFETIME_MH,Q11, SUMPRODUCT(OFFSET(Q11,0,(-1*LIFETIME_MH)+1,1,LIFETIME_MH),OFFSET('Shipments and Stock - MH'!R$14,0,(-1*LIFETIME_MH)+1,1,LIFETIME_MH))/ SUM(OFFSET('Shipments and Stock - MH'!R$14,0,(-1*LIFETIME_MH)+1,1,LIFETIME_MH))) -> 24.58946 | R16: =IF(R$15-$D$15+2<=LIFETIME_MH,R11, SUMPRODUCT(OFFSET(R11,0,(-1*LIFETIME_MH)+1,1,LIFETIME_MH),OFFSET('Shipments and Stock - MH'!S$14,0,(-1*LIFETIME_MH)+1,1,LIFETIME_MH))/ SUM(OFFSET('Shipments and Stock - MH'!S$14,0,(-1*LIFETIME_MH)+1,1,LIFETIME_MH))) -> 24.58946 | S16: =IF(S$15-$D$15+2<=LIFETIME_MH,S11, SUMPRODUCT(OFFSET(S11,0,(-1*LIFETIME_MH)+1,1,LIFETIME_MH),OFFSET('Shipments and Stock - MH'!T$14,0,(-1*LIFETIME_MH)+1,1,LIFETIME_MH))/ SUM(OFFSET('Shipments and Stock - MH'!T$14,0,(-1*LIFETIME_MH)+1,1,LIFETIME_MH))) -> 24.58946 | T16: =IF(T$15-$D$15+2<=LIFETIME_MH,T11, SUMPRODUCT(OFFSET(T11,0,(-1*LIFETIME_MH)+1,1,LIFETIME_MH),OFFSET('Shipments and Stock - MH'!U$14,0,(-1*LIFETIME_MH)+1,1,LIFETIME_MH))/ SUM(OFFSET('Shipments and Stock - MH'!U$14,0,(-1*LIFETIME_MH)+1,1,LIFETIME_MH))) -> 24.58946 | U16: =IF(U$15-$D$15+2<=LIFETIME_MH,U11, SUMPRODUCT(OFFSET(U11,0,(-1*LIFETIME_MH)+1,1,LIFETIME_MH),OFFSET('Shipments and Stock - MH'!V$14,0,(-1*LIFETIME_MH)+1,1,LIFETIME_MH))/ SUM(OFFSET('Shipments and Stock - MH'!V$14,0,(-1*LIFETIME_MH)+1,1,LIFETIME_MH))) -> 24.58946 | V16: =IF(V$15-$D$15+2<=LIFETIME_MH,V11, SUMPRODUCT(OFFSET(V11,0,(-1*LIFETIME_MH)+1,1,LIFETIME_MH),OFFSET('Shipments and Stock - MH'!W$14,0,(-1*LIFETIME_MH)+1,1,LIFETIME_MH))/ SUM(OFFSET('Shipments and Stock - MH'!W$14,0,(-1*LIFETIME_MH)+1,1,LIFETIME_MH))) -> 24.58946 | W16: =IF(W$15-$D$15+2<=LIFETIME_MH,W11, SUMPRODUCT(OFFSET(W11,0,(-1*LIFETIME_MH)+1,1,LIFETIME_MH),OFFSET('Shipments and Stock - MH'!X$14,0,(-1*LIFETIME_MH)+1,1,LIFETIME_MH))/ SUM(OFFSET('Shipments and Stock - MH'!X$14,0,(-1*LIFETIME_MH)+1,1,LIFETIME_MH))) -> 24.58946 | X16: =IF(X$15-$D$15+2<=LIFETIME_MH,X11, SUMPRODUCT(OFFSET(X11,0,(-1*LIFETIME_MH)+1,1,LIFETIME_MH),OFFSET('Shipments and Stock - MH'!Y$14,0,(-1*LIFETIME_MH)+1,1,LIFETIME_MH))/ SUM(OFFSET('Shipments and Stock - MH'!Y$14,0,(-1*LIFETIME_MH)+1,1,LIFETIME_MH))) -> 24.58946 | Y16: =IF(Y$15-$D$15+2<=LIFETIME_MH,Y11, SUMPRODUCT(OFFSET(Y11,0,(-1*LIFETIME_MH)+1,1,LIFETIME_MH),OFFSET('Shipments and Stock - MH'!Z$14,0,(-1*LIFETIME_MH)+1,1,LIFETIME_MH))/ SUM(OFFSET('Shipments and Stock - MH'!Z$14,0,(-1*LIFETIME_MH)+1,1,LIFETIME_MH))) -> 24.58946 | Z16: =IF(Z$15-$D$15+2<=LIFETIME_MH,Z11, SUMPRODUCT(OFFSET(Z11,0,(-1*LIFETIME_MH)+1,1,LIFETIME_MH),OFFSET('Shipments and Stock - MH'!AA$14,0,(-1*LIFETIME_MH)+1,1,LIFETIME_MH))/ SUM(OFFSET('Shipments and Stock - MH'!AA$14,0,(-1*LIFETIME_MH)+1,1,LIFETIME_MH))) -> 24.58946 | AA16: =IF(AA$15-$D$15+2<=LIFETIME_MH,AA11, SUMPRODUCT(OFFSET(AA11,0,(-1*LIFETIME_MH)+1,1,LIFETIME_MH),OFFSET('Shipments and Stock - MH'!AB$14,0,(-1*LIFETIME_MH)+1,1,LIFETIME_MH))/ SUM(OFFSET('Shipments and Stock - MH'!AB$14,0,(-1*LIFETIME_MH)+1,1,LIFETIME_MH))) -> 24.58946 | AB16: =IF(AB$15-$D$15+2<=LIFETIME_MH,AB11, SUMPRODUCT(OFFSET(AB11,0,(-1*LIFETIME_MH)+1,1,LIFETIME_MH),OFFSET('Shipments and Stock - MH'!AC$14,0,(-1*LIFETIME_MH)+1,1,LIFETIME_MH))/ SUM(OFFSET('Shipments and Stock - MH'!AC$14,0,(-1*LIFETIME_MH)+1,1,LIFETIME_MH))) -> 24.58946 | AC16: =IF(AC$15-$D$15+2<=LIFETIME_MH,AC11, SUMPRODUCT(OFFSET(AC11,0,(-1*LIFETIME_MH)+1,1,LIFETIME_MH),OFFSET('Shipments and Stock - MH'!AD$14,0,(-1*LIFETIME_MH)+1,1,LIFETIME_MH))/ SUM(OFFSET('Shipments and Stock - MH'!AD$14,0,(-1*LIFETIME_MH)+1,1,LIFETIME_MH))) -> 24.58946 | AD16: =IF(AD$15-$D$15+2<=LIFETIME_MH,AD11, SUMPRODUCT(OFFSET(AD11,0,(-1*LIFETIME_MH)+1,1,LIFETIME_MH),OFFSET('Shipments and Stock - MH'!AE$14,0,(-1*LIFETIME_MH)+1,1,LIFETIME_MH))/ SUM(OFFSET('Shipments and Stock - MH'!AE$14,0,(-1*LIFETIME_MH)+1,1,LIFETIME_MH))) -> 24.58946 | AE16: =IF(AE$15-$D$15+2<=LIFETIME_MH,AE11, SUMPRODUCT(OFFSET(AE11,0,(-1*LIFETIME_MH)+1,1,LIFETIME_MH),OFFSET('Shipments and Stock - MH'!AF$14,0,(-1*LIFETIME_MH)+1,1,LIFETIME_MH))/ SUM(OFFSET('Shipments and Stock - MH'!AF$14,0,(-1*LIFETIME_MH)+1,1,LIFETIME_MH))) -> 24.58946 | AF16: =IF(AF$15-$D$15+2<=LIFETIME_MH,AF11, SUMPRODUCT(OFFSET(AF11,0,(-1*LIFETIME_MH)+1,1,LIFETIME_MH),OFFSET('Shipments and Stock - MH'!AG$14,0,(-1*LIFETIME_MH)+1,1,LIFETIME_MH))/ SUM(OFFSET('Shipments and Stock - MH'!AG$14,0,(-1*LIFETIME_MH)+1,1,LIFETIME_MH))) -> 24.58946 | AG16: =IF(AG$15-$D$15+2<=LIFETIME_MH,AG11, SUMPRODUCT(OFFSET(AG11,0,(-1*LIFETIME_MH)+1,1,LIFETIME_MH),OFFSET('Shipments and Stock - MH'!AH$14,0,(-1*LIFETIME_MH)+1,1,LIFETIME_MH))/ SUM(OFFSET('Shipments and Stock - MH'!AH$14,0,(-1*LIFETIME_MH)+1,1,LIFETIME_MH))) -> 24.58946 | AH16: =IF(AH$15-$D$15+2<=LIFETIME_MH,AH11, SUMPRODUCT(OFFSET(AH11,0,(-1*LIFETIME_MH)+1,1,LIFETIME_MH),OFFSET('Shipments and Stock - MH'!AI$14,0,(-1*LIFETIME_MH)+1,1,LIFETIME_MH))/ SUM(OFFSET('Shipments and Stock - MH'!AI$14,0,(-1*LIFETIME_MH)+1,1,LIFETIME_MH))) -> 24.58946 | AI16: =IF(AI$15-$D$15+2<=LIFETIME_MH,AI11, SUMPRODUCT(OFFSET(AI11,0,(-1*LIFETIME_MH)+1,1,LIFETIME_MH),OFFSET('Shipments and Stock - MH'!AJ$14,0,(-1*LIFETIME_MH)+1,1,LIFETIME_MH))/ SUM(OFFSET('Shipments and Stock - MH'!AJ$14,0,(-1*LIFETIME_MH)+1,1,LIFETIME_MH))) -> 24.58946 | AJ16: =IF(AJ$15-$D$15+2<=LIFETIME_MH,AJ11, SUMPRODUCT(OFFSET(AJ11,0,(-1*LIFETIME_MH)+1,1,LIFETIME_MH),OFFSET('Shipments and Stock - MH'!AK$14,0,(-1*LIFETIME_MH)+1,1,LIFETIME_MH))/ SUM(OFFSET('Shipments and Stock - MH'!AK$14,0,(-1*LIFETIME_MH)+1,1,LIFETIME_MH))) -> 24.58946 | AK16: =IF(AK$15-$D$15+2<=LIFETIME_MH,AK11, SUMPRODUCT(OFFSET(AK11,0,(-1*LIFETIME_MH)+1,1,LIFETIME_MH),OFFSET('Shipments and Stock - MH'!AL$14,0,(-1*LIFETIME_MH)+1,1,LIFETIME_MH))/ SUM(OFFSET('Shipments and Stock - MH'!AL$14,0,(-1*LIFETIME_MH)+1,1,LIFETIME_MH))) -> 24.58946 | AL16: =IF(AL$15-$D$15+2<=LIFETIME_MH,AL11, SUMPRODUCT(OFFSET(AL11,0,(-1*LIFETIME_MH)+1,1,LIFETIME_MH),OFFSET('Shipments and Stock - MH'!AM$14,0,(-1*LIFETIME_MH)+1,1,LIFETIME_MH))/ SUM(OFFSET('Shipments and Stock - MH'!AM$14,0,(-1*LIFETIME_MH)+1,1,LIFETIME_MH))) -> 24.58946 | AM16: =IF(AM$15-$D$15+2<=LIFETIME_MH,AM11, SUMPRODUCT(OFFSET(AM11,0,(-1*LIFETIME_MH)+1,1,LIFETIME_MH),OFFSET('Shipments and Stock - MH'!AN$14,0,(-1*LIFETIME_MH)+1,1,LIFETIME_MH))/ SUM(OFFSET('Shipments and Stock - MH'!AN$14,0,(-1*LIFETIME_MH)+1,1,LIFETIME_MH))) -> 24.58946 | AN16: =IF(AN$15-$D$15+2<=LIFETIME_MH,AN11, SUMPRODUCT(OFFSET(AN11,0,(-1*LIFETIME_MH)+1,1,LIFETIME_MH),OFFSET('Shipments and Stock - MH'!AO$14,0,(-1*LIFETIME_MH)+1,1,LIFETIME_MH))/ SUM(OFFSET('Shipments and Stock - MH'!AO$14,0,(-1*LIFETIME_MH)+1,1,LIFETIME_MH))) -> 24.58946 | AO16: =IF(AO$15-$D$15+2<=LIFETIME_MH,AO11, SUMPRODUCT(OFFSET(AO11,0,(-1*LIFETIME_MH)+1,1,LIFETIME_MH),OFFSET('Shipments and Stock - MH'!AP$14,0,(-1*LIFETIME_MH)+1,1,LIFETIME_MH))/ SUM(OFFSET('Shipments and Stock - MH'!AP$14,0,(-1*LIFETIME_MH)+1,1,LIFETIME_MH))) -> 24.58946 | AP16: =IF(AP$15-$D$15+2<=LIFETIME_MH,AP11, SUMPRODUCT(OFFSET(AP11,0,(-1*LIFETIME_MH)+1,1,LIFETIME_MH),OFFSET('Shipments and Stock - MH'!AQ$14,0,(-1*LIFETIME_MH)+1,1,LIFETIME_MH))/ SUM(OFFSET('Shipments and Stock - MH'!AQ$14,0,(-1*LIFETIME_MH)+1,1,LIFETIME_MH))) -> 24.58946 | AQ16: =IF(AQ$15-$D$15+2<=LIFETIME_MH,AQ11, SUMPRODUCT(OFFSET(AQ11,0,(-1*LIFETIME_MH)+1,1,LIFETIME_MH),OFFSET('Shipments and Stock - MH'!AR$14,0,(-1*LIFETIME_MH)+1,1,LIFETIME_MH))/ SUM(OFFSET('Shipments and Stock - MH'!AR$14,0,(-1*LIFETIME_MH)+1,1,LIFETIME_MH))) -> 24.58946 | AR16: =IF(AR$15-$D$15+2<=LIFETIME_MH,AR11, SUMPRODUCT(OFFSET(AR11,0,(-1*LIFETIME_MH)+1,1,LIFETIME_MH),OFFSET('Shipments and Stock - MH'!AS$14,0,(-1*LIFETIME_MH)+1,1,LIFETIME_MH))/ SUM(OFFSET('Shipments and Stock - MH'!AS$14,0,(-1*LIFETIME_MH)+1,1,LIFETIME_MH))) -> 24.58946 | AS16: =IF(AS$15-$D$15+2<=LIFETIME_MH,AS11, SUMPRODUCT(OFFSET(AS11,0,(-1*LIFETIME_MH)+1,1,LIFETIME_MH),OFFSET('Shipments and Stock - MH'!AT$14,0,(-1*LIFETIME_MH)+1,1,LIFETIME_MH))/ SUM(OFFSET('Shipments and Stock - MH'!AT$14,0,(-1*LIFETIME_MH)+1,1,LIFETIME_MH))) -> 24.58946 | AT16: =IF(AT$15-$D$15+2<=LIFETIME_MH,AT11, SUMPRODUCT(OFFSET(AT11,0,(-1*LIFETIME_MH)+1,1,LIFETIME_MH),OFFSET('Shipments and Stock - MH'!AU$14,0,(-1*LIFETIME_MH)+1,1,LIFETIME_MH))/ SUM(OFFSET('Shipments and Stock - MH'!AU$14,0,(-1*LIFETIME_MH)+1,1,LIFETIME_MH))) -> 24.58946 | AU16: =IF(AU$15-$D$15+2<=LIFETIME_MH,AU11, SUMPRODUCT(OFFSET(AU11,0,(-1*LIFETIME_MH)+1,1,LIFETIME_MH),OFFSET('Shipments and Stock - MH'!AV$14,0,(-1*LIFETIME_MH)+1,1,LIFETIME_MH))/ SUM(OFFSET('Shipments and Stock - MH'!AV$14,0,(-1*LIFETIME_MH)+1,1,LIFETIME_MH))) -> 24.58946 | AV16: =IF(AV$15-$D$15+2<=LIFETIME_MH,AV11, SUMPRODUCT(OFFSET(AV11,0,(-1*LIFETIME_MH)+1,1,LIFETIME_MH),OFFSET('Shipments and Stock - MH'!AW$14,0,(-1*LIFETIME_MH)+1,1,LIFETIME_MH))/ SUM(OFFSET('Shipments and Stock - MH'!AW$14,0,(-1*LIFETIME_MH)+1,1,LIFETIME_MH))) -> 24.58946 | AW16: =IF(AW$15-$D$15+2<=LIFETIME_MH,AW11, SUMPRODUCT(OFFSET(AW11,0,(-1*LIFETIME_MH)+1,1,LIFETIME_MH),OFFSET('Shipments and Stock - MH'!AX$14,0,(-1*LIFETIME_MH)+1,1,LIFETIME_MH))/ SUM(OFFSET('Shipments and Stock - MH'!AX$14,0,(-1*LIFETIME_MH)+1,1,LIFETIME_MH))) -> 24.58946 | AX16: =IF(AX$15-$D$15+2<=LIFETIME_MH,AX11, SUMPRODUCT(OFFSET(AX11,0,(-1*LIFETIME_MH)+1,1,LIFETIME_MH),OFFSET('Shipments and Stock - MH'!AY$14,0,(-1*LIFETIME_MH)+1,1,LIFETIME_MH))/ SUM(OFFSET('Shipments and Stock - MH'!AY$14,0,(-1*LIFETIME_MH)+1,1,LIFETIME_MH))) -> 24.58946 | AY16: =IF(AY$15-$D$15+2<=LIFETIME_MH,AY11, SUMPRODUCT(OFFSET(AY11,0,(-1*LIFETIME_MH)+1,1,LIFETIME_MH),OFFSET('Shipments and Stock - MH'!AZ$14,0,(-1*LIFETIME_MH)+1,1,LIFETIME_MH))/ SUM(OFFSET('Shipments and Stock - MH'!AZ$14,0,(-1*LIFETIME_MH)+1,1,LIFETIME_MH))) -> 24.58946 | AZ16: =IF(AZ$15-$D$15+2<=LIFETIME_MH,AZ11, SUMPRODUCT(OFFSET(AZ11,0,(-1*LIFETIME_MH)+1,1,LIFETIME_MH),OFFSET('Shipments and Stock - MH'!BA$14,0,(-1*LIFETIME_MH)+1,1,LIFETIME_MH))/ SUM(OFFSET('Shipments and Stock - MH'!BA$14,0,(-1*LIFETIME_MH)+1,1,LIFETIME_MH))) -> 24.58946 | BA16: =IF(BA$15-$D$15+2<=LIFETIME_MH,BA11, SUMPRODUCT(OFFSET(BA11,0,(-1*LIFETIME_MH)+1,1,LIFETIME_MH),OFFSET('Shipments and Stock - MH'!BB$14,0,(-1*LIFETIME_MH)+1,1,LIFETIME_MH))/ SUM(OFFSET('Shipments and Stock - MH'!BB$14,0,(-1*LIFETIME_MH)+1,1,LIFETIME_MH))) -> 24.58946 | BB16: =IF(BB$15-$D$15+2<=LIFETIME_MH,BB11, SUMPRODUCT(OFFSET(BB11,0,(-1*LIFETIME_MH)+1,1,LIFETIME_MH),OFFSET('Shipments and Stock - MH'!BC$14,0,(-1*LIFETIME_MH)+1,1,LIFETIME_MH))/ SUM(OFFSET('Shipments and Stock - MH'!BC$14,0,(-1*LIFETIME_MH)+1,1,LIFETIME_MH))) -> 24.58946 | BC16: =IF(BC$15-$D$15+2<=LIFETIME_MH,BC11, SUMPRODUCT(OFFSET(BC11,0,(-1*LIFETIME_MH)+1,1,LIFETIME_MH),OFFSET('Shipments and Stock - MH'!BD$14,0,(-1*LIFETIME_MH)+1,1,LIFETIME_MH))/ SUM(OFFSET('Shipments and Stock - MH'!BD$14,0,(-1*LIFETIME_MH)+1,1,LIFETIME_MH))) -> 24.58946 | BD16: =IF(BD$15-$D$15+2<=LIFETIME_MH,BD11, SUMPRODUCT(OFFSET(BD11,0,(-1*LIFETIME_MH)+1,1,LIFETIME_MH),OFFSET('Shipments and Stock - MH'!BE$14,0,(-1*LIFETIME_MH)+1,1,LIFETIME_MH))/ SUM(OFFSET('Shipments and Stock - MH'!BE$14,0,(-1*LIFETIME_MH)+1,1,LIFETIME_MH))) -> 24.58946 | BE16: =IF(BE$15-$D$15+2<=LIFETIME_MH,BE11, SUMPRODUCT(OFFSET(BE11,0,(-1*LIFETIME_MH)+1,1,LIFETIME_MH),OFFSET('Shipments and Stock - MH'!BF$14,0,(-1*LIFETIME_MH)+1,1,LIFETIME_MH))/ SUM(OFFSET('Shipments and Stock - MH'!BF$14,0,(-1*LIFETIME_MH)+1,1,LIFETIME_MH))) -> 24.58946
C17: POST-Case UEC | D17: =IF(D$15-$D$15+2<=LIFETIME_MH,D12, SUMPRODUCT(OFFSET(D12,0,(-1*LIFETIME_MH)+1,1,LIFETIME_MH),OFFSET('Shipments and Stock - MH'!E$14,0,(-1*LIFETIME_MH)+1,1,LIFETIME_MH))/ SUM(OFFSET('Shipments and Stock - MH'!E$14,0,(-1*LIFETIME_MH)+1,1,LIFETIME_MH))) -> 24.58946 | E17: =IF(E$15-$D$15+2<=LIFETIME_MH,E12, SUMPRODUCT(OFFSET(E12,0,(-1*LIFETIME_MH)+1,1,LIFETIME_MH),OFFSET('Shipments and Stock - MH'!F$14,0,(-1*LIFETIME_MH)+1,1,LIFETIME_MH))/ SUM(OFFSET('Shipments and Stock - MH'!F$14,0,(-1*LIFETIME_MH)+1,1,LIFETIME_MH))) -> 24.58946 | F17: =IF(F$15-$D$15+2<=LIFETIME_MH,F12, SUMPRODUCT(OFFSET(F12,0,(-1*LIFETIME_MH)+1,1,LIFETIME_MH),OFFSET('Shipments and Stock - MH'!G$14,0,(-1*LIFETIME_MH)+1,1,LIFETIME_MH))/ SUM(OFFSET('Shipments and Stock - MH'!G$14,0,(-1*LIFETIME_MH)+1,1,LIFETIME_MH))) -> 24.58946 | G17: =IF(G$15-$D$15+2<=LIFETIME_MH,G12, SUMPRODUCT(OFFSET(G12,0,(-1*LIFETIME_MH)+1,1,LIFETIME_MH),OFFSET('Shipments and Stock - MH'!H$14,0,(-1*LIFETIME_MH)+1,1,LIFETIME_MH))/ SUM(OFFSET('Shipments and Stock - MH'!H$14,0,(-1*LIFETIME_MH)+1,1,LIFETIME_MH))) -> 24.58946 | H17: =IF(H$15-$D$15+2<=LIFETIME_MH,H12, SUMPRODUCT(OFFSET(H12,0,(-1*LIFETIME_MH)+1,1,LIFETIME_MH),OFFSET('Shipments and Stock - MH'!I$14,0,(-1*LIFETIME_MH)+1,1,LIFETIME_MH))/ SUM(OFFSET('Shipments and Stock - MH'!I$14,0,(-1*LIFETIME_MH)+1,1,LIFETIME_MH))) -> 24.58946 | I17: =IF(I$15-$D$15+2<=LIFETIME_MH,I12, SUMPRODUCT(OFFSET(I12,0,(-1*LIFETIME_MH)+1,1,LIFETIME_MH),OFFSET('Shipments and Stock - MH'!J$14,0,(-1*LIFETIME_MH)+1,1,LIFETIME_MH))/ SUM(OFFSET('Shipments and Stock - MH'!J$14,0,(-1*LIFETIME_MH)+1,1,LIFETIME_MH))) -> 24.58946 | J17: =IF(J$15-$D$15+2<=LIFETIME_MH,J12, SUMPRODUCT(OFFSET(J12,0,(-1*LIFETIME_MH)+1,1,LIFETIME_MH),OFFSET('Shipments and Stock - MH'!K$14,0,(-1*LIFETIME_MH)+1,1,LIFETIME_MH))/ SUM(OFFSET('Shipments and Stock - MH'!K$14,0,(-1*LIFETIME_MH)+1,1,LIFETIME_MH))) -> 24.58946 | K17: =IF(K$15-$D$15+2<=LIFETIME_MH,K12, SUMPRODUCT(OFFSET(K12,0,(-1*LIFETIME_MH)+1,1,LIFETIME_MH),OFFSET('Shipments and Stock - MH'!L$14,0,(-1*LIFETIME_MH)+1,1,LIFETIME_MH))/ SUM(OFFSET('Shipments and Stock - MH'!L$14,0,(-1*LIFETIME_MH)+1,1,LIFETIME_MH))) -> 24.58946 | L17: =IF(L$15-$D$15+2<=LIFETIME_MH,L12, SUMPRODUCT(OFFSET(L12,0,(-1*LIFETIME_MH)+1,1,LIFETIME_MH),OFFSET('Shipments and Stock - MH'!M$14,0,(-1*LIFETIME_MH)+1,1,LIFETIME_MH))/ SUM(OFFSET('Shipments and Stock - MH'!M$14,0,(-1*LIFETIME_MH)+1,1,LIFETIME_MH))) -> 24.58946 | M17: =IF(M$15-$D$15+2<=LIFETIME_MH,M12, SUMPRODUCT(OFFSET(M12,0,(-1*LIFETIME_MH)+1,1,LIFETIME_MH),OFFSET('Shipments and Stock - MH'!N$14,0,(-1*LIFETIME_MH)+1,1,LIFETIME_MH))/ SUM(OFFSET('Shipments and Stock - MH'!N$14,0,(-1*LIFETIME_MH)+1,1,LIFETIME_MH))) -> 24.58946 | N17: =IF(N$15-$D$15+2<=LIFETIME_MH,N12, SUMPRODUCT(OFFSET(N12,0,(-1*LIFETIME_MH)+1,1,LIFETIME_MH),OFFSET('Shipments and Stock - MH'!O$14,0,(-1*LIFETIME_MH)+1,1,LIFETIME_MH))/ SUM(OFFSET('Shipments and Stock - MH'!O$14,0,(-1*LIFETIME_MH)+1,1,LIFETIME_MH))) -> 24.58946 | O17: =IF(O$15-$D$15+2<=LIFETIME_MH,O12, SUMPRODUCT(OFFSET(O12,0,(-1*LIFETIME_MH)+1,1,LIFETIME_MH),OFFSET('Shipments and Stock - MH'!P$14,0,(-1*LIFETIME_MH)+1,1,LIFETIME_MH))/ SUM(OFFSET('Shipments and Stock - MH'!P$14,0,(-1*LIFETIME_MH)+1,1,LIFETIME_MH))) -> 24.58946 | P17: =IF(P$15-$D$15+2<=LIFETIME_MH,P12, SUMPRODUCT(OFFSET(P12,0,(-1*LIFETIME_MH)+1,1,LIFETIME_MH),OFFSET('Shipments and Stock - MH'!Q$14,0,(-1*LIFETIME_MH)+1,1,LIFETIME_MH))/ SUM(OFFSET('Shipments and Stock - MH'!Q$14,0,(-1*LIFETIME_MH)+1,1,LIFETIME_MH))) -> 24.58946 | Q17: =IF(Q$15-$D$15+2<=LIFETIME_MH,Q12, SUMPRODUCT(OFFSET(Q12,0,(-1*LIFETIME_MH)+1,1,LIFETIME_MH),OFFSET('Shipments and Stock - MH'!R$14,0,(-1*LIFETIME_MH)+1,1,LIFETIME_MH))/ SUM(OFFSET('Shipments and Stock - MH'!R$14,0,(-1*LIFETIME_MH)+1,1,LIFETIME_MH))) -> 24.58946 | R17: =IF(R$15-$D$15+2<=LIFETIME_MH,R12, SUMPRODUCT(OFFSET(R12,0,(-1*LIFETIME_MH)+1,1,LIFETIME_MH),OFFSET('Shipments and Stock - MH'!S$14,0,(-1*LIFETIME_MH)+1,1,LIFETIME_MH))/ SUM(OFFSET('Shipments and Stock - MH'!S$14,0,(-1*LIFETIME_MH)+1,1,LIFETIME_MH))) -> 24.58946 | S17: =IF(S$15-$D$15+2<=LIFETIME_MH,S12, SUMPRODUCT(OFFSET(S12,0,(-1*LIFETIME_MH)+1,1,LIFETIME_MH),OFFSET('Shipments and Stock - MH'!T$14,0,(-1*LIFETIME_MH)+1,1,LIFETIME_MH))/ SUM(OFFSET('Shipments and Stock - MH'!T$14,0,(-1*LIFETIME_MH)+1,1,LIFETIME_MH))) -> 24.58946 | T17: =IF(T$15-$D$15+2<=LIFETIME_MH,T12, SUMPRODUCT(OFFSET(T12,0,(-1*LIFETIME_MH)+1,1,LIFETIME_MH),OFFSET('Shipments and Stock - MH'!U$14,0,(-1*LIFETIME_MH)+1,1,LIFETIME_MH))/ SUM(OFFSET('Shipments and Stock - MH'!U$14,0,(-1*LIFETIME_MH)+1,1,LIFETIME_MH))) -> 24.58946 | U17: =IF(U$15-$D$15+2<=LIFETIME_MH,U12, SUMPRODUCT(OFFSET(U12,0,(-1*LIFETIME_MH)+1,1,LIFETIME_MH),OFFSET('Shipments and Stock - MH'!V$14,0,(-1*LIFETIME_MH)+1,1,LIFETIME_MH))/ SUM(OFFSET('Shipments and Stock - MH'!V$14,0,(-1*LIFETIME_MH)+1,1,LIFETIME_MH))) -> 24.58946 | V17: =IF(V$15-$D$15+2<=LIFETIME_MH,V12, SUMPRODUCT(OFFSET(V12,0,(-1*LIFETIME_MH)+1,1,LIFETIME_MH),OFFSET('Shipments and Stock - MH'!W$14,0,(-1*LIFETIME_MH)+1,1,LIFETIME_MH))/ SUM(OFFSET('Shipments and Stock - MH'!W$14,0,(-1*LIFETIME_MH)+1,1,LIFETIME_MH))) -> 24.58946 | W17: =IF(W$15-$D$15+2<=LIFETIME_MH,W12, SUMPRODUCT(OFFSET(W12,0,(-1*LIFETIME_MH)+1,1,LIFETIME_MH),OFFSET('Shipments and Stock - MH'!X$14,0,(-1*LIFETIME_MH)+1,1,LIFETIME_MH))/ SUM(OFFSET('Shipments and Stock - MH'!X$14,0,(-1*LIFETIME_MH)+1,1,LIFETIME_MH))) -> 24.58946 | X17: =IF(X$15-$D$15+2<=LIFETIME_MH,X12, SUMPRODUCT(OFFSET(X12,0,(-1*LIFETIME_MH)+1,1,LIFETIME_MH),OFFSET('Shipments and Stock - MH'!Y$14,0,(-1*LIFETIME_MH)+1,1,LIFETIME_MH))/ SUM(OFFSET('Shipments and Stock - MH'!Y$14,0,(-1*LIFETIME_MH)+1,1,LIFETIME_MH))) -> 24.58946 | Y17: =IF(Y$15-$D$15+2<=LIFETIME_MH,Y12, SUMPRODUCT(OFFSET(Y12,0,(-1*LIFETIME_MH)+1,1,LIFETIME_MH),OFFSET('Shipments and Stock - MH'!Z$14,0,(-1*LIFETIME_MH)+1,1,LIFETIME_MH))/ SUM(OFFSET('Shipments and Stock - MH'!Z$14,0,(-1*LIFETIME_MH)+1,1,LIFETIME_MH))) -> 24.58946 | Z17: =IF(Z$15-$D$15+2<=LIFETIME_MH,Z12, SUMPRODUCT(OFFSET(Z12,0,(-1*LIFETIME_MH)+1,1,LIFETIME_MH),OFFSET('Shipments and Stock - MH'!AA$14,0,(-1*LIFETIME_MH)+1,1,LIFETIME_MH))/ SUM(OFFSET('Shipments and Stock - MH'!AA$14,0,(-1*LIFETIME_MH)+1,1,LIFETIME_MH))) -> 24.58946 | AA17: =IF(AA$15-$D$15+2<=LIFETIME_MH,AA12, SUMPRODUCT(OFFSET(AA12,0,(-1*LIFETIME_MH)+1,1,LIFETIME_MH),OFFSET('Shipments and Stock - MH'!AB$14,0,(-1*LIFETIME_MH)+1,1,LIFETIME_MH))/ SUM(OFFSET('Shipments and Stock - MH'!AB$14,0,(-1*LIFETIME_MH)+1,1,LIFETIME_MH))) -> 24.58946 | AB17: =IF(AB$15-$D$15+2<=LIFETIME_MH,AB12, SUMPRODUCT(OFFSET(AB12,0,(-1*LIFETIME_MH)+1,1,LIFETIME_MH),OFFSET('Shipments and Stock - MH'!AC$14,0,(-1*LIFETIME_MH)+1,1,LIFETIME_MH))/ SUM(OFFSET('Shipments and Stock - MH'!AC$14,0,(-1*LIFETIME_MH)+1,1,LIFETIME_MH))) -> 24.58946 | AC17: =IF(AC$15-$D$15+2<=LIFETIME_MH,AC12, SUMPRODUCT(OFFSET(AC12,0,(-1*LIFETIME_MH)+1,1,LIFETIME_MH),OFFSET('Shipments and Stock - MH'!AD$14,0,(-1*LIFETIME_MH)+1,1,LIFETIME_MH))/ SUM(OFFSET('Shipments and Stock - MH'!AD$14,0,(-1*LIFETIME_MH)+1,1,LIFETIME_MH))) -> 24.58946 | AD17: =IF(AD$15-$D$15+2<=LIFETIME_MH,AD12, SUMPRODUCT(OFFSET(AD12,0,(-1*LIFETIME_MH)+1,1,LIFETIME_MH),OFFSET('Shipments and Stock - MH'!AE$14,0,(-1*LIFETIME_MH)+1,1,LIFETIME_MH))/ SUM(OFFSET('Shipments and Stock - MH'!AE$14,0,(-1*LIFETIME_MH)+1,1,LIFETIME_MH))) -> 24.58946 | AE17: =IF(AE$15-$D$15+2<=LIFETIME_MH,AE12, SUMPRODUCT(OFFSET(AE12,0,(-1*LIFETIME_MH)+1,1,LIFETIME_MH),OFFSET('Shipments and Stock - MH'!AF$14,0,(-1*LIFETIME_MH)+1,1,LIFETIME_MH))/ SUM(OFFSET('Shipments and Stock - MH'!AF$14,0,(-1*LIFETIME_MH)+1,1,LIFETIME_MH))) -> 24.58946 | AF17: =IF(AF$15-$D$15+2<=LIFETIME_MH,AF12, SUMPRODUCT(OFFSET(AF12,0,(-1*LIFETIME_MH)+1,1,LIFETIME_MH),OFFSET('Shipments and Stock - MH'!AG$14,0,(-1*LIFETIME_MH)+1,1,LIFETIME_MH))/ SUM(OFFSET('Shipments and Stock - MH'!AG$14,0,(-1*LIFETIME_MH)+1,1,LIFETIME_MH))) -> 24.58946 | AG17: =IF(AG$15-$D$15+2<=LIFETIME_MH,AG12, SUMPRODUCT(OFFSET(AG12,0,(-1*LIFETIME_MH)+1,1,LIFETIME_MH),OFFSET('Shipments and Stock - MH'!AH$14,0,(-1*LIFETIME_MH)+1,1,LIFETIME_MH))/ SUM(OFFSET('Shipments and Stock - MH'!AH$14,0,(-1*LIFETIME_MH)+1,1,LIFETIME_MH))) -> 24.58946 | AH17: =IF(AH$15-$D$15+2<=LIFETIME_MH,AH12, SUMPRODUCT(OFFSET(AH12,0,(-1*LIFETIME_MH)+1,1,LIFETIME_MH),OFFSET('Shipments and Stock - MH'!AI$14,0,(-1*LIFETIME_MH)+1,1,LIFETIME_MH))/ SUM(OFFSET('Shipments and Stock - MH'!AI$14,0,(-1*LIFETIME_MH)+1,1,LIFETIME_MH))) -> 24.58946 | AI17: =IF(AI$15-$D$15+2<=LIFETIME_MH,AI12, SUMPRODUCT(OFFSET(AI12,0,(-1*LIFETIME_MH)+1,1,LIFETIME_MH),OFFSET('Shipments and Stock - MH'!AJ$14,0,(-1*LIFETIME_MH)+1,1,LIFETIME_MH))/ SUM(OFFSET('Shipments and Stock - MH'!AJ$14,0,(-1*LIFETIME_MH)+1,1,LIFETIME_MH))) -> 24.58946 | AJ17: =IF(AJ$15-$D$15+2<=LIFETIME_MH,AJ12, SUMPRODUCT(OFFSET(AJ12,0,(-1*LIFETIME_MH)+1,1,LIFETIME_MH),OFFSET('Shipments and Stock - MH'!AK$14,0,(-1*LIFETIME_MH)+1,1,LIFETIME_MH))/ SUM(OFFSET('Shipments and Stock - MH'!AK$14,0,(-1*LIFETIME_MH)+1,1,LIFETIME_MH))) -> 24.58946 | AK17: =IF(AK$15-$D$15+2<=LIFETIME_MH,AK12, SUMPRODUCT(OFFSET(AK12,0,(-1*LIFETIME_MH)+1,1,LIFETIME_MH),OFFSET('Shipments and Stock - MH'!AL$14,0,(-1*LIFETIME_MH)+1,1,LIFETIME_MH))/ SUM(OFFSET('Shipments and Stock - MH'!AL$14,0,(-1*LIFETIME_MH)+1,1,LIFETIME_MH))) -> 24.58946 | AL17: =IF(AL$15-$D$15+2<=LIFETIME_MH,AL12, SUMPRODUCT(OFFSET(AL12,0,(-1*LIFETIME_MH)+1,1,LIFETIME_MH),OFFSET('Shipments and Stock - MH'!AM$14,0,(-1*LIFETIME_MH)+1,1,LIFETIME_MH))/ SUM(OFFSET('Shipments and Stock - MH'!AM$14,0,(-1*LIFETIME_MH)+1,1,LIFETIME_MH))) -> 24.58946 | AM17: =IF(AM$15-$D$15+2<=LIFETIME_MH,AM12, SUMPRODUCT(OFFSET(AM12,0,(-1*LIFETIME_MH)+1,1,LIFETIME_MH),OFFSET('Shipments and Stock - MH'!AN$14,0,(-1*LIFETIME_MH)+1,1,LIFETIME_MH))/ SUM(OFFSET('Shipments and Stock - MH'!AN$14,0,(-1*LIFETIME_MH)+1,1,LIFETIME_MH))) -> 22.81396348 | AN17: =IF(AN$15-$D$15+2<=LIFETIME_MH,AN12, SUMPRODUCT(OFFSET(AN12,0,(-1*LIFETIME_MH)+1,1,LIFETIME_MH),OFFSET('Shipments and Stock - MH'!AO$14,0,(-1*LIFETIME_MH)+1,1,LIFETIME_MH))/ SUM(OFFSET('Shipments and Stock - MH'!AO$14,0,(-1*LIFETIME_MH)+1,1,LIFETIME_MH))) -> 20.85692199 | AO17: =IF(AO$15-$D$15+2<=LIFETIME_MH,AO12, SUMPRODUCT(OFFSET(AO12,0,(-1*LIFETIME_MH)+1,1,LIFETIME_MH),OFFSET('Shipments and Stock - MH'!AP$14,0,(-1*LIFETIME_MH)+1,1,LIFETIME_MH))/ SUM(OFFSET('Shipments and Stock - MH'!AP$14,0,(-1*LIFETIME_MH)+1,1,LIFETIME_MH))) -> 19.09436038 | AP17: =IF(AP$15-$D$15+2<=LIFETIME_MH,AP12, SUMPRODUCT(OFFSET(AP12,0,(-1*LIFETIME_MH)+1,1,LIFETIME_MH),OFFSET('Shipments and Stock - MH'!AQ$14,0,(-1*LIFETIME_MH)+1,1,LIFETIME_MH))/ SUM(OFFSET('Shipments and Stock - MH'!AQ$14,0,(-1*LIFETIME_MH)+1,1,LIFETIME_MH))) -> 17.29401908 | AQ17: =IF(AQ$15-$D$15+2<=LIFETIME_MH,AQ12, SUMPRODUCT(OFFSET(AQ12,0,(-1*LIFETIME_MH)+1,1,LIFETIME_MH),OFFSET('Shipments and Stock - MH'!AR$14,0,(-1*LIFETIME_MH)+1,1,LIFETIME_MH))/ SUM(OFFSET('Shipments and Stock - MH'!AR$14,0,(-1*LIFETIME_MH)+1,1,LIFETIME_MH))) -> 15.4113766 | AR17: =IF(AR$15-$D$15+2<=LIFETIME_MH,AR12, SUMPRODUCT(OFFSET(AR12,0,(-1*LIFETIME_MH)+1,1,LIFETIME_MH),OFFSET('Shipments and Stock - MH'!AS$14,0,(-1*LIFETIME_MH)+1,1,LIFETIME_MH))/ SUM(OFFSET('Shipments and Stock - MH'!AS$14,0,(-1*LIFETIME_MH)+1,1,LIFETIME_MH))) -> 13.60051368 | AS17: =IF(AS$15-$D$15+2<=LIFETIME_MH,AS12, SUMPRODUCT(OFFSET(AS12,0,(-1*LIFETIME_MH)+1,1,LIFETIME_MH),OFFSET('Shipments and Stock - MH'!AT$14,0,(-1*LIFETIME_MH)+1,1,LIFETIME_MH))/ SUM(OFFSET('Shipments and Stock - MH'!AT$14,0,(-1*LIFETIME_MH)+1,1,LIFETIME_MH))) -> 11.88954566 | AT17: =IF(AT$15-$D$15+2<=LIFETIME_MH,AT12, SUMPRODUCT(OFFSET(AT12,0,(-1*LIFETIME_MH)+1,1,LIFETIME_MH),OFFSET('Shipments and Stock - MH'!AU$14,0,(-1*LIFETIME_MH)+1,1,LIFETIME_MH))/ SUM(OFFSET('Shipments and Stock - MH'!AU$14,0,(-1*LIFETIME_MH)+1,1,LIFETIME_MH))) -> 10.28300875 | AU17: =IF(AU$15-$D$15+2<=LIFETIME_MH,AU12, SUMPRODUCT(OFFSET(AU12,0,(-1*LIFETIME_MH)+1,1,LIFETIME_MH),OFFSET('Shipments and Stock - MH'!AV$14,0,(-1*LIFETIME_MH)+1,1,LIFETIME_MH))/ SUM(OFFSET('Shipments and Stock - MH'!AV$14,0,(-1*LIFETIME_MH)+1,1,LIFETIME_MH))) -> 8.695 | AV17: =IF(AV$15-$D$15+2<=LIFETIME_MH,AV12, SUMPRODUCT(OFFSET(AV12,0,(-1*LIFETIME_MH)+1,1,LIFETIME_MH),OFFSET('Shipments and Stock - MH'!AW$14,0,(-1*LIFETIME_MH)+1,1,LIFETIME_MH))/ SUM(OFFSET('Shipments and Stock - MH'!AW$14,0,(-1*LIFETIME_MH)+1,1,LIFETIME_MH))) -> 8.695 | AW17: =IF(AW$15-$D$15+2<=LIFETIME_MH,AW12, SUMPRODUCT(OFFSET(AW12,0,(-1*LIFETIME_MH)+1,1,LIFETIME_MH),OFFSET('Shipments and Stock - MH'!AX$14,0,(-1*LIFETIME_MH)+1,1,LIFETIME_MH))/ SUM(OFFSET('Shipments and Stock - MH'!AX$14,0,(-1*LIFETIME_MH)+1,1,LIFETIME_MH))) -> 8.695 | AX17: =IF(AX$15-$D$15+2<=LIFETIME_MH,AX12, SUMPRODUCT(OFFSET(AX12,0,(-1*LIFETIME_MH)+1,1,LIFETIME_MH),OFFSET('Shipments and Stock - MH'!AY$14,0,(-1*LIFETIME_MH)+1,1,LIFETIME_MH))/ SUM(OFFSET('Shipments and Stock - MH'!AY$14,0,(-1*LIFETIME_MH)+1,1,LIFETIME_MH))) -> 8.695 | AY17: =IF(AY$15-$D$15+2<=LIFETIME_MH,AY12, SUMPRODUCT(OFFSET(AY12,0,(-1*LIFETIME_MH)+1,1,LIFETIME_MH),OFFSET('Shipments and Stock - MH'!AZ$14,0,(-1*LIFETIME_MH)+1,1,LIFETIME_MH))/ SUM(OFFSET('Shipments and Stock - MH'!AZ$14,0,(-1*LIFETIME_MH)+1,1,LIFETIME_MH))) -> 8.695 | AZ17: =IF(AZ$15-$D$15+2<=LIFETIME_MH,AZ12, SUMPRODUCT(OFFSET(AZ12,0,(-1*LIFETIME_MH)+1,1,LIFETIME_MH),OFFSET('Shipments and Stock - MH'!BA$14,0,(-1*LIFETIME_MH)+1,1,LIFETIME_MH))/ SUM(OFFSET('Shipments and Stock - MH'!BA$14,0,(-1*LIFETIME_MH)+1,1,LIFETIME_MH))) -> 8.695 | BA17: =IF(BA$15-$D$15+2<=LIFETIME_MH,BA12, SUMPRODUCT(OFFSET(BA12,0,(-1*LIFETIME_MH)+1,1,LIFETIME_MH),OFFSET('Shipments and Stock - MH'!BB$14,0,(-1*LIFETIME_MH)+1,1,LIFETIME_MH))/ SUM(OFFSET('Shipments and Stock - MH'!BB$14,0,(-1*LIFETIME_MH)+1,1,LIFETIME_MH))) -> 8.695 | BB17: =IF(BB$15-$D$15+2<=LIFETIME_MH,BB12, SUMPRODUCT(OFFSET(BB12,0,(-1*LIFETIME_MH)+1,1,LIFETIME_MH),OFFSET('Shipments and Stock - MH'!BC$14,0,(-1*LIFETIME_MH)+1,1,LIFETIME_MH))/ SUM(OFFSET('Shipments and Stock - MH'!BC$14,0,(-1*LIFETIME_MH)+1,1,LIFETIME_MH))) -> 8.695 | BC17: =IF(BC$15-$D$15+2<=LIFETIME_MH,BC12, SUMPRODUCT(OFFSET(BC12,0,(-1*LIFETIME_MH)+1,1,LIFETIME_MH),OFFSET('Shipments and Stock - MH'!BD$14,0,(-1*LIFETIME_MH)+1,1,LIFETIME_MH))/ SUM(OFFSET('Shipments and Stock - MH'!BD$14,0,(-1*LIFETIME_MH)+1,1,LIFETIME_MH))) -> 8.695 | BD17: =IF(BD$15-$D$15+2<=LIFETIME_MH,BD12, SUMPRODUCT(OFFSET(BD12,0,(-1*LIFETIME_MH)+1,1,LIFETIME_MH),OFFSET('Shipments and Stock - MH'!BE$14,0,(-1*LIFETIME_MH)+1,1,LIFETIME_MH))/ SUM(OFFSET('Shipments and Stock - MH'!BE$14,0,(-1*LIFETIME_MH)+1,1,LIFETIME_MH))) -> 8.695 | BE17: =IF(BE$15-$D$15+2<=LIFETIME_MH,BE12, SUMPRODUCT(OFFSET(BE12,0,(-1*LIFETIME_MH)+1,1,LIFETIME_MH),OFFSET('Shipments and Stock - MH'!BF$14,0,(-1*LIFETIME_MH)+1,1,LIFETIME_MH))/ SUM(OFFSET('Shipments and Stock - MH'!BF$14,0,(-1*LIFETIME_MH)+1,1,LIFETIME_MH))) -> 8.695

Sheet Results-SF
C2: RESULTS - Single Family
C4: NAVIGATION
C6: COMMENTS
C9: SINGLE FAMILY
C11: Unit Energy Consumption (kWh/year) | D11: 2010 | E11: 2011 | F11: 2012 | G11: 2013 | H11: 2014 | I11: 2015 | J11: 2016 | K11: 2017 | L11: 2018 | M11: 2019 | N11: 2020 | O11: 2021 | P11: 2022 | Q11: 2023 | R11: 2024 | S11: 2025 | T11: 2026 | U11: 2027 | V11: 2028 | W11: 2029 | X11: 2030 | Y11: 2031 | Z11: 2032 | AA11: 2033 | AB11: 2034
C12: 6P UEC | D12: ='6P UEC Development'!$G$11 -> 17.376 | E12: ='6P UEC Development'!$G$11 -> 17.376 | F12: ='6P UEC Development'!$G$11 -> 17.376 | G12: ='6P UEC Development'!$G$11 -> 17.376 | H12: ='6P UEC Development'!$G$11 -> 17.376 | I12: ='6P UEC Development'!$G$11 -> 17.376 | J12: ='6P UEC Development'!$G$11 -> 17.376 | K12: ='6P UEC Development'!$G$11 -> 17.376 | L12: ='6P UEC Development'!$G$11 -> 17.376 | M12: ='6P UEC Development'!$G$11 -> 17.376 | N12: ='6P UEC Development'!$G$11 -> 17.376 | O12: ='6P UEC Development'!$G$11 -> 17.376 | P12: ='6P UEC Development'!$G$11 -> 17.376 | Q12: ='6P UEC Development'!$G$11 -> 17.376 | R12: ='6P UEC Development'!$G$11 -> 17.376 | S12: ='6P UEC Development'!$G$11 -> 17.376 | T12: ='6P UEC Development'!$G$11 -> 17.376 | U12: ='6P UEC Development'!$G$11 -> 17.376 | V12: ='6P UEC Development'!$G$11 -> 17.376 | W12: ='6P UEC Development'!$G$11 -> 17.376 | X12: ='6P UEC Development'!$G$11 -> 17.376 | Y12: ='6P UEC Development'!$G$11 -> 17.376 | Z12: ='6P UEC Development'!$G$11 -> 17.376 | AA12: ='6P UEC Development'!$G$11 -> 17.376 | AB12: ='6P UEC Development'!$G$11 -> 17.376
C13: ='UEC-MH'!$C$9&" - "&'UEC-MH'!C11 -> Market UEC (Shipment Weighted Average) - PRE-Case UEC | D13: ='UEC-SF'!AG11 -> 24.58946 | E13: ='UEC-SF'!AH11 -> 24.58946 | F13: ='UEC-SF'!AI11 -> 24.58946 | G13: ='UEC-SF'!AJ11 -> 24.58946 | H13: ='UEC-SF'!AK11 -> 24.58946 | I13: ='UEC-SF'!AL11 -> 24.58946 | J13: ='UEC-SF'!AM11 -> 24.58946 | K13: ='UEC-SF'!AN11 -> 24.58946 | L13: ='UEC-SF'!AO11 -> 24.58946 | M13: ='UEC-SF'!AP11 -> 24.58946 | N13: ='UEC-SF'!AQ11 -> 24.58946 | O13: ='UEC-SF'!AR11 -> 24.58946 | P13: ='UEC-SF'!AS11 -> 24.58946 | Q13: ='UEC-SF'!AT11 -> 24.58946 | R13: ='UEC-SF'!AU11 -> 24.58946 | S13: ='UEC-SF'!AV11 -> 24.58946 | T13: ='UEC-SF'!AW11 -> 24.58946 | U13: ='UEC-SF'!AX11 -> 24.58946 | V13: ='UEC-SF'!AY11 -> 24.58946 | W13: ='UEC-SF'!AZ11 -> 24.58946 | X13: ='UEC-SF'!BA11 -> 24.58946 | Y13: ='UEC-SF'!BB11 -> 24.58946 | Z13: ='UEC-SF'!BC11 -> 24.58946 | AA13: ='UEC-SF'!BD11 -> 24.58946 | AB13: ='UEC-SF'!BE11 -> 24.58946
C14: ='UEC-MH'!$C$9&" - "&'UEC-MH'!C12 -> Market UEC (Shipment Weighted Average) - POST-Case UEC | D14: ='UEC-SF'!AG12 -> 24.58946 | E14: ='UEC-SF'!AH12 -> 24.58946 | F14: ='UEC-SF'!AI12 -> 24.58946 | G14: ='UEC-SF'!AJ12 -> 24.58946 | H14: ='UEC-SF'!AK12 -> 24.58946 | I14: ='UEC-SF'!AL12 -> 24.58946 | J14: ='UEC-SF'!AM12 -> 8.695 | K14: ='UEC-SF'!AN12 -> 8.695 | L14: ='UEC-SF'!AO12 -> 8.695 | M14: ='UEC-SF'!AP12 -> 8.695 | N14: ='UEC-SF'!AQ12 -> 8.695 | O14: ='UEC-SF'!AR12 -> 8.695 | P14: ='UEC-SF'!AS12 -> 8.695 | Q14: ='UEC-SF'!AT12 -> 8.695 | R14: ='UEC-SF'!AU12 -> 8.695 | S14: ='UEC-SF'!AV12 -> 8.695 | T14: ='UEC-SF'!AW12 -> 8.695 | U14: ='UEC-SF'!AX12 -> 8.695 | V14: ='UEC-SF'!AY12 -> 8.695 | W14: ='UEC-SF'!AZ12 -> 8.695 | X14: ='UEC-SF'!BA12 -> 8.695 | Y14: ='UEC-SF'!BB12 -> 8.695 | Z14: ='UEC-SF'!BC12 -> 8.695 | AA14: ='UEC-SF'!BD12 -> 8.695 | AB14: ='UEC-SF'!BE12 -> 8.695
C15: ='UEC-MH'!$C$14&" - "&'UEC-MH'!C16 -> Installed UEC (Vintage Weighted Average) - PRE-Case UEC | D15: ='UEC-SF'!AG16 -> 24.58946 | E15: ='UEC-SF'!AH16 -> 24.58946 | F15: ='UEC-SF'!AI16 -> 24.58946 | G15: ='UEC-SF'!AJ16 -> 24.58946 | H15: ='UEC-SF'!AK16 -> 24.58946 | I15: ='UEC-SF'!AL16 -> 24.58946 | J15: ='UEC-SF'!AM16 -> 24.58946 | K15: ='UEC-SF'!AN16 -> 24.58946 | L15: ='UEC-SF'!AO16 -> 24.58946 | M15: ='UEC-SF'!AP16 -> 24.58946 | N15: ='UEC-SF'!AQ16 -> 24.58946 | O15: ='UEC-SF'!AR16 -> 24.58946 | P15: ='UEC-SF'!AS16 -> 24.58946 | Q15: ='UEC-SF'!AT16 -> 24.58946 | R15: ='UEC-SF'!AU16 -> 24.58946 | S15: ='UEC-SF'!AV16 -> 24.58946 | T15: ='UEC-SF'!AW16 -> 24.58946 | U15: ='UEC-SF'!AX16 -> 24.58946 | V15: ='UEC-SF'!AY16 -> 24.58946 | W15: ='UEC-SF'!AZ16 -> 24.58946 | X15: ='UEC-SF'!BA16 -> 24.58946 | Y15: ='UEC-SF'!BB16 -> 24.58946 | Z15: ='UEC-SF'!BC16 -> 24.58946 | AA15: ='UEC-SF'!BD16 -> 24.58946 | AB15: ='UEC-SF'!BE16 -> 24.58946
C16: ='UEC-MH'!$C$14&" - "&'UEC-MH'!C17 -> Installed UEC (Vintage Weighted Average) - POST-Case UEC | D16: ='UEC-SF'!AG17 -> 24.58946 | E16: ='UEC-SF'!AH17 -> 24.58946 | F16: ='UEC-SF'!AI17 -> 24.58946 | G16: ='UEC-SF'!AJ17 -> 24.58946 | H16: ='UEC-SF'!AK17 -> 24.58946 | I16: ='UEC-SF'!AL17 -> 24.58946 | J16: ='UEC-SF'!AM17 -> 22.75394396 | K16: ='UEC-SF'!AN17 -> 20.93378625 | L16: ='UEC-SF'!AO17 -> 19.26373549 | M16: ='UEC-SF'!AP17 -> 17.51025076 | N16: ='UEC-SF'!AQ17 -> 15.68131558 | O16: ='UEC-SF'!AR17 -> 13.88612659 | P16: ='UEC-SF'!AS17 -> 12.13160467 | Q16: ='UEC-SF'!AT17 -> 10.3852179 | R16: ='UEC-SF'!AU17 -> 8.695 | S16: ='UEC-SF'!AV17 -> 8.695 | T16: ='UEC-SF'!AW17 -> 8.695 | U16: ='UEC-SF'!AX17 -> 8.695 | V16: ='UEC-SF'!AY17 -> 8.695 | W16: ='UEC-SF'!AZ17 -> 8.695 | X16: ='UEC-SF'!BA17 -> 8.695 | Y16: ='UEC-SF'!BB17 -> 8.695 | Z16: ='UEC-SF'!BC17 -> 8.695 | AA16: ='UEC-SF'!BD17 -> 8.695 | AB16: ='UEC-SF'!BE17 -> 8.695
C18: Stock and Shipments (units) | D18: 2010 | E18: 2011 | F18: 2012 | G18: 2013 | H18: 2014 | I18: 2015 | J18: 2016 | K18: 2017 | L18: 2018 | M18: 2019 | N18: 2020 | O18: 2021 | P18: 2022 | Q18: 2023 | R18: 2024 | S18: 2025 | T18: 2026 | U18: 2027 | V18: 2028 | W18: 2029 | X18: 2030 | Y18: 2031 | Z18: 2032 | AA18: 2033 | AB18: 2034
C19: 6P Shipments | D19: ='Shipments and Stock - SF'!AH11 -> 443089.1068 | E19: ='Shipments and Stock - SF'!AI11 -> 443089.1068 | F19: ='Shipments and Stock - SF'!AJ11 -> 443089.1068 | G19: ='Shipments and Stock - SF'!AK11 -> 443089.1068 | H19: ='Shipments and Stock - SF'!AL11 -> 443089.1068 | I19: ='Shipments and Stock - SF'!AM11 -> 443089.1068 | J19: ='Shipments and Stock - SF'!AN11 -> 443089.1068 | K19: ='Shipments and Stock - SF'!AO11 -> 443089.1068 | L19: ='Shipments and Stock - SF'!AP11 -> 443089.1068 | M19: ='Shipments and Stock - SF'!AQ11 -> 443089.1068 | N19: ='Shipments and Stock - SF'!AR11 -> 443089.1068 | O19: ='Shipments and Stock - SF'!AS11 -> 443089.1068 | P19: ='Shipments and Stock - SF'!AT11 -> 443089.1068 | Q19: ='Shipments and Stock - SF'!AU11 -> 443089.1068 | R19: ='Shipments and Stock - SF'!AV11 -> 443089.1068 | S19: ='Shipments and Stock - SF'!AW11 -> 443089.1068 | T19: ='Shipments and Stock - SF'!AX11 -> 443089.1068 | U19: ='Shipments and Stock - SF'!AY11 -> 443089.1068 | V19: ='Shipments and Stock - SF'!AZ11 -> 443089.1068 | W19: ='Shipments and Stock - SF'!BA11 -> 443089.1068 | X19: ='Shipments and Stock - SF'!BB11 -> 443089.1068 | Y19: ='Shipments and Stock - SF'!BC11 -> 443089.1068 | Z19: ='Shipments and Stock - SF'!BD11 -> 443089.1068 | AA19: ='Shipments and Stock - SF'!BE11 -> 443089.1068 | AB19: ='Shipments and Stock - SF'!BF11 -> 443089.1068
C20: Replacement Shipments | D20: ='Shipments and Stock - SF'!AH12 -> 409364.4431 | E20: ='Shipments and Stock - SF'!AI12 -> 430015.0013 | F20: ='Shipments and Stock - SF'!AJ12 -> 439526.0494 | G20: ='Shipments and Stock - SF'!AK12 -> 439639.4924 | H20: ='Shipments and Stock - SF'!AL12 -> 450936.3358 | I20: ='Shipments and Stock - SF'!AM12 -> 446423.0964 | J20: ='Shipments and Stock - SF'!AN12 -> 439857.079 | K20: ='Shipments and Stock - SF'!AO12 -> 452061.4582 | L20: ='Shipments and Stock - SF'!AP12 -> 425393.047 | M20: ='Shipments and Stock - SF'!AQ12 -> 463950.4017 | N20: ='Shipments and Stock - SF'!AR12 -> 500548.6697 | O20: ='Shipments and Stock - SF'!AS12 -> 505470.0124 | P20: ='Shipments and Stock - SF'!AT12 -> 507251.777 | Q20: ='Shipments and Stock - SF'!AU12 -> 518071.719 | R20: ='Shipments and Stock - SF'!AV12 -> 513767.1048 | S20: ='Shipments and Stock - SF'!AW12 -> 507417.8504 | T20: ='Shipments and Stock - SF'!AX12 -> 518438.672 | U20: ='Shipments and Stock - SF'!AY12 -> 490448.1432 | V20: ='Shipments and Stock - SF'!AZ12 -> 527580.6013 | W20: ='Shipments and Stock - SF'!BA12 -> 563102.7814 | X20: ='Shipments and Stock - SF'!BB12 -> 566388.5944 | Y20: ='Shipments and Stock - SF'!BC12 -> 567088.1566 | Z20: ='Shipments and Stock - SF'!BD12 -> 577127.8216 | AA20: ='Shipments and Stock - SF'!BE12 -> 571929.0739 | AB20: ='Shipments and Stock - SF'!BF12 -> 565381.4364
C21: Net New Shipments | D21: ='Shipments and Stock - SF'!AH13 -> 54585.95857 | E21: ='Shipments and Stock - SF'!AI13 -> 70533.66837 | F21: ='Shipments and Stock - SF'!AJ13 -> 65943.96305 | G21: ='Shipments and Stock - SF'!AK13 -> 67612.28461 | H21: ='Shipments and Stock - SF'!AL13 -> 67135.3832 | I21: ='Shipments and Stock - SF'!AM13 -> 67344.00842 | J21: ='Shipments and Stock - SF'!AN13 -> 67560.77147 | K21: ='Shipments and Stock - SF'!AO13 -> 66377.21383 | L21: ='Shipments and Stock - SF'!AP13 -> 65055.0962 | M21: ='Shipments and Stock - SF'!AQ13 -> 63630.19959 | N21: ='Shipments and Stock - SF'!AR13 -> 62554.11169 | O21: ='Shipments and Stock - SF'!AS13 -> 60918.58203 | P21: ='Shipments and Stock - SF'!AT13 -> 59836.37968 | Q21: ='Shipments and Stock - SF'!AU13 -> 59056.10263 | R21: ='Shipments and Stock - SF'!AV13 -> 58161.96912 | S21: ='Shipments and Stock - SF'!AW13 -> 57963.58596 | T21: ='Shipments and Stock - SF'!AX13 -> 57436.49032 | U21: ='Shipments and Stock - SF'!AY13 -> 56309.74688 | V21: ='Shipments and Stock - SF'!AZ13 -> 54843.44949 | W21: ='Shipments and Stock - SF'!BA13 -> 53843.69331 | X21: ='Shipments and Stock - SF'!BB13 -> 53627.47628 | Y21: ='Shipments and Stock - SF'!BC13 -> 54163.75105 | Z21: ='Shipments and Stock - SF'!BD13 -> 54705.38856 | AA21: ='Shipments and Stock - SF'!BE13 -> 55252.44244 | AB21: ='Shipments and Stock - SF'!BF13 -> 55804.96687
C22: Total Model Shipments | D22: ='Shipments and Stock - SF'!AH14 -> 463950.4017 | E22: ='Shipments and Stock - SF'!AI14 -> 500548.6697 | F22: ='Shipments and Stock - SF'!AJ14 -> 505470.0124 | G22: ='Shipments and Stock - SF'!AK14 -> 507251.777 | H22: ='Shipments and Stock - SF'!AL14 -> 518071.719 | I22: ='Shipments and Stock - SF'!AM14 -> 513767.1048 | J22: ='Shipments and Stock - SF'!AN14 -> 507417.8504 | K22: ='Shipments and Stock - SF'!AO14 -> 518438.672 | L22: ='Shipments and Stock - SF'!AP14 -> 490448.1432 | M22: ='Shipments and Stock - SF'!AQ14 -> 527580.6013 | N22: ='Shipments and Stock - SF'!AR14 -> 563102.7814 | O22: ='Shipments and Stock - SF'!AS14 -> 566388.5944 | P22: ='Shipments and Stock - SF'!AT14 -> 567088.1566 | Q22: ='Shipments and Stock - SF'!AU14 -> 577127.8216 | R22: ='Shipments and Stock - SF'!AV14 -> 571929.0739 | S22: ='Shipments and Stock - SF'!AW14 -> 565381.4364 | T22: ='Shipments and Stock - SF'!AX14 -> 575875.1624 | U22: ='Shipments and Stock - SF'!AY14 -> 546757.8901 | V22: ='Shipments and Stock - SF'!AZ14 -> 582424.0508 | W22: ='Shipments and Stock - SF'!BA14 -> 616946.4747 | X22: ='Shipments and Stock - SF'!BB14 -> 620016.0707 | Y22: ='Shipments and Stock - SF'!BC14 -> 621251.9077 | Z22: ='Shipments and Stock - SF'!BD14 -> 631833.2102 | AA22: ='Shipments and Stock - SF'!BE14 -> 627181.5164 | AB22: ='Shipments and Stock - SF'!BF14 -> 621186.4033
C23: Model Installed Stock | D23: ='Shipments and Stock - SF'!AH15 -> 3987801.961 | E23: ='Shipments and Stock - SF'!AI15 -> 4058335.629 | F23: ='Shipments and Stock - SF'!AJ15 -> 4124279.593 | G23: ='Shipments and Stock - SF'!AK15 -> 4191891.877 | H23: ='Shipments and Stock - SF'!AL15 -> 4259027.26 | I23: ='Shipments and Stock - SF'!AM15 -> 4326371.269 | J23: ='Shipments and Stock - SF'!AN15 -> 4393932.04 | K23: ='Shipments and Stock - SF'!AO15 -> 4460309.254 | L23: ='Shipments and Stock - SF'!AP15 -> 4525364.35 | M23: ='Shipments and Stock - SF'!AQ15 -> 4588994.55 | N23: ='Shipments and Stock - SF'!AR15 -> 4651548.662 | O23: ='Shipments and Stock - SF'!AS15 -> 4712467.244 | P23: ='Shipments and Stock - SF'!AT15 -> 4772303.623 | Q23: ='Shipments and Stock - SF'!AU15 -> 4831359.726 | R23: ='Shipments and Stock - SF'!AV15 -> 4889521.695 | S23: ='Shipments and Stock - SF'!AW15 -> 4947485.281 | T23: ='Shipments and Stock - SF'!AX15 -> 5004921.771 | U23: ='Shipments and Stock - SF'!AY15 -> 5061231.518 | V23: ='Shipments and Stock - SF'!AZ15 -> 5116074.968 | W23: ='Shipments and Stock - SF'!BA15 -> 5169918.661 | X23: ='Shipments and Stock - SF'!BB15 -> 5223546.137 | Y23: ='Shipments and Stock - SF'!BC15 -> 5277709.888 | Z23: ='Shipments and Stock - SF'!BD15 -> 5332415.277 | AA23: ='Shipments and Stock - SF'!BE15 -> 5387667.719 | AB23: ='Shipments and Stock - SF'!BF15 -> 5443472.686
C27: First Year Energy Consumption | D27: 2010 | E27: 2011 | F27: 2012 | G27: 2013 | H27: 2014 | I27: 2015 | J27: 2016 | K27: 2017 | L27: 2018 | M27: 2019 | N27: 2020 | O27: 2021 | P27: 2022 | Q27: 2023 | R27: 2024 | S27: 2025 | T27: 2026 | U27: 2027 | V27: 2028 | W27: 2029 | X27: 2030 | Y27: 2031 | Z27: 2032 | AA27: 2033 | AB27: 2034
C28: 6P Shipments * 6P UEC | D28: =D12*D19 -> 7699116.32 | E28: =E12*E19 -> 7699116.32 | F28: 7699116.32 | G28: 7699116.32 | H28: 7699116.32 | I28: 7699116.32 | J28: 7699116.32 | K28: 7699116.32 | L28: 7699116.32 | M28: 7699116.32 | N28: 7699116.32 | O28: 7699116.32 | P28: 7699116.32 | Q28: 7699116.32 | R28: 7699116.32 | S28: 7699116.32 | T28: 7699116.32 | U28: 7699116.32 | V28: 7699116.32 | W28: 7699116.32 | X28: 7699116.32 | Y28: 7699116.32 | Z28: 7699116.32 | AA28: 7699116.32 | AB28: 7699116.32
C29: Model Shipments * Model Pre-Case UEC | D29: =D13*D22 -> 11408289.84 | E29: =E13*E22 -> 12308221.49 | F29: 12429234.65 | G29: 12473047.28 | H29: 12739103.81 | I29: 12633255.67 | J29: 12477130.94 | K29: 12748126.99 | L29: 12059855 | M29: 12972922.09 | N29: 13846393.32 | O29: 13927189.69 | P29: 13944391.54 | Q29: 14191261.48 | R29: 14063427.09 | S29: 13902424.21 | T29: 14160459.27 | U29: 13444481.27 | V29: 14321492.9 | W29: 15170380.66 | X29: 15245860.37 | Y29: 15276248.93 | Z29: 15536437.45 | AA29: 15422054.81 | AB29: 15274638.22
C30: Model Shipments * Model Post-Case UEC | D30: =D14*D22 -> 11408289.84 | E30: =E14*E22 -> 12308221.49 | F30: 12429234.65 | G30: 12473047.28 | H30: 12739103.81 | I30: 12633255.67 | J30: 4411998.21 | K30: 4507824.253 | L30: 4264446.605 | M30: 4587313.328 | N30: 4896178.684 | O30: 4924748.829 | P30: 4930831.522 | Q30: 5018126.409 | R30: 4972923.298 | S30: 4915991.589 | T30: 5007234.537 | U30: 4754059.854 | V30: 5064177.122 | W30: 5364349.597 | X30: 5391039.735 | Y30: 5401785.337 | Z30: 5493789.763 | AA30: 5453343.285 | AB30: 5401215.776
C32: Total Energy Consumption (kWh) | D32: 2010 | E32: 2011 | F32: 2012 | G32: 2013 | H32: 2014 | I32: 2015 | J32: 2016 | K32: 2017 | L32: 2018 | M32: 2019 | N32: 2020 | O32: 2021 | P32: 2022 | Q32: 2023 | R32: 2024 | S32: 2025 | T32: 2026 | U32: 2027 | V32: 2028 | W32: 2029 | X32: 2030 | Y32: 2031 | Z32: 2032 | AA32: 2033 | AB32: 2034
C33: Modeled Pre-case Consumption (Installed UEC * Stock) | D33: =D15*D$23 -> 98057896.81 | E33: =E15*E$23 -> 99792281.63 | F33: 101413808.1 | G33: 103076357.6 | H33: 104727180.5 | I33: 106383133.3 | J33: =J15*J$23 -> 108044416.1 | K33: 109676596 | L33: 111276265.7 | M33: 112840897.9 | N33: 114379069.8 | O33: 115877024.8 | P33: 117348369.1 | Q33: 118800526.7 | R33: 120230698.1 | S33: 121655991.4 | T33: 123068323.7 | U33: 124452950 | V33: 125801520.8 | W33: 127125508.1 | X33: 128444178.8 | Y33: 129776036.2 | Z33: 131121212.2 | AA33: 132479839.9 | AB33: 133852053.9
C34: Modeled Post-case Consumption (Installed UEC* Stock) | D34: =D16*D$23 -> 98057896.81 | E34: =E16*E$23 -> 99792281.63 | F34: 101413808.1 | G34: 103076357.6 | H34: 104727180.5 | I34: 106383133.3 | J34: =J16*J$23 -> 99979283.42 | K34: 93371160.53 | L34: 87175421.82 | M34: 80354445.3 | N34: 72942402.5 | O34: 65437916.67 | P34: 57895700.92 | Q34: 50174723.51 | R34: 42514391.14 | S34: 43018384.52 | T34: 43517794.8 | U34: 44007408.05 | V34: 44484271.84 | W34: 44952442.76 | X34: 45418733.66 | Y34: 45889687.48 | Z34: 46365350.83 | AA34: 46845770.82 | AB34: 47330995.01
C38: Total Energy Consumption (aMW) | D38: 2010 | E38: 2011 | F38: 2012 | G38: 2013 | H38: 2014 | I38: 2015 | J38: 2016 | K38: 2017 | L38: 2018 | M38: 2019 | N38: 2020 | O38: 2021 | P38: 2022 | Q38: 2023 | R38: 2024 | S38: 2025 | T38: 2026 | U38: 2027 | V38: 2028 | W38: 2029 | X38: 2030 | Y38: 2031 | Z38: 2032 | AA38: 2033 | AB38: 2034
C39: =C33 -> Modeled Pre-case Consumption (Installed UEC * Stock) | D39: =D33/Constants!$D$13/(Constants!$D$12*Constants!$D$10) -> 11.18616208 | E39: =E33/Constants!$D$13/(Constants!$D$12*Constants!$D$10) -> 11.3840157 | F39: =F33/Constants!$D$13/(Constants!$D$12*Constants!$D$10) -> 11.56899476 | G39: =G33/Constants!$D$13/(Constants!$D$12*Constants!$D$10) -> 11.75865362 | H39: =H33/Constants!$D$13/(Constants!$D$12*Constants!$D$10) -> 11.94697473 | I39: =I33/Constants!$D$13/(Constants!$D$12*Constants!$D$10) -> 12.13588105 | J39: =J33/Constants!$D$13/(Constants!$D$12*Constants!$D$10) -> 12.32539541 | K39: =K33/Constants!$D$13/(Constants!$D$12*Constants!$D$10) -> 12.51158978 | L39: =L33/Constants!$D$13/(Constants!$D$12*Constants!$D$10) -> 12.69407548 | M39: =M33/Constants!$D$13/(Constants!$D$12*Constants!$D$10) -> 12.87256422 | N39: =N33/Constants!$D$13/(Constants!$D$12*Constants!$D$10) -> 13.04803442 | O39: =O33/Constants!$D$13/(Constants!$D$12*Constants!$D$10) -> 13.21891681 | P39: =P33/Constants!$D$13/(Constants!$D$12*Constants!$D$10) -> 13.38676352 | Q39: =Q33/Constants!$D$13/(Constants!$D$12*Constants!$D$10) -> 13.55242148 | R39: =R33/Constants!$D$13/(Constants!$D$12*Constants!$D$10) -> 13.71557131 | S39: =S33/Constants!$D$13/(Constants!$D$12*Constants!$D$10) -> 13.87816466 | T39: =T33/Constants!$D$13/(Constants!$D$12*Constants!$D$10) -> 14.03927945 | U39: =U33/Constants!$D$13/(Constants!$D$12*Constants!$D$10) -> 14.19723363 | V39: =V33/Constants!$D$13/(Constants!$D$12*Constants!$D$10) -> 14.35107469 | W39: =W33/Constants!$D$13/(Constants!$D$12*Constants!$D$10) -> 14.50211135 | X39: =X33/Constants!$D$13/(Constants!$D$12*Constants!$D$10) -> 14.6525415 | Y39: =Y33/Constants!$D$13/(Constants!$D$12*Constants!$D$10) -> 14.80447595 | Z39: =Z33/Constants!$D$13/(Constants!$D$12*Constants!$D$10) -> 14.95792975 | AA39: =AA33/Constants!$D$13/(Constants!$D$12*Constants!$D$10) -> 15.11291808 | AB39: =AB33/Constants!$D$13/(Constants!$D$12*Constants!$D$10) -> 15.26945629
C40: =C34 -> Modeled Post-case Consumption (Installed UEC* Stock) | D40: =D34/Constants!$D$13/(Constants!$D$12*Constants!$D$10) -> 11.18616208 | E40: =E34/Constants!$D$13/(Constants!$D$12*Constants!$D$10) -> 11.3840157 | F40: =F34/Constants!$D$13/(Constants!$D$12*Constants!$D$10) -> 11.56899476 | G40: =G34/Constants!$D$13/(Constants!$D$12*Constants!$D$10) -> 11.75865362 | H40: =H34/Constants!$D$13/(Constants!$D$12*Constants!$D$10) -> 11.94697473 | I40: =I34/Constants!$D$13/(Constants!$D$12*Constants!$D$10) -> 12.13588105 | J40: =J34/Constants!$D$13/(Constants!$D$12*Constants!$D$10) -> 11.40534833 | K40: =K34/Constants!$D$13/(Constants!$D$12*Constants!$D$10) -> 10.65151272 | L40: =L34/Constants!$D$13/(Constants!$D$12*Constants!$D$10) -> 9.944720719 | M40: =M34/Constants!$D$13/(Constants!$D$12*Constants!$D$10) -> 9.166603388 | N40: =N34/Constants!$D$13/(Constants!$D$12*Constants!$D$10) -> 8.32105892 | O40: =O34/Constants!$D$13/(Constants!$D$12*Constants!$D$10) -> 7.46496882 | P40: =P34/Constants!$D$13/(Constants!$D$12*Constants!$D$10) -> 6.604574597 | Q40: =Q34/Constants!$D$13/(Constants!$D$12*Constants!$D$10) -> 5.723787761 | R40: =R34/Constants!$D$13/(Constants!$D$12*Constants!$D$10) -> 4.849919135 | S40: =S34/Constants!$D$13/(Constants!$D$12*Constants!$D$10) -> 4.907413246 | T40: =T34/Constants!$D$13/(Constants!$D$12*Constants!$D$10) -> 4.964384531 | U40: =U34/Constants!$D$13/(Constants!$D$12*Constants!$D$10) -> 5.020238199 | V40: =V34/Constants!$D$13/(Constants!$D$12*Constants!$D$10) -> 5.074637445 | W40: =W34/Constants!$D$13/(Constants!$D$12*Constants!$D$10) -> 5.128045033 | X40: =X34/Constants!$D$13/(Constants!$D$12*Constants!$D$10) -> 5.181238155 | Y40: =Y34/Constants!$D$13/(Constants!$D$12*Constants!$D$10) -> 5.234963208 | Z40: =Z34/Constants!$D$13/(Constants!$D$12*Constants!$D$10) -> 5.289225511 | AA40: =AA34/Constants!$D$13/(Constants!$D$12*Constants!$D$10) -> 5.344030438 | AB40: =AB34/Constants!$D$13/(Constants!$D$12*Constants!$D$10) -> 5.399383414
C42: Savings (aMW) | D42: 2010 | E42: 2011 | F42: 2012 | G42: 2013 | H42: 2014 | I42: 2015 | J42: 2016 | K42: 2017 | L42: 2018 | M42: 2019 | N42: 2020 | O42: 2021 | P42: 2022 | Q42: 2023 | R42: 2024 | S42: 2025 | T42: 2026 | U42: 2027 | V42: 2028 | W42: 2029 | X42: 2030 | Y42: 2031 | Z42: 2032 | AA42: 2033 | AB42: 2034
C43: Incremental Savings | D43: =IF(AND(D42>=STANDARD_YEAR,(D42-STANDARD_YEAR)<LIFETIME_SF), (D13-D14)*D22, (D13-D14)*D21) /Constants!$D$13/(Constants!$D$12*Constants!$D$10) -> 0 | E43: =IF(AND(E42>=STANDARD_YEAR,(E42-STANDARD_YEAR)<LIFETIME_SF), (E13-E14)*E22, (E13-E14)*E21) /Constants!$D$13/(Constants!$D$12*Constants!$D$10) -> 0 | F43: =IF(AND(F42>=STANDARD_YEAR,(F42-STANDARD_YEAR)<LIFETIME_SF), (F13-F14)*F22, (F13-F14)*F21) /Constants!$D$13/(Constants!$D$12*Constants!$D$10) -> 0 | G43: =IF(AND(G42>=STANDARD_YEAR,(G42-STANDARD_YEAR)<LIFETIME_SF), (G13-G14)*G22, (G13-G14)*G21) /Constants!$D$13/(Constants!$D$12*Constants!$D$10) -> 0 | H43: =IF(AND(H42>=STANDARD_YEAR,(H42-STANDARD_YEAR)<LIFETIME_SF), (H13-H14)*H22, (H13-H14)*H21) /Constants!$D$13/(Constants!$D$12*Constants!$D$10) -> 0 | I43: =IF(AND(I42>=STANDARD_YEAR,(I42-STANDARD_YEAR)<LIFETIME_SF), (I13-I14)*I22, (I13-I14)*I21) /Constants!$D$13/(Constants!$D$12*Constants!$D$10) -> 0 | J43: =IF(AND(J42>=STANDARD_YEAR,(J42-STANDARD_YEAR)<LIFETIME_SF), (J13-J14)*J22, (J13-J14)*J21) /Constants!$D$13/(Constants!$D$12*Constants!$D$10) -> 0.9200470827 | K43: =IF(AND(K42>=STANDARD_YEAR,(K42-STANDARD_YEAR)<LIFETIME_SF), (K13-K14)*K22, (K13-K14)*K21) /Constants!$D$13/(Constants!$D$12*Constants!$D$10) -> 0.9400299721 | L43: =IF(AND(L42>=STANDARD_YEAR,(L42-STANDARD_YEAR)<LIFETIME_SF), (L13-L14)*L22, (L13-L14)*L21) /Constants!$D$13/(Constants!$D$12*Constants!$D$10) -> 0.8892777087 | M43: =IF(AND(M42>=STANDARD_YEAR,(M42-STANDARD_YEAR)<LIFETIME_SF), (M13-M14)*M22, (M13-M14)*M21) /Constants!$D$13/(Constants!$D$12*Constants!$D$10) -> 0.9566060648 | N43: =IF(AND(N42>=STANDARD_YEAR,(N42-STANDARD_YEAR)<LIFETIME_SF), (N13-N14)*N22, (N13-N14)*N21) /Constants!$D$13/(Constants!$D$12*Constants!$D$10) -> 1.021014674 | O43: =IF(AND(O42>=STANDARD_YEAR,(O42-STANDARD_YEAR)<LIFETIME_SF), (O13-O14)*O22, (O13-O14)*O21) /Constants!$D$13/(Constants!$D$12*Constants!$D$10) -> 1.026972491 | P43: =IF(AND(P42>=STANDARD_YEAR,(P42-STANDARD_YEAR)<LIFETIME_SF), (P13-P14)*P22, (P13-P14)*P21) /Constants!$D$13/(Constants!$D$12*Constants!$D$10) -> 1.028240933 | Q43: =IF(AND(Q42>=STANDARD_YEAR,(Q42-STANDARD_YEAR)<LIFETIME_SF), (Q13-Q14)*Q22, (Q13-Q14)*Q21) /Constants!$D$13/(Constants!$D$12*Constants!$D$10) -> 1.046444795 | R43: =IF(AND(R42>=STANDARD_YEAR,(R42-STANDARD_YEAR)<LIFETIME_SF), (R13-R14)*R22, (R13-R14)*R21) /Constants!$D$13/(Constants!$D$12*Constants!$D$10) -> 1.037018456 | S43: =IF(AND(S42>=STANDARD_YEAR,(S42-STANDARD_YEAR)<LIFETIME_SF), (S13-S14)*S22, (S13-S14)*S21) /Constants!$D$13/(Constants!$D$12*Constants!$D$10) -> 0.1050992355 | T43: =IF(AND(T42>=STANDARD_YEAR,(T42-STANDARD_YEAR)<LIFETIME_SF), (T13-T14)*T22, (T13-T14)*T21) /Constants!$D$13/(Constants!$D$12*Constants!$D$10) -> 0.1041435088 | U43: =IF(AND(U42>=STANDARD_YEAR,(U42-STANDARD_YEAR)<LIFETIME_SF), (U13-U14)*U22, (U13-U14)*U21) /Constants!$D$13/(Constants!$D$12*Constants!$D$10) -> 0.1021005042 | V43: =IF(AND(V42>=STANDARD_YEAR,(V42-STANDARD_YEAR)<LIFETIME_SF), (V13-V14)*V22, (V13-V14)*V21) /Constants!$D$13/(Constants!$D$12*Constants!$D$10) -> 0.09944182229 | W43: =IF(AND(W42>=STANDARD_YEAR,(W42-STANDARD_YEAR)<LIFETIME_SF), (W13-W14)*W22, (W13-W14)*W21) /Constants!$D$13/(Constants!$D$12*Constants!$D$10) -> 0.09762907023 | X43: =IF(AND(X42>=STANDARD_YEAR,(X42-STANDARD_YEAR)<LIFETIME_SF), (X13-X14)*X22, (X13-X14)*X21) /Constants!$D$13/(Constants!$D$12*Constants!$D$10) -> 0.09723702677 | Y43: =IF(AND(Y42>=STANDARD_YEAR,(Y42-STANDARD_YEAR)<LIFETIME_SF), (Y13-Y14)*Y22, (Y13-Y14)*Y21) /Constants!$D$13/(Constants!$D$12*Constants!$D$10) -> 0.09820939704 | Z43: =IF(AND(Z42>=STANDARD_YEAR,(Z42-STANDARD_YEAR)<LIFETIME_SF), (Z13-Z14)*Z22, (Z13-Z14)*Z21) /Constants!$D$13/(Constants!$D$12*Constants!$D$10) -> 0.09919149101 | AA43: =IF(AND(AA42>=STANDARD_YEAR,(AA42-STANDARD_YEAR)<LIFETIME_SF), (AA13-AA14)*AA22, (AA13-AA14)*AA21) /Constants!$D$13/(Constants!$D$12*Constants!$D$10) -> 0.1001834059 | AB43: =IF(AND(AB42>=STANDARD_YEAR,(AB42-STANDARD_YEAR)<LIFETIME_SF), (AB13-AB14)*AB22, (AB13-AB14)*AB21) /Constants!$D$13/(Constants!$D$12*Constants!$D$10) -> 0.10118524
C44: Cumulative Savings | D44: =D39-D40 -> 0 | E44: 0 | F44: 0 | G44: 0 | H44: 0 | I44: 0 | J44: =J39-J40 -> 0.9200470827 | K44: 1.860077055 | L44: 2.749354763 | M44: =M39-M40 -> 3.705960828 | N44: 4.726975503 | O44: 5.753947994 | P44: 6.782188927 | Q44: 7.828633723 | R44: 8.865652179 | S44: 8.970751414 | T44: 9.074894923 | U44: 9.176995427 | V44: 9.27643725 | W44: 9.37406632 | X44: 9.471303347 | Y44: 9.569512744 | Z44: 9.668704235 | AA44: 9.768887641 | AB44: 9.870072881
C45: DOE Aggregate Lifecycle Savings (formerly DOE Carbon proxy) | D45: =SUM($D$44:D44) -> 0 | E45: =SUM($D$44:E44) -> 0 | F45: =SUM($D$44:F44) -> 0 | G45: =SUM($D$44:G44) -> 0 | H45: =SUM($D$44:H44) -> 0 | I45: =SUM($D$44:I44) -> 0 | J45: =SUM($D$44:J44) -> 0.9200470827 | K45: =SUM($D$44:K44) -> 2.780124137 | L45: =SUM($D$44:L44) -> 5.529478901 | M45: =SUM($D$44:M44) -> 9.235439729 | N45: =SUM($D$44:N44) -> 13.96241523 | O45: =SUM($D$44:O44) -> 19.71636323 | P45: =SUM($D$44:P44) -> 26.49855215 | Q45: =SUM($D$44:Q44) -> 34.32718588 | R45: =SUM($D$44:R44) -> 43.19283805 | S45: =SUM($D$44:S44) -> 52.16358947 | T45: =SUM($D$44:T44) -> 61.23848439 | U45: =SUM($D$44:U44) -> 70.41547982 | V45: =SUM($D$44:V44) -> 79.69191707 | W45: =SUM($D$44:W44) -> 89.06598339 | X45: =SUM($D$44:X44) -> 98.53728674 | Y45: =SUM($D$44:Y44) -> 108.1067995 | Z45: =SUM($D$44:Z44) -> 117.7755037 | AA45: =SUM($D$44:AA44) -> 127.5443914 | AB45: =SUM($D$44:AB44) -> 137.4144642
C46: Check | D46: =IF(ISNUMBER(C44),ROUND((D44-C44-D43),3),0) -> 0 | E46: =IF(ISNUMBER(D44),ROUND((E44-D44-E43),3),0) -> 0 | F46: 0 | G46: 0 | H46: 0 | I46: 0 | J46: 0 | K46: 0 | L46: 0 | M46: 0 | N46: 0 | O46: 0 | P46: 0 | Q46: 0 | R46: 0 | S46: 0 | T46: 0 | U46: 0 | V46: 0 | W46: 0 | X46: 0 | Y46: 0 | Z46: 0 | AA46: 0 | AB46: 0

Sheet Results-MF
C2: RESULTS - Multi-Family
C4: NAVIGATION
C6: COMMENTS
C9: MULTI-FAMILY
C11: Unit Energy Consumption (kWh/year) | D11: 2010 | E11: 2011 | F11: 2012 | G11: 2013 | H11: 2014 | I11: 2015 | J11: 2016 | K11: 2017 | L11: 2018 | M11: 2019 | N11: 2020 | O11: 2021 | P11: 2022 | Q11: 2023 | R11: 2024 | S11: 2025 | T11: 2026 | U11: 2027 | V11: 2028 | W11: 2029 | X11: 2030 | Y11: 2031 | Z11: 2032 | AA11: 2033 | AB11: 2034
C12: 6P UEC | D12: ='6P UEC Development'!$G$11 -> 17.376 | E12: ='6P UEC Development'!$G$11 -> 17.376 | F12: ='6P UEC Development'!$G$11 -> 17.376 | G12: ='6P UEC Development'!$G$11 -> 17.376 | H12: ='6P UEC Development'!$G$11 -> 17.376 | I12: ='6P UEC Development'!$G$11 -> 17.376 | J12: ='6P UEC Development'!$G$11 -> 17.376 | K12: ='6P UEC Development'!$G$11 -> 17.376 | L12: ='6P UEC Development'!$G$11 -> 17.376 | M12: ='6P UEC Development'!$G$11 -> 17.376 | N12: ='6P UEC Development'!$G$11 -> 17.376 | O12: ='6P UEC Development'!$G$11 -> 17.376 | P12: ='6P UEC Development'!$G$11 -> 17.376 | Q12: ='6P UEC Development'!$G$11 -> 17.376 | R12: ='6P UEC Development'!$G$11 -> 17.376 | S12: ='6P UEC Development'!$G$11 -> 17.376 | T12: ='6P UEC Development'!$G$11 -> 17.376 | U12: ='6P UEC Development'!$G$11 -> 17.376 | V12: ='6P UEC Development'!$G$11 -> 17.376 | W12: ='6P UEC Development'!$G$11 -> 17.376 | X12: ='6P UEC Development'!$G$11 -> 17.376 | Y12: ='6P UEC Development'!$G$11 -> 17.376 | Z12: ='6P UEC Development'!$G$11 -> 17.376 | AA12: ='6P UEC Development'!$G$11 -> 17.376 | AB12: ='6P UEC Development'!$G$11 -> 17.376
C13: ='UEC-MH'!$C$9&" - "&'UEC-MH'!C11 -> Market UEC (Shipment Weighted Average) - PRE-Case UEC | D13: ='UEC-MF'!AG11 -> 24.58946 | E13: ='UEC-MF'!AH11 -> 24.58946 | F13: ='UEC-MF'!AI11 -> 24.58946 | G13: ='UEC-MF'!AJ11 -> 24.58946 | H13: ='UEC-MF'!AK11 -> 24.58946 | I13: ='UEC-MF'!AL11 -> 24.58946 | J13: ='UEC-MF'!AM11 -> 24.58946 | K13: ='UEC-MF'!AN11 -> 24.58946 | L13: ='UEC-MF'!AO11 -> 24.58946 | M13: ='UEC-MF'!AP11 -> 24.58946 | N13: ='UEC-MF'!AQ11 -> 24.58946 | O13: ='UEC-MF'!AR11 -> 24.58946 | P13: ='UEC-MF'!AS11 -> 24.58946 | Q13: ='UEC-MF'!AT11 -> 24.58946 | R13: ='UEC-MF'!AU11 -> 24.58946 | S13: ='UEC-MF'!AV11 -> 24.58946 | T13: ='UEC-MF'!AW11 -> 24.58946 | U13: ='UEC-MF'!AX11 -> 24.58946 | V13: ='UEC-MF'!AY11 -> 24.58946 | W13: ='UEC-MF'!AZ11 -> 24.58946 | X13: ='UEC-MF'!BA11 -> 24.58946 | Y13: ='UEC-MF'!BB11 -> 24.58946 | Z13: ='UEC-MF'!BC11 -> 24.58946 | AA13: ='UEC-MF'!BD11 -> 24.58946 | AB13: ='UEC-MF'!BE11 -> 24.58946
C14: ='UEC-MH'!$C$9&" - "&'UEC-MH'!C12 -> Market UEC (Shipment Weighted Average) - POST-Case UEC | D14: ='UEC-MF'!AG12 -> 24.58946 | E14: ='UEC-MF'!AH12 -> 24.58946 | F14: ='UEC-MF'!AI12 -> 24.58946 | G14: ='UEC-MF'!AJ12 -> 24.58946 | H14: ='UEC-MF'!AK12 -> 24.58946 | I14: ='UEC-MF'!AL12 -> 24.58946 | J14: ='UEC-MF'!AM12 -> 8.695 | K14: ='UEC-MF'!AN12 -> 8.695 | L14: ='UEC-MF'!AO12 -> 8.695 | M14: ='UEC-MF'!AP12 -> 8.695 | N14: ='UEC-MF'!AQ12 -> 8.695 | O14: ='UEC-MF'!AR12 -> 8.695 | P14: ='UEC-MF'!AS12 -> 8.695 | Q14: ='UEC-MF'!AT12 -> 8.695 | R14: ='UEC-MF'!AU12 -> 8.695 | S14: ='UEC-MF'!AV12 -> 8.695 | T14: ='UEC-MF'!AW12 -> 8.695 | U14: ='UEC-MF'!AX12 -> 8.695 | V14: ='UEC-MF'!AY12 -> 8.695 | W14: ='UEC-MF'!AZ12 -> 8.695 | X14: ='UEC-MF'!BA12 -> 8.695 | Y14: ='UEC-MF'!BB12 -> 8.695 | Z14: ='UEC-MF'!BC12 -> 8.695 | AA14: ='UEC-MF'!BD12 -> 8.695 | AB14: ='UEC-MF'!BE12 -> 8.695
C15: ='UEC-MH'!$C$14&" - "&'UEC-MH'!C16 -> Installed UEC (Vintage Weighted Average) - PRE-Case UEC | D15: ='UEC-MF'!AG16 -> 24.58946 | E15: ='UEC-MF'!AH16 -> 24.58946 | F15: ='UEC-MF'!AI16 -> 24.58946 | G15: ='UEC-MF'!AJ16 -> 24.58946 | H15: ='UEC-MF'!AK16 -> 24.58946 | I15: ='UEC-MF'!AL16 -> 24.58946 | J15: ='UEC-MF'!AM16 -> 24.58946 | K15: ='UEC-MF'!AN16 -> 24.58946 | L15: ='UEC-MF'!AO16 -> 24.58946 | M15: ='UEC-MF'!AP16 -> 24.58946 | N15: ='UEC-MF'!AQ16 -> 24.58946 | O15: ='UEC-MF'!AR16 -> 24.58946 | P15: ='UEC-MF'!AS16 -> 24.58946 | Q15: ='UEC-MF'!AT16 -> 24.58946 | R15: ='UEC-MF'!AU16 -> 24.58946 | S15: ='UEC-MF'!AV16 -> 24.58946 | T15: ='UEC-MF'!AW16 -> 24.58946 | U15: ='UEC-MF'!AX16 -> 24.58946 | V15: ='UEC-MF'!AY16 -> 24.58946 | W15: ='UEC-MF'!AZ16 -> 24.58946 | X15: ='UEC-MF'!BA16 -> 24.58946 | Y15: ='UEC-MF'!BB16 -> 24.58946 | Z15: ='UEC-MF'!BC16 -> 24.58946 | AA15: ='UEC-MF'!BD16 -> 24.58946 | AB15: ='UEC-MF'!BE16 -> 24.58946
C16: ='UEC-MH'!$C$14&" - "&'UEC-MH'!C17 -> Installed UEC (Vintage Weighted Average) - POST-Case UEC | D16: ='UEC-MF'!AG17 -> 24.58946 | E16: ='UEC-MF'!AH17 -> 24.58946 | F16: ='UEC-MF'!AI17 -> 24.58946 | G16: ='UEC-MF'!AJ17 -> 24.58946 | H16: ='UEC-MF'!AK17 -> 24.58946 | I16: ='UEC-MF'!AL17 -> 24.58946 | J16: ='UEC-MF'!AM17 -> 22.48794491 | K16: ='UEC-MF'!AN17 -> 20.48286013 | L16: ='UEC-MF'!AO17 -> 18.90729784 | M16: ='UEC-MF'!AP17 -> 17.30917978 | N16: ='UEC-MF'!AQ17 -> 15.60419498 | O16: ='UEC-MF'!AR17 -> 13.85584391 | P16: ='UEC-MF'!AS17 -> 12.13997708 | Q16: ='UEC-MF'!AT17 -> 10.44178721 | R16: ='UEC-MF'!AU17 -> 8.695 | S16: ='UEC-MF'!AV17 -> 8.695 | T16: ='UEC-MF'!AW17 -> 8.695 | U16: ='UEC-MF'!AX17 -> 8.695 | V16: ='UEC-MF'!AY17 -> 8.695 | W16: ='UEC-MF'!AZ17 -> 8.695 | X16: ='UEC-MF'!BA17 -> 8.695 | Y16: ='UEC-MF'!BB17 -> 8.695 | Z16: ='UEC-MF'!BC17 -> 8.695 | AA16: ='UEC-MF'!BD17 -> 8.695 | AB16: ='UEC-MF'!BE17 -> 8.695
C18: Stock and Shipments (units) | D18: 2010 | E18: 2011 | F18: 2012 | G18: 2013 | H18: 2014 | I18: 2015 | J18: 2016 | K18: 2017 | L18: 2018 | M18: 2019 | N18: 2020 | O18: 2021 | P18: 2022 | Q18: 2023 | R18: 2024 | S18: 2025 | T18: 2026 | U18: 2027 | V18: 2028 | W18: 2029 | X18: 2030 | Y18: 2031 | Z18: 2032 | AA18: 2033 | AB18: 2034
C19: 6P Shipments | D19: ='Shipments and Stock - MF'!AH11 -> 107592.0716 | E19: ='Shipments and Stock - MF'!AI11 -> 107592.0716 | F19: ='Shipments and Stock - MF'!AJ11 -> 107592.0716 | G19: ='Shipments and Stock - MF'!AK11 -> 107592.0716 | H19: ='Shipments and Stock - MF'!AL11 -> 107592.0716 | I19: ='Shipments and Stock - MF'!AM11 -> 107592.0716 | J19: ='Shipments and Stock - MF'!AN11 -> 107592.0716 | K19: ='Shipments and Stock - MF'!AO11 -> 107592.0716 | L19: ='Shipments and Stock - MF'!AP11 -> 107592.0716 | M19: ='Shipments and Stock - MF'!AQ11 -> 107592.0716 | N19: ='Shipments and Stock - MF'!AR11 -> 107592.0716 | O19: ='Shipments and Stock - MF'!AS11 -> 107592.0716 | P19: ='Shipments and Stock - MF'!AT11 -> 107592.0716 | Q19: ='Shipments and Stock - MF'!AU11 -> 107592.0716 | R19: ='Shipments and Stock - MF'!AV11 -> 107592.0716 | S19: ='Shipments and Stock - MF'!AW11 -> 107592.0716 | T19: ='Shipments and Stock - MF'!AX11 -> 107592.0716 | U19: ='Shipments and Stock - MF'!AY11 -> 107592.0716 | V19: ='Shipments and Stock - MF'!AZ11 -> 107592.0716 | W19: ='Shipments and Stock - MF'!BA11 -> 107592.0716 | X19: ='Shipments and Stock - MF'!BB11 -> 107592.0716 | Y19: ='Shipments and Stock - MF'!BC11 -> 107592.0716 | Z19: ='Shipments and Stock - MF'!BD11 -> 107592.0716 | AA19: ='Shipments and Stock - MF'!BE11 -> 107592.0716 | AB19: ='Shipments and Stock - MF'!BF11 -> 107592.0716
C20: Replacement Shipments | D20: ='Shipments and Stock - MF'!AH12 -> 87729.01302 | E20: ='Shipments and Stock - MF'!AI12 -> 95215.91369 | F20: ='Shipments and Stock - MF'!AJ12 -> 105193.6327 | G20: ='Shipments and Stock - MF'!AK12 -> 106467.2118 | H20: ='Shipments and Stock - MF'!AL12 -> 108518.6815 | I20: ='Shipments and Stock - MF'!AM12 -> 115454.1034 | J20: ='Shipments and Stock - MF'!AN12 -> 122403.9052 | K20: ='Shipments and Stock - MF'!AO12 -> 120281.1256 | L20: ='Shipments and Stock - MF'!AP12 -> 94840.65018 | M20: ='Shipments and Stock - MF'!AQ12 -> 99953.42004 | N20: ='Shipments and Stock - MF'!AR12 -> 111610.2147 | O20: ='Shipments and Stock - MF'!AS12 -> 119440.0951 | P20: ='Shipments and Stock - MF'!AT12 -> 121516.3454 | Q20: ='Shipments and Stock - MF'!AU12 -> 124681.1787 | R20: ='Shipments and Stock - MF'!AV12 -> 132938.5705 | S20: ='Shipments and Stock - MF'!AW12 -> 140974.3333 | T20: ='Shipments and Stock - MF'!AX12 -> 139461.0194 | U20: ='Shipments and Stock - MF'!AY12 -> 114689.2018 | V20: ='Shipments and Stock - MF'!AZ12 -> 120574.9226 | W20: ='Shipments and Stock - MF'!BA12 -> 132688.5341 | X20: ='Shipments and Stock - MF'!BB12 -> 140146.0651 | Y20: ='Shipments and Stock - MF'!BC12 -> 142454.0253 | Z20: ='Shipments and Stock - MF'!BD12 -> 145715.108 | AA20: ='Shipments and Stock - MF'!BE12 -> 153914.1109 | AB20: ='Shipments and Stock - MF'!BF12 -> 161723.1964
